Workbook

Sheet Vmáx(material) - Tab.4.3
A1: Velocidad máxima permisible | J1: TABLA 2. | K1: MATERIAL TUBERÍA | M1: Vmáx (m/s)
K2: Concreto simple | L2: 1 | M2: 3
A3: http://www.ptolomeo.unam.mx:8080/xmlui/bitstream/handle/132.248.52.100/483/A5.pdf?sequence=5 | K3: Concreto reforzado | L3: 2 | M3: 3.5
K4: Acero con revestimiento | L4: 3 | M4: 5
K5: Acero sin revestimiento | L5: 4 | M5: 5
K6: Acero galvanizado | L6: 5 | M6: 5
K7: Asbesto cemento | L7: 6 | M7: 5
K8: Hierro fundido | L8: 7 | M8: 5
K9: Hierro dúctil | L9: 8 | M9: 5
K10: PEAD (HDPE) | L10: 9 | M10: 5
K11: PVC | L11: 10 | M11: 5
K14: MATERIAL CAJÓN | M14: Vmáx (m/s)
K15: Concreto reforzado | L15: 2 | M15: 15
A31: http://fluidos.eia.edu.co/hidraulica/articuloses/interesantes/laderas_andinas/paginas/canales.htm
P33: TABLA 4.3 | R33: MANUAL DE DRENAJE PARA CARRETERAS INVÍAS
P34: DESCRIPCIÓN SEGÚN TIPO DE OBRA | R34: CÓDIGO | S34: a | T34: b | U34: c | V34: d | W34: e | X34: f
P35: Alcantarilla circular de concreto, aristas vivas, cabezote, aletas 30°<=b<=75° | R35: 1 | S35: 0.087483 | T35: 0.706578 | U35: -0.2533 | V35: 0.0667 | W35: -0.00662 | X35: 0.000251
P36: Alcantarilla circular de concreto, aristas ranuradas, cabezote, aletas 30°<=b<=75° | R36: 2 | S36: 0.114099 | T36: 0.653562 | U36: -0.2336 | V36: 0.059772 | W36: -0.00616 | X36: 0.000243
P37: Alcantarilla circular de concreto, aristas ranuradas, tubo prolongado (sin cabezote ni aletas) | Q37: circular | R37: 3 | S37: 0.108786 | T37: 0.662381 | U37: -0.2338 | V37: 0.057959 | W37: -0.00558 | X37: 0.000205
P38: Alcantarilla de cajón, aristas vivas, cabezote, aletas 30°<=b<=75° | Q38: cajón | R38: 7 | S38: 0.072493 | T38: 0.507087 | U38: -0.11747 | V38: 0.02217 | W38: -0.00149 | X38: 3.8e-05
P39: Alcantarilla de cajón, aristas vivas, cabezote, aletas con b=15° o 90° | Q39: cajón | R39: 8 | S39: 0.122117 | T39: 0.505435 | U39: -0.10856 | V39: 0.020781 | W39: -0.00137 | X39: 3.46e-05
P40: Alcantarilla de cajón, aristas vivas, cabezote, aletas con b=90° | Q40: cajón | R40: 9 | S40: 0.144138 | T40: 0.461363 | U40: -0.09215 | V40: 0.020003 | W40: -0.00136 | X40: 3.6e-05
P41: Alcantarilla de cajón, aristas biseladas, cabezote, aletas con 45° | Q41: cajón | R41: 10 | S41: 0.156609 | T41: 0.398935 | U41: -0.06404 | V41: 0.011201 | W41: -0.00064 | X41: 1.5e-05
Q109: °

Sheet Control a la Entrada
A1: PÁGINA 4-39 MANUAL DRENAJE CARRETERAS INVÍAS
H2: Donde:
I3: Altura de la lámina de agua a la entrada, en m.
I4: Diámetro, altura o flecha de la alcantarilla, en m.
I5: Profundidad crítica, en m.
I6: Coeficiente de pérdidas a la entrada.
I8: Caudal de diseño, en m3/s.
I9: Caudal correspondiente a un valor Hw = 0,5D, en m3/s (calculado con la ecuación de regresión para su límite inferior).
I10: Área de la sección transversal con el caudal crítico, en m2.
I11: Velocidad a la profundidad crítica, en m/s.
I12: Aceleración de la gravedad, 9.81 m/s2.
I13: Coeficiente de la cabeza de velocidad.
A14: Fuente: INVIAS, 2009 | D14: MATERIAL TUBERÍA
D15: Concreto simple | F15: 1
D16: Concreto reforzado | F16: 2 | I16: Velocidad media, en m/s.
D17: Acero con revestimiento | F17: 3 | I17: Velocidad corregida, en m/s.
D18: Acero sin revestimiento | F18: 4
D19: Acero galvanizado | F19: 5 | I19: Coeficientes de regresión para cada tipo de alcantarilla
D20: Asbesto cemento | F20: 6 | I20: para alcantarillas circulares y
D21: Hierro fundido | F21: 7 | I21: para alcantarillas de cajón o arco.
A22: FORMA | B22: CÓDIGO | D22: Hierro dúctil | F22: 8 | I22: Luz de la alcantarilla, en m.
A23: Circular | B23: 1 | D23: PEAD (HDPE) | F23: 9 | I23: Pendiente del conducto de la alcantarilla, en m/m.
A24: Cajón o arco | B24: 2 | D24: PVC | F24: 10 | I24: Factor de conversión a unidades métricas, z=1.81130889
I25: Coeficiente basado en el caudal y la altura o flecha de la alcantarilla.
D27: MATERIAL CAJÓN | F27: Manning | I27: Caudal correspondiente a un valor Hw=3.0D, en m3/s (calculado con la ecuación de regresión para su límite superior).
D28: Concreto reforzado | E28: 2 | F28: 0.015

Sheet Tab.4.5
A1: TABLA 4.5 COEFICIENTE DE PÉRDIDAS A LA ENTRADA (Ref. 4.19)
H3: TIPO DE ESTRUCTURA Y CARACTERÍSTICAS DE LA ENTRADA | L3: Ke
H4: Tubos de hormigón
I5: Conducto prolongado fuera del terraplén
J6: 1 | K6: arista ranurada | L6: 0.2
J7: 2 | K7: arista viva | L7: 0.5
I8: Con muro de cabecera con o sin aletas
J9: 3 | K9: arista ranurada | L9: 0.2
J10: 4 | K10: arista viva | L10: 0.5
J11: 5 | K11: arista redondeada (r=1/12 D) | L11: 0.2
J12: 6 | K12: arista biselada | L12: 0.2
H13: Tubos circulares de metal corrugado
I14: Conducto prolongado fuera del terraplén
J15: 7 | K15: sin muro de cabecera | L15: 0.9
J16: 8 | K16: con muro de cabecera perpendicular al eje del tubo sin o con aletas de aristas vivas | L16: 0.5
J17: 9 | K17: con muro de cabecera perpendicular al eje del tubo con o sin muro de aristas biseladas | L17: 0.25
H18: Alcantarillas de cajón en concreto reforzado
I19: con muro de cabecera paralelo al terraplén
J20: 10 | K20: sin aletas y bordes de aristas vivas | L20: 0.5
J21: 11 | K21: bordes aristas redondeadas (r=1/12 D) o biseladas | L21: 0.2
I22: con aletas formando ángulos entre 30° y 75° con el eje del conducto:
J23: 12 | K23: bordes de aristas vivas | L23: 0.4
J24: 13 | K24: bordes del dintel con aristas redondeadas (r=1/12 D) o biseladas | L24: 0.2
J25: 14 | K25: con aletas formando ángulos entre 10° y 25° con el eje del conducto, y aristas vivas | L25: 0.5
J26: 15 | K26: con muros de ala paralelos y aristas vivas en el dintel | L26: 0.7
J27: 16 | K27: con muros de ala alabeados y aristas redondeadas (r=1/4 D) en el dintel | L27: 0.2
A28: Fuente: INVIAS, 2009

Sheet Estructura escalonada
A1: CÁLCULO DE ESTRUCTURA DE CAÍDA ESCALONADA | D1: CALIBRACIÓN E ITERACIONES
A2: Ancho del canal escalonado o rápida B = | B2: ='Dimensionamiento Alcantarillas'!EV8 -> 2 | C2: m | D2: Q (m3/s) | E2: y (m) | F2: R (m) | G2: C CHÉZY | H2: V (m/s)
A3: Altura escalón h = | B3: ='Dimensionamiento Alcantarillas'!EW8 -> 0.8 | C3: m | D3: =H3*$B$2*E3 -> -0.01359838699 | E3: 0.05 | F3: =$B$2*E3/(2*E3+$B$2) -> 0.04761904762 | G3: =18*LOG10(6*F3/($B$8/2)) -> -0.6967100098 | H3: =G3*(F3*$B$6)^0.5 -> -0.1359838699
A4: Longitud del escalón o paso b = | B4: ='Dimensionamiento Alcantarillas'!EX8 -> 1 | C4: m | D4: =H4*$B$2*E4 -> -0.01104019585 | E4: =E3+0.001 -> 0.051 | F4: 0.04852521408 | G4: -0.5493484233 | H4: -0.1082372142
A5: Caudal Q = | B5: ='Dimensionamiento Alcantarillas'!EY8 -> 3.11 | C5: m3/s | D5: -0.008375523644 | E5: =E4+0.001 -> 0.052 | F5: 0.04942965779 | G5: -0.4049858359 | H5: -0.0805338812
A6: Pendiente de la rápida o del tramo escalonado Se = | B6: =B3/B4 -> 0.8 | C6: m/m | D6: -0.005604901346 | E6: 0.053 | F6: 0.05033238367 | G6: -0.2635077331 | H6: -0.05287642779
A7: Ángulo q = | B7: =ATAN(B6)*(180/PI()) -> 38.65980825 | C7: ° | D7: =H7*$B$2*E7 -> -0.002728857577 | E7: 0.054 | F7: 0.05123339658 | G7: -0.1248060235 | H7: -0.02526719978
A8: Distancia a extremo externo del escalón a = | B8: =B4*(SIN(B7*PI()/180)) -> 0.6246950476 | C8: m | D8: 0.0002520815794 | E8: 0.055 | F8: 0.05213270142 | G8: 0.01122143292 | H8: 0.002291650722
A9: Distancia entre extremos externos del escalón L = | B9: =(B3^2+B4^2)^0.5 -> 1.280624847 | C9: m | D9: 0.003337392737 | E9: 0.056 | F9: 0.05303030303 | G9: 0.144671254 | H9: 0.02979814943
A10: Altura de lámina de agua y = | B10: =VLOOKUP(B5,D3:H953,2) -> 0.305 | C10: m | D10: 0.006526555352 | E10: 0.057 | F10: 0.05392620624 | G10: 0.275634926 | H10: 0.05725048555
A11: Área hidráulica A = | B11: =$B$2*B10 -> 0.61 | C11: m2 | D11: 0.00981905185 | E11: 0.058 | F11: 0.05482041588 | G11: 0.404199161 | H11: 0.08464699871
A12: Perímetro hidráulico P = | B12: =(2*B10+$B$2) -> 2.61 | C12: m | D12: 0.01321436772 | E12: 0.059 | F12: =$B$2*E12/(2*E12+$B$2) -> 0.05571293673 | G12: 0.5304462231 | H12: 0.1119861672
A13: Radio hidráulico R = | B13: =B11/B12 -> 0.2337164751 | C13: m | D13: 0.01671199163 | E13: 0.06 | F13: 0.05660377358 | G13: 0.6544542276 | H13: 0.1392665969
A14: C CHÉZY = | B14: =18*LOG10(6*B13/(B8/2)) -> 11.73964519 | D14: 0.02031141548 | E14: 0.061 | F14: 0.0574929312 | G14: 0.7762974154 | H14: 0.1664870121
A15: Velocidad de flujo V = | B15: =B14*(B13*B6)^0.5 -> 5.076269009 | C15: m/s | D15: 0.02401213447 | E15: 0.062 | F15: 0.05838041431 | G15: 0.896046405 | H15: 0.1936462457
A16: Altura mínima de muro H* = | B16: =IF(B10+0.15<0.5,0.5,IF(B10+0.15<1,1,"Amplíe el ancho B")) -> 0.5 | C16: m | D16: =H16*$B$2*E16 -> 0.02781364718 | E16: 0.063 | F16: =$B$2*E16/(2*E16+$B$2) -> 0.05926622766 | G16: =18*LOG10(6*F16/($B$8/2)) -> 1.013768424 | H16: =G16*(F16*$B$6)^0.5 -> 0.2207432316
D17: 0.03171545558 | E17: 0.064 | F17: 0.06015037594 | G17: 1.129527524 | H17: 0.2477769967
D18: 0.03571706511 | E18: 0.065 | F18: 0.06103286385 | G18: 1.243384775 | H18: 0.2747466547
D19: 0.03981798467 | E19: 0.066 | F19: 0.06191369606 | G19: 1.355398451 | H19: 0.301651399
D20: 0.04401772666 | E20: 0.067 | F20: 0.06279287723 | G20: 1.465624194 | H20: 0.3284904974
D21: 0.048315807 | E21: 0.068 | F21: 0.06367041199 | G21: 1.574115176 | H21: 0.3552632867
D22: 0.05271174513 | E22: 0.069 | F22: 0.06454630496 | G22: 1.680922235 | H22: 0.3819691676
D23: 0.05720506404 | E23: 0.07 | F23: 0.06542056075 | G23: 1.786094017 | H23: 0.4086076003
D24: 0.06179529024 | E24: 0.071 | F24: 0.06629318394 | G24: 1.889677097 | H24: 0.4351781003
D25: 0.06648195377 | E25: 0.072 | F25: 0.0671641791 | G25: 1.991716095 | H25: 0.4616802345
D26: 0.07126458821 | E26: 0.073 | F26: 0.06803355079 | G26: 2.092253782 | H26: 0.4881136179
D27: 0.07614273065 | E27: 0.074 | F27: 0.06890130354 | G27: 2.191331186 | H27: 0.5144779098
D28: 0.08111592169 | E28: 0.075 | F28: 0.06976744186 | G28: 2.28898768 | H28: 0.5407728113
D29: 0.08618370543 | E29: 0.076 | F29: 0.07063197026 | G29: 2.385261073 | H29: 0.5669980621
D30: 0.09134562944 | E30: 0.077 | F30: 0.07149489322 | G30: 2.480187689 | H30: 0.5931534379
D31: 0.09660124474 | E31: 0.078 | F31: 0.07235621521 | G31: 2.573802449 | H31: 0.6192387483
D32: 0.1019501058 | E32: 0.079 | F32: 0.07321594069 | G32: 2.666138934 | H32: 0.6452538342
D33: 0.1073917705 | E33: 0.08 | F33: 0.07407407407 | G33: 2.757229463 | H33: 0.6711985657
D34: 0.1129258002 | E34: 0.081 | F34: 0.0749306198 | G34: 2.847105144 | H34: 0.6970728405
D35: 0.1185517594 | E35: 0.082 | F35: 0.07578558226 | G35: 2.935795944 | H35: 0.7228765816
D36: 0.1242692162 | E36: 0.083 | F36: 0.07663896584 | G36: 3.023330739 | H36: 0.748609736
D37: 0.1300777419 | E37: 0.084 | F37: 0.07749077491 | G37: 3.109737365 | H37: 0.7742722731
D38: 0.1359769111 | E38: 0.085 | F38: 0.07834101382 | G38: 3.195042671 | H38: 0.7998641829
D39: 0.1419663017 | E39: 0.086 | F39: 0.07918968692 | G39: 3.279272563 | H39: 0.8253854749
D40: 0.1480454948 | E40: 0.087 | F40: 0.08003679853 | G40: 3.362452049 | H40: 0.8508361768
D41: 0.1542140747 | E41: 0.088 | F41: 0.08088235294 | G41: 3.444605278 | H41: 0.8762163334
D42: 0.1604716289 | E42: 0.089 | F42: 0.08172635445 | G42: 3.525755579 | H42: 0.9015260052
D43: 0.1668177481 | E43: 0.09 | F43: 0.08256880734 | G43: 3.605925502 | H43: 0.9267652675
D44: 0.1732520261 | E44: 0.091 | F44: 0.08340971586 | G44: 3.685136847 | H44: 0.9519342095
D45: 0.1797740598 | E45: 0.092 | F45: 0.08424908425 | G45: 3.763410697 | H45: 0.9770329334
D46: =H46*$B$2*E46 -> 0.1863834489 | E46: 0.093 | F46: =$B$2*E46/(2*E46+$B$2) -> 0.08508691674 | G46: =18*LOG10(6*F46/($B$8/2)) -> 3.840767454 | H46: =G46*(F46*$B$6)^0.5 -> 1.002061553
D47: 0.1930797967 | E47: 0.094 | F47: 0.08592321755 | G47: 3.917226864 | H47: 1.027020195
D48: 0.1998627089 | E48: 0.095 | F48: 0.08675799087 | G48: 3.992808045 | H48: 1.051908994
D49: 0.2067317946 | E49: 0.096 | F49: 0.08759124088 | G49: 4.067529515 | H49: 1.076728097
D50: 0.2136866656 | E50: 0.097 | F50: 0.08842297174 | G50: 4.141409216 | H50: 1.101477658
D51: 0.2207269368 | E51: 0.098 | F51: 0.08925318761 | G51: 4.214464536 | H51: 1.126157841
D52: 0.2278522258 | E52: 0.099 | F52: 0.09008189263 | G52: 4.286712335 | H52: 1.150768817
D53: 0.2350621532 | E53: 0.1 | F53: 0.09090909091 | G53: 4.358168963 | H53: 1.175310766
D54: 0.2423563424 | E54: 0.101 | F54: 0.09173478656 | G54: 4.428850282 | H54: 1.199783873
D55: 0.2497344194 | E55: 0.102 | F55: 0.09255898367 | G55: 4.498771686 | H55: 1.22418833
D56: 0.2571960133 | E56: 0.103 | F56: 0.09338168631 | G56: 4.567948116 | H56: 1.248524336
D57: 0.2647407557 | E57: 0.104 | F57: 0.09420289855 | G57: 4.636394082 | H57: 1.272792095
D58: 0.272368281 | E58: 0.105 | F58: 0.09502262443 | G58: 4.704123674 | H58: 1.296991814
D59: 0.2800782262 | E59: 0.106 | F59: 0.09584086799 | G59: 4.771150585 | H59: 1.321123709
D60: 0.2878702312 | E60: 0.107 | F60: 0.09665763324 | G60: 4.837488118 | H60: 1.345187996
D61: 0.2957439381 | E61: 0.108 | F61: 0.09747292419 | G61: 4.903149207 | H61: 1.369184899
D62: 0.303698992 | E62: 0.109 | F62: 0.09828674482 | G62: 4.968146428 | H62: 1.393114642
D63: 0.3117350403 | E63: 0.11 | F63: 0.0990990991 | G63: 5.03249201 | H63: 1.416977456
D64: 0.3198517332 | E64: 0.111 | F64: 0.099909991 | G64: 5.096197853 | H64: 1.440773573
D65: 0.3280487231 | E65: 0.112 | F65: 0.1007194245 | G65: 5.159275533 | H65: 1.464503228
D66: 0.3363256652 | E66: 0.113 | F66: 0.1015274034 | G66: 5.22173632 | H66: 1.48816666
D67: 0.344682217 | E67: 0.114 | F67: 0.1023339318 | G67: 5.283591184 | H67: 1.51176411
D68: 0.3531180384 | E68: 0.115 | F68: 0.1031390135 | G68: 5.344850809 | H68: 1.535295819
D69: 0.3616327917 | E69: =E68+0.001 -> 0.116 | F69: 0.1039426523 | G69: 5.405525599 | H69: 1.558762033
D70: 0.3702261419 | E70: 0.117 | F70: 0.1047448523 | G70: 5.465625691 | H70: 1.582162999
D71: 0.3788977559 | E71: 0.118 | F71: 0.1055456172 | G71: 5.525160963 | H71: 1.605498966
D72: 0.3876473032 | E72: 0.119 | F72: 0.1063449508 | G72: 5.584141043 | H72: 1.628770182
D73: 0.3964744557 | E73: 0.12 | F73: 0.1071428571 | G73: 5.642575316 | H73: 1.651976899
D74: 0.4053788874 | E74: 0.121 | F74: 0.1079393399 | G74: 5.700472934 | H74: 1.675119369
D75: 0.4143602745 | E75: 0.122 | F75: 0.1087344029 | G75: 5.757842823 | H75: 1.698197846
D76: 0.4234182957 | E76: 0.123 | F76: 0.1095280499 | G76: 5.814693689 | H76: 1.721212584
D77: 0.4325526317 | E77: 0.124 | F77: 0.1103202847 | G77: 5.871034026 | H77: 1.744163838
D78: 0.4417629656 | E78: 0.125 | F78: 0.1111111111 | G78: 5.926872126 | H78: 1.767051862
D79: 0.4510489824 | E79: 0.126 | F79: 0.1119005329 | G79: 5.982216078 | H79: 1.789876914
D80: 0.4604103694 | E80: 0.127 | F80: 0.1126885537 | G80: 6.037073784 | H80: 1.81263925
D81: 0.4698468162 | E81: 0.128 | F81: 0.1134751773 | G81: 6.091452955 | H81: 1.835339126
D82: 0.4793580141 | E82: 0.129 | F82: 0.1142604074 | G82: 6.145361126 | H82: 1.857976799
D83: 0.4889436569 | E83: 0.13 | F83: 0.1150442478 | G83: 6.198805654 | H83: 1.880552527
D84: 0.4986034402 | E84: 0.131 | F84: 0.115826702 | G84: 6.251793729 | H84: 1.903066566
D85: 0.5083370617 | E85: 0.132 | F85: 0.1166077739 | G85: 6.304332374 | H85: 1.925519173
D86: 0.5181442211 | E86: 0.133 | F86: 0.1173874669 | G86: 6.356428455 | H86: 1.947910606
D87: 0.5280246203 | E87: 0.134 | F87: 0.1181657848 | G87: 6.408088684 | H87: 1.97024112
D88: 0.5379779628 | E88: 0.135 | F88: 0.1189427313 | G88: 6.459319621 | H88: 1.992510973
D89: 0.5480039544 | E89: 0.136 | F89: 0.1197183099 | G89: 6.510127681 | H89: 2.014720421
D90: 0.5581023027 | E90: 0.137 | F90: 0.1204925242 | G90: 6.56051914 | H90: 2.036869718
D91: 0.5682727172 | E91: 0.138 | F91: 0.1212653779 | G91: 6.610500134 | H91: 2.05895912
D92: 0.5785149094 | E92: 0.139 | F92: 0.1220368745 | G92: 6.660076667 | H92: 2.080988883
D93: 0.5888285926 | E93: 0.14 | F93: 0.1228070175 | G93: 6.709254614 | H93: 2.102959259
D94: 0.5992134819 | E94: 0.141 | F94: 0.1235758107 | G94: 6.758039724 | H94: 2.124870503
D95: 0.6096692945 | E95: 0.142 | F95: 0.1243432574 | G95: 6.806437624 | H95: 2.146722868
D96: 0.620195749 | E96: 0.143 | F96: 0.1251093613 | G96: 6.854453823 | H96: 2.168516605
D97: 0.6307925663 | E97: 0.144 | F97: 0.1258741259 | G97: 6.902093713 | H97: 2.190251966
D98: 0.6414594688 | E98: 0.145 | F98: 0.1266375546 | G98: 6.949362575 | H98: 2.211929203
D99: 0.6521961807 | E99: 0.146 | F99: 0.127399651 | G99: 6.996265582 | H99: 2.233548564
D100: 0.6630024279 | E100: 0.147 | F100: 0.1281604185 | G100: 7.042807799 | H100: 2.255110299
D101: 0.6738779383 | E101: 0.148 | F101: 0.1289198606 | G101: 7.088994187 | H101: 2.276614656
D102: 0.6848224412 | E102: 0.149 | F102: 0.1296779809 | G102: 7.13482961 | H102: 2.298061883
D103: 0.6958356678 | E103: 0.15 | F103: =$B$2*E103/(2*E103+$B$2) -> 0.1304347826 | G103: =18*LOG10(6*F103/($B$8/2)) -> 7.180318832 | H103: =G103*(F103*$B$6)^0.5 -> 2.319452226
D104: 0.706917351 | E104: 0.151 | F104: 0.1311902693 | G104: 7.225466521 | H104: 2.340785931
D105: 0.7180672253 | E105: 0.152 | F105: 0.1319444444 | G105: 7.270277255 | H105: 2.362063241
D106: 0.7292850268 | E106: 0.153 | F106: 0.1326973114 | G106: 7.314755519 | H106: 2.383284401
D107: 0.7405704934 | E107: 0.154 | F107: 0.1334488735 | G107: 7.358905712 | H107: 2.404449654
D108: 0.7519233645 | E108: 0.155 | F108: 0.1341991342 | G108: 7.402732146 | H108: 2.42555924
D109: 0.7633433812 | E109: 0.156 | F109: 0.1349480969 | G109: 7.446239052 | H109: 2.446613401
D110: =H110*$B$2*E110 -> 0.774830286 | E110: 0.157 | F110: 0.1356957649 | G110: 7.489430578 | H110: 2.467612376
D111: 0.7863838234 | E111: 0.158 | F111: 0.1364421416 | G111: 7.532310792 | H111: 2.488556403
D112: 0.7980037389 | E112: 0.159 | F112: 0.1371872304 | G112: 7.574883686 | H112: 2.50944572
D113: 0.8096897801 | E113: 0.16 | F113: 0.1379310345 | G113: 7.617153177 | H113: 2.530280563
D114: 0.8214416958 | E114: 0.161 | F114: 0.1386735573 | G114: 7.659123109 | H114: 2.551061167
D115: 0.8332592363 | E115: 0.162 | F115: 0.1394148021 | G115: 7.700797252 | H115: 2.571787766
D116: 0.8451421536 | E116: 0.163 | F116: 0.1401547721 | G116: 7.74217931 | H116: 2.592460594
D117: 0.8570902012 | E117: 0.164 | F117: 0.1408934708 | G117: 7.783272915 | H117: 2.613079882
D118: 0.8691031339 | E118: 0.165 | F118: 0.1416309013 | G118: 7.824081635 | H118: 2.63364586
D119: 0.881180708 | E119: 0.166 | F119: 0.1423670669 | G119: 7.864608973 | H119: 2.654158759
D120: 0.8933226815 | E120: 0.167 | F120: 0.1431019709 | G120: 7.904858367 | H120: 2.674618807
D121: 0.9055288135 | E121: 0.168 | F121: 0.1438356164 | G121: 7.944833197 | H121: 2.695026231
D122: 0.9177988647 | E122: 0.169 | F122: 0.1445680068 | G122: 7.984536778 | H122: 2.715381256
D123: 0.9301325972 | E123: 0.17 | F123: 0.1452991453 | G123: 8.023972369 | H123: 2.73568411
D124: 0.9425297747 | E124: 0.171 | F124: 0.146029035 | G124: 8.063143171 | H124: 2.755935014
D125: 0.9549901618 | E125: 0.172 | F125: 0.1467576792 | G125: 8.102052329 | H125: 2.776134191
D126: 0.967513525 | E126: 0.173 | F126: 0.147485081 | G126: 8.140702934 | H126: 2.796281864
D127: 0.9800996318 | E127: 0.174 | F127: 0.1482112436 | G127: 8.17909802 | H127: 2.816378252
D128: 0.9927482512 | E128: 0.175 | F128: 0.1489361702 | G128: 8.217240573 | H128: 2.836423575
D129: 1.005459154 | E129: 0.176 | F129: 0.1496598639 | G129: 8.255133525 | H129: 2.85641805
D130: 1.018232111 | E130: 0.177 | F130: 0.150382328 | G130: 8.292779759 | H130: 2.876361895
D131: 1.031066895 | E131: 0.178 | F131: 0.1511035654 | G131: 8.330182109 | H131: 2.896255324
D132: 1.043963282 | E132: 0.179 | F132: 0.1518235793 | G132: 8.367343361 | H132: 2.916098553
D133: 1.056921046 | E133: =E132+0.001 -> 0.18 | F133: 0.1525423729 | G133: 8.404266256 | H133: 2.935891795
D134: 1.069939965 | E134: 0.181 | F134: 0.1532599492 | G134: 8.440953486 | H134: 2.955635262
D135: 1.083019816 | E135: 0.182 | F135: 0.1539763113 | G135: 8.477407701 | H135: 2.975329164
D136: 1.096160379 | E136: 0.183 | F136: 0.1546914624 | G136: 8.513631507 | H136: 2.994973713
D137: 1.109361434 | E137: 0.184 | F137: 0.1554054054 | G137: 8.549627467 | H137: 3.014569115
D138: 1.122622764 | E138: 0.185 | F138: 0.1561181435 | G138: 8.5853981 | H138: 3.03411558
D139: 1.135944152 | E139: 0.186 | F139: 0.1568296796 | G139: 8.620945889 | H139: 3.053613312
D140: 1.149325382 | E140: 0.187 | F140: 0.1575400168 | G140: 8.656273272 | H140: 3.073062518
D141: 1.162766239 | E141: 0.188 | F141: 0.1582491582 | G141: 8.691382651 | H141: 3.092463402
D142: 1.17626651 | E142: 0.189 | F142: 0.1589571068 | G142: 8.726276387 | H142: 3.111816165
D143: 1.189825984 | E143: 0.19 | F143: 0.1596638655 | G143: 8.760956808 | H143: 3.131121011
D144: 1.203444449 | E144: 0.191 | F144: 0.1603694374 | G144: 8.795426199 | H144: 3.15037814
D145: 1.217121696 | E145: 0.192 | F145: 0.1610738255 | G145: 8.829686815 | H145: 3.16958775
D146: 1.230857516 | E146: 0.193 | F146: 0.1617770327 | G146: 8.863740872 | H146: 3.188750042
D147: 1.244651702 | E147: 0.194 | F147: 0.162479062 | G147: 8.897590552 | H147: 3.207865211
D148: 1.258504047 | E148: 0.195 | F148: 0.1631799163 | G148: 8.931238005 | H148: 3.226933454
D149: 1.272414346 | E149: 0.196 | F149: 0.1638795987 | G149: 8.964685346 | H149: 3.245954965
D150: 1.286382396 | E150: 0.197 | F150: 0.1645781119 | G150: 8.997934659 | H150: 3.26492994
D151: 1.300407994 | E151: 0.198 | F151: 0.1652754591 | G151: 9.030987995 | H151: 3.28385857
D152: 1.314490937 | E152: 0.199 | F152: 0.165971643 | G152: 9.063847375 | H152: 3.302741048
D153: 1.328631025 | E153: 0.2 | F153: 0.1666666667 | G153: 9.096514789 | H153: 3.321577563
D154: 1.342828059 | E154: 0.201 | F154: 0.1673605329 | G154: 9.128992196 | H154: 3.340368306
D155: 1.357081839 | E155: 0.202 | F155: 0.1680532446 | G155: 9.161281527 | H155: 3.359113464
D156: 1.37139217 | E156: 0.203 | F156: 0.1687448047 | G156: 9.193384686 | H156: 3.377813225
D157: 1.385758853 | E157: 0.204 | F157: 0.1694352159 | G157: 9.225303545 | H157: 3.396467776
D158: 1.400181694 | E158: 0.205 | F158: 0.1701244813 | G158: 9.25703995 | H158: 3.415077302
D159: 1.414660498 | E159: 0.206 | F159: 0.1708126036 | G159: 9.288595722 | H159: 3.433641986
D160: 1.429195073 | E160: 0.207 | F160: 0.1714995857 | G160: 9.319972652 | H160: 3.452162012
D161: 1.443785225 | E161: 0.208 | F161: 0.1721854305 | G161: 9.351172508 | H161: 3.470637561
D162: 1.458430765 | E162: 0.209 | F162: 0.1728701406 | G162: 9.38219703 | H162: 3.489068815
D163: 1.473131501 | E163: 0.21 | F163: 0.173553719 | G163: 9.413047935 | H163: 3.507455954
D164: 1.487887244 | E164: 0.211 | F164: 0.1742361685 | G164: 9.443726914 | H164: 3.525799157
D165: 1.502697807 | E165: 0.212 | F165: 0.1749174917 | G165: 9.474235635 | H165: 3.544098601
D166: 1.517563001 | E166: 0.213 | F166: 0.1755976917 | G166: 9.504575742 | H166: 3.562354463
D167: 1.532482642 | E167: 0.214 | F167: =$B$2*E167/(2*E167+$B$2) -> 0.176276771 | G167: =18*LOG10(6*F167/($B$8/2)) -> 9.534748854 | H167: =G167*(F167*$B$6)^0.5 -> 3.58056692
D168: 1.547456543 | E168: 0.215 | F168: 0.1769547325 | G168: 9.564756571 | H168: 3.598736145
D169: 1.56248452 | E169: 0.216 | F169: 0.1776315789 | G169: 9.594600467 | H169: 3.616862314
D170: 1.577566389 | E170: 0.217 | F170: 0.1783073131 | G170: 9.624282097 | H170: 3.634945598
D171: 1.59270197 | E171: 0.218 | F171: 0.1789819376 | G171: 9.653802991 | H171: 3.652986169
D172: 1.607891079 | E172: 0.219 | F172: 0.1796554553 | G172: 9.683164661 | H172: 3.670984199
D173: 1.623133537 | E173: 0.22 | F173: 0.1803278689 | G173: 9.712368598 | H173: 3.688939857
D174: =H174*$B$2*E174 -> 1.638429164 | E174: 0.221 | F174: 0.180999181 | G174: 9.741416271 | H174: 3.706853312
D175: 1.653777781 | E175: 0.222 | F175: 0.1816693944 | G175: 9.770309129 | H175: 3.724724732
D176: 1.669179211 | E176: 0.223 | F176: 0.1823385119 | G176: 9.799048604 | H176: 3.742554284
D177: 1.684633276 | E177: 0.224 | F177: 0.1830065359 | G177: 9.827636105 | H177: 3.760342134
D178: 1.700139801 | E178: 0.225 | F178: 0.1836734694 | G178: 9.856073025 | H178: 3.778088447
D179: 1.715698611 | E179: 0.226 | F179: 0.1843393148 | G179: 9.884360737 | H179: 3.795793387
D180: 1.731309532 | E180: 0.227 | F180: 0.185004075 | G180: 9.912500596 | H180: 3.813457118
D181: 1.746972389 | E181: 0.228 | F181: 0.1856677524 | G181: 9.940493939 | H181: 3.831079801
D182: 1.762687012 | E182: 0.229 | F182: 0.1863303499 | G182: 9.968342086 | H182: 3.848661599
D183: 1.778453228 | E183: 0.23 | F183: 0.1869918699 | G183: 9.996046338 | H183: 3.86620267
D184: 1.794270867 | E184: 0.231 | F184: 0.1876523152 | G184: 10.02360798 | H184: 3.883703176
D185: 1.810139759 | E185: 0.232 | F185: 0.1883116883 | G185: 10.05102828 | H185: 3.901163274
D186: 1.826059735 | E186: 0.233 | F186: 0.1889699919 | G186: 10.0783085 | H186: 3.918583122
D187: 1.842030627 | E187: 0.234 | F187: 0.1896272285 | G187: 10.10544985 | H187: 3.935962878
D188: 1.858052267 | E188: 0.235 | F188: 0.1902834008 | G188: 10.13245358 | H188: 3.953302696
D189: 1.874124489 | E189: 0.236 | F189: 0.1909385113 | G189: 10.15932088 | H189: 3.970602732
D190: 1.890247128 | E190: 0.237 | F190: 0.1915925627 | G190: 10.18605293 | H190: 3.98786314
D191: 1.906420019 | E191: 0.238 | F191: 0.1922455574 | G191: 10.21265092 | H191: 4.005084073
D192: 1.922642997 | E192: 0.239 | F192: 0.192897498 | G192: 10.239116 | H192: 4.022265685
D193: 1.9389159 | E193: 0.24 | F193: 0.1935483871 | G193: 10.26544931 | H193: 4.039408125
D194: 1.955238565 | E194: 0.241 | F194: 0.1941982272 | G194: 10.29165199 | H194: 4.056511546
D195: 1.971610831 | E195: 0.242 | F195: 0.1948470209 | G195: 10.31772516 | H195: 4.073576097
D196: 1.988032536 | E196: 0.243 | F196: 0.1954947707 | G196: 10.3436699 | H196: 4.090601926
D197: 2.004503521 | E197: =E196+0.001 -> 0.244 | F197: 0.1961414791 | G197: 10.36948732 | H197: 4.107589183
D198: 2.021023627 | E198: 0.245 | F198: 0.1967871486 | G198: 10.39517849 | H198: 4.124538014
D199: 2.037592695 | E199: 0.246 | F199: 0.1974317817 | G199: 10.42074446 | H199: 4.141448566
D200: 2.054210567 | E200: 0.247 | F200: 0.1980753809 | G200: 10.44618629 | H200: 4.158320985
... 753 more rows

Sheet Dimensionamiento Alcantarillas
A1: EVALUACIÓN DE ALCANTARILLAS EXISTENTES Y DIMENSIONAMIENTO DE ALCANTARILLAS PROPUESTAS. | BZ1: A tubo lleno | EA1: conocido? | EG1: a tubo lleno
A2: 1 | B2: =A2+1 -> 2 | C2: =B2+1 -> 3 | D2: =C2+1 -> 4 | E2: =D2+1 -> 5 | F2: 6 | G2: =F2+1 -> 7 | J2: =G2+1 -> 8 | K2: =J2+1 -> 9 | L2: =K2+1 -> 10 | M2: 11 | N2: 12 | O2: 13 | P2: 14 | Q2: 15 | R2: 16 | S2: 17 | T2: 18 | U2: 19 | V2: 20 | W2: 21 | X2: 22 | Y2: 23 | Z2: 24 | AA2: 25 | AB2: 26 | AC2: 27 | AD2: 28 | AE2: =AD2+1 -> 29 | AF2: 30 | AG2: 31 | AH2: 32 | AI2: 33 | AJ2: 34 | AK2: 35 | AL2: 36 | AM2: 37 | AN2: 38 | AO2: 39 | AP2: 40 | AQ2: 41 | AR2: 42 | AS2: 43 | AT2: 44 | AU2: 45 | AV2: 46 | AW2: 47 | AX2: 48 | AY2: 49 | AZ2: 50 | BA2: 51 | BB2: 52 | BC2: 53 | BD2: 54 | BE2: 55 | BF2: 56 | BG2: 57 | BH2: 58 | BI2: 59 | BJ2: 60 | BK2: 61 | BL2: 62 | BM2: 63 | BN2: 64 | BO2: 65 | BP2: 66 | BQ2: 67 | BR2: 68 | BS2: 69 | BT2: =BS2+1 -> 70 | BU2: =BT2+1 -> 71 | BV2: =BU2+1 -> 72 | BW2: =BV2+1 -> 73 | BX2: =BW2+1 -> 74 | BY2: =BX2+1 -> 75 | BZ2: =BY2+1 -> 76 | CA2: =BZ2+1 -> 77 | CB2: =CA2+1 -> 78 | CC2: =CB2+1 -> 79 | CD2: =CC2+1 -> 80 | CE2: =CD2+1 -> 81 | CF2: =CE2+1 -> 82 | CG2: =CF2+1 -> 83 | CH2: =CG2+1 -> 84 | CJ2: =CH2+1 -> 85 | CK2: =CJ2+1 -> 86 | CL2: =CK2+1 -> 87 | CM2: =CL2+1 -> 88 | CN2: =CM2+1 -> 89 | CO2: =CN2+1 -> 90 | CP2: =CO2+1 -> 91 | CQ2: =CP2+1 -> 92 | CR2: =CQ2+1 -> 93 | CS2: =CR2+1 -> 94 | CT2: =CS2+1 -> 95 | CU2: =CT2+1 -> 96 | CV2: =CU2+1 -> 97 | CW2: =CV2+1 -> 98 | CX2: =CW2+1 -> 99 | CY2: =CX2+1 -> 100 | CZ2: =CY2+1 -> 101 | DA2: =CZ2+1 -> 102 | DB2: =DA2+1 -> 103 | DC2: =DB2+1 -> 104 | DD2: =DC2+1 -> 105 | DE2: =DD2+1 -> 106 | DF2: =DE2+1 -> 107 | DG2: =DF2+1 -> 108 | DH2: =DG2+1 -> 109 | DI2: =DH2+1 -> 110 | DJ2: =DI2+1 -> 111 | DK2: =DJ2+1 -> 112 | DL2: =DK2+1 -> 113 | DM2: =DL2+1 -> 114 | DN2: =DM2+1 -> 115 | DO2: =DN2+1 -> 116 | DP2: =DO2+1 -> 117 | DQ2: =DP2+1 -> 118 | DR2: =DQ2+1 -> 119 | DS2: =DR2+1 -> 120 | DT2: =DS2+1 -> 121 | DU2: =DT2+1 -> 122 | DV2: =DU2+1 -> 123 | DW2: =DV2+1 -> 124 | DX2: =DW2+1 -> 125 | DY2: =DX2+1 -> 126 | DZ2: =DY2+1 -> 127 | EA2: =DZ2+1 -> 128 | EB2: =EA2+1 -> 129 | EC2: =EB2+1 -> 130 | ED2: =EC2+1 -> 131 | EE2: =ED2+1 -> 132 | EF2: =EE2+1 -> 133 | EG2: =EF2+1 -> 134 | EH2: =EG2+1 -> 135 | EI2: =EH2+1 -> 136 | EJ2: =EI2+1 -> 137 | EK2: =EJ2+1 -> 138 | EL2: =EK2+1 -> 139 | EM2: =EL2+1 -> 140 | EN2: =EM2+1 -> 141 | EO2: =EN2+1 -> 142 | EQ2: =EO2+1 -> 143 | ER2: =EQ2+1 -> 144 | EV2: =ER2+1 -> 145 | EW2: =EV2+1 -> 146 | EX2: =EW2+1 -> 147 | EY2: =EX2+1 -> 148 | EZ2: =EY2+1 -> 149 | FA2: =EZ2+1 -> 150 | FB2: =FA2+1 -> 151 | FC2: =FB2+1 -> 152 | FD2: =FC2+1 -> 153 | FE2: =FD2+1 -> 154 | FF2: =FE2+1 -> 155 | FG2: =FF2+1 -> 156 | FH2: =FG2+1 -> 157 | FI2: =FH2+1 -> 158 | FJ2: =FI2+1 -> 159
A3: DATOS DE LOCALIZACIÓN | G3: CAUDAL DE DISEÑO POR DUCTO | K3: DATOS DEL DESCOLE | O3: Geometría estructura de descole | U3: Parámetros hidráulicos estructura de descole | AD3: CARACTERISTICAS OBRA EXISTENTE | AX3: Control a la entrada (obra existente) | BT3: Control a la salida (obra existente) | CH3: Estado de funcionamiento de la obra existente para Q Diseño | CJ3: Recomendaciones sobre cruce y obra de arte existente | CK3: CARACTERISTICAS OBRA PROPUESTA | DE3: Control a la entrada (obra propuesta) | EA3: Control a la salida (obra propuesta) | EO3: Recomendaciones de diseño de la obra propuesta para Q Diseño | EQ3: Dimensiones para obra de arte propuesta | ER3: CAJETÍN DE TEXTO PARA PLANO CAD | EV3: CÁLCULO DE ESTRUCTURA ESCALONADA EN DESCOLE
A4: Nº Obra | C4: Calzada | D4: Abscisa | E4: ID GPS | F4: No. de cuenca | G4: Q25 (m3/s) | H4: Q50 (m3/s) | I4: Q100 (m3/s) | J4: Q Diseño (m3/s) | K4: ¿Estructura en la salida? SI / NO | L4: Q salida alcantarilla (m3/s) | M4: Q adicional en descole (m3/s) | N4: Q total (m3/s) | O4: Dimensiones | R4: Manning n | S4: z ( zH : 1V ) | T4: S (m/m) | U4: Yc | V4: qc | W4: Ac | X4: Vc | Y4: Yn | Z4: qn | AA4: An | AB4: No. Froude | AC4: Vn | AD4: Ductos | AE4: Tipo de Obra | AH4: Código | AI4: Material | AJ4: Dimensiones | AM4: Manning n | AN4: z ( zH : 1V) | AO4: S (m/m) | AP4: Estructura de entrada | AQ4: Cota entrada clave | AR4: Cota eje | AT4: Cota salida clave | AU4: Recubrim. | AV4: H1 = 1,2 H (m) | AW4: H2 (m) | AX4: Yc | AY4: qc | AZ4: Ac | BA4: Vc | BB4: Yn | BC4: qn | BD4: An | BE4: No. Froude | BF4: Vn | BG4: Vmáx | BH4: a | BI4: b | BJ4: c | BK4: d | BL4: e | BM4: f | BN4: F | BO4: Estado | BP4: Hw | BQ4: Hw / D | BR4: Qlleno (m3/s) | BS4: Evaluación hidráulica | BT4: TW | BU4: h0 | BV4: Ph | BW4: Ah | BX4: Rh | BY4: V | BZ4: Hf | CA4: Ke | CB4: He | CC4: Hs | CD4: Hw | CE4: Hw / D | CF4: Qlleno (m3/s) | CG4: Evaluación hidráulica | CK4: Ductos | CL4: Tipo de Obra | CO4: Código | CP4: Material | CQ4: Dimensiones | CT4: Manning n | CU4: z ( zH : 1V ) | CV4: S (m/m) | CW4: Estructura de entrada | CX4: Cota entrada clave | CY4: Cota eje | DA4: Cota salida clave | DB4: Recubrim. | DC4: H1 = 1,2 H (m) | DD4: H2 (m) | DE4: Yc | DF4: qc | DG4: Ac | DH4: Vc | DI4: Yn | DJ4: qn | DK4: An | DL4: No. Froude | DM4: Vn | DN4: Vmáx | DO4: a | DP4: b | DQ4: c | DR4: d | DS4: e | DT4: f | DU4: F | DV4: Estado | DW4: Hw | DX4: Hw / D | DY4: Qlleno (m3/s) | DZ4: Evaluación hidráulica | EA4: TW | EB4: h0 | EC4: Ph | ED4: Ah | EE4: Rh | EF4: V | EG4: Hf | EH4: Ke | EI4: He | EJ4: Hs | EK4: Hw | EL4: Hw / D | EM4: Qlleno (m3/s) | EN4: Evaluación hidráulica | EV4: Ancho del canal escalonado o rápida B (m) | EW4: Altura escalón h (m) | EX4: Longitud del escalón o paso b (m) | EY4: Caudal Q (m3/s) | EZ4: Pendiente de la rápida o del tramo escalonado Se (m/m) | FA4: Ángulo talud - ángulo escalonada q (°) | FB4: Distancia a extremo externo del escalón a (m) | FC4: Distancia entre extremos externos del escalón L (m) | FD4: Altura de lámina de agua y (m) | FE4: Área hidráulica A (m2) | FF4: Perímetro hidráulico P (m) | FG4: Radio hidráulico R (m) | FH4: C CHÉZY | FI4: Velocidad de flujo V (m/s) | FJ4: Altura mínima de muro H (m)
O5: B (m) | P5: D o H (m) | Q5: L (m) | U5: (m) | V5: (º) | W5: (m2) | X5: (m/s) | Y5: (m) | Z5: (º) | AA5: (m2) | AC5: (m/s) | AE5: Circular | AF5: Cajón | AG5: Puente Pontón | AH5: 1,2,3,7,8,9,10 | AJ5: B (m) | AK5: D o H (m) | AL5: L (m) | AP5: 1 a 16 | AR5: Rasante | AS5: Clave | AU5: (m) | AX5: (m) | AY5: (º) | AZ5: (m2) | BA5: (m/s) | BB5: (m) | BC5: (º) | BD5: (m2) | BF5: (m/s) | BG5: (m/s) | BO5: de flujo | BP5: (m) | BQ5: (m) | BT5: (m) | BU5: (m) | BV5: (m) | BW5: (m2) | BX5: (m) | BY5: (m/s) | BZ5: (m) | CB5: (m) | CC5: (m) | CD5: (m) | CE5: (m) | CL5: Circular | CM5: Cajón | CN5: Puente Pontón | CO5: 1,2,3,7,8,9,10 | CQ5: B (m) | CR5: D o H (m) | CS5: L (m) | CW5: 1 a 16 | CY5: Rasante | CZ5: Clave | DB5: (m) | DE5: (m) | DF5: (º) | DG5: (m2) | DH5: (m/s) | DI5: (m) | DJ5: (º) | DK5: (m2) | DM5: (m/s) | DN5: (m/s) | DV5: de flujo | DW5: (m) | DX5: (m) | EA5: (m) | EB5: (m) | EC5: (m) | ED5: (m2) | EE5: (m) | EF5: (m/s) | EG5: (m) | EI5: (m) | EJ5: (m) | EK5: (m) | EL5: (m) | ER5: Texto 1 | ES5: Texto 2 | ET5: Texto 3 | EU5: Texto 4
A6: i | B6: MDI | C6: EJEMPLO | D6: 45130 | G6: 3.11 | J6: =G6 -> 3.11 | K6: SI | L6: =IF(K6="No","",J6) -> 3.11 | N6: =IF(K6="No","",L6+M6) -> 3.11 | O6: 2 | R6: 0.035 | S6: 1 | T6: 0.01 | U6: =IF(K6="No","",IF(O6="",YcCi(P6,N6),YcTr(N6,O6,S6))) -> 0.5674525486 | V6: =IF(K6="No","",IF(O6="",Teta1(U6,P6),"-")) -> - | W6: =IF(K6="No","",IF(O6="",(1/8*(V6-SIN(V6))*P6^2),(O6+S6*U6)*U6)) -> 1.456907492 | X6: =IF(W6="","",N6/W6) -> 2.134658526 | Y6: =IF(K6="No","",IF(O6="",Ynci(P6,N6,R6,T6),YnTr(1,R6,O6,S6,T6,N6))) -> 0.678395929 | Z6: =IF(K6="No","",IF(O6="",Teta1(Y6,P6),"-")) -> - | AA6: =IF(K6="No","",IF(O6="",AreaCi(P6,Y6),AreaTr(O6,S6,Y6))) -> 1.817012894 | AB6: =IF(K6="No","",IF(O6="",FrCi(AC6,9.806,Z6,P6),FrTr(AC6,9.806,O6,S6,Y6))) -> 0.7429158725 | AC6: =IF(K6="No","",N6/AA6) -> 1.711600402 | AS6: =AQ6-AO6*AL6/2 -> 0 | AT6: =AQ6-AO6*AL6 -> 0 | AU6: =IF(AD6="","",AR6-AS6) ->  | AV6: =IF(AD6="","",1.2*AK6) ->  | AW6: =IF(AD6="","",AK6) ->  | AX6: =IF(AD6="","",IF(AE6=1,YcCi(AK6,J6),YcTr(J6,AJ6,AN6))) ->  | AY6: =IF(AD6="","",IF(AE6=1,Teta1(AX6,AK6),"-")) ->  | AZ6: =IF(AD6="","",IF(AE6=1,AreaCi(AK6,AX6),AreaTr(AJ6,AN6,AX6))) ->  | BA6: =IF(AD6="","",J6/AZ6) ->  | BB6: =IF(AD6="","",IF(AE6=1,Ynci(AK6,J6,AM6,AO6),YnTr(1,AM6,AJ6,AN6,AO6,J6))) ->  | BC6: =IF(AD6="","",IF(AE6=1,Teta1(BB6,AK6),"-")) ->  | BD6: =IF(AD6="","",IF(AE6=1,AreaCi(AK6,BB6),AreaTr(AJ6,AN6,BB6))) ->  | BE6: =IF(AD6="","",IF(AE6=1,FrCi(BF6,9.806,BC6,AK6),FrTr(BF6,9.806,AJ6,AN6,BB6))) ->  | BF6: =IF(AD6="","",J6/BD6) ->  | BG6: =IF(AD6="","",IF(AE6=1,LOOKUP(AI6,'Vmáx(material) - Tab.4.3'!$L$2:$L$11,'Vmáx(material) - Tab.4.3'!$M$2:$M$11),LOOKUP(AI6,'Vmáx(material) - Tab.4.3'!$L$15,'Vmáx(material) - Tab.4.3'!$M$15))) ->  | BH6: =IF(AD6="","",VLOOKUP($AH6,'Vmáx(material) - Tab.4.3'!$R$35:$X$41,2)) ->  | BI6: =IF(AD6="","",VLOOKUP($AH6,'Vmáx(material) - Tab.4.3'!$R$35:$X$41,3)) ->  | BJ6: =IF(AD6="","",VLOOKUP($AH6,'Vmáx(material) - Tab.4.3'!$R$35:$X$41,4)) ->  | BK6: =IF(AD6="","",VLOOKUP($AH6,'Vmáx(material) - Tab.4.3'!$R$35:$X$41,5)) ->  | BL6: =IF(AD6="","",VLOOKUP($AH6,'Vmáx(material) - Tab.4.3'!$R$35:$X$41,6)) ->  | BM6: =IF(AD6="","",IF(AD6="","",VLOOKUP($AH6,'Vmáx(material) - Tab.4.3'!$R$35:$X$41,7))) ->  | BN6: =IF(AD6="","",IF(AE6=1,FCi(J6,AK6),FTr(J6,AJ6,AK6))) ->  | BO6: =IF(AD6="","",IF(BB6="Q > Qmax","Insuficiencia hidráulica.", IF(ABS(AX6-BB6)<=0.0001,"Crítico",IF(AX6>BB6,"Supercrítico","Subcrítico")))) ->  | BP6: =IF(AD6="","",Hw(BH6,BI6,BJ6,BK6,BL6,BM6,Z,BN6,AO6,AK6)) ->  | BQ6: =IF(AD6="","",BP6/AK6) ->  | BR6: =IF(AD6="","",IF(AE6=1,0.438*AK6*SQRT(9.806)*AV6^1.5/AK6^0.4,2/3*0.9*AJ6*AV6*SQRT(2/3*9.806*AV6))*AD6) ->  | BS6: =IF(AD6="","",IF(BQ6<1.2,"Cumple","No Cumple")) ->  | BT6: =IF(AD6="","",IF(K6="No",0,Y6)) ->  | BU6: =IF(AD6="","",ho(BT6,AK6,AX6)) ->  | BV6: =IF(AD6="","",IF(AE6=1,PeriCi(AK6,BB6),PeriTr(AJ6,AN6,BB6))) ->  | BW6: =IF(AD6="","",IF(AE6=1,AreaCi(AK6,BB6),AreaTr(AJ6,AN6,BB6))) ->  | BX6: =IF(AD6="","",RhCi(BW6,BV6)) ->  | BY6: =IF(AD6="","",AVERAGE(AC6,J6/BW6)) ->  | BZ6: =IF(AD6="","",hf(AL6,J6,AM6,BW6,BX6)) ->  | CA6: =IF(AD6="","",LOOKUP(AP6,Tab.4.5!$J$6:$J$27,Tab.4.5!$L$6:$L$27)) ->  | CB6: =IF(AD6="","",He(CA6,BY6)) ->  | CC6: =IF(AD6="","",Hs(BY6)) ->  | CD6: =IF(AD6="","",Hm(BU6,BZ6,CB6,CC6,AL6,AO6)) ->  | CE6: =IF(AD6="","",CD6/AK6) ->  | CF6: =IF(AD6="","",IF(AE6=1,0.438*AK6*SQRT(9.806)*AV6^1.5/AK6^0.4,2/3*0.9*AJ6*AV6*SQRT(2/3*9.806*AV6))*AD6) ->  | CG6: =IF(AD6="","",IF(CE6<1.2,"Cumple","No Cumple")) ->  | CH6: =IF(AD6="","",IF(BT6="","",IF(BO6="Supercrítico","Funciona con control a la entrada.","Funciona con control a la salida"))) ->  | CI6: =IF(AD6="","",IF(BT6="","",IF(BO6="Supercrítico",IF(BT6>BB6,"Se presenta resalto hidráulico cerca de la salida.",""),""))) ->  | CJ6: =IF(AD6="","",IF(BS6="No Cumple","Reemplazar.",IF(B6="Nueva","Se requiere obra nueva.","Conservar y realizar labores de limpieza y mantenimiento."))) ->  | CK6: 1 | CM6: 1 | CO6: 7 | CP6: 2 | CQ6: 1.5 | CR6: 1.5 | CS6: 31 | CT6: 0.014 | CU6: 0 | CV6: 0.1435 | CW6: 12 | DB6: =IF(CK6="","",CY6-CZ6) -> 0 | DC6: =IF(CK6="","",1.2*CR6) -> 1.8 | DD6: =IF(CK6="","",CR6) -> 1.5 | DE6: =IF(CK6="","",IF(CL6=1,YcCi(CR6,J6),YcTr(J6,CQ6,CU6))) -> 0.7596555404 | DF6: =IF(CK6="","",IF(CL6=1,Teta1(DE6,CR6),"-")) -> - | DG6: =IF(CK6="","",IF(CL6=1,1/8*(DF6-SIN(DF6))*CR6^2,(CQ6+CU6*DE6)*DE6)) -> 1.139483311 | DH6: =IF(CK6="","",J6/DG6) -> 2.729307197 | DI6: =IF(CK6="","",IF(CL6=1,Ynci(CR6,J6,CT6,CV6),YnTr(1,CT6,CQ6,CU6,CV6,J6))) -> 0.2391699358 | DJ6: =IF(CK6="","",IF(CL6=1,Teta1(DI6,CR6),"-")) -> - | DK6: =IF(CK6="","",IF(CL6=1,AreaCi(CR6,J6),AreaTr(CQ6,CU6,DI6))) -> 0.3587549037 | DL6: =IF(CK6="","",IF(CL6=1,FrCi(DM6,9.806,DJ6,CR6),FrTr(DM6,9.806,CQ6,CU6,DI6))) -> 5.660610922 | DM6: =IF(CK6="","",J6/DK6) -> 8.668871052 | DN6: =IF(CK6="","",IF(CL6=1,LOOKUP(CP6,'Vmáx(material) - Tab.4.3'!$L$2:$L$11,'Vmáx(material) - Tab.4.3'!$M$2:$M$11),LOOKUP(CP6,'Vmáx(material) - Tab.4.3'!$L$15,'Vmáx(material) - Tab.4.3'!$M$15))) -> 15 | DO6: =IF(CK6="","",VLOOKUP($CO6,'Vmáx(material) - Tab.4.3'!$R$35:$X$41,2)) -> 0.072493 | DP6: =IF(CK6="","",VLOOKUP($CO6,'Vmáx(material) - Tab.4.3'!$R$35:$X$41,3)) -> 0.507087 | DQ6: =IF(CK6="","",VLOOKUP($CO6,'Vmáx(material) - Tab.4.3'!$R$35:$X$41,4)) -> -0.11747 | DR6: =IF(CK6="","",VLOOKUP($CO6,'Vmáx(material) - Tab.4.3'!$R$35:$X$41,5)) -> 0.02217 | DS6: =IF(CK6="","",VLOOKUP($CO6,'Vmáx(material) - Tab.4.3'!$R$35:$X$41,6)) -> -0.00149 | DT6: =IF(CK6="","",IF(CK6="","",VLOOKUP(CO6,'Vmáx(material) - Tab.4.3'!$R$35:$X$41,7))) -> 3.8e-05 | DU6: =IF(CK6="","",IF(CL6=1,FCi(J6,CR6),FTr(J6,CQ6,CR6))) -> 1.128579719 | DV6: =IF(CK6="","",IF(DI6="Q > Qmax","Insuficiencia hidráulica.",IF(ABS(DE6-DI6)<=0.0001,"Crítico",IF(DE6>DI6,"Supercrítico","Subcrítico")))) -> Supercrítico | DW6: =IF(CK6="","",Hw(DO6,DP6,DQ6,DR6,DS6,DT6,Z,DU6,CV6,CR6)) -> 1.066758845 | DX6: =IF(CK6="","",DW6/CR6) -> 0.7111725632 | DY6: =IF(CK6="","",IF(CL6=1,0.438*CR6*SQRT(9.806)*DC6^1.5/CR6^0.4,2/3*0.9*CQ6*DC6*SQRT(2/3*9.806*DC6))*CK6) -> 5.557143122 | DZ6: =IF(CK6="","",IF(DX6<1.2,"Cumple","No Cumple")) -> Cumple | EA6: =IF(CK6="","",IF(K6="No",0,Y6)) -> 0.678395929 | EB6: =IF(CK6="","",MAX(EA6,(CR6+DE6)/2)) -> 1.12982777 | EC6: =IF(CK6="","",IF(CL6=1,PeriCi(CR6,DI6),PeriTr(CQ6,CU6,DI6))) -> 1.978339872 | ED6: =IF(CK6="","",IF(CL6=1,AreaCi(CR6,DI6),AreaTr(CQ6,CU6,DI6))) -> 0.3587549037 | EE6: =IF(CK6="","",RhCi(DK6,EC6)) -> 0.1813413908 | EF6: =IF(CK6="","",AVERAGE(AC6,J6/ED6)) -> 5.190235727 | EG6: =IF(CK6="","",hf(CS6,J6,CT6,DK6,EE6)) -> 4.4485 | EH6: =IF(CK6="","",LOOKUP(CW6,Tab.4.5!$J$6:$J$27,Tab.4.5!$L$6:$L$27)) -> 0.4 | EI6: =IF(CK6="","",He(EH6,DM6)) -> 1.5327213 | EJ6: =IF(CK6="","",Hs(DM6)) -> 3.831803249 | EK6: =IF(CK6="","",Hm(EB6,EG6,EI6,EJ6,CS6,CV6)) -> 6.494352319 | EL6: =IF(CK6="","",EK6/CR6) -> 4.329568213 | EM6: =IF(CK6="","",IF(CL6=1,0.438*CR6*SQRT(9.806)*DC6^1.5/CR6^0.4,2/3*0.9*CQ6*DC6*SQRT(2/3*9.806*DC6))*CK6) -> 5.557143122 | EN6: =IF(EL6="","",IF(EL6<1.2,"Cumple","No Cumple")) -> No Cumple | EO6: =IF(CK6="","",IF(EA6="","",IF(DV6="Supercrítico","Funciona con control a la entrada.","Funciona con control a la salida"))) -> Funciona con control a la entrada. | EP6: =IF(CK6="","",IF(EA6="","",IF(DV6="Supercrítico",IF(EA6>DI6,"Se presenta resalto hidráulico cerca de la salida.",""),""))) -> Se presenta resalto hidráulico cerca de la salida. | EQ6: =IF(CK6="","",ES6) ->  | ER6: =CONCATENATE("K45+",D6-45000, " (",A6,")"," ",B6) -> K45+130 (i) MDI | ES6: =IF(B6="Existe.",IF(AE6=1,CONCATENATE(#REF!,AK6," m."),CONCATENATE(#REF!,AJ6," m x ",AK6," m.")),IF(CL6=1,CONCATENATE(#REF!,CR6," m."),CONCATENATE(#REF!,CQ6," m x ",CR6," m."))) ->  | ET6: =IF(AI6=2,CONCATENATE("Concreto, L = ",AL6," m, S = ",AO6*100," %."),CONCATENATE("Concreto, L = ",CS6," m, S = ",CV6*100," %.")) -> Concreto, L = 31 m, S = 14,35 %. | EU6: =IF(B6="Existe.","",CONCATENATE("Cota clave eje= ",CZ6," msnm.")) -> Cota clave eje= msnm. | EY6: =IF(EV6="","",N6) ->  | EZ6: =IF(EV6="","",EW6/EX6) ->  | FA6: =IF(EV6="","",ATAN(EZ6)*(180/PI())) ->  | FB6: =IF(EV6="","",EX6*(SIN(FA6*PI()/180))) ->  | FC6: =IF(EV6="","",(EW6^2+EX6^2)^0.5) ->  | FD6: =IF(EV6="","",VLOOKUP(EY6,'Estructura escalonada'!$D$3:$H$953,2)) ->  | FE6: =IF(EV6="","",EV6*FD6) ->  | FF6: =IF(EV6="","",(2*FD6+EV6)) ->  | FG6: =IF(EV6="","",FE6/FF6) ->  | FH6: =IF(EV6="","",18*LOG10(6*FG6/(FB6/2))) ->  | FI6: =IF(EV6="","",FH6*(FG6*EZ6)^0.5) ->  | FJ6: =IF(EV6="","",IF(FD6+0.15<0.5,0.5,IF(FD6+0.15<1,1,"Amplíe el ancho B"))) -> 
A7: III | B7: MDI | C7: EJEMPLO | D7: 45130 | G7: 3.11 | J7: 3.11 | K7: SI | L7: 3.11 | N7: 3.11 | O7: 2 | R7: 0.035 | S7: 1 | T7: 0.01 | U7: =IF(K7="No","",IF(O7="",YcCi(P7,N7),YcTr(N7,O7,S7))) -> 0.5674525486 | V7: =IF(K7="No","",IF(O7="",Teta1(U7,P7),"-")) -> - | W7: 1.456907492 | X7: 2.134658526 | Y7: =IF(K7="No","",IF(O7="",Ynci(P7,N7,R7,T7),YnTr(1,R7,O7,S7,T7,N7))) -> 0.678395929 | Z7: =IF(K7="No","",IF(O7="",Teta1(Y7,P7),"-")) -> - | AA7: =IF(K7="No","",IF(O7="",AreaCi(P7,Y7),AreaTr(O7,S7,Y7))) -> 1.817012894 | AB7: =IF(K7="No","",IF(O7="",FrCi(AC7,9.806,Z7,P7),FrTr(AC7,9.806,O7,S7,Y7))) -> 0.7429158725 | AC7: 1.711600402 | AS7: 0 | AT7: 0 | AX7: =IF(AD7="","",IF(AE7=1,YcCi(AK7,J7),YcTr(J7,AJ7,AN7))) ->  | AY7: =IF(AD7="","",IF(AE7=1,Teta1(AX7,AK7),"-")) ->  | AZ7: =IF(AD7="","",IF(AE7=1,AreaCi(AK7,AX7),AreaTr(AJ7,AN7,AX7))) ->  | BB7: =IF(AD7="","",IF(AE7=1,Ynci(AK7,J7,AM7,AO7),YnTr(1,AM7,AJ7,AN7,AO7,J7))) ->  | BC7: =IF(AD7="","",IF(AE7=1,Teta1(BB7,AK7),"-")) ->  | BD7: =IF(AD7="","",IF(AE7=1,AreaCi(AK7,BB7),AreaTr(AJ7,AN7,BB7))) ->  | BE7: =IF(AD7="","",IF(AE7=1,FrCi(BF7,9.806,BC7,AK7),FrTr(BF7,9.806,AJ7,AN7,BB7))) ->  | BG7: =IF(AD7="","",IF(AE7=1,LOOKUP(AI7,'Vmáx(material) - Tab.4.3'!$L$2:$L$11,'Vmáx(material) - Tab.4.3'!$M$2:$M$11),LOOKUP(AI7,'Vmáx(material) - Tab.4.3'!$L$15,'Vmáx(material) - Tab.4.3'!$M$15))) ->  | BH7: =IF(AD7="","",VLOOKUP($AH7,'Vmáx(material) - Tab.4.3'!$R$35:$X$41,2)) ->  | BI7: =IF(AD7="","",VLOOKUP($AH7,'Vmáx(material) - Tab.4.3'!$R$35:$X$41,3)) ->  | BJ7: =IF(AD7="","",VLOOKUP($AH7,'Vmáx(material) - Tab.4.3'!$R$35:$X$41,4)) ->  | BK7: =IF(AD7="","",VLOOKUP($AH7,'Vmáx(material) - Tab.4.3'!$R$35:$X$41,5)) ->  | BL7: =IF(AD7="","",VLOOKUP($AH7,'Vmáx(material) - Tab.4.3'!$R$35:$X$41,6)) ->  | BM7: =IF(AD7="","",IF(AD7="","",VLOOKUP($AH7,'Vmáx(material) - Tab.4.3'!$R$35:$X$41,7))) ->  | BN7: =IF(AD7="","",IF(AE7=1,FCi(J7,AK7),FTr(J7,AJ7,AK7))) ->  | BP7: =IF(AD7="","",Hw(BH7,BI7,BJ7,BK7,BL7,BM7,Z,BN7,AO7,AK7)) ->  | BR7: =IF(AD7="","",IF(AE7=1,0.438*AK7*SQRT(9.806)*AV7^1.5/AK7^0.4,2/3*0.9*AJ7*AV7*SQRT(2/3*9.806*AV7))*AD7) ->  | BU7: =IF(AD7="","",ho(BT7,AK7,AX7)) ->  | BV7: =IF(AD7="","",IF(AE7=1,PeriCi(AK7,BB7),PeriTr(AJ7,AN7,BB7))) ->  | BW7: =IF(AD7="","",IF(AE7=1,AreaCi(AK7,BB7),AreaTr(AJ7,AN7,BB7))) ->  | BX7: =IF(AD7="","",RhCi(BW7,BV7)) ->  | BY7: =IF(AD7="","",AVERAGE(AC7,J7/BW7)) ->  | BZ7: =IF(AD7="","",hf(AL7,J7,AM7,BW7,BX7)) ->  | CA7: =IF(AD7="","",LOOKUP(AP7,Tab.4.5!$J$6:$J$27,Tab.4.5!$L$6:$L$27)) ->  | CB7: =IF(AD7="","",He(CA7,BY7)) ->  | CC7: =IF(AD7="","",Hs(BY7)) ->  | CD7: =IF(AD7="","",Hm(BU7,BZ7,CB7,CC7,AL7,AO7)) ->  | CK7: 1 | CM7: 1 | CO7: 7 | CP7: 2 | CQ7: 1 | CR7: 1 | CS7: 23.14 | CT7: 0.014 | CU7: 0 | CV7: 0.1391110997 | CW7: 12 | DC7: =1.2*CR7 -> 1.2 | DD7: =CR7 -> 1 | DE7: =IF(CK7="","",IF(CL7=1,YcCi(CR7,J7),YcTr(J7,CQ7,CU7))) -> 0.9954302055 | DF7: =IF(CK7="","",IF(CL7=1,Teta1(DE7,CR7),"-")) -> - | DG7: 0.9954302055 | DH7: 3.124277305 | DI7: =IF(CK7="","",IF(CL7=1,Ynci(CR7,J7,CT7,CV7),YnTr(1,CT7,CQ7,CU7,CV7,J7))) -> 0.3390387383 | DJ7: =IF(CK7="","",IF(CL7=1,Teta1(DI7,CR7),"-")) -> - | DK7: =IF(CK7="","",IF(CL7=1,AreaCi(CR7,J7),AreaTr(CQ7,CU7,DI7))) -> 0.3390387383 | DL7: =IF(CK7="","",IF(CL7=1,FrCi(DM7,9.806,DJ7,CR7),FrTr(DM7,9.806,CQ7,CU7,DI7))) -> 5.030839472 | DM7: 9.172993078 | DN7: =IF(CK7="","",IF(CL7=1,LOOKUP(CP7,'Vmáx(material) - Tab.4.3'!$L$2:$L$11,'Vmáx(material) - Tab.4.3'!$M$2:$M$11),LOOKUP(CP7,'Vmáx(material) - Tab.4.3'!$L$15,'Vmáx(material) - Tab.4.3'!$M$15))) -> 15 | DO7: =IF(CK7="","",VLOOKUP($CO7,'Vmáx(material) - Tab.4.3'!$R$35:$X$41,2)) -> 0.072493 | DP7: =IF(CK7="","",VLOOKUP($CO7,'Vmáx(material) - Tab.4.3'!$R$35:$X$41,3)) -> 0.507087 | DQ7: =IF(CK7="","",VLOOKUP($CO7,'Vmáx(material) - Tab.4.3'!$R$35:$X$41,4)) -> -0.11747 | DR7: =IF(CK7="","",VLOOKUP($CO7,'Vmáx(material) - Tab.4.3'!$R$35:$X$41,5)) -> 0.02217 | DS7: =IF(CK7="","",VLOOKUP($CO7,'Vmáx(material) - Tab.4.3'!$R$35:$X$41,6)) -> -0.00149 | DT7: =IF(CK7="","",IF(CK7="","",VLOOKUP(CO7,'Vmáx(material) - Tab.4.3'!$R$35:$X$41,7))) -> 3.8e-05 | DU7: =IF(CK7="","",IF(CL7=1,FCi(J7,CR7),FTr(J7,CQ7,CR7))) -> 3.11 | DV7: Supercrítico | DW7: =IF(CK7="","",Hw(DO7,DP7,DQ7,DR7,DS7,DT7,Z,DU7,CV7,CR7)) -> 1.81 | DX7: 1.81 | DY7: 2.016617048 | DZ7: No Cumple | EA7: 0.678395929 | EB7: 0.9977151028 | EC7: =IF(CK7="","",IF(CL7=1,PeriCi(CR7,DI7),PeriTr(CQ7,CU7,DI7))) -> 1.678077477 | ED7: =IF(CK7="","",IF(CL7=1,AreaCi(CR7,DI7),AreaTr(CQ7,CU7,DI7))) -> 0.3390387383 | EE7: =IF(CK7="","",RhCi(DK7,EC7)) -> 0.2020399791 | EF7: 5.44229674 | EG7: =IF(CK7="","",hf(CS7,J7,CT7,DK7,EE7)) -> 3.219030841 | EH7: =IF(CK7="","",LOOKUP(CW7,Tab.4.5!$J$6:$J$27,Tab.4.5!$L$6:$L$27)) -> 0.4 | EI7: =IF(CK7="","",He(EH7,DM7)) -> 1.716169733 | EJ7: =IF(CK7="","",Hs(DM7)) -> 4.290424332 | EK7: =IF(CK7="","",Hm(EB7,EG7,EI7,EJ7,CS7,CV7)) -> 7.004309161 | EL7: 7.004309161 | EM7: 2.016617048 | EN7: No Cumple | EO7: Funciona con control a la entrada. | EP7: Se presenta resalto hidráulico cerca de la salida. | ER7: K45+130 (III) MDI | ES7: =IF(B7="Existe.",IF(AE7=1,CONCATENATE(#REF!,AK7," m."),CONCATENATE(#REF!,AJ7," m x ",AK7," m.")),IF(CL7=1,CONCATENATE(#REF!,CR7," m."),CONCATENATE(#REF!,CQ7," m x ",CR7," m."))) ->  | ET7: Concreto, L = 23,14 m, S = 13,9111099723457 %. | EU7: Cota clave eje= msnm. | FD7: =IF(EV7="","",VLOOKUP(EY7,'Estructura escalonada'!$D$3:$H$953,2)) -> 
A8: iii | B8: MDI | C8: EJEMPLO | D8: 45130 | G8: 3.11 | J8: 3.11 | K8: SI | L8: 3.11 | N8: 3.11 | O8: 2 | R8: 0.035 | S8: 1 | T8: 0.01 | U8: =IF(K8="No","",IF(O8="",YcCi(P8,N8),YcTr(N8,O8,S8))) -> 0.5674525486 | V8: =IF(K8="No","",IF(O8="",Teta1(U8,P8),"-")) -> - | W8: 1.456907492 | X8: 2.134658526 | Y8: =IF(K8="No","",IF(O8="",Ynci(P8,N8,R8,T8),YnTr(1,R8,O8,S8,T8,N8))) -> 0.678395929 | Z8: =IF(K8="No","",IF(O8="",Teta1(Y8,P8),"-")) -> - | AA8: =IF(K8="No","",IF(O8="",AreaCi(P8,Y8),AreaTr(O8,S8,Y8))) -> 1.817012894 | AB8: =IF(K8="No","",IF(O8="",FrCi(AC8,9.806,Z8,P8),FrTr(AC8,9.806,O8,S8,Y8))) -> 0.7429158725 | AC8: 1.711600402 | AS8: 0 | AT8: 0 | AX8: =IF(AD8="","",IF(AE8=1,YcCi(AK8,J8),YcTr(J8,AJ8,AN8))) ->  | AY8: =IF(AD8="","",IF(AE8=1,Teta1(AX8,AK8),"-")) ->  | AZ8: =IF(AD8="","",IF(AE8=1,AreaCi(AK8,AX8),AreaTr(AJ8,AN8,AX8))) ->  | BB8: =IF(AD8="","",IF(AE8=1,Ynci(AK8,J8,AM8,AO8),YnTr(1,AM8,AJ8,AN8,AO8,J8))) ->  | BC8: =IF(AD8="","",IF(AE8=1,Teta1(BB8,AK8),"-")) ->  | BD8: =IF(AD8="","",IF(AE8=1,AreaCi(AK8,BB8),AreaTr(AJ8,AN8,BB8))) ->  | BE8: =IF(AD8="","",IF(AE8=1,FrCi(BF8,9.806,BC8,AK8),FrTr(BF8,9.806,AJ8,AN8,BB8))) ->  | BG8: =IF(AD8="","",IF(AE8=1,LOOKUP(AI8,'Vmáx(material) - Tab.4.3'!$L$2:$L$11,'Vmáx(material) - Tab.4.3'!$M$2:$M$11),LOOKUP(AI8,'Vmáx(material) - Tab.4.3'!$L$15,'Vmáx(material) - Tab.4.3'!$M$15))) ->  | BH8: =IF(AD8="","",VLOOKUP($AH8,'Vmáx(material) - Tab.4.3'!$R$35:$X$41,2)) ->  | BI8: =IF(AD8="","",VLOOKUP($AH8,'Vmáx(material) - Tab.4.3'!$R$35:$X$41,3)) ->  | BJ8: =IF(AD8="","",VLOOKUP($AH8,'Vmáx(material) - Tab.4.3'!$R$35:$X$41,4)) ->  | BK8: =IF(AD8="","",VLOOKUP($AH8,'Vmáx(material) - Tab.4.3'!$R$35:$X$41,5)) ->  | BL8: =IF(AD8="","",VLOOKUP($AH8,'Vmáx(material) - Tab.4.3'!$R$35:$X$41,6)) ->  | BM8: =IF(AD8="","",IF(AD8="","",VLOOKUP($AH8,'Vmáx(material) - Tab.4.3'!$R$35:$X$41,7))) ->  | BN8: =IF(AD8="","",IF(AE8=1,FCi(J8,AK8),FTr(J8,AJ8,AK8))) ->  | BP8: =IF(AD8="","",Hw(BH8,BI8,BJ8,BK8,BL8,BM8,Z,BN8,AO8,AK8)) ->  | BU8: =IF(AD8="","",ho(BT8,AK8,AX8)) ->  | BV8: =IF(AD8="","",IF(AE8=1,PeriCi(AK8,BB8),PeriTr(AJ8,AN8,BB8))) ->  | BW8: =IF(AD8="","",IF(AE8=1,AreaCi(AK8,BB8),AreaTr(AJ8,AN8,BB8))) ->  | BX8: =IF(AD8="","",RhCi(BW8,BV8)) ->  | BZ8: =IF(AD8="","",hf(AL8,J8,AM8,BW8,BX8)) ->  | CA8: =IF(AD8="","",LOOKUP(AP8,Tab.4.5!$J$6:$J$27,Tab.4.5!$L$6:$L$27)) ->  | CB8: =IF(AD8="","",He(CA8,BY8)) ->  | CC8: =IF(AD8="","",Hs(BY8)) ->  | CD8: =IF(AD8="","",Hm(BU8,BZ8,CB8,CC8,AL8,AO8)) ->  | CK8: 1 | CM8: 1 | CO8: 7 | CP8: 2 | CQ8: 2 | CR8: 2 | CS8: 23.14 | CT8: 0.014 | CU8: 0 | CV8: 0.0505 | CW8: 12 | DC8: =1.2*CR8 -> 2.4 | DD8: =CR8 -> 2 | DE8: =IF(CK8="","",IF(CL8=1,YcCi(CR8,J8),YcTr(J8,CQ8,CU8))) -> 0.6270819528 | DF8: =IF(CK8="","",IF(CL8=1,Teta1(DE8,CR8),"-")) -> - | DG8: 1.254163906 | DH8: 2.479739678 | DI8: =IF(CK8="","",IF(CL8=1,Ynci(CR8,J8,CT8,CV8),YnTr(1,CT8,CQ8,CU8,CV8,J8))) -> 0.2712843388 | DJ8: =IF(CK8="","",IF(CL8=1,Teta1(DI8,CR8),"-")) -> - | DK8: =IF(CK8="","",IF(CL8=1,AreaCi(CR8,J8),AreaTr(CQ8,CU8,DI8))) -> 0.5425686776 | DL8: =IF(CK8="","",IF(CL8=1,FrCi(DM8,9.806,DJ8,CR8),FrTr(DM8,9.806,CQ8,CU8,DI8))) -> 3.514369043 | DM8: 5.731993254 | DN8: =IF(CK8="","",IF(CL8=1,LOOKUP(CP8,'Vmáx(material) - Tab.4.3'!$L$2:$L$11,'Vmáx(material) - Tab.4.3'!$M$2:$M$11),LOOKUP(CP8,'Vmáx(material) - Tab.4.3'!$L$15,'Vmáx(material) - Tab.4.3'!$M$15))) -> 15 | DO8: =IF(CK8="","",VLOOKUP($CO8,'Vmáx(material) - Tab.4.3'!$R$35:$X$41,2)) -> 0.072493 | DP8: =IF(CK8="","",VLOOKUP($CO8,'Vmáx(material) - Tab.4.3'!$R$35:$X$41,3)) -> 0.507087 | DQ8: =IF(CK8="","",VLOOKUP($CO8,'Vmáx(material) - Tab.4.3'!$R$35:$X$41,4)) -> -0.11747 | DR8: =IF(CK8="","",VLOOKUP($CO8,'Vmáx(material) - Tab.4.3'!$R$35:$X$41,5)) -> 0.02217 | DS8: =IF(CK8="","",VLOOKUP($CO8,'Vmáx(material) - Tab.4.3'!$R$35:$X$41,6)) -> -0.00149 | DT8: =IF(CK8="","",IF(CK8="","",VLOOKUP(CO8,'Vmáx(material) - Tab.4.3'!$R$35:$X$41,7))) -> 3.8e-05 | DU8: =IF(CK8="","",IF(CL8=1,FCi(J8,CR8),FTr(J8,CQ8,CR8))) -> 0.5497755224 | DV8: Supercrítico | DW8: =IF(CK8="","",Hw(DO8,DP8,DQ8,DR8,DS8,DT8,Z,DU8,CV8,CR8)) -> 0.9123665091 | DX8: 0.4561832545 | DY8: 11.40770872 | DZ8: Cumple | EA8: 0.678395929 | EB8: 1.313540976 | EC8: =IF(CK8="","",IF(CL8=1,PeriCi(CR8,DI8),PeriTr(CQ8,CU8,DI8))) -> 2.542568678 | ED8: =IF(CK8="","",IF(CL8=1,AreaCi(CR8,DI8),AreaTr(CQ8,CU8,DI8))) -> 0.5425686776 | EE8: =IF(CK8="","",RhCi(DK8,EC8)) -> 0.2133939124 | EF8: 3.721796828 | EG8: =IF(CK8="","",hf(CS8,J8,CT8,DK8,EE8)) -> 1.16857 | EH8: =IF(CK8="","",LOOKUP(CW8,Tab.4.5!$J$6:$J$27,Tab.4.5!$L$6:$L$27)) -> 0.4 | EI8: =IF(CK8="","",He(EH8,DM8)) -> 0.6701151675 | EJ8: =IF(CK8="","",Hs(DM8)) -> 1.675287919 | EK8: =IF(CK8="","",Hm(EB8,EG8,EI8,EJ8,CS8,CV8)) -> 3.658944062 | EL8: 1.829472031 | EM8: 11.40770872 | EN8: No Cumple | EO8: Funciona con control a la entrada. | EP8: Se presenta resalto hidráulico cerca de la salida. | ER8: K45+130 (iii) MDI | ES8: =IF(B8="Existe.",IF(AE8=1,CONCATENATE(#REF!,AK8," m."),CONCATENATE(#REF!,AJ8," m x ",AK8," m.")),IF(CL8=1,CONCATENATE(#REF!,CR8," m."),CONCATENATE(#REF!,CQ8," m x ",CR8," m."))) ->  | ET8: Concreto, L = 23,14 m, S = 5,05 %. | EU8: Cota clave eje= msnm. | EV8: 2 | EW8: 0.8 | EX8: 1 | EY8: 3.11 | EZ8: =IF(EV8="","",EW8/EX8) -> 0.8 | FA8: =IF(EV8="","",ATAN(EZ8)*(180/PI())) -> 38.65980825 | FB8: =IF(EV8="","",EX8*(SIN(FA8*PI()/180))) -> 0.6246950476 | FC8: =IF(EV8="","",(EW8^2+EX8^2)^0.5) -> 1.280624847 | FD8: =IF(EV8="","",VLOOKUP(EY8,'Estructura escalonada'!$D$3:$H$953,2)) -> 0.305 | FE8: =IF(EV8="","",EV8*FD8) -> 0.61 | FF8: =IF(EV8="","",(2*FD8+EV8)) -> 2.61 | FG8: =IF(EV8="","",FE8/FF8) -> 0.2337164751 | FH8: =IF(EV8="","",18*LOG10(6*FG8/(FB8/2))) -> 11.73964519 | FI8: =IF(EV8="","",FH8*(FG8*EZ8)^0.5) -> 5.076269009 | FJ8: =IF(EV8="","",IF(FD8+0.15<0.5,0.5,IF(FD8+0.15<1,1,"Amplíe el ancho B"))) -> 0.5
A9: iv | C9: Control Entrada Caso A | D9: 45130 | G9: 11.60199589 | J9: 11.60199589 | K9: SI | L9: 11.60199589 | N9: =IF(K9="No","",L9+M9) -> 11.60199589 | O9: 2 | R9: 0.035 | S9: 1 | T9: 0.5 | U9: =IF(K9="No","",IF(O9="",YcCi(P9,N9),YcTr(N9,O9,S9))) -> 1.221821935 | V9: =IF(K9="No","",IF(O9="",Teta1(U9,P9),"-")) -> - | W9: 3.936492711 | X9: 2.947292614 | Y9: =IF(K9="No","",IF(O9="",Ynci(P9,N9,R9,T9),YnTr(1,R9,O9,S9,T9,N9))) -> 0.4696000471 | Z9: =IF(K9="No","",IF(O9="",Teta1(Y9,P9),"-")) -> - | AA9: =IF(K9="No","",IF(O9="",AreaCi(P9,Y9),AreaTr(O9,S9,Y9))) -> 1.159724298 | AB9: =IF(K9="No","",IF(O9="",FrCi(AC9,9.806,Z9,P9),FrTr(AC9,9.806,O9,S9,Y9))) -> 5.085916251 | AC9: 10.00409831 | AD9: 1 | AF9: 1 | AH9: 7 | AI9: 2 | AJ9: 2 | AK9: 2 | AL9: 23.14 | AM9: 0.014 | AN9: 0 | AO9: 0.0505 | AP9: 12 | AQ9: 1891.89 | AR9: 1894.9 | AS9: 1891.305715 | AT9: 1890.72143 | AU9: 3.594285 | AV9: 2.4 | AW9: 2 | AX9: =IF(AD9="","",IF(AE9=1,YcCi(AK9,J9),YcTr(J9,AJ9,AN9))) -> 1.508362471 | AY9: =IF(AD9="","",IF(AE9=1,Teta1(AX9,AK9),"-")) -> - | AZ9: =IF(AD9="","",IF(AE9=1,AreaCi(AK9,AX9),AreaTr(AJ9,AN9,AX9))) -> 3.016724942 | BA9: 3.845891195 | BB9: =IF(AD9="","",IF(AE9=1,Ynci(AK9,J9,AM9,AO9),YnTr(1,AM9,AJ9,AN9,AO9,J9))) -> 0.6659759141 | BC9: =IF(AD9="","",IF(AE9=1,Teta1(BB9,AK9),"-")) -> - | BD9: =IF(AD9="","",IF(AE9=1,AreaCi(AK9,BB9),AreaTr(AJ9,AN9,BB9))) -> 1.331951828 | BE9: =IF(AD9="","",IF(AE9=1,FrCi(BF9,9.806,BC9,AK9),FrTr(BF9,9.806,AJ9,AN9,BB9))) -> 3.408544618 | BF9: 8.710522142 | BG9: =IF(AD9="","",IF(AE9=1,LOOKUP(AI9,'Vmáx(material) - Tab.4.3'!$L$2:$L$11,'Vmáx(material) - Tab.4.3'!$M$2:$M$11),LOOKUP(AI9,'Vmáx(material) - Tab.4.3'!$L$15,'Vmáx(material) - Tab.4.3'!$M$15))) -> 15 | BH9: =IF(AD9="","",VLOOKUP($AH9,'Vmáx(material) - Tab.4.3'!$R$35:$X$41,2)) -> 0.072493 | BI9: =IF(AD9="","",VLOOKUP($AH9,'Vmáx(material) - Tab.4.3'!$R$35:$X$41,3)) -> 0.507087 | BJ9: =IF(AD9="","",VLOOKUP($AH9,'Vmáx(material) - Tab.4.3'!$R$35:$X$41,4)) -> -0.11747 | BK9: =IF(AD9="","",VLOOKUP($AH9,'Vmáx(material) - Tab.4.3'!$R$35:$X$41,5)) -> 0.02217 | BL9: =IF(AD9="","",VLOOKUP($AH9,'Vmáx(material) - Tab.4.3'!$R$35:$X$41,6)) -> -0.00149 | BM9: =IF(AD9="","",IF(AD9="","",VLOOKUP($AH9,'Vmáx(material) - Tab.4.3'!$R$35:$X$41,7))) -> 3.8e-05 | BN9: =IF(AD9="","",IF(AE9=1,FCi(J9,AK9),FTr(J9,AJ9,AK9))) -> 2.050962493 | BO9: Supercrítico | BP9: =IF(AD9="","",Hw(BH9,BI9,BJ9,BK9,BL9,BM9,Z,BN9,AO9,AK9)) -> 2.379188073 | BQ9: 1.189594036 | BR9: 11.40770872 | BS9: Cumple | BT9: =IF(AD9="","",IF(K9="No",0,Y9)) -> 0.4696000471 | BU9: =IF(AD9="","",ho(BT9,AK9,AX9)) -> 1.754181235 | BV9: =IF(AD9="","",IF(AE9=1,PeriCi(AK9,BB9),PeriTr(AJ9,AN9,BB9))) -> 3.331951828 | BW9: =IF(AD9="","",IF(AE9=1,AreaCi(AK9,BB9),AreaTr(AJ9,AN9,BB9))) -> 1.331951828 | BX9: =IF(AD9="","",RhCi(BW9,BV9)) -> 0.399751226 | BY9: =IF(AD9="","",AVERAGE(AC9,J9/BW9)) -> 9.357310224 | BZ9: =IF(AD9="","",hf(AL9,J9,AM9,BW9,BX9)) -> 1.168569997 | CA9: =IF(AD9="","",LOOKUP(AP9,Tab.4.5!$J$6:$J$27,Tab.4.5!$L$6:$L$27)) -> 0.4 | CB9: =IF(AD9="","",He(CA9,BY9)) -> 1.785830199 | CC9: =IF(AD9="","",Hs(BY9)) -> 4.464575496 | CD9: =IF(AD9="","",Hm(BU9,BZ9,CB9,CC9,AL9,AO9)) -> 8.004586927 | CE9: =IF(AD9="","",CD9/AK9) -> 4.002293464 | CF9: =IF(AD9="","",IF(AE9=1,0.438*AK9*SQRT(9.806)*AV9^1.5/AK9^0.4,2/3*0.9*AJ9*AV9*SQRT(2/3*9.806*AV9))*AD9) -> 11.40770872 | CG9: =IF(AD9="","",IF(CE9<1.2,"Cumple","No Cumple")) -> No Cumple | CH9: Funciona con control a la entrada. | CJ9: Conservar y realizar labores de limpieza y mantenimiento. | CZ9: =CX9-CV9*CS9/2 -> 0 | DA9: =CX9-CV9*CS9 -> 0 | DB9: =CY9-CZ9 -> 0 | DC9: =1.2*CR9 -> 0 | DD9: =CR9 -> 0 | DE9: =IF(CK9="","",IF(CL9=1,YcCi(CR9,J9),YcTr(J9,CQ9,CU9))) ->  | DF9: =IF(CK9="","",IF(CL9=1,Teta1(DE9,CR9),"-")) ->  | DG9: =IF(CK9="","",IF(CL9=1,1/8*(DF9-SIN(DF9))*CR9^2,(CQ9+CU9*DE9)*DE9)) ->  | DI9: =IF(CK9="","",IF(CL9=1,Ynci(CR9,J9,CT9,CV9),YnTr(1,CT9,CQ9,CU9,CV9,J9))) ->  | DJ9: =IF(CK9="","",IF(CL9=1,Teta1(DI9,CR9),"-")) ->  | DK9: =IF(CK9="","",IF(CL9=1,AreaCi(CR9,J9),AreaTr(CQ9,CU9,DI9))) ->  | DL9: =IF(CK9="","",IF(CL9=1,FrCi(DM9,9.806,DJ9,CR9),FrTr(DM9,9.806,CQ9,CU9,DI9))) ->  | DN9: =IF(CK9="","",IF(CL9=1,LOOKUP(CP9,'Vmáx(material) - Tab.4.3'!$L$2:$L$11,'Vmáx(material) - Tab.4.3'!$M$2:$M$11),LOOKUP(CP9,'Vmáx(material) - Tab.4.3'!$L$15,'Vmáx(material) - Tab.4.3'!$M$15))) ->  | DO9: =IF(CK9="","",VLOOKUP($CO9,'Vmáx(material) - Tab.4.3'!$R$35:$X$41,2)) ->  | DP9: =IF(CK9="","",VLOOKUP($CO9,'Vmáx(material) - Tab.4.3'!$R$35:$X$41,3)) ->  | DQ9: =IF(CK9="","",VLOOKUP($CO9,'Vmáx(material) - Tab.4.3'!$R$35:$X$41,4)) ->  | DR9: =IF(CK9="","",VLOOKUP($CO9,'Vmáx(material) - Tab.4.3'!$R$35:$X$41,5)) ->  | DS9: =IF(CK9="","",VLOOKUP($CO9,'Vmáx(material) - Tab.4.3'!$R$35:$X$41,6)) ->  | DT9: =IF(CK9="","",IF(CK9="","",VLOOKUP(CO9,'Vmáx(material) - Tab.4.3'!$R$35:$X$41,7))) ->  | DU9: =IF(CK9="","",IF(CL9=1,FCi(J9,CR9),FTr(J9,CQ9,CR9))) ->  | DV9: =IF(CK9="","",IF(DI9="Q > Qmax","Insuficiencia hidráulica.",IF(ABS(DE9-DI9)<=0.0001,"Crítico",IF(DE9>DI9,"Supercrítico","Subcrítico")))) ->  | DW9: =IF(CK9="","",Hw(DO9,DP9,DQ9,DR9,DS9,DT9,Z,DU9,CV9,CR9)) ->  | DX9: =IF(CK9="","",DW9/CR9) ->  | DZ9: =IF(CK9="","",IF(DX9<1.2,"Cumple","No Cumple")) ->  | EB9: =IF(CK9="","",MAX(EA9,(CR9+DE9)/2)) ->  | EC9: =IF(CK9="","",IF(CL9=1,PeriCi(CR9,DI9),PeriTr(CQ9,CU9,DI9))) ->  | ED9: =IF(CK9="","",IF(CL9=1,AreaCi(CR9,DI9),AreaTr(CQ9,CU9,DI9))) ->  | EE9: =IF(CK9="","",RhCi(DK9,EC9)) ->  | EG9: =IF(CK9="","",hf(CS9,J9,CT9,DK9,EE9)) ->  | EH9: =IF(CK9="","",LOOKUP(CW9,Tab.4.5!$J$6:$J$27,Tab.4.5!$L$6:$L$27)) ->  | EI9: =IF(CK9="","",He(EH9,DM9)) ->  | EJ9: =IF(CK9="","",Hs(DM9)) ->  | EK9: =IF(CK9="","",Hm(EB9,EG9,EI9,EJ9,CS9,CV9)) ->  | EL9: =IF(CK9="","",EK9/CR9) ->  | EM9: =IF(CK9="","",IF(CL9=1,0.438*CR9*SQRT(9.806)*DC9^1.5/CR9^0.4,2/3*0.9*CQ9*DC9*SQRT(2/3*9.806*DC9))*CK9) ->  | EN9: =IF(EL9="","",IF(EL9<1.2,"Cumple","No Cumple")) ->  | ER9: K45+130 (iv) | ES9: =IF(B9="Existe.",IF(AE9=1,CONCATENATE(#REF!,AK9," m."),CONCATENATE(#REF!,AJ9," m x ",AK9," m.")),IF(CL9=1,CONCATENATE(#REF!,CR9," m."),CONCATENATE(#REF!,CQ9," m x ",CR9," m."))) ->  | ET9: Concreto, L = 23,14 m, S = 5,05 %. | EU9: Cota clave eje= 0 msnm. | EZ9: =IF(EV9="","",EW9/EX9) ->  | FA9: =IF(EV9="","",ATAN(EZ9)*(180/PI())) ->  | FB9: =IF(EV9="","",EX9*(SIN(FA9*PI()/180))) ->  | FC9: =IF(EV9="","",(EW9^2+EX9^2)^0.5) ->  | FD9: =IF(EV9="","",VLOOKUP(EY9,'Estructura escalonada'!$D$3:$H$953,2)) ->  | FE9: =IF(EV9="","",EV9*FD9) ->  | FF9: =IF(EV9="","",(2*FD9+EV9)) ->  | FG9: =IF(EV9="","",FE9/FF9) ->  | FH9: =IF(EV9="","",18*LOG10(6*FG9/(FB9/2))) ->  | FI9: =IF(EV9="","",FH9*(FG9*EZ9)^0.5) ->  | FJ9: =IF(EV9="","",IF(FD9+0.15<0.5,0.5,IF(FD9+0.15<1,1,"Amplíe el ancho B"))) -> 
A10: v | C10: Control Entrada Caso B | D10: 45130 | G10: 8 | J10: 8 | K10: SI | L10: 8 | N10: 8 | O10: 2 | R10: 0.035 | S10: 1 | T10: 0.001 | U10: =IF(K10="No","",IF(O10="",YcCi(P10,N10),YcTr(N10,O10,S10))) -> 0.9904303006 | V10: =IF(K10="No","",IF(O10="",Teta1(U10,P10),"-")) -> - | W10: =IF(K10="No","",IF(O10="",(1/8*(V10-SIN(V10))*P10^2),(O10+S10*U10)*U10)) -> 2.961812782 | X10: =IF(W10="","",N10/W10) -> 2.70104851 | Y10: =IF(K10="No","",IF(O10="",Ynci(P10,N10,R10,T10),YnTr(1,R10,O10,S10,T10,N10))) -> 2.073093421 | Z10: =IF(K10="No","",IF(O10="",Teta1(Y10,P10),"-")) -> - | AA10: =IF(K10="No","",IF(O10="",AreaCi(P10,Y10),AreaTr(O10,S10,Y10))) -> 8.443903171 | AB10: =IF(K10="No","",IF(O10="",FrCi(AC10,9.806,Z10,P10),FrTr(AC10,9.806,O10,S10,Y10))) -> 0.2581261804 | AC10: =IF(K10="No","",N10/AA10) -> 0.9474291495 | AD10: 1 | AF10: 1 | AH10: 7 | AI10: 2 | AJ10: 2 | AK10: 2 | AL10: 23.14 | AM10: 0.014 | AN10: 0 | AO10: 0.0505 | AP10: 12 | AQ10: 1891.89 | AR10: 1894.9 | AS10: 1891.305715 | AT10: 1890.72143 | AU10: 3.594285 | AV10: 2.4 | AW10: 2 | AX10: =IF(AD10="","",IF(AE10=1,YcCi(AK10,J10),YcTr(J10,AJ10,AN10))) -> 1.177273062 | AY10: =IF(AD10="","",IF(AE10=1,Teta1(AX10,AK10),"-")) -> - | AZ10: =IF(AD10="","",IF(AE10=1,AreaCi(AK10,AX10),AreaTr(AJ10,AN10,AX10))) -> 2.354546123 | BA10: 3.397682433 | BB10: =IF(AD10="","",IF(AE10=1,Ynci(AK10,J10,AM10,AO10),YnTr(1,AM10,AJ10,AN10,AO10,J10))) -> 0.5126497566 | BC10: =IF(AD10="","",IF(AE10=1,Teta1(BB10,AK10),"-")) -> - | BD10: =IF(AD10="","",IF(AE10=1,AreaCi(AK10,BB10),AreaTr(AJ10,AN10,BB10))) -> 1.025299513 | BE10: =IF(AD10="","",IF(AE10=1,FrCi(BF10,9.806,BC10,AK10),FrTr(BF10,9.806,AJ10,AN10,BB10))) -> 3.480029405 | BF10: 7.802598067 | BG10: =IF(AD10="","",IF(AE10=1,LOOKUP(AI10,'Vmáx(material) - Tab.4.3'!$L$2:$L$11,'Vmáx(material) - Tab.4.3'!$M$2:$M$11),LOOKUP(AI10,'Vmáx(material) - Tab.4.3'!$L$15,'Vmáx(material) - Tab.4.3'!$M$15))) -> 15 | BH10: =IF(AD10="","",VLOOKUP($AH10,'Vmáx(material) - Tab.4.3'!$R$35:$X$41,2)) -> 0.072493 | BI10: =IF(AD10="","",VLOOKUP($AH10,'Vmáx(material) - Tab.4.3'!$R$35:$X$41,3)) -> 0.507087 | BJ10: =IF(AD10="","",VLOOKUP($AH10,'Vmáx(material) - Tab.4.3'!$R$35:$X$41,4)) -> -0.11747 | BK10: =IF(AD10="","",VLOOKUP($AH10,'Vmáx(material) - Tab.4.3'!$R$35:$X$41,5)) -> 0.02217 | BL10: =IF(AD10="","",VLOOKUP($AH10,'Vmáx(material) - Tab.4.3'!$R$35:$X$41,6)) -> -0.00149 | BM10: =IF(AD10="","",IF(AD10="","",VLOOKUP($AH10,'Vmáx(material) - Tab.4.3'!$R$35:$X$41,7))) -> 3.8e-05 | BN10: =IF(AD10="","",IF(AE10=1,FCi(J10,AK10),FTr(J10,AJ10,AK10))) -> 1.414213562 | BO10: Supercrítico | BP10: =IF(AD10="","",Hw(BH10,BI10,BJ10,BK10,BL10,BM10,Z,BN10,AO10,AK10)) -> 1.776124496 | BQ10: 0.8880622481 | BR10: 11.40770872 | BS10: Cumple | BT10: =IF(AD10="","",IF(K10="No",0,Y10)) -> 2.073093421 | BU10: =IF(AD10="","",ho(BT10,AK10,AX10)) -> 2.073093421 | BV10: =IF(AD10="","",IF(AE10=1,PeriCi(AK10,BB10),PeriTr(AJ10,AN10,BB10))) -> 3.025299513 | BW10: =IF(AD10="","",IF(AE10=1,AreaCi(AK10,BB10),AreaTr(AJ10,AN10,BB10))) -> 1.025299513 | BX10: =IF(AD10="","",RhCi(BW10,BV10)) -> 0.3389084316 | BY10: =IF(AD10="","",AVERAGE(AC10,J10/BW10)) -> 4.375013608 | BZ10: =IF(AD10="","",hf(AL10,J10,AM10,BW10,BX10)) -> 1.16857 | CA10: =IF(AD10="","",LOOKUP(AP10,Tab.4.5!$J$6:$J$27,Tab.4.5!$L$6:$L$27)) -> 0.4 | CB10: =IF(AD10="","",He(CA10,BY10)) -> 0.3903884168 | CC10: =IF(AD10="","",Hs(BY10)) -> 0.9759710419 | CD10: =IF(AD10="","",Hm(BU10,BZ10,CB10,CC10,AL10,AO10)) -> 3.439452879 | CE10: 1.71972644 | CF10: 11.40770872 | CG10: No Cumple | CH10: Funciona con control a la entrada. | CI10: Se presenta resalto hidráulico cerca de la salida. | CJ10: Conservar y realizar labores de limpieza y mantenimiento. | CZ10: =CX10-CV10*CS10/2 -> 0 | DA10: =CX10-CV10*CS10 -> 0 | DB10: =CY10-CZ10 -> 0 | DC10: =1.2*CR10 -> 0 | DD10: =CR10 -> 0 | DE10: =IF(CK10="","",IF(CL10=1,YcCi(CR10,J10),YcTr(J10,CQ10,CU10))) ->  | DF10: =IF(CK10="","",IF(CL10=1,Teta1(DE10,CR10),"-")) ->  | DG10: =IF(CK10="","",IF(CL10=1,1/8*(DF10-SIN(DF10))*CR10^2,(CQ10+CU10*DE10)*DE10)) ->  | DI10: =IF(CK10="","",IF(CL10=1,Ynci(CR10,J10,CT10,CV10),YnTr(1,CT10,CQ10,CU10,CV10,J10))) ->  | DJ10: =IF(CK10="","",IF(CL10=1,Teta1(DI10,CR10),"-")) ->  | DK10: =IF(CK10="","",IF(CL10=1,AreaCi(CR10,J10),AreaTr(CQ10,CU10,DI10))) ->  | DL10: =IF(CK10="","",IF(CL10=1,FrCi(DM10,9.806,DJ10,CR10),FrTr(DM10,9.806,CQ10,CU10,DI10))) ->  | DN10: =IF(CK10="","",IF(CL10=1,LOOKUP(CP10,'Vmáx(material) - Tab.4.3'!$L$2:$L$11,'Vmáx(material) - Tab.4.3'!$M$2:$M$11),LOOKUP(CP10,'Vmáx(material) - Tab.4.3'!$L$15,'Vmáx(material) - Tab.4.3'!$M$15))) ->  | DO10: =IF(CK10="","",VLOOKUP($CO10,'Vmáx(material) - Tab.4.3'!$R$35:$X$41,2)) ->  | DP10: =IF(CK10="","",VLOOKUP($CO10,'Vmáx(material) - Tab.4.3'!$R$35:$X$41,3)) ->  | DQ10: =IF(CK10="","",VLOOKUP($CO10,'Vmáx(material) - Tab.4.3'!$R$35:$X$41,4)) ->  | DR10: =IF(CK10="","",VLOOKUP($CO10,'Vmáx(material) - Tab.4.3'!$R$35:$X$41,5)) ->  | DS10: =IF(CK10="","",VLOOKUP($CO10,'Vmáx(material) - Tab.4.3'!$R$35:$X$41,6)) ->  | DT10: =IF(CK10="","",IF(CK10="","",VLOOKUP(CO10,'Vmáx(material) - Tab.4.3'!$R$35:$X$41,7))) ->  | DU10: =IF(CK10="","",IF(CL10=1,FCi(J10,CR10),FTr(J10,CQ10,CR10))) ->  | DV10: =IF(CK10="","",IF(DI10="Q > Qmax","Insuficiencia hidráulica.",IF(ABS(DE10-DI10)<=0.0001,"Crítico",IF(DE10>DI10,"Supercrítico","Subcrítico")))) ->  | DW10: =IF(CK10="","",Hw(DO10,DP10,DQ10,DR10,DS10,DT10,Z,DU10,CV10,CR10)) ->  | DX10: =IF(CK10="","",DW10/CR10) ->  | DZ10: =IF(CK10="","",IF(DX10<1.2,"Cumple","No Cumple")) ->  | EB10: =IF(CK10="","",MAX(EA10,(CR10+DE10)/2)) ->  | EC10: =IF(CK10="","",IF(CL10=1,PeriCi(CR10,DI10),PeriTr(CQ10,CU10,DI10))) ->  | ED10: =IF(CK10="","",IF(CL10=1,AreaCi(CR10,DI10),AreaTr(CQ10,CU10,DI10))) ->  | EE10: =IF(CK10="","",RhCi(DK10,EC10)) ->  | EG10: =IF(CK10="","",hf(CS10,J10,CT10,DK10,EE10)) ->  | EH10: =IF(CK10="","",LOOKUP(CW10,Tab.4.5!$J$6:$J$27,Tab.4.5!$L$6:$L$27)) ->  | EI10: =IF(CK10="","",He(EH10,DM10)) ->  | EJ10: =IF(CK10="","",Hs(DM10)) ->  | EK10: =IF(CK10="","",Hm(EB10,EG10,EI10,EJ10,CS10,CV10)) ->  | EL10: =IF(CK10="","",EK10/CR10) ->  | EM10: =IF(CK10="","",IF(CL10=1,0.438*CR10*SQRT(9.806)*DC10^1.5/CR10^0.4,2/3*0.9*CQ10*DC10*SQRT(2/3*9.806*DC10))*CK10) ->  | EN10: =IF(EL10="","",IF(EL10<1.2,"Cumple","No Cumple")) ->  | ER10: K45+130 (v) | ES10: =IF(B10="Existe.",IF(AE10=1,CONCATENATE(#REF!,AK10," m."),CONCATENATE(#REF!,AJ10," m x ",AK10," m.")),IF(CL10=1,CONCATENATE(#REF!,CR10," m."),CONCATENATE(#REF!,CQ10," m x ",CR10," m."))) ->  | ET10: Concreto, L = 23,14 m, S = 5,05 %. | EU10: Cota clave eje= 0 msnm. | FD10: =IF(EV10="","",VLOOKUP(EY10,'Estructura escalonada'!$D$3:$H$953,2)) -> 
A11: vi | C11: Control Entrada Caso C | D11: 45130 | G11: 21.28860391 | J11: 21.28860391 | K11: SI | L11: 21.28860391 | N11: 21.28860391 | O11: 2 | R11: 0.035 | S11: 1 | T11: 0.5 | U11: =IF(K11="No","",IF(O11="",YcCi(P11,N11),YcTr(N11,O11,S11))) -> 1.701301805 | V11: =IF(K11="No","",IF(O11="",Teta1(U11,P11),"-")) -> - | W11: =IF(K11="No","",IF(O11="",(1/8*(V11-SIN(V11))*P11^2),(O11+S11*U11)*U11)) -> 6.297031442 | X11: =IF(W11="","",N11/W11) -> 3.380736479 | Y11: =IF(K11="No","",IF(O11="",Ynci(P11,N11,R11,T11),YnTr(1,R11,O11,S11,T11,N11))) -> 0.6660050578 | Z11: =IF(K11="No","",IF(O11="",Teta1(Y11,P11),"-")) -> - | AA11: =IF(K11="No","",IF(O11="",AreaCi(P11,Y11),AreaTr(O11,S11,Y11))) -> 1.775572853 | AB11: =IF(K11="No","",IF(O11="",FrCi(AC11,9.806,Z11,P11),FrTr(AC11,9.806,O11,S11,Y11))) -> 5.245013958 | AC11: =IF(K11="No","",N11/AA11) -> 11.98971018 | AD11: 1 | AF11: 1 | AH11: 7 | AI11: 2 | AJ11: 2 | AK11: 2 | AL11: 23.14 | AM11: 0.014 | AN11: 0 | AO11: 0.0505 | AP11: 12 | AQ11: 1891.89 | AR11: 1894.9 | AS11: 1891.305715 | AT11: 1890.72143 | AU11: 3.594285 | AV11: 2.4 | AW11: 2 | AX11: =IF(AD11="","",IF(AE11=1,YcCi(AK11,J11),YcTr(J11,AJ11,AN11))) -> 2.260731097 | AY11: =IF(AD11="","",IF(AE11=1,Teta1(AX11,AK11),"-")) -> - | AZ11: =IF(AD11="","",IF(AE11=1,AreaCi(AK11,AX11),AreaTr(AJ11,AN11,AX11))) -> 4.521462195 | BA11: 4.708344997 | BB11: =IF(AD11="","",IF(AE11=1,Ynci(AK11,J11,AM11,AO11),YnTr(1,AM11,AJ11,AN11,AO11,J11))) -> 1.039333786 | BC11: =IF(AD11="","",IF(AE11=1,Teta1(BB11,AK11),"-")) -> - | BD11: =IF(AD11="","",IF(AE11=1,AreaCi(AK11,BB11),AreaTr(AJ11,AN11,BB11))) -> 2.078667572 | BE11: =IF(AD11="","",IF(AE11=1,FrCi(BF11,9.806,BC11,AK11),FrTr(BF11,9.806,AJ11,AN11,BB11))) -> 3.208031866 | BF11: 10.24146631 | BG11: =IF(AD11="","",IF(AE11=1,LOOKUP(AI11,'Vmáx(material) - Tab.4.3'!$L$2:$L$11,'Vmáx(material) - Tab.4.3'!$M$2:$M$11),LOOKUP(AI11,'Vmáx(material) - Tab.4.3'!$L$15,'Vmáx(material) - Tab.4.3'!$M$15))) -> 15 | BH11: =IF(AD11="","",VLOOKUP($AH11,'Vmáx(material) - Tab.4.3'!$R$35:$X$41,2)) -> 0.072493 | BI11: =IF(AD11="","",VLOOKUP($AH11,'Vmáx(material) - Tab.4.3'!$R$35:$X$41,3)) -> 0.507087 | BJ11: =IF(AD11="","",VLOOKUP($AH11,'Vmáx(material) - Tab.4.3'!$R$35:$X$41,4)) -> -0.11747 | BK11: =IF(AD11="","",VLOOKUP($AH11,'Vmáx(material) - Tab.4.3'!$R$35:$X$41,5)) -> 0.02217 | BL11: =IF(AD11="","",VLOOKUP($AH11,'Vmáx(material) - Tab.4.3'!$R$35:$X$41,6)) -> -0.00149 | BM11: =IF(AD11="","",IF(AD11="","",VLOOKUP($AH11,'Vmáx(material) - Tab.4.3'!$R$35:$X$41,7))) -> 3.8e-05 | BN11: =IF(AD11="","",IF(AE11=1,FCi(J11,AK11),FTr(J11,AJ11,AK11))) -> 3.763329046 | BO11: Supercrítico | BP11: =IF(AD11="","",Hw(BH11,BI11,BJ11,BK11,BL11,BM11,Z,BN11,AO11,AK11)) -> 4.819639373 | BQ11: 2.409819686 | BR11: 11.40770872 | BS11: No Cumple | BT11: 0.6660050578 | BU11: =IF(AD11="","",ho(BT11,AK11,AX11)) -> 2.130365549 | BV11: =IF(AD11="","",IF(AE11=1,PeriCi(AK11,BB11),PeriTr(AJ11,AN11,BB11))) -> 4.078667572 | BW11: =IF(AD11="","",IF(AE11=1,AreaCi(AK11,BB11),AreaTr(AJ11,AN11,BB11))) -> 2.078667572 | BX11: =IF(AD11="","",RhCi(BW11,BV11)) -> 0.5096437832 | BY11: 11.11558824 | BZ11: =IF(AD11="","",hf(AL11,J11,AM11,BW11,BX11)) -> 1.16857 | CA11: =IF(AD11="","",LOOKUP(AP11,Tab.4.5!$J$6:$J$27,Tab.4.5!$L$6:$L$27)) -> 0.4 | CB11: =IF(AD11="","",He(CA11,BY11)) -> 2.520014318 | CC11: =IF(AD11="","",Hs(BY11)) -> 6.300035795 | CD11: =IF(AD11="","",Hm(BU11,BZ11,CB11,CC11,AL11,AO11)) -> 10.95041566 | CE11: 5.475207831 | CF11: 11.40770872 | CG11: No Cumple | CH11: Funciona con control a la entrada. | CJ11: Reemplazar. | CZ11: 0 | DA11: 0 | DB11: 0 | DC11: 0 | DD11: 0 | DE11: =IF(CK11="","",IF(CL11=1,YcCi(CR11,J11),YcTr(J11,CQ11,CU11))) ->  | DF11: =IF(CK11="","",IF(CL11=1,Teta1(DE11,CR11),"-")) ->  | DI11: =IF(CK11="","",IF(CL11=1,Ynci(CR11,J11,CT11,CV11),YnTr(1,CT11,CQ11,CU11,CV11,J11))) ->  | DJ11: =IF(CK11="","",IF(CL11=1,Teta1(DI11,CR11),"-")) ->  | DK11: =IF(CK11="","",IF(CL11=1,AreaCi(CR11,J11),AreaTr(CQ11,CU11,DI11))) ->  | DL11: =IF(CK11="","",IF(CL11=1,FrCi(DM11,9.806,DJ11,CR11),FrTr(DM11,9.806,CQ11,CU11,DI11))) ->  | DN11: =IF(CK11="","",IF(CL11=1,LOOKUP(CP11,'Vmáx(material) - Tab.4.3'!$L$2:$L$11,'Vmáx(material) - Tab.4.3'!$M$2:$M$11),LOOKUP(CP11,'Vmáx(material) - Tab.4.3'!$L$15,'Vmáx(material) - Tab.4.3'!$M$15))) ->  | DO11: =IF(CK11="","",VLOOKUP($CO11,'Vmáx(material) - Tab.4.3'!$R$35:$X$41,2)) ->  | DP11: =IF(CK11="","",VLOOKUP($CO11,'Vmáx(material) - Tab.4.3'!$R$35:$X$41,3)) ->  | DQ11: =IF(CK11="","",VLOOKUP($CO11,'Vmáx(material) - Tab.4.3'!$R$35:$X$41,4)) ->  | DR11: =IF(CK11="","",VLOOKUP($CO11,'Vmáx(material) - Tab.4.3'!$R$35:$X$41,5)) ->  | DS11: =IF(CK11="","",VLOOKUP($CO11,'Vmáx(material) - Tab.4.3'!$R$35:$X$41,6)) ->  | DT11: =IF(CK11="","",IF(CK11="","",VLOOKUP(CO11,'Vmáx(material) - Tab.4.3'!$R$35:$X$41,7))) ->  | DU11: =IF(CK11="","",IF(CL11=1,FCi(J11,CR11),FTr(J11,CQ11,CR11))) ->  | DW11: =IF(CK11="","",Hw(DO11,DP11,DQ11,DR11,DS11,DT11,Z,DU11,CV11,CR11)) ->  | EC11: =IF(CK11="","",IF(CL11=1,PeriCi(CR11,DI11),PeriTr(CQ11,CU11,DI11))) ->  | ED11: =IF(CK11="","",IF(CL11=1,AreaCi(CR11,DI11),AreaTr(CQ11,CU11,DI11))) ->  | EE11: =IF(CK11="","",RhCi(DK11,EC11)) ->  | EG11: =IF(CK11="","",hf(CS11,J11,CT11,DK11,EE11)) ->  | EH11: =IF(CK11="","",LOOKUP(CW11,Tab.4.5!$J$6:$J$27,Tab.4.5!$L$6:$L$27)) ->  | EI11: =IF(CK11="","",He(EH11,DM11)) ->  | EJ11: =IF(CK11="","",Hs(DM11)) ->  | EK11: =IF(CK11="","",Hm(EB11,EG11,EI11,EJ11,CS11,CV11)) ->  | ER11: K45+130 (vi) | ES11: =IF(B11="Existe.",IF(AE11=1,CONCATENATE(#REF!,AK11," m."),CONCATENATE(#REF!,AJ11," m x ",AK11," m.")),IF(CL11=1,CONCATENATE(#REF!,CR11," m."),CONCATENATE(#REF!,CQ11," m x ",CR11," m."))) ->  | ET11: Concreto, L = 23,14 m, S = 5,05 %. | EU11: Cota clave eje= 0 msnm. | FD11: =IF(EV11="","",VLOOKUP(EY11,'Estructura escalonada'!$D$3:$H$953,2)) -> 
A12: vii | C12: Control Entrada Caso D | D12: 45130 | G12: 21.29 | J12: 21.29 | K12: SI | L12: 21.29 | N12: 21.29 | O12: 2 | R12: 0.035 | S12: 1 | T12: 0.0027 | U12: =IF(K12="No","",IF(O12="",YcCi(P12,N12),YcTr(N12,O12,S12))) -> 1.701361322 | V12: =IF(K12="No","",IF(O12="",Teta1(U12,P12),"-")) -> - | W12: 6.297352993 | X12: 3.38078555 | Y12: =IF(K12="No","",IF(O12="",Ynci(P12,N12,R12,T12),YnTr(1,R12,O12,S12,T12,N12))) -> 2.622113558 | Z12: =IF(K12="No","",IF(O12="",Teta1(Y12,P12),"-")) -> - | AA12: =IF(K12="No","",IF(O12="",AreaCi(P12,Y12),AreaTr(O12,S12,Y12))) -> 12.11970663 | AB12: =IF(K12="No","",IF(O12="",FrCi(AC12,9.806,Z12,P12),FrTr(AC12,9.806,O12,S12,Y12))) -> 0.4336981652 | AC12: 1.756643181 | AD12: 1 | AF12: 1 | AH12: 7 | AI12: 2 | AJ12: 2 | AK12: 2 | AL12: 23.14 | AM12: 0.014 | AN12: 0 | AO12: 0.0505 | AP12: 12 | AQ12: 1891.89 | AR12: 1894.9 | AS12: 1891.305715 | AT12: 1890.72143 | AU12: 3.594285 | AV12: 2.4 | AW12: 2 | AX12: =IF(AD12="","",IF(AE12=1,YcCi(AK12,J12),YcTr(J12,AJ12,AN12))) -> 2.260829935 | AY12: =IF(AD12="","",IF(AE12=1,Teta1(AX12,AK12),"-")) -> - | AZ12: =IF(AD12="","",IF(AE12=1,AreaCi(AK12,AX12),AreaTr(AJ12,AN12,AX12))) -> 4.52165987 | BA12: 4.708447918 | BB12: =IF(AD12="","",IF(AE12=1,Ynci(AK12,J12,AM12,AO12),YnTr(1,AM12,AJ12,AN12,AO12,J12))) -> 1.039385153 | BC12: =IF(AD12="","",IF(AE12=1,Teta1(BB12,AK12),"-")) -> - | BD12: =IF(AD12="","",IF(AE12=1,AreaCi(AK12,BB12),AreaTr(AJ12,AN12,BB12))) -> 2.078770305 | BE12: =IF(AD12="","",IF(AE12=1,FrCi(BF12,9.806,BC12,AK12),FrTr(BF12,9.806,AJ12,AN12,BB12))) -> 3.208004422 | BF12: 10.24163177 | BG12: =IF(AD12="","",IF(AE12=1,LOOKUP(AI12,'Vmáx(material) - Tab.4.3'!$L$2:$L$11,'Vmáx(material) - Tab.4.3'!$M$2:$M$11),LOOKUP(AI12,'Vmáx(material) - Tab.4.3'!$L$15,'Vmáx(material) - Tab.4.3'!$M$15))) -> 15 | BH12: =IF(AD12="","",VLOOKUP($AH12,'Vmáx(material) - Tab.4.3'!$R$35:$X$41,2)) -> 0.072493 | BI12: =IF(AD12="","",VLOOKUP($AH12,'Vmáx(material) - Tab.4.3'!$R$35:$X$41,3)) -> 0.507087 | BJ12: =IF(AD12="","",VLOOKUP($AH12,'Vmáx(material) - Tab.4.3'!$R$35:$X$41,4)) -> -0.11747 | BK12: =IF(AD12="","",VLOOKUP($AH12,'Vmáx(material) - Tab.4.3'!$R$35:$X$41,5)) -> 0.02217 | BL12: =IF(AD12="","",VLOOKUP($AH12,'Vmáx(material) - Tab.4.3'!$R$35:$X$41,6)) -> -0.00149 | BM12: =IF(AD12="","",IF(AD12="","",VLOOKUP($AH12,'Vmáx(material) - Tab.4.3'!$R$35:$X$41,7))) -> 3.8e-05 | BN12: =IF(AD12="","",IF(AE12=1,FCi(J12,AK12),FTr(J12,AJ12,AK12))) -> 3.763575843 | BO12: Supercrítico | BP12: =IF(AD12="","",Hw(BH12,BI12,BJ12,BK12,BL12,BM12,Z,BN12,AO12,AK12)) -> 4.820102957 | BQ12: 2.410051478 | BR12: 11.40770872 | BS12: No Cumple | BT12: 2.622113558 | BU12: =IF(AD12="","",ho(BT12,AK12,AX12)) -> 2.622113558 | BV12: =IF(AD12="","",IF(AE12=1,PeriCi(AK12,BB12),PeriTr(AJ12,AN12,BB12))) -> 4.078770305 | BW12: =IF(AD12="","",IF(AE12=1,AreaCi(AK12,BB12),AreaTr(AJ12,AN12,BB12))) -> 2.078770305 | BX12: =IF(AD12="","",RhCi(BW12,BV12)) -> 0.509656134 | BY12: 5.999137476 | BZ12: =IF(AD12="","",hf(AL12,J12,AM12,BW12,BX12)) -> 1.16857 | CA12: =IF(AD12="","",LOOKUP(AP12,Tab.4.5!$J$6:$J$27,Tab.4.5!$L$6:$L$27)) -> 0.4 | CB12: =IF(AD12="","",He(CA12,BY12)) -> 0.7340332542 | CC12: =IF(AD12="","",Hs(BY12)) -> 1.835083135 | CD12: =IF(AD12="","",Hm(BU12,BZ12,CB12,CC12,AL12,AO12)) -> 5.191229948 | CE12: 2.595614974 | CF12: 11.40770872 | CG12: No Cumple | CH12: Funciona con control a la entrada. | CI12: Se presenta resalto hidráulico cerca de la salida. | CJ12: Reemplazar. | CZ12: 0 | DA12: 0 | DB12: 0 | DC12: 0 | DD12: 0 | DE12: =IF(CK12="","",IF(CL12=1,YcCi(CR12,J12),YcTr(J12,CQ12,CU12))) ->  | DF12: =IF(CK12="","",IF(CL12=1,Teta1(DE12,CR12),"-")) ->  | DI12: =IF(CK12="","",IF(CL12=1,Ynci(CR12,J12,CT12,CV12),YnTr(1,CT12,CQ12,CU12,CV12,J12))) ->  | DJ12: =IF(CK12="","",IF(CL12=1,Teta1(DI12,CR12),"-")) ->  | DK12: =IF(CK12="","",IF(CL12=1,AreaCi(CR12,J12),AreaTr(CQ12,CU12,DI12))) ->  | DL12: =IF(CK12="","",IF(CL12=1,FrCi(DM12,9.806,DJ12,CR12),FrTr(DM12,9.806,CQ12,CU12,DI12))) ->  | DN12: =IF(CK12="","",IF(CL12=1,LOOKUP(CP12,'Vmáx(material) - Tab.4.3'!$L$2:$L$11,'Vmáx(material) - Tab.4.3'!$M$2:$M$11),LOOKUP(CP12,'Vmáx(material) - Tab.4.3'!$L$15,'Vmáx(material) - Tab.4.3'!$M$15))) ->  | DO12: =IF(CK12="","",VLOOKUP($CO12,'Vmáx(material) - Tab.4.3'!$R$35:$X$41,2)) ->  | DP12: =IF(CK12="","",VLOOKUP($CO12,'Vmáx(material) - Tab.4.3'!$R$35:$X$41,3)) ->  | DQ12: =IF(CK12="","",VLOOKUP($CO12,'Vmáx(material) - Tab.4.3'!$R$35:$X$41,4)) ->  | DR12: =IF(CK12="","",VLOOKUP($CO12,'Vmáx(material) - Tab.4.3'!$R$35:$X$41,5)) ->  | DS12: =IF(CK12="","",VLOOKUP($CO12,'Vmáx(material) - Tab.4.3'!$R$35:$X$41,6)) ->  | DT12: =IF(CK12="","",IF(CK12="","",VLOOKUP(CO12,'Vmáx(material) - Tab.4.3'!$R$35:$X$41,7))) ->  | DU12: =IF(CK12="","",IF(CL12=1,FCi(J12,CR12),FTr(J12,CQ12,CR12))) ->  | DW12: =IF(CK12="","",Hw(DO12,DP12,DQ12,DR12,DS12,DT12,Z,DU12,CV12,CR12)) ->  | EC12: =IF(CK12="","",IF(CL12=1,PeriCi(CR12,DI12),PeriTr(CQ12,CU12,DI12))) ->  | ED12: =IF(CK12="","",IF(CL12=1,AreaCi(CR12,DI12),AreaTr(CQ12,CU12,DI12))) ->  | EE12: =IF(CK12="","",RhCi(DK12,EC12)) ->  | EG12: =IF(CK12="","",hf(CS12,J12,CT12,DK12,EE12)) ->  | EH12: =IF(CK12="","",LOOKUP(CW12,Tab.4.5!$J$6:$J$27,Tab.4.5!$L$6:$L$27)) ->  | EI12: =IF(CK12="","",He(EH12,DM12)) ->  | EJ12: =IF(CK12="","",Hs(DM12)) ->  | EK12: =IF(CK12="","",Hm(EB12,EG12,EI12,EJ12,CS12,CV12)) ->  | ER12: K45+130 (vii) | ES12: =IF(B12="Existe.",IF(AE12=1,CONCATENATE(#REF!,AK12," m."),CONCATENATE(#REF!,AJ12," m x ",AK12," m.")),IF(CL12=1,CONCATENATE(#REF!,CR12," m."),CONCATENATE(#REF!,CQ12," m x ",CR12," m."))) ->  | ET12: Concreto, L = 23,14 m, S = 5,05 %. | EU12: Cota clave eje= 0 msnm. | FD12: =IF(EV12="","",VLOOKUP(EY12,'Estructura escalonada'!$D$3:$H$953,2)) -> 
A13: viii | C13: Control Salida Caso A | D13: 45130 | G13: 7 | J13: 7 | K13: SI | L13: 7 | N13: 7 | O13: 6 | R13: 0.035 | S13: 0.2 | T13: 0.0001 | U13: =IF(K13="No","",IF(O13="",YcCi(P13,N13),YcTr(N13,O13,S13))) -> 0.514832652 | V13: =IF(K13="No","",IF(O13="",Teta1(U13,P13),"-")) -> - | W13: 3.142006444 | X13: 2.227875762 | Y13: =IF(K13="No","",IF(O13="",Ynci(P13,N13,R13,T13),YnTr(1,R13,O13,S13,T13,N13))) -> 2.777455598 | Z13: =IF(K13="No","",IF(O13="",Teta1(Y13,P13),"-")) -> - | AA13: =IF(K13="No","",IF(O13="",AreaCi(P13,Y13),AreaTr(O13,S13,Y13))) -> 18.20758551 | AB13: =IF(K13="No","",IF(O13="",FrCi(AC13,9.806,Z13,P13),FrTr(AC13,9.806,O13,S13,Y13))) -> 0.07672525759 | AC13: 0.384455149 | AD13: 1 | AF13: 1 | AH13: 7 | AI13: 2 | AJ13: 2 | AK13: 2 | AL13: 12 | AM13: 0.014 | AN13: 0 | AO13: 0.004 | AP13: 12 | AQ13: 1891.89 | AR13: 1893.39 | AS13: 1891.866 | AT13: 1891.842 | AU13: 1.524 | AV13: 2.4 | AW13: 2 | AX13: =IF(AD13="","",IF(AE13=1,YcCi(AK13,J13),YcTr(J13,AJ13,AN13))) -> 1.077000515 | AY13: =IF(AD13="","",IF(AE13=1,Teta1(AX13,AK13),"-")) -> - | AZ13: =IF(AD13="","",IF(AE13=1,AreaCi(AK13,AX13),AreaTr(AJ13,AN13,AX13))) -> 2.154001029 | BA13: 3.249766321 | BB13: =IF(AD13="","",IF(AE13=1,Ynci(AK13,J13,AM13,AO13),YnTr(1,AM13,AJ13,AN13,AO13,J13))) -> 1.169648619 | BC13: =IF(AD13="","",IF(AE13=1,Teta1(BB13,AK13),"-")) -> - | BD13: =IF(AD13="","",IF(AE13=1,AreaCi(AK13,BB13),AreaTr(AJ13,AN13,BB13))) -> 2.339297238 | BE13: =IF(AD13="","",IF(AE13=1,FrCi(BF13,9.806,BC13,AK13),FrTr(BF13,9.806,AJ13,AN13,BB13))) -> 0.883565971 | BF13: 2.992351672 | BG13: =IF(AD13="","",IF(AE13=1,LOOKUP(AI13,'Vmáx(material) - Tab.4.3'!$L$2:$L$11,'Vmáx(material) - Tab.4.3'!$M$2:$M$11),LOOKUP(AI13,'Vmáx(material) - Tab.4.3'!$L$15,'Vmáx(material) - Tab.4.3'!$M$15))) -> 15 | BH13: =IF(AD13="","",VLOOKUP($AH13,'Vmáx(material) - Tab.4.3'!$R$35:$X$41,2)) -> 0.072493 | BI13: =IF(AD13="","",VLOOKUP($AH13,'Vmáx(material) - Tab.4.3'!$R$35:$X$41,3)) -> 0.507087 | BJ13: =IF(AD13="","",VLOOKUP($AH13,'Vmáx(material) - Tab.4.3'!$R$35:$X$41,4)) -> -0.11747 | BK13: =IF(AD13="","",VLOOKUP($AH13,'Vmáx(material) - Tab.4.3'!$R$35:$X$41,5)) -> 0.02217 | BL13: =IF(AD13="","",VLOOKUP($AH13,'Vmáx(material) - Tab.4.3'!$R$35:$X$41,6)) -> -0.00149 | BM13: =IF(AD13="","",IF(AD13="","",VLOOKUP($AH13,'Vmáx(material) - Tab.4.3'!$R$35:$X$41,7))) -> 3.8e-05 | BN13: =IF(AD13="","",IF(AE13=1,FCi(J13,AK13),FTr(J13,AJ13,AK13))) -> 1.237436867 | BO13: Subcrítico | BP13: =IF(AD13="","",Hw(BH13,BI13,BJ13,BK13,BL13,BM13,Z,BN13,AO13,AK13)) -> 1.662214109 | BQ13: 0.8311070544 | BR13: 11.40770872 | BS13: Cumple | BT13: 2.777455598 | BU13: =IF(AD13="","",ho(BT13,AK13,AX13)) -> 2.777455598 | BV13: =IF(AD13="","",IF(AE13=1,PeriCi(AK13,BB13),PeriTr(AJ13,AN13,BB13))) -> 4.339297238 | BW13: =IF(AD13="","",IF(AE13=1,AreaCi(AK13,BB13),AreaTr(AJ13,AN13,BB13))) -> 2.339297238 | BX13: =IF(AD13="","",RhCi(BW13,BV13)) -> 0.5390958742 | BY13: =IF(AD13="","",AVERAGE(AC13,J13/BW13)) -> 1.68840341 | BZ13: =IF(AD13="","",hf(AL13,J13,AM13,BW13,BX13)) -> 0.048 | CA13: =IF(AD13="","",LOOKUP(AP13,Tab.4.5!$J$6:$J$27,Tab.4.5!$L$6:$L$27)) -> 0.4 | CB13: =IF(AD13="","",He(CA13,BY13)) -> 0.05814207784 | CC13: =IF(AD13="","",Hs(BY13)) -> 0.1453551946 | CD13: =IF(AD13="","",Hm(BU13,BZ13,CB13,CC13,AL13,AO13)) -> 2.980952871 | CE13: 1.490476435 | CF13: 11.40770872 | CG13: No Cumple | CH13: Funciona con control a la salida | CJ13: Conservar y realizar labores de limpieza y mantenimiento. | CZ13: 0 | DA13: 0 | DB13: 0 | DC13: 0 | DD13: 0 | DE13: =IF(CK13="","",IF(CL13=1,YcCi(CR13,J13),YcTr(J13,CQ13,CU13))) ->  | DF13: =IF(CK13="","",IF(CL13=1,Teta1(DE13,CR13),"-")) ->  | DI13: =IF(CK13="","",IF(CL13=1,Ynci(CR13,J13,CT13,CV13),YnTr(1,CT13,CQ13,CU13,CV13,J13))) ->  | DJ13: =IF(CK13="","",IF(CL13=1,Teta1(DI13,CR13),"-")) ->  | DK13: =IF(CK13="","",IF(CL13=1,AreaCi(CR13,J13),AreaTr(CQ13,CU13,DI13))) ->  | DL13: =IF(CK13="","",IF(CL13=1,FrCi(DM13,9.806,DJ13,CR13),FrTr(DM13,9.806,CQ13,CU13,DI13))) ->  | DN13: =IF(CK13="","",IF(CL13=1,LOOKUP(CP13,'Vmáx(material) - Tab.4.3'!$L$2:$L$11,'Vmáx(material) - Tab.4.3'!$M$2:$M$11),LOOKUP(CP13,'Vmáx(material) - Tab.4.3'!$L$15,'Vmáx(material) - Tab.4.3'!$M$15))) ->  | DO13: =IF(CK13="","",VLOOKUP($CO13,'Vmáx(material) - Tab.4.3'!$R$35:$X$41,2)) ->  | DP13: =IF(CK13="","",VLOOKUP($CO13,'Vmáx(material) - Tab.4.3'!$R$35:$X$41,3)) ->  | DQ13: =IF(CK13="","",VLOOKUP($CO13,'Vmáx(material) - Tab.4.3'!$R$35:$X$41,4)) ->  | DR13: =IF(CK13="","",VLOOKUP($CO13,'Vmáx(material) - Tab.4.3'!$R$35:$X$41,5)) ->  | DS13: =IF(CK13="","",VLOOKUP($CO13,'Vmáx(material) - Tab.4.3'!$R$35:$X$41,6)) ->  | DT13: =IF(CK13="","",IF(CK13="","",VLOOKUP(CO13,'Vmáx(material) - Tab.4.3'!$R$35:$X$41,7))) ->  | DU13: =IF(CK13="","",IF(CL13=1,FCi(J13,CR13),FTr(J13,CQ13,CR13))) ->  | DW13: =IF(CK13="","",Hw(DO13,DP13,DQ13,DR13,DS13,DT13,Z,DU13,CV13,CR13)) ->  | EC13: =IF(CK13="","",IF(CL13=1,PeriCi(CR13,DI13),PeriTr(CQ13,CU13,DI13))) ->  | ED13: =IF(CK13="","",IF(CL13=1,AreaCi(CR13,DI13),AreaTr(CQ13,CU13,DI13))) ->  | EE13: =IF(CK13="","",RhCi(DK13,EC13)) ->  | EG13: =IF(CK13="","",hf(CS13,J13,CT13,DK13,EE13)) ->  | EH13: =IF(CK13="","",LOOKUP(CW13,Tab.4.5!$J$6:$J$27,Tab.4.5!$L$6:$L$27)) ->  | EI13: =IF(CK13="","",He(EH13,DM13)) ->  | EJ13: =IF(CK13="","",Hs(DM13)) ->  | EK13: =IF(CK13="","",Hm(EB13,EG13,EI13,EJ13,CS13,CV13)) ->  | ER13: K45+130 (viii) | ES13: =IF(B13="Existe.",IF(AE13=1,CONCATENATE(#REF!,AK13," m."),CONCATENATE(#REF!,AJ13," m x ",AK13," m.")),IF(CL13=1,CONCATENATE(#REF!,CR13," m."),CONCATENATE(#REF!,CQ13," m x ",CR13," m."))) ->  | ET13: Concreto, L = 12 m, S = 0,4 %. | EU13: Cota clave eje= 0 msnm. | FD13: =IF(EV13="","",VLOOKUP(EY13,'Estructura escalonada'!$D$3:$H$953,2)) -> 
A14: ix | C14: Control Salida Caso B | D14: 45130 | G14: 4.4 | J14: 4.4 | K14: SI | L14: 4.4 | N14: =IF(K14="No","",L14+M14) -> 4.4 | O14: 6 | R14: 0.035 | S14: 0.2 | T14: 0.0001 | U14: =IF(K14="No","",IF(O14="",YcCi(P14,N14),YcTr(N14,O14,S14))) -> 0.3783519982 | V14: =IF(K14="No","",IF(O14="",Teta1(U14,P14),"-")) -> - | W14: 2.298742036 | X14: 1.914090372 | Y14: =IF(K14="No","",IF(O14="",Ynci(P14,N14,R14,T14),YnTr(1,R14,O14,S14,T14,N14))) -> 2.034427423 | Z14: =IF(K14="No","",IF(O14="",Teta1(Y14,P14),"-")) -> - | AA14: =IF(K14="No","",IF(O14="",AreaCi(P14,Y14),AreaTr(O14,S14,Y14))) -> 13.03434353 | AB14: =IF(K14="No","",IF(O14="",FrCi(AC14,9.806,Z14,P14),FrTr(AC14,9.806,O14,S14,Y14))) -> 0.07794113996 | AC14: 0.3375697434 | AD14: 1 | AF14: 1 | AH14: 7 | AI14: 2 | AJ14: 2 | AK14: 2 | AL14: 20 | AM14: 0.014 | AN14: 0 | AO14: 0.0005 | AP14: 12 | AQ14: =AQ13 -> 1891.89 | AR14: 1893.39 | AS14: 1891.885 | AT14: 1891.88 | AU14: 1.505 | AV14: 2.4 | AW14: 2 | AX14: =IF(AD14="","",IF(AE14=1,YcCi(AK14,J14),YcTr(J14,AJ14,AN14))) -> 0.7902886228 | AY14: =IF(AD14="","",IF(AE14=1,Teta1(AX14,AK14),"-")) -> - | AZ14: =IF(AD14="","",IF(AE14=1,AreaCi(AK14,AX14),AreaTr(AJ14,AN14,AX14))) -> 1.580577246 | BA14: 2.783793081 | BB14: =IF(AD14="","",IF(AE14=1,Ynci(AK14,J14,AM14,AO14),YnTr(1,AM14,AJ14,AN14,AO14,J14))) -> 1.839708032 | BC14: =IF(AD14="","",IF(AE14=1,Teta1(BB14,AK14),"-")) -> - | BD14: =IF(AD14="","",IF(AE14=1,AreaCi(AK14,BB14),AreaTr(AJ14,AN14,BB14))) -> 3.679416065 | BE14: =IF(AD14="","",IF(AE14=1,FrCi(BF14,9.806,BC14,AK14),FrTr(BF14,9.806,AJ14,AN14,BB14))) -> 0.2815486048 | BF14: 1.195841928 | BG14: =IF(AD14="","",IF(AE14=1,LOOKUP(AI14,'Vmáx(material) - Tab.4.3'!$L$2:$L$11,'Vmáx(material) - Tab.4.3'!$M$2:$M$11),LOOKUP(AI14,'Vmáx(material) - Tab.4.3'!$L$15,'Vmáx(material) - Tab.4.3'!$M$15))) -> 15 | BH14: =IF(AD14="","",VLOOKUP($AH14,'Vmáx(material) - Tab.4.3'!$R$35:$X$41,2)) -> 0.072493 | BI14: =IF(AD14="","",VLOOKUP($AH14,'Vmáx(material) - Tab.4.3'!$R$35:$X$41,3)) -> 0.507087 | BJ14: =IF(AD14="","",VLOOKUP($AH14,'Vmáx(material) - Tab.4.3'!$R$35:$X$41,4)) -> -0.11747 | BK14: =IF(AD14="","",VLOOKUP($AH14,'Vmáx(material) - Tab.4.3'!$R$35:$X$41,5)) -> 0.02217 | BL14: =IF(AD14="","",VLOOKUP($AH14,'Vmáx(material) - Tab.4.3'!$R$35:$X$41,6)) -> -0.00149 | BM14: =IF(AD14="","",IF(AD14="","",VLOOKUP($AH14,'Vmáx(material) - Tab.4.3'!$R$35:$X$41,7))) -> 3.8e-05 | BN14: =IF(AD14="","",IF(AE14=1,FCi(J14,AK14),FTr(J14,AJ14,AK14))) -> 0.7778174593 | BO14: Subcrítico | BP14: =IF(AD14="","",Hw(BH14,BI14,BJ14,BK14,BL14,BM14,Z,BN14,AO14,AK14)) -> 1.219665334 | BQ14: 0.6098326668 | BR14: 11.40770872 | BS14: Cumple | BT14: 2.034427423 | BU14: =IF(AD14="","",ho(BT14,AK14,AX14)) -> 2.034427423 | BV14: =IF(AD14="","",IF(AE14=1,PeriCi(AK14,BB14),PeriTr(AJ14,AN14,BB14))) -> 5.679416065 | BW14: =IF(AD14="","",IF(AE14=1,AreaCi(AK14,BB14),AreaTr(AJ14,AN14,BB14))) -> 3.679416065 | BX14: =IF(AD14="","",RhCi(BW14,BV14)) -> 0.6478511211 | BY14: =IF(AD14="","",AVERAGE(AC14,J14/BW14)) -> 0.7667058356 | BZ14: =IF(AD14="","",hf(AL14,J14,AM14,BW14,BX14)) -> 0.01 | CA14: =IF(AD14="","",LOOKUP(AP14,Tab.4.5!$J$6:$J$27,Tab.4.5!$L$6:$L$27)) -> 0.4 | CB14: =IF(AD14="","",He(CA14,BY14)) -> 0.01198935016 | CC14: =IF(AD14="","",Hs(BY14)) -> 0.0299733754 | CD14: =IF(AD14="","",Hm(BU14,BZ14,CB14,CC14,AL14,AO14)) -> 2.076390149 | CE14: 1.038195074 | CF14: 11.40770872 | CG14: Cumple | CH14: Funciona con control a la salida | CJ14: Conservar y realizar labores de limpieza y mantenimiento. | CZ14: 0 | DA14: 0 | DB14: 0 | DC14: 0 | DD14: 0 | DE14: =IF(CK14="","",IF(CL14=1,YcCi(CR14,J14),YcTr(J14,CQ14,CU14))) ->  | DF14: =IF(CK14="","",IF(CL14=1,Teta1(DE14,CR14),"-")) ->  | DI14: =IF(CK14="","",IF(CL14=1,Ynci(CR14,J14,CT14,CV14),YnTr(1,CT14,CQ14,CU14,CV14,J14))) ->  | DJ14: =IF(CK14="","",IF(CL14=1,Teta1(DI14,CR14),"-")) ->  | DK14: =IF(CK14="","",IF(CL14=1,AreaCi(CR14,J14),AreaTr(CQ14,CU14,DI14))) ->  | DL14: =IF(CK14="","",IF(CL14=1,FrCi(DM14,9.806,DJ14,CR14),FrTr(DM14,9.806,CQ14,CU14,DI14))) ->  | DN14: =IF(CK14="","",IF(CL14=1,LOOKUP(CP14,'Vmáx(material) - Tab.4.3'!$L$2:$L$11,'Vmáx(material) - Tab.4.3'!$M$2:$M$11),LOOKUP(CP14,'Vmáx(material) - Tab.4.3'!$L$15,'Vmáx(material) - Tab.4.3'!$M$15))) ->  | DO14: =IF(CK14="","",VLOOKUP($CO14,'Vmáx(material) - Tab.4.3'!$R$35:$X$41,2)) ->  | DP14: =IF(CK14="","",VLOOKUP($CO14,'Vmáx(material) - Tab.4.3'!$R$35:$X$41,3)) ->  | DQ14: =IF(CK14="","",VLOOKUP($CO14,'Vmáx(material) - Tab.4.3'!$R$35:$X$41,4)) ->  | DR14: =IF(CK14="","",VLOOKUP($CO14,'Vmáx(material) - Tab.4.3'!$R$35:$X$41,5)) ->  | DS14: =IF(CK14="","",VLOOKUP($CO14,'Vmáx(material) - Tab.4.3'!$R$35:$X$41,6)) ->  | DT14: =IF(CK14="","",IF(CK14="","",VLOOKUP(CO14,'Vmáx(material) - Tab.4.3'!$R$35:$X$41,7))) ->  | DU14: =IF(CK14="","",IF(CL14=1,FCi(J14,CR14),FTr(J14,CQ14,CR14))) ->  | DW14: =IF(CK14="","",Hw(DO14,DP14,DQ14,DR14,DS14,DT14,Z,DU14,CV14,CR14)) ->  | EC14: =IF(CK14="","",IF(CL14=1,PeriCi(CR14,DI14),PeriTr(CQ14,CU14,DI14))) ->  | ED14: =IF(CK14="","",IF(CL14=1,AreaCi(CR14,DI14),AreaTr(CQ14,CU14,DI14))) ->  | EE14: =IF(CK14="","",RhCi(DK14,EC14)) ->  | EG14: =IF(CK14="","",hf(CS14,J14,CT14,DK14,EE14)) ->  | EH14: =IF(CK14="","",LOOKUP(CW14,Tab.4.5!$J$6:$J$27,Tab.4.5!$L$6:$L$27)) ->  | EI14: =IF(CK14="","",He(EH14,DM14)) ->  | EJ14: =IF(CK14="","",Hs(DM14)) ->  | EK14: =IF(CK14="","",Hm(EB14,EG14,EI14,EJ14,CS14,CV14)) ->  | ER14: K45+130 (ix) | ES14: =IF(B14="Existe.",IF(AE14=1,CONCATENATE(#REF!,AK14," m."),CONCATENATE(#REF!,AJ14," m x ",AK14," m.")),IF(CL14=1,CONCATENATE(#REF!,CR14," m."),CONCATENATE(#REF!,CQ14," m x ",CR14," m."))) ->  | ET14: Concreto, L = 20 m, S = 0,05 %. | EU14: Cota clave eje= 0 msnm. | FD14: =IF(EV14="","",VLOOKUP(EY14,'Estructura escalonada'!$D$3:$H$953,2)) -> 
A15: x | C15: Control Salida Caso C | D15: 45130 | G15: 14.5 | J15: 14.5 | K15: SI | L15: 14.5 | N15: 14.5 | O15: 6 | R15: 0.035 | S15: 0.2 | T15: 0.0011 | U15: =IF(K15="No","",IF(O15="",YcCi(P15,N15),YcTr(N15,O15,S15))) -> 0.8335067643 | V15: =IF(K15="No","",IF(O15="",Teta1(U15,P15),"-")) -> - | W15: 5.139987291 | X15: 2.821018648 | Y15: =IF(K15="No","",IF(O15="",Ynci(P15,N15,R15,T15),YnTr(1,R15,O15,S15,T15,N15))) -> 2.02576144 | Z15: =IF(K15="No","",IF(O15="",Teta1(Y15,P15),"-")) -> - | AA15: =IF(K15="No","",IF(O15="",AreaCi(P15,Y15),AreaTr(O15,S15,Y15))) -> 12.97531052 | AB15: =IF(K15="No","",IF(O15="",FrCi(AC15,9.806,Z15,P15),FrTr(AC15,9.806,O15,S15,Y15))) -> 0.2585405601 | AC15: 1.117506974 | AD15: 1 | AF15: 1 | AH15: 7 | AI15: 2 | AJ15: 2 | AK15: 2 | AL15: 20 | AM15: 0.014 | AN15: 0 | AO15: 0.0005 | AP15: 12 | AQ15: =AQ14 -> 1891.89 | AR15: 1899.89 | AS15: 1891.885 | AT15: 1891.88 | AU15: 8.005 | AV15: 2.4 | AW15: 2 | AX15: =IF(AD15="","",IF(AE15=1,YcCi(AK15,J15),YcTr(J15,AJ15,AN15))) -> 1.750099057 | AY15: =IF(AD15="","",IF(AE15=1,Teta1(AX15,AK15),"-")) -> - | AZ15: =IF(AD15="","",IF(AE15=1,AreaCi(AK15,AX15),AreaTr(AJ15,AN15,AX15))) -> 3.500198113 | BA15: 4.142622655 | BB15: =IF(AD15="","",IF(AE15=1,Ynci(AK15,J15,AM15,AO15),YnTr(1,AM15,AJ15,AN15,AO15,J15))) -> 5.113258132 | BC15: =IF(AD15="","",IF(AE15=1,Teta1(BB15,AK15),"-")) -> - | BD15: =IF(AD15="","",IF(AE15=1,AreaCi(AK15,BB15),AreaTr(AJ15,AN15,BB15))) -> 10.22651626 | BE15: =IF(AD15="","",IF(AE15=1,FrCi(BF15,9.806,BC15,AK15),FrTr(BF15,9.806,AJ15,AN15,BB15))) -> 0.2002375328 | BF15: 1.417882652 | BG15: =IF(AD15="","",IF(AE15=1,LOOKUP(AI15,'Vmáx(material) - Tab.4.3'!$L$2:$L$11,'Vmáx(material) - Tab.4.3'!$M$2:$M$11),LOOKUP(AI15,'Vmáx(material) - Tab.4.3'!$L$15,'Vmáx(material) - Tab.4.3'!$M$15))) -> 15 | BH15: =IF(AD15="","",VLOOKUP($AH15,'Vmáx(material) - Tab.4.3'!$R$35:$X$41,2)) -> 0.072493 | BI15: =IF(AD15="","",VLOOKUP($AH15,'Vmáx(material) - Tab.4.3'!$R$35:$X$41,3)) -> 0.507087 | BJ15: =IF(AD15="","",VLOOKUP($AH15,'Vmáx(material) - Tab.4.3'!$R$35:$X$41,4)) -> -0.11747 | BK15: =IF(AD15="","",VLOOKUP($AH15,'Vmáx(material) - Tab.4.3'!$R$35:$X$41,5)) -> 0.02217 | BL15: =IF(AD15="","",VLOOKUP($AH15,'Vmáx(material) - Tab.4.3'!$R$35:$X$41,6)) -> -0.00149 | BM15: =IF(AD15="","",IF(AD15="","",VLOOKUP($AH15,'Vmáx(material) - Tab.4.3'!$R$35:$X$41,7))) -> 3.8e-05 | BN15: =IF(AD15="","",IF(AE15=1,FCi(J15,AK15),FTr(J15,AJ15,AK15))) -> 2.563262082 | BO15: Subcrítico | BP15: =IF(AD15="","",Hw(BH15,BI15,BJ15,BK15,BL15,BM15,Z,BN15,AO15,AK15)) -> 3.00564783 | BQ15: 1.502823915 | BR15: 11.40770872 | BS15: No Cumple | BT15: 2.02576144 | BU15: =IF(AD15="","",ho(BT15,AK15,AX15)) -> 2.02576144 | BV15: =IF(AD15="","",IF(AE15=1,PeriCi(AK15,BB15),PeriTr(AJ15,AN15,BB15))) -> 12.22651626 | BW15: =IF(AD15="","",IF(AE15=1,AreaCi(AK15,BB15),AreaTr(AJ15,AN15,BB15))) -> 10.22651626 | BX15: =IF(AD15="","",RhCi(BW15,BV15)) -> 0.8364211067 | BY15: =IF(AD15="","",AVERAGE(AC15,J15/BW15)) -> 1.267694813 | BZ15: =IF(AD15="","",hf(AL15,J15,AM15,BW15,BX15)) -> 0.01 | CA15: =IF(AD15="","",LOOKUP(AP15,Tab.4.5!$J$6:$J$27,Tab.4.5!$L$6:$L$27)) -> 0.4 | CB15: =IF(AD15="","",He(CA15,BY15)) -> 0.03277687413 | CC15: =IF(AD15="","",Hs(BY15)) -> 0.08194218533 | CD15: =IF(AD15="","",Hm(BU15,BZ15,CB15,CC15,AL15,AO15)) -> 2.140480499 | CE15: 1.07024025 | CF15: 11.40770872 | CG15: Cumple | CH15: Funciona con control a la salida | CJ15: Reemplazar. | CZ15: 0 | DA15: 0 | DB15: 0 | DC15: 0 | DD15: 0 | DE15: =IF(CK15="","",IF(CL15=1,YcCi(CR15,J15),YcTr(J15,CQ15,CU15))) ->  | DF15: =IF(CK15="","",IF(CL15=1,Teta1(DE15,CR15),"-")) ->  | DI15: =IF(CK15="","",IF(CL15=1,Ynci(CR15,J15,CT15,CV15),YnTr(1,CT15,CQ15,CU15,CV15,J15))) ->  | DJ15: =IF(CK15="","",IF(CL15=1,Teta1(DI15,CR15),"-")) ->  | DK15: =IF(CK15="","",IF(CL15=1,AreaCi(CR15,J15),AreaTr(CQ15,CU15,DI15))) ->  | DL15: =IF(CK15="","",IF(CL15=1,FrCi(DM15,9.806,DJ15,CR15),FrTr(DM15,9.806,CQ15,CU15,DI15))) ->  | DN15: =IF(CK15="","",IF(CL15=1,LOOKUP(CP15,'Vmáx(material) - Tab.4.3'!$L$2:$L$11,'Vmáx(material) - Tab.4.3'!$M$2:$M$11),LOOKUP(CP15,'Vmáx(material) - Tab.4.3'!$L$15,'Vmáx(material) - Tab.4.3'!$M$15))) ->  | DO15: =IF(CK15="","",VLOOKUP($CO15,'Vmáx(material) - Tab.4.3'!$R$35:$X$41,2)) ->  | DP15: =IF(CK15="","",VLOOKUP($CO15,'Vmáx(material) - Tab.4.3'!$R$35:$X$41,3)) ->  | DQ15: =IF(CK15="","",VLOOKUP($CO15,'Vmáx(material) - Tab.4.3'!$R$35:$X$41,4)) ->  | DR15: =IF(CK15="","",VLOOKUP($CO15,'Vmáx(material) - Tab.4.3'!$R$35:$X$41,5)) ->  | DS15: =IF(CK15="","",VLOOKUP($CO15,'Vmáx(material) - Tab.4.3'!$R$35:$X$41,6)) ->  | DT15: =IF(CK15="","",IF(CK15="","",VLOOKUP(CO15,'Vmáx(material) - Tab.4.3'!$R$35:$X$41,7))) ->  | DU15: =IF(CK15="","",IF(CL15=1,FCi(J15,CR15),FTr(J15,CQ15,CR15))) ->  | DW15: =IF(CK15="","",Hw(DO15,DP15,DQ15,DR15,DS15,DT15,Z,DU15,CV15,CR15)) ->  | EC15: =IF(CK15="","",IF(CL15=1,PeriCi(CR15,DI15),PeriTr(CQ15,CU15,DI15))) ->  | ED15: =IF(CK15="","",IF(CL15=1,AreaCi(CR15,DI15),AreaTr(CQ15,CU15,DI15))) ->  | EE15: =IF(CK15="","",RhCi(DK15,EC15)) ->  | EG15: =IF(CK15="","",hf(CS15,J15,CT15,DK15,EE15)) ->  | EH15: =IF(CK15="","",LOOKUP(CW15,Tab.4.5!$J$6:$J$27,Tab.4.5!$L$6:$L$27)) ->  | EI15: =IF(CK15="","",He(EH15,DM15)) ->  | EJ15: =IF(CK15="","",Hs(DM15)) ->  | EK15: =IF(CK15="","",Hm(EB15,EG15,EI15,EJ15,CS15,CV15)) ->  | ER15: K45+130 (x) | ES15: =IF(B15="Existe.",IF(AE15=1,CONCATENATE(#REF!,AK15," m."),CONCATENATE(#REF!,AJ15," m x ",AK15," m.")),IF(CL15=1,CONCATENATE(#REF!,CR15," m."),CONCATENATE(#REF!,CQ15," m x ",CR15," m."))) ->  | ET15: Concreto, L = 20 m, S = 0,05 %. | EU15: Cota clave eje= 0 msnm. | FD15: =IF(EV15="","",VLOOKUP(EY15,'Estructura escalonada'!$D$3:$H$953,2)) -> 
A16: xi | C16: Control Salida Caso D | D16: 45130 | G16: 14.5 | J16: 14.5 | K16: SI | L16: 14.5 | N16: 14.5 | O16: 6 | R16: 0.035 | S16: 0.2 | T16: 0.5 | U16: =IF(K16="No","",IF(O16="",YcCi(P16,N16),YcTr(N16,O16,S16))) -> 0.8335067643 | V16: =IF(K16="No","",IF(O16="",Teta1(U16,P16),"-")) -> - | W16: 5.139987291 | X16: 2.821018648 | Y16: =IF(K16="No","",IF(O16="",Ynci(P16,N16,R16,T16),YnTr(1,R16,O16,S16,T16,N16))) -> 0.2875667995 | Z16: =IF(K16="No","",IF(O16="",Teta1(Y16,P16),"-")) -> - | AA16: =IF(K16="No","",IF(O16="",AreaCi(P16,Y16),AreaTr(O16,S16,Y16))) -> 1.74193973 | AB16: =IF(K16="No","",IF(O16="",FrCi(AC16,9.806,Z16,P16),FrTr(AC16,9.806,O16,S16,Y16))) -> 4.980484013 | AC16: 8.324053783 | AD16: 1 | AF16: 1 | AH16: 7 | AI16: 2 | AJ16: 2 | AK16: 2 | AL16: 20 | AM16: 0.014 | AN16: 0 | AO16: =AO15 -> 0.0005 | AP16: 12 | AQ16: 1891.89 | AR16: 1899.89 | AS16: 1891.885 | AT16: 1891.88 | AU16: 8.005 | AV16: 2.4 | AW16: 2 | AX16: =IF(AD16="","",IF(AE16=1,YcCi(AK16,J16),YcTr(J16,AJ16,AN16))) -> 1.750099057 | AY16: =IF(AD16="","",IF(AE16=1,Teta1(AX16,AK16),"-")) -> - | AZ16: =IF(AD16="","",IF(AE16=1,AreaCi(AK16,AX16),AreaTr(AJ16,AN16,AX16))) -> 3.500198113 | BA16: 4.142622655 | BB16: =IF(AD16="","",IF(AE16=1,Ynci(AK16,J16,AM16,AO16),YnTr(1,AM16,AJ16,AN16,AO16,J16))) -> 5.113258132 | BC16: =IF(AD16="","",IF(AE16=1,Teta1(BB16,AK16),"-")) -> - | BD16: =IF(AD16="","",IF(AE16=1,AreaCi(AK16,BB16),AreaTr(AJ16,AN16,BB16))) -> 10.22651626 | BE16: =IF(AD16="","",IF(AE16=1,FrCi(BF16,9.806,BC16,AK16),FrTr(BF16,9.806,AJ16,AN16,BB16))) -> 0.2002375328 | BF16: 1.417882652 | BG16: =IF(AD16="","",IF(AE16=1,LOOKUP(AI16,'Vmáx(material) - Tab.4.3'!$L$2:$L$11,'Vmáx(material) - Tab.4.3'!$M$2:$M$11),LOOKUP(AI16,'Vmáx(material) - Tab.4.3'!$L$15,'Vmáx(material) - Tab.4.3'!$M$15))) -> 15 | BH16: =IF(AD16="","",VLOOKUP($AH16,'Vmáx(material) - Tab.4.3'!$R$35:$X$41,2)) -> 0.072493 | BI16: =IF(AD16="","",VLOOKUP($AH16,'Vmáx(material) - Tab.4.3'!$R$35:$X$41,3)) -> 0.507087 | BJ16: =IF(AD16="","",VLOOKUP($AH16,'Vmáx(material) - Tab.4.3'!$R$35:$X$41,4)) -> -0.11747 | BK16: =IF(AD16="","",VLOOKUP($AH16,'Vmáx(material) - Tab.4.3'!$R$35:$X$41,5)) -> 0.02217 | BL16: =IF(AD16="","",VLOOKUP($AH16,'Vmáx(material) - Tab.4.3'!$R$35:$X$41,6)) -> -0.00149 | BM16: =IF(AD16="","",IF(AD16="","",VLOOKUP($AH16,'Vmáx(material) - Tab.4.3'!$R$35:$X$41,7))) -> 3.8e-05 | BN16: =IF(AD16="","",IF(AE16=1,FCi(J16,AK16),FTr(J16,AJ16,AK16))) -> 2.563262082 | BO16: Subcrítico | BP16: =IF(AD16="","",Hw(BH16,BI16,BJ16,BK16,BL16,BM16,Z,BN16,AO16,AK16)) -> 3.00564783 | BQ16: 1.502823915 | BR16: 11.40770872 | BS16: No Cumple | BT16: 0.2875667995 | BU16: =IF(AD16="","",ho(BT16,AK16,AX16)) -> 1.875049528 | BV16: =IF(AD16="","",IF(AE16=1,PeriCi(AK16,BB16),PeriTr(AJ16,AN16,BB16))) -> 12.22651626 | BW16: =IF(AD16="","",IF(AE16=1,AreaCi(AK16,BB16),AreaTr(AJ16,AN16,BB16))) -> 10.22651626 | BX16: =IF(AD16="","",RhCi(BW16,BV16)) -> 0.8364211067 | BY16: 4.870968217 | BZ16: =IF(AD16="","",hf(AL16,J16,AM16,BW16,BX16)) -> 0.01 | CA16: =IF(AD16="","",LOOKUP(AP16,Tab.4.5!$J$6:$J$27,Tab.4.5!$L$6:$L$27)) -> 0.4 | CB16: =IF(AD16="","",He(CA16,BY16)) -> 0.4839145702 | CC16: =IF(AD16="","",Hs(BY16)) -> 1.209786425 | CD16: =IF(AD16="","",Hm(BU16,BZ16,CB16,CC16,AL16,AO16)) -> 3.568750524 | CE16: 1.784375262 | CF16: 11.40770872 | CG16: No Cumple | CH16: Funciona con control a la salida | CJ16: Reemplazar. | CZ16: 0 | DA16: 0 | DB16: 0 | DC16: 0 | DD16: 0 | DE16: =IF(CK16="","",IF(CL16=1,YcCi(CR16,J16),YcTr(J16,CQ16,CU16))) ->  | DF16: =IF(CK16="","",IF(CL16=1,Teta1(DE16,CR16),"-")) ->  | DI16: =IF(CK16="","",IF(CL16=1,Ynci(CR16,J16,CT16,CV16),YnTr(1,CT16,CQ16,CU16,CV16,J16))) ->  | DJ16: =IF(CK16="","",IF(CL16=1,Teta1(DI16,CR16),"-")) ->  | DK16: =IF(CK16="","",IF(CL16=1,AreaCi(CR16,J16),AreaTr(CQ16,CU16,DI16))) ->  | DL16: =IF(CK16="","",IF(CL16=1,FrCi(DM16,9.806,DJ16,CR16),FrTr(DM16,9.806,CQ16,CU16,DI16))) ->  | DN16: =IF(CK16="","",IF(CL16=1,LOOKUP(CP16,'Vmáx(material) - Tab.4.3'!$L$2:$L$11,'Vmáx(material) - Tab.4.3'!$M$2:$M$11),LOOKUP(CP16,'Vmáx(material) - Tab.4.3'!$L$15,'Vmáx(material) - Tab.4.3'!$M$15))) ->  | DO16: =IF(CK16="","",VLOOKUP($CO16,'Vmáx(material) - Tab.4.3'!$R$35:$X$41,2)) ->  | DP16: =IF(CK16="","",VLOOKUP($CO16,'Vmáx(material) - Tab.4.3'!$R$35:$X$41,3)) ->  | DQ16: =IF(CK16="","",VLOOKUP($CO16,'Vmáx(material) - Tab.4.3'!$R$35:$X$41,4)) ->  | DR16: =IF(CK16="","",VLOOKUP($CO16,'Vmáx(material) - Tab.4.3'!$R$35:$X$41,5)) ->  | DS16: =IF(CK16="","",VLOOKUP($CO16,'Vmáx(material) - Tab.4.3'!$R$35:$X$41,6)) ->  | DT16: =IF(CK16="","",IF(CK16="","",VLOOKUP(CO16,'Vmáx(material) - Tab.4.3'!$R$35:$X$41,7))) ->  | DU16: =IF(CK16="","",IF(CL16=1,FCi(J16,CR16),FTr(J16,CQ16,CR16))) ->  | DW16: =IF(CK16="","",Hw(DO16,DP16,DQ16,DR16,DS16,DT16,Z,DU16,CV16,CR16)) ->  | EC16: =IF(CK16="","",IF(CL16=1,PeriCi(CR16,DI16),PeriTr(CQ16,CU16,DI16))) ->  | ED16: =IF(CK16="","",IF(CL16=1,AreaCi(CR16,DI16),AreaTr(CQ16,CU16,DI16))) ->  | EE16: =IF(CK16="","",RhCi(DK16,EC16)) ->  | EG16: =IF(CK16="","",hf(CS16,J16,CT16,DK16,EE16)) ->  | EH16: =IF(CK16="","",LOOKUP(CW16,Tab.4.5!$J$6:$J$27,Tab.4.5!$L$6:$L$27)) ->  | EI16: =IF(CK16="","",He(EH16,DM16)) ->  | EJ16: =IF(CK16="","",Hs(DM16)) ->  | EK16: =IF(CK16="","",Hm(EB16,EG16,EI16,EJ16,CS16,CV16)) ->  | ER16: K45+130 (xi) | ES16: =IF(B16="Existe.",IF(AE16=1,CONCATENATE(#REF!,AK16," m."),CONCATENATE(#REF!,AJ16," m x ",AK16," m.")),IF(CL16=1,CONCATENATE(#REF!,CR16," m."),CONCATENATE(#REF!,CQ16," m x ",CR16," m."))) ->  | ET16: Concreto, L = 20 m, S = 0,05 %. | EU16: Cota clave eje= 0 msnm. | FD16: =IF(EV16="","",VLOOKUP(EY16,'Estructura escalonada'!$D$3:$H$953,2)) -> 
A17: xii | C17: Control Salida Caso E | D17: 45130 | G17: 10 | J17: 10 | K17: SI | L17: 10 | N17: 10 | O17: 6 | R17: 0.035 | S17: 0.2 | T17: 0.5 | U17: =IF(K17="No","",IF(O17="",YcCi(P17,N17),YcTr(N17,O17,S17))) -> 0.6519670274 | V17: =IF(K17="No","",IF(O17="",Teta1(U17,P17),"-")) -> - | W17: 3.996814365 | X17: 2.501992609 | Y17: =IF(K17="No","",IF(O17="",Ynci(P17,N17,R17,T17),YnTr(1,R17,O17,S17,T17,N17))) -> 0.2288618986 | Z17: =IF(K17="No","",IF(O17="",Teta1(Y17,P17),"-")) -> - | AA17: =IF(K17="No","",IF(O17="",AreaCi(P17,Y17),AreaTr(O17,S17,Y17))) -> 1.383646946 | AB17: =IF(K17="No","",IF(O17="",FrCi(AC17,9.806,Z17,P17),FrTr(AC17,9.806,O17,S17,Y17))) -> 4.842613878 | AC17: 7.227277184 | AD17: 1 | AF17: 1 | AH17: 7 | AI17: 2 | AJ17: 2 | AK17: 2 | AL17: 12 | AM17: 0.014 | AN17: 0 | AO17: =AO14 -> 0.0005 | AP17: 12 | AQ17: =AQ16 -> 1891.89 | AR17: 1893.39 | AS17: 1891.887 | AT17: 1891.884 | AU17: 1.503 | AV17: 2.4 | AW17: 2 | AX17: =IF(AD17="","",IF(AE17=1,YcCi(AK17,J17),YcTr(J17,AJ17,AN17))) -> 1.366104412 | AY17: =IF(AD17="","",IF(AE17=1,Teta1(AX17,AK17),"-")) -> - | AZ17: =IF(AD17="","",IF(AE17=1,AreaCi(AK17,AX17),AreaTr(AJ17,AN17,AX17))) -> 2.732208824 | BA17: 3.660042348 | BB17: =IF(AD17="","",IF(AE17=1,Ynci(AK17,J17,AM17,AO17),YnTr(1,AM17,AJ17,AN17,AO17,J17))) -> 3.675285453 | BC17: =IF(AD17="","",IF(AE17=1,Teta1(BB17,AK17),"-")) -> - | BD17: =IF(AD17="","",IF(AE17=1,AreaCi(AK17,BB17),AreaTr(AJ17,AN17,BB17))) -> 7.350570905 | BE17: =IF(AD17="","",IF(AE17=1,FrCi(BF17,9.806,BC17,AK17),FrTr(BF17,9.806,AJ17,AN17,BB17))) -> 0.2266143704 | BF17: 1.360438547 | BG17: =IF(AD17="","",IF(AE17=1,LOOKUP(AI17,'Vmáx(material) - Tab.4.3'!$L$2:$L$11,'Vmáx(material) - Tab.4.3'!$M$2:$M$11),LOOKUP(AI17,'Vmáx(material) - Tab.4.3'!$L$15,'Vmáx(material) - Tab.4.3'!$M$15))) -> 15 | BH17: =IF(AD17="","",VLOOKUP($AH17,'Vmáx(material) - Tab.4.3'!$R$35:$X$41,2)) -> 0.072493 | BI17: =IF(AD17="","",VLOOKUP($AH17,'Vmáx(material) - Tab.4.3'!$R$35:$X$41,3)) -> 0.507087 | BJ17: =IF(AD17="","",VLOOKUP($AH17,'Vmáx(material) - Tab.4.3'!$R$35:$X$41,4)) -> -0.11747 | BK17: =IF(AD17="","",VLOOKUP($AH17,'Vmáx(material) - Tab.4.3'!$R$35:$X$41,5)) -> 0.02217 | BL17: =IF(AD17="","",VLOOKUP($AH17,'Vmáx(material) - Tab.4.3'!$R$35:$X$41,6)) -> -0.00149 | BM17: =IF(AD17="","",IF(AD17="","",VLOOKUP($AH17,'Vmáx(material) - Tab.4.3'!$R$35:$X$41,7))) -> 3.8e-05 | BN17: =IF(AD17="","",IF(AE17=1,FCi(J17,AK17),FTr(J17,AJ17,AK17))) -> 1.767766953 | BO17: Subcrítico | BP17: =IF(AD17="","",Hw(BH17,BI17,BJ17,BK17,BL17,BM17,Z,BN17,AO17,AK17)) -> 2.15104542 | BQ17: 1.07552271 | BR17: 11.40770872 | BS17: Cumple | BT17: 0.2288618986 | BU17: =IF(AD17="","",ho(BT17,AK17,AX17)) -> 1.683052206 | BV17: =IF(AD17="","",IF(AE17=1,PeriCi(AK17,BB17),PeriTr(AJ17,AN17,BB17))) -> 9.350570905 | BW17: =IF(AD17="","",IF(AE17=1,AreaCi(AK17,BB17),AreaTr(AJ17,AN17,BB17))) -> 7.350570905 | BX17: =IF(AD17="","",RhCi(BW17,BV17)) -> 0.7861093167 | BY17: =IF(AD17="","",AVERAGE(AC17,J17/BW17)) -> 4.293857865 | BZ17: =IF(AD17="","",hf(AL17,J17,AM17,BW17,BX17)) -> 0.006 | CA17: =IF(AD17="","",LOOKUP(AP17,Tab.4.5!$J$6:$J$27,Tab.4.5!$L$6:$L$27)) -> 0.4 | CB17: =IF(AD17="","",He(CA17,BY17)) -> 0.3760394731 | CC17: =IF(AD17="","",Hs(BY17)) -> 0.9400986828 | CD17: =IF(AD17="","",Hm(BU17,BZ17,CB17,CC17,AL17,AO17)) -> 2.999190362 | CE17: 1.499595181 | CF17: 11.40770872 | CG17: No Cumple | CH17: Funciona con control a la salida | CJ17: Conservar y realizar labores de limpieza y mantenimiento. | CZ17: 0 | DA17: 0 | DB17: 0 | DC17: 0 | DD17: 0 | DE17: =IF(CK17="","",IF(CL17=1,YcCi(CR17,J17),YcTr(J17,CQ17,CU17))) ->  | DF17: =IF(CK17="","",IF(CL17=1,Teta1(DE17,CR17),"-")) ->  | DI17: =IF(CK17="","",IF(CL17=1,Ynci(CR17,J17,CT17,CV17),YnTr(1,CT17,CQ17,CU17,CV17,J17))) ->  | DJ17: =IF(CK17="","",IF(CL17=1,Teta1(DI17,CR17),"-")) ->  | DK17: =IF(CK17="","",IF(CL17=1,AreaCi(CR17,J17),AreaTr(CQ17,CU17,DI17))) ->  | DL17: =IF(CK17="","",IF(CL17=1,FrCi(DM17,9.806,DJ17,CR17),FrTr(DM17,9.806,CQ17,CU17,DI17))) ->  | DN17: =IF(CK17="","",IF(CL17=1,LOOKUP(CP17,'Vmáx(material) - Tab.4.3'!$L$2:$L$11,'Vmáx(material) - Tab.4.3'!$M$2:$M$11),LOOKUP(CP17,'Vmáx(material) - Tab.4.3'!$L$15,'Vmáx(material) - Tab.4.3'!$M$15))) ->  | DO17: =IF(CK17="","",VLOOKUP($CO17,'Vmáx(material) - Tab.4.3'!$R$35:$X$41,2)) ->  | DP17: =IF(CK17="","",VLOOKUP($CO17,'Vmáx(material) - Tab.4.3'!$R$35:$X$41,3)) ->  | DQ17: =IF(CK17="","",VLOOKUP($CO17,'Vmáx(material) - Tab.4.3'!$R$35:$X$41,4)) ->  | DR17: =IF(CK17="","",VLOOKUP($CO17,'Vmáx(material) - Tab.4.3'!$R$35:$X$41,5)) ->  | DS17: =IF(CK17="","",VLOOKUP($CO17,'Vmáx(material) - Tab.4.3'!$R$35:$X$41,6)) ->  | DT17: =IF(CK17="","",IF(CK17="","",VLOOKUP(CO17,'Vmáx(material) - Tab.4.3'!$R$35:$X$41,7))) ->  | DU17: =IF(CK17="","",IF(CL17=1,FCi(J17,CR17),FTr(J17,CQ17,CR17))) ->  | DW17: =IF(CK17="","",Hw(DO17,DP17,DQ17,DR17,DS17,DT17,Z,DU17,CV17,CR17)) ->  | EC17: =IF(CK17="","",IF(CL17=1,PeriCi(CR17,DI17),PeriTr(CQ17,CU17,DI17))) ->  | ED17: =IF(CK17="","",IF(CL17=1,AreaCi(CR17,DI17),AreaTr(CQ17,CU17,DI17))) ->  | EE17: =IF(CK17="","",RhCi(DK17,EC17)) ->  | EG17: =IF(CK17="","",hf(CS17,J17,CT17,DK17,EE17)) ->  | EH17: =IF(CK17="","",LOOKUP(CW17,Tab.4.5!$J$6:$J$27,Tab.4.5!$L$6:$L$27)) ->  | EI17: =IF(CK17="","",He(EH17,DM17)) ->  | EJ17: =IF(CK17="","",Hs(DM17)) ->  | EK17: =IF(CK17="","",Hm(EB17,EG17,EI17,EJ17,CS17,CV17)) ->  | ER17: K45+130 (xii) | ES17: =IF(B17="Existe.",IF(AE17=1,CONCATENATE(#REF!,AK17," m."),CONCATENATE(#REF!,AJ17," m x ",AK17," m.")),IF(CL17=1,CONCATENATE(#REF!,CR17," m."),CONCATENATE(#REF!,CQ17," m x ",CR17," m."))) ->  | ET17: Concreto, L = 12 m, S = 0,05 %. | EU17: Cota clave eje= 0 msnm. | FD17: =IF(EV17="","",VLOOKUP(EY17,'Estructura escalonada'!$D$3:$H$953,2)) -> 
A18: iv | B18: Qtut | C18: Project | G18: =400*0.0283168 -> 11.32672 | J18: 11.32672 | K18: SI | L18: 11.32672 | N18: =IF(K18="No","",L18+M18) -> 11.32672 | O18: =0.3048*8 -> 2.4384 | R18: 0.032 | S18: 2 | T18: 0.04 | U18: =IF(K18="No","",IF(O18="",YcCi(P18,N18),YcTr(N18,O18,S18))) -> 0.990073518 | V18: =IF(K18="No","",IF(O18="",Teta1(U18,P18),"-")) -> - | W18: 4.374686408 | X18: 2.589150157 | Y18: =IF(K18="No","",IF(O18="",Ynci(P18,N18,R18,T18),YnTr(1,R18,O18,S18,T18,N18))) -> 0.7346621444 | Z18: =IF(K18="No","",IF(O18="",Teta1(Y18,P18),"-")) -> - | AA18: =IF(K18="No","",IF(O18="",AreaCi(P18,Y18),AreaTr(O18,S18,Y18))) -> 2.870857106 | AB18: =IF(K18="No","",IF(O18="",FrCi(AC18,9.806,Z18,P18),FrTr(AC18,9.806,O18,S18,Y18))) -> 1.72430003 | AC18: 3.945414064 | AS18: 0 | AT18: 0 | AX18: =IF(AD18="","",IF(AE18=1,YcCi(AK18,J18),YcTr(J18,AJ18,AN18))) ->  | AY18: =IF(AD18="","",IF(AE18=1,Teta1(AX18,AK18),"-")) ->  | AZ18: =IF(AD18="","",IF(AE18=1,AreaCi(AK18,AX18),AreaTr(AJ18,AN18,AX18))) ->  | BB18: =IF(AD18="","",IF(AE18=1,Ynci(AK18,J18,AM18,AO18),YnTr(1,AM18,AJ18,AN18,AO18,J18))) ->  | BC18: =IF(AD18="","",IF(AE18=1,Teta1(BB18,AK18),"-")) ->  | BD18: =IF(AD18="","",IF(AE18=1,AreaCi(AK18,BB18),AreaTr(AJ18,AN18,BB18))) ->  | BE18: =IF(AD18="","",IF(AE18=1,FrCi(BF18,9.806,BC18,AK18),FrTr(BF18,9.806,AJ18,AN18,BB18))) ->  | BG18: =IF(AD18="","",IF(AE18=1,LOOKUP(AI18,'Vmáx(material) - Tab.4.3'!$L$2:$L$11,'Vmáx(material) - Tab.4.3'!$M$2:$M$11),LOOKUP(AI18,'Vmáx(material) - Tab.4.3'!$L$15,'Vmáx(material) - Tab.4.3'!$M$15))) ->  | BH18: =IF(AD18="","",VLOOKUP($AH18,'Vmáx(material) - Tab.4.3'!$R$35:$X$41,2)) ->  | BI18: =IF(AD18="","",VLOOKUP($AH18,'Vmáx(material) - Tab.4.3'!$R$35:$X$41,3)) ->  | BJ18: =IF(AD18="","",VLOOKUP($AH18,'Vmáx(material) - Tab.4.3'!$R$35:$X$41,4)) ->  | BK18: =IF(AD18="","",VLOOKUP($AH18,'Vmáx(material) - Tab.4.3'!$R$35:$X$41,5)) ->  | BL18: =IF(AD18="","",VLOOKUP($AH18,'Vmáx(material) - Tab.4.3'!$R$35:$X$41,6)) ->  | BM18: =IF(AD18="","",IF(AD18="","",VLOOKUP($AH18,'Vmáx(material) - Tab.4.3'!$R$35:$X$41,7))) ->  | BN18: =IF(AD18="","",IF(AE18=1,FCi(J18,AK18),FTr(J18,AJ18,AK18))) ->  | BP18: =IF(AD18="","",Hw(BH18,BI18,BJ18,BK18,BL18,BM18,Z,BN18,AO18,AK18)) ->  | BU18: =IF(AD18="","",ho(BT18,AK18,AX18)) ->  | BV18: =IF(AD18="","",IF(AE18=1,PeriCi(AK18,BB18),PeriTr(AJ18,AN18,BB18))) ->  | BW18: =IF(AD18="","",IF(AE18=1,AreaCi(AK18,BB18),AreaTr(AJ18,AN18,BB18))) ->  | BX18: =IF(AD18="","",RhCi(BW18,BV18)) ->  | BY18: =IF(AD18="","",J18/BW18) ->  | BZ18: =IF(AD18="","",hf(AL18,J18,AM18,BW18,BX18)) ->  | CA18: =IF(AD18="","",LOOKUP(AP18,Tab.4.5!$J$6:$J$27,Tab.4.5!$L$6:$L$27)) ->  | CB18: =IF(AD18="","",He(CA18,BY18)) ->  | CC18: =IF(AD18="","",Hs(BY18)) ->  | CD18: =IF(AD18="","",Hm(BU18,BZ18,CB18,CC18,AL18,AO18)) ->  | CK18: 1 | CM18: 1 | CO18: 10 | CP18: 2 | CQ18: =0.3048*6 -> 1.8288 | CR18: =0.3048*5 -> 1.524 | CS18: =0.3048*160 -> 48.768 | CT18: 0.012 | CU18: 0 | CV18: =(90-89.2)/160 -> 0.005 | CW18: 13 | CZ18: -0.12192 | DA18: -0.24384 | DB18: 0.12192 | DC18: 1.8288 | DD18: 1.524 | DE18: =IF(CK18="","",IF(CL18=1,YcCi(CR18,J18),YcTr(J18,CQ18,CU18))) -> 1.57566017 | DF18: =IF(CK18="","",IF(CL18=1,Teta1(DE18,CR18),"-")) -> - | DG18: 2.881567318 | DH18: 3.930749745 | DI18: =IF(CK18="","",IF(CL18=1,Ynci(CR18,J18,CT18,CV18),YnTr(1,CT18,CQ18,CU18,CV18,J18))) -> 1.525793389 | DJ18: =IF(CK18="","",IF(CL18=1,Teta1(DI18,CR18),"-")) -> - | DK18: =IF(CK18="","",IF(CL18=1,AreaCi(CR18,J18),AreaTr(CQ18,CU18,DI18))) -> 2.79037095 | DL18: =IF(CK18="","",IF(CL18=1,FrCi(DM18,9.806,DJ18,CR18),FrTr(DM18,9.806,CQ18,CU18,DI18))) -> 1.04941777 | DM18: 4.059216571 | DN18: =IF(CK18="","",IF(CL18=1,LOOKUP(CP18,'Vmáx(material) - Tab.4.3'!$L$2:$L$11,'Vmáx(material) - Tab.4.3'!$M$2:$M$11),LOOKUP(CP18,'Vmáx(material) - Tab.4.3'!$L$15,'Vmáx(material) - Tab.4.3'!$M$15))) -> 15 | DO18: =IF(CK18="","",VLOOKUP($CO18,'Vmáx(material) - Tab.4.3'!$R$35:$X$41,2)) -> 0.156609 | DP18: =IF(CK18="","",VLOOKUP($CO18,'Vmáx(material) - Tab.4.3'!$R$35:$X$41,3)) -> 0.398935 | DQ18: =IF(CK18="","",VLOOKUP($CO18,'Vmáx(material) - Tab.4.3'!$R$35:$X$41,4)) -> -0.06404 | DR18: =IF(CK18="","",VLOOKUP($CO18,'Vmáx(material) - Tab.4.3'!$R$35:$X$41,5)) -> 0.011201 | DS18: =IF(CK18="","",VLOOKUP($CO18,'Vmáx(material) - Tab.4.3'!$R$35:$X$41,6)) -> -0.00064 | DT18: =IF(CK18="","",IF(CK18="","",VLOOKUP(CO18,'Vmáx(material) - Tab.4.3'!$R$35:$X$41,7))) -> 1.5e-05 | DU18: =IF(CK18="","",IF(CL18=1,FCi(J18,CR18),FTr(J18,CQ18,CR18))) -> 3.292005114 | DV18: Supercrítico | DW18: =IF(CK18="","",Hw(DO18,DP18,DQ18,DR18,DS18,DT18,Z,DU18,CV18,CR18)) -> 2.948412134 | DX18: 1.934653632 | DY18: 6.93852405 | DZ18: No Cumple | EA18: 0.7346621444 | EB18: 1.549830085 | EC18: =IF(CK18="","",IF(CL18=1,PeriCi(CR18,DI18),PeriTr(CQ18,CU18,DI18))) -> 4.880386778 | ED18: =IF(CK18="","",IF(CL18=1,AreaCi(CR18,DI18),AreaTr(CQ18,CU18,DI18))) -> 2.79037095 | EE18: =IF(CK18="","",RhCi(DK18,EC18)) -> 0.57175201 | EF18: 4.002315317 | EG18: =IF(CK18="","",hf(CS18,J18,CT18,DK18,EE18)) -> 0.24384 | EH18: =IF(CK18="","",LOOKUP(CW18,Tab.4.5!$J$6:$J$27,Tab.4.5!$L$6:$L$27)) -> 0.2 | EI18: =IF(CK18="","",He(EH18,DM18)) -> 0.1680322167 | EJ18: =IF(CK18="","",Hs(DM18)) -> 0.8401610836 | EK18: =IF(CK18="","",Hm(EB18,EG18,EI18,EJ18,CS18,CV18)) -> 2.558023385 | EL18: 1.678493035 | EM18: 6.93852405 | EN18: No Cumple | EO18: Funciona con control a la entrada. | ER18: K45+-45000 (iv) Qtut | ES18: =IF(B18="Existe.",IF(AE18=1,CONCATENATE(#REF!,AK18," m."),CONCATENATE(#REF!,AJ18," m x ",AK18," m.")),IF(CL18=1,CONCATENATE(#REF!,CR18," m."),CONCATENATE(#REF!,CQ18," m x ",CR18," m."))) ->  | ET18: Concreto, L = 48,768 m, S = 0,499999999999998 %. | EU18: Cota clave eje= -0,12192 msnm. | FD18: =IF(EV18="","",VLOOKUP(EY18,'Estructura escalonada'!$D$3:$H$953,2)) -> 
A19: v | B19: WSDT | C19: Example | G19: 2.83 | J19: 2.83 | K19: SI | L19: 2.83 | N19: 2.83 | O19: 1.07 | R19: 0.035 | S19: 1.5 | T19: 0.008 | U19: =IF(K19="No","",IF(O19="",YcCi(P19,N19),YcTr(N19,O19,S19))) -> 0.6584739543 | V19: =IF(K19="No","",IF(O19="",Teta1(U19,P19),"-")) -> - | W19: 1.354949054 | X19: 2.088639416 | Y19: =IF(K19="No","",IF(O19="",Ynci(P19,N19,R19,T19),YnTr(1,R19,O19,S19,T19,N19))) -> 0.8094360333 | Z19: =IF(K19="No","",IF(O19="",Teta1(Y19,P19),"-")) -> - | AA19: =IF(K19="No","",IF(O19="",AreaCi(P19,Y19),AreaTr(O19,S19,Y19))) -> 1.848876594 | AB19: =IF(K19="No","",IF(O19="",FrCi(AC19,9.806,Z19,P19),FrTr(AC19,9.806,O19,S19,Y19))) -> 0.6723689233 | AC19: 1.530659217 | AS19: 0 | AT19: 0 | AX19: =IF(AD19="","",IF(AE19=1,YcCi(AK19,J19),YcTr(J19,AJ19,AN19))) ->  | AY19: =IF(AD19="","",IF(AE19=1,Teta1(AX19,AK19),"-")) ->  | AZ19: =IF(AD19="","",IF(AE19=1,AreaCi(AK19,AX19),AreaTr(AJ19,AN19,AX19))) ->  | BB19: =IF(AD19="","",IF(AE19=1,Ynci(AK19,J19,AM19,AO19),YnTr(1,AM19,AJ19,AN19,AO19,J19))) ->  | BC19: =IF(AD19="","",IF(AE19=1,Teta1(BB19,AK19),"-")) ->  | BD19: =IF(AD19="","",IF(AE19=1,AreaCi(AK19,BB19),AreaTr(AJ19,AN19,BB19))) ->  | BE19: =IF(AD19="","",IF(AE19=1,FrCi(BF19,9.806,BC19,AK19),FrTr(BF19,9.806,AJ19,AN19,BB19))) ->  | BG19: =IF(AD19="","",IF(AE19=1,LOOKUP(AI19,'Vmáx(material) - Tab.4.3'!$L$2:$L$11,'Vmáx(material) - Tab.4.3'!$M$2:$M$11),LOOKUP(AI19,'Vmáx(material) - Tab.4.3'!$L$15,'Vmáx(material) - Tab.4.3'!$M$15))) ->  | BH19: =IF(AD19="","",VLOOKUP($AH19,'Vmáx(material) - Tab.4.3'!$R$35:$X$41,2)) ->  | BI19: =IF(AD19="","",VLOOKUP($AH19,'Vmáx(material) - Tab.4.3'!$R$35:$X$41,3)) ->  | BJ19: =IF(AD19="","",VLOOKUP($AH19,'Vmáx(material) - Tab.4.3'!$R$35:$X$41,4)) ->  | BK19: =IF(AD19="","",VLOOKUP($AH19,'Vmáx(material) - Tab.4.3'!$R$35:$X$41,5)) ->  | BL19: =IF(AD19="","",VLOOKUP($AH19,'Vmáx(material) - Tab.4.3'!$R$35:$X$41,6)) ->  | BM19: =IF(AD19="","",IF(AD19="","",VLOOKUP($AH19,'Vmáx(material) - Tab.4.3'!$R$35:$X$41,7))) ->  | BN19: =IF(AD19="","",IF(AE19=1,FCi(J19,AK19),FTr(J19,AJ19,AK19))) ->  | BP19: =IF(AD19="","",Hw(BH19,BI19,BJ19,BK19,BL19,BM19,Z,BN19,AO19,AK19)) ->  | BU19: =IF(AD19="","",ho(BT19,AK19,AX19)) ->  | BV19: =IF(AD19="","",IF(AE19=1,PeriCi(AK19,BB19),PeriTr(AJ19,AN19,BB19))) ->  | BW19: =IF(AD19="","",IF(AE19=1,AreaCi(AK19,BB19),AreaTr(AJ19,AN19,BB19))) ->  | BX19: =IF(AD19="","",RhCi(BW19,BV19)) ->  | BZ19: =IF(AD19="","",hf(AL19,J19,AM19,BW19,BX19)) ->  | CA19: =IF(AD19="","",LOOKUP(AP19,Tab.4.5!$J$6:$J$27,Tab.4.5!$L$6:$L$27)) ->  | CB19: =IF(AD19="","",He(CA19,BY19)) ->  | CC19: =IF(AD19="","",Hs(BY19)) ->  | CD19: =IF(AD19="","",Hm(BU19,BZ19,CB19,CC19,AL19,AO19)) ->  | CK19: 1 | CL19: 1 | CO19: 3 | CP19: 2 | CR19: 1.2192 | CS19: =0.3048*160 -> 48.768 | CT19: 0.012 | CU19: 0 | CV19: 0.008 | CW19: 1 | CZ19: -0.195072 | DA19: -0.390144 | DB19: 0.195072 | DC19: 1.46304 | DD19: 1.2192 | DE19: =IF(CK19="","",IF(CL19=1,YcCi(CR19,J19),YcTr(J19,CQ19,CU19))) -> 0.9233784873 | DF19: =IF(CK19="","",IF(CL19=1,Teta1(DE19,CR19),"-")) -> 4.222974523 | DG19: 0.9486483266 | DH19: 2.983191896 | DI19: =IF(CK19="","",IF(CL19=1,Ynci(CR19,J19,CT19,CV19),YnTr(1,CT19,CQ19,CU19,CV19,J19))) -> 0.5750915549 | DJ19: =IF(CK19="","",IF(CL19=1,Teta1(DI19,CR19),"-")) -> 3.028315416 | DK19: =IF(CK19="","",IF(CL19=1,AreaCi(CR19,J19),AreaTr(CQ19,CU19,DI19))) -> 1.167454032 | DL19: =IF(CK19="","",IF(CL19=1,FrCi(DM19,9.806,DJ19,CR19),FrTr(DM19,9.806,CQ19,CU19,DI19))) -> 1.138568544 | DM19: 2.424078313 | DN19: =IF(CK19="","",IF(CL19=1,LOOKUP(CP19,'Vmáx(material) - Tab.4.3'!$L$2:$L$11,'Vmáx(material) - Tab.4.3'!$M$2:$M$11),LOOKUP(CP19,'Vmáx(material) - Tab.4.3'!$L$15,'Vmáx(material) - Tab.4.3'!$M$15))) -> 3.5 | DO19: =IF(CK19="","",VLOOKUP($CO19,'Vmáx(material) - Tab.4.3'!$R$35:$X$41,2)) -> 0.108786 | DP19: =IF(CK19="","",VLOOKUP($CO19,'Vmáx(material) - Tab.4.3'!$R$35:$X$41,3)) -> 0.662381 | DQ19: =IF(CK19="","",VLOOKUP($CO19,'Vmáx(material) - Tab.4.3'!$R$35:$X$41,4)) -> -0.2338 | DR19: =IF(CK19="","",VLOOKUP($CO19,'Vmáx(material) - Tab.4.3'!$R$35:$X$41,5)) -> 0.057959 | DS19: =IF(CK19="","",VLOOKUP($CO19,'Vmáx(material) - Tab.4.3'!$R$35:$X$41,6)) -> -0.00558 | DT19: =IF(CK19="","",IF(CK19="","",VLOOKUP(CO19,'Vmáx(material) - Tab.4.3'!$R$35:$X$41,7))) -> 0.000205 | DU19: =IF(CK19="","",IF(CL19=1,FCi(J19,CR19),FTr(J19,CQ19,CR19))) -> 1.724245299 | DV19: Supercrítico | DW19: =IF(CK19="","",Hw(DO19,DP19,DQ19,DR19,DS19,DT19,Z,DU19,CV19,CR19)) -> 1.449201388 | DX19: 1.188649433 | DY19: 2.733690399 | DZ19: Cumple | EA19: 0.8094360333 | EB19: 1.071289244 | EC19: =IF(CK19="","",IF(CL19=1,PeriCi(CR19,DI19),PeriTr(CQ19,CU19,DI19))) -> 0.9230305387 | ED19: =IF(CK19="","",IF(CL19=1,AreaCi(CR19,DI19),AreaTr(CQ19,CU19,DI19))) -> 0.5416768008 | EE19: =IF(CK19="","",RhCi(DK19,EC19)) -> 1.264805424 | EF19: 3.377588428 | EG19: =IF(CK19="","",hf(CS19,J19,CT19,DK19,EE19)) -> 0.03016887419 | EH19: =IF(CK19="","",LOOKUP(CW19,Tab.4.5!$J$6:$J$27,Tab.4.5!$L$6:$L$27)) -> 0.2 | EI19: =IF(CK19="","",He(EH19,DM19)) -> 0.0599240839 | EJ19: =IF(CK19="","",Hs(DM19)) -> 0.2996204195 | EK19: =IF(CK19="","",Hm(EB19,EG19,EI19,EJ19,CS19,CV19)) -> 1.070858621 | EL19: 0.8783289217 | EM19: 2.733690399 | EN19: Cumple | EO19: Funciona con control a la entrada. | EP19: Se presenta resalto hidráulico cerca de la salida. | ER19: K45+-45000 (v) WSDT | ES19: =IF(B19="Existe.",IF(AE19=1,CONCATENATE(#REF!,AK19," m."),CONCATENATE(#REF!,AJ19," m x ",AK19," m.")),IF(CL19=1,CONCATENATE(#REF!,CR19," m."),CONCATENATE(#REF!,CQ19," m x ",CR19," m."))) ->  | ET19: Concreto, L = 48,768 m, S = 0,8 %. | EU19: Cota clave eje= -0,195072 msnm. | FD19: =IF(EV19="","",VLOOKUP(EY19,'Estructura escalonada'!$D$3:$H$953,2)) -> 
L20: 0 | N20: =IF(K20="No","",L20+M20) -> 0 | U20: =IF(K20="No","",IF(O20="",YcCi(P20,N20),YcTr(N20,O20,S20))) ->  | V20: =IF(K20="No","",IF(O20="",Teta1(U20,P20),"-")) ->  | W20: =IF(K20="No","",IF(O20="",(1/8*(V20-SIN(V20))*P20^2),(O20+S20*U20)*U20)) ->  | X20: =IF(W20="","",N20/W20) ->  | Y20: =IF(K20="No","",IF(O20="",Ynci(P20,N20,R20,T20),YnTr(1,R20,O20,S20,T20,N20))) ->  | Z20: =IF(K20="No","",IF(O20="",Teta1(Y20,P20),"-")) ->  | AA20: =IF(K20="No","",IF(O20="",AreaCi(P20,Y20),AreaTr(O20,S20,Y20))) ->  | AB20: =IF(K20="No","",IF(O20="",FrCi(AC20,9.806,Z20,P20),FrTr(AC20,9.806,O20,S20,Y20))) ->  | AC20: =IF(K20="No","",N20/AA20) ->  | AS20: =AQ20-AO20*AL20/2 -> 0 | AT20: =AQ20-AO20*AL20 -> 0 | AU20: =IF(AD20="","",AR20-AS20) ->  | AV20: =IF(AD20="","",1.2*AK20) ->  | AW20: =IF(AD20="","",AK20) ->  | AX20: =IF(AD20="","",IF(AE20=1,YcCi(AK20,J20),YcTr(J20,AJ20,AN20))) ->  | AY20: =IF(AD20="","",IF(AE20=1,Teta1(AX20,AK20),"-")) ->  | AZ20: =IF(AD20="","",IF(AE20=1,AreaCi(AK20,AX20),AreaTr(AJ20,AN20,AX20))) ->  | BA20: =IF(AD20="","",J20/AZ20) ->  | BB20: =IF(AD20="","",IF(AE20=1,Ynci(AK20,J20,AM20,AO20),YnTr(1,AM20,AJ20,AN20,AO20,J20))) ->  | BC20: =IF(AD20="","",IF(AE20=1,Teta1(BB20,AK20),"-")) ->  | BD20: =IF(AD20="","",IF(AE20=1,AreaCi(AK20,BB20),AreaTr(AJ20,AN20,BB20))) ->  | BE20: =IF(AD20="","",IF(AE20=1,FrCi(BF20,9.806,BC20,AK20),FrTr(BF20,9.806,AJ20,AN20,BB20))) ->  | BF20: =IF(AD20="","",J20/BD20) ->  | BG20: =IF(AD20="","",IF(AE20=1,LOOKUP(AI20,'Vmáx(material) - Tab.4.3'!$L$2:$L$11,'Vmáx(material) - Tab.4.3'!$M$2:$M$11),LOOKUP(AI20,'Vmáx(material) - Tab.4.3'!$L$15,'Vmáx(material) - Tab.4.3'!$M$15))) ->  | BH20: =IF(AD20="","",VLOOKUP($AH20,'Vmáx(material) - Tab.4.3'!$R$35:$X$41,2)) ->  | BI20: =IF(AD20="","",VLOOKUP($AH20,'Vmáx(material) - Tab.4.3'!$R$35:$X$41,3)) ->  | BJ20: =IF(AD20="","",VLOOKUP($AH20,'Vmáx(material) - Tab.4.3'!$R$35:$X$41,4)) ->  | BK20: =IF(AD20="","",VLOOKUP($AH20,'Vmáx(material) - Tab.4.3'!$R$35:$X$41,5)) ->  | BL20: =IF(AD20="","",VLOOKUP($AH20,'Vmáx(material) - Tab.4.3'!$R$35:$X$41,6)) ->  | BM20: =IF(AD20="","",IF(AD20="","",VLOOKUP($AH20,'Vmáx(material) - Tab.4.3'!$R$35:$X$41,7))) ->  | BN20: =IF(AD20="","",IF(AE20=1,FCi(J20,AK20),FTr(J20,AJ20,AK20))) ->  | BO20: =IF(AD20="","",IF(BB20="Q > Qmax","Insuficiencia hidráulica.", IF(ABS(AX20-BB20)<=0.0001,"Crítico",IF(AX20>BB20,"Supercrítico","Subcrítico")))) ->  | BP20: =IF(AD20="","",Hw(BH20,BI20,BJ20,BK20,BL20,BM20,Z,BN20,AO20,AK20)) ->  | BQ20: =IF(AD20="","",BP20/AK20) ->  | BR20: =IF(AD20="","",IF(AE20=1,0.438*AK20*SQRT(9.806)*AV20^1.5/AK20^0.4,2/3*0.9*AJ20*AV20*SQRT(2/3*9.806*AV20))*AD20) ->  | BS20: =IF(AD20="","",IF(BQ20<1.2,"Cumple","No Cumple")) ->  | BT20: =IF(AD20="","",IF(K20="No",0,Y20)) ->  | BU20: =IF(AD20="","",ho(BT20,AK20,AX20)) ->  | BV20: =IF(AD20="","",IF(AE20=1,PeriCi(AK20,BB20),PeriTr(AJ20,AN20,BB20))) ->  | BW20: =IF(AD20="","",IF(AE20=1,AreaCi(AK20,BB20),AreaTr(AJ20,AN20,BB20))) ->  | BX20: =IF(AD20="","",RhCi(BW20,BV20)) ->  | BY20: =IF(AD20="","",J20/BW20) ->  | BZ20: =IF(AD20="","",hf(AL20,J20,AM20,BW20,BX20)) ->  | CA20: =IF(AD20="","",LOOKUP(AP20,Tab.4.5!$J$6:$J$27,Tab.4.5!$L$6:$L$27)) ->  | CB20: =IF(AD20="","",He(CA20,BY20)) ->  | CC20: =IF(AD20="","",Hs(BY20)) ->  | CD20: =IF(AD20="","",Hm(BU20,BZ20,CB20,CC20,AL20,AO20)) ->  | CE20: =IF(AD20="","",CD20/AK20) ->  | CF20: =IF(AD20="","",IF(AE20=1,0.438*AK20*SQRT(9.806)*AV20^1.5/AK20^0.4,2/3*0.9*AJ20*AV20*SQRT(2/3*9.806*AV20))*AD20) ->  | CG20: =IF(AD20="","",IF(CE20<1.2,"Cumple","No Cumple")) ->  | CH20: =IF(AD20="","",IF(BT20="","",IF(BO20="Supercrítico","Funciona con control a la entrada.","Funciona con control a la salida"))) ->  | CI20: =IF(AD20="","",IF(BT20="","",IF(BO20="Supercrítico",IF(BT20>BB20,"Se presenta resalto hidráulico cerca de la salida.",""),""))) ->  | CJ20: =IF(AD20="","",IF(BS20="No Cumple","Reemplazar.",IF(B20="Nueva","Se requiere obra nueva.","Conservar y realizar labores de limpieza y mantenimiento."))) ->  | CZ20: =CX20-CV20*CS20/2 -> 0 | DA20: =CX20-CV20*CS20 -> 0 | DB20: =CY20-CZ20 -> 0 | DC20: =1.2*CR20 -> 0 | DD20: =CR20 -> 0 | DE20: =IF(CK20="","",IF(CL20=1,YcCi(CR20,J20),YcTr(J20,CQ20,CU20))) ->  | DF20: =IF(CK20="","",IF(CL20=1,Teta1(DE20,CR20),"-")) ->  | DG20: =IF(CK20="","",IF(CL20=1,1/8*(DF20-SIN(DF20))*CR20^2,(CQ20+CU20*DE20)*DE20)) ->  | DH20: =IF(CK20="","",J20/DG20) ->  | DI20: =IF(CK20="","",IF(CL20=1,Ynci(CR20,J20,CT20,CV20),YnTr(1,CT20,CQ20,CU20,CV20,J20))) ->  | DJ20: =IF(CK20="","",IF(CL20=1,Teta1(DI20,CR20),"-")) ->  | DK20: =IF(CK20="","",IF(CL20=1,AreaCi(CR20,J20),AreaTr(CQ20,CU20,DI20))) ->  | DL20: =IF(CK20="","",IF(CL20=1,FrCi(DM20,9.806,DJ20,CR20),FrTr(DM20,9.806,CQ20,CU20,DI20))) ->  | DM20: =IF(CK20="","",J20/DK20) ->  | DN20: =IF(CK20="","",IF(CL20=1,LOOKUP(CP20,'Vmáx(material) - Tab.4.3'!$L$2:$L$11,'Vmáx(material) - Tab.4.3'!$M$2:$M$11),LOOKUP(CP20,'Vmáx(material) - Tab.4.3'!$L$15,'Vmáx(material) - Tab.4.3'!$M$15))) ->  | DO20: =IF(CK20="","",VLOOKUP($CO20,'Vmáx(material) - Tab.4.3'!$R$35:$X$41,2)) ->  | DP20: =IF(CK20="","",VLOOKUP($CO20,'Vmáx(material) - Tab.4.3'!$R$35:$X$41,3)) ->  | DQ20: =IF(CK20="","",VLOOKUP($CO20,'Vmáx(material) - Tab.4.3'!$R$35:$X$41,4)) ->  | DR20: =IF(CK20="","",VLOOKUP($CO20,'Vmáx(material) - Tab.4.3'!$R$35:$X$41,5)) ->  | DS20: =IF(CK20="","",VLOOKUP($CO20,'Vmáx(material) - Tab.4.3'!$R$35:$X$41,6)) ->  | DT20: =IF(CK20="","",IF(CK20="","",VLOOKUP(CO20,'Vmáx(material) - Tab.4.3'!$R$35:$X$41,7))) ->  | DU20: =IF(CK20="","",IF(CL20=1,FCi(J20,CR20),FTr(J20,CQ20,CR20))) ->  | DV20: =IF(CK20="","",IF(DI20="Q > Qmax","Insuficiencia hidráulica.",IF(ABS(DE20-DI20)<=0.0001,"Crítico",IF(DE20>DI20,"Supercrítico","Subcrítico")))) ->  | DW20: =IF(CK20="","",Hw(DO20,DP20,DQ20,DR20,DS20,DT20,Z,DU20,CV20,CR20)) ->  | DX20: =IF(CK20="","",DW20/CR20) ->  | DY20: =IF(CK20="","",IF(CL20=1,0.438*CR20*SQRT(9.806)*DC20^1.5/CR20^0.4,2/3*0.9*CQ20*DC20*SQRT(2/3*9.806*DC20))*CK20) ->  | DZ20: =IF(CK20="","",IF(DX20<1.2,"Cumple","No Cumple")) ->  | EA20: =IF(CK20="","",IF(K20="No",0,Y20)) ->  | EB20: =IF(CK20="","",MAX(EA20,(CR20+DE20)/2)) ->  | EC20: =IF(CK20="","",IF(CL20=1,PeriCi(CR20,DI20),PeriTr(CQ20,CU20,DI20))) ->  | ED20: =IF(CK20="","",IF(CL20=1,AreaCi(CR20,DI20),AreaTr(CQ20,CU20,DI20))) ->  | EE20: =IF(CK20="","",RhCi(DK20,EC20)) ->  | EF20: =IF(CK20="","",AVERAGE(AC20,J20/ED20)) ->  | EG20: =IF(CK20="","",hf(CS20,J20,CT20,DK20,EE20)) ->  | EH20: =IF(CK20="","",LOOKUP(CW20,Tab.4.5!$J$6:$J$27,Tab.4.5!$L$6:$L$27)) ->  | EI20: =IF(CK20="","",He(EH20,DM20)) ->  | EJ20: =IF(CK20="","",Hs(DM20)) ->  | EK20: =IF(CK20="","",Hm(EB20,EG20,EI20,EJ20,CS20,CV20)) ->  | EL20: =IF(CK20="","",EK20/CR20) ->  | EM20: =IF(CK20="","",IF(CL20=1,0.438*CR20*SQRT(9.806)*DC20^1.5/CR20^0.4,2/3*0.9*CQ20*DC20*SQRT(2/3*9.806*DC20))*CK20) ->  | EN20: =IF(EL20="","",IF(EL20<1.2,"Cumple","No Cumple")) ->  | EO20: =IF(CK20="","",IF(EA20="","",IF(DV20="Supercrítico","Funciona con control a la entrada.","Funciona con control a la salida"))) ->  | EP20: =IF(CK20="","",IF(EA20="","",IF(DV20="Supercrítico",IF(EA20>DI20,"Se presenta resalto hidráulico cerca de la salida.",""),""))) ->  | EQ20: =IF(CK20="","",ES20) ->  | ER20: =CONCATENATE("K45+",D20-45000, " (",A20,")"," ",B20) -> K45+-45000 () | ES20: =IF(B20="Existe.",IF(AE20=1,CONCATENATE(#REF!,AK20," m."),CONCATENATE(#REF!,AJ20," m x ",AK20," m.")),IF(CL20=1,CONCATENATE(#REF!,CR20," m."),CONCATENATE(#REF!,CQ20," m x ",CR20," m."))) ->  | ET20: =IF(AI20=2,CONCATENATE("Concreto, L = ",AL20," m, S = ",AO20*100," %."),CONCATENATE("Concreto, L = ",CS20," m, S = ",CV20*100," %.")) -> Concreto, L = m, S = 0 %. | EU20: =IF(B20="Existe.","",CONCATENATE("Cota clave eje= ",CZ20," msnm.")) -> Cota clave eje= 0 msnm. | EY20: =IF(EV20="","",N20) ->  | EZ20: =IF(EV20="","",EW20/EX20) ->  | FA20: =IF(EV20="","",ATAN(EZ20)*(180/PI())) ->  | FB20: =IF(EV20="","",EX20*(SIN(FA20*PI()/180))) ->  | FC20: =IF(EV20="","",(EW20^2+EX20^2)^0.5) ->  | FD20: =IF(EV20="","",VLOOKUP(EY20,'Estructura escalonada'!$D$3:$H$953,2)) ->  | FE20: =IF(EV20="","",EV20*FD20) ->  | FF20: =IF(EV20="","",(2*FD20+EV20)) ->  | FG20: =IF(EV20="","",FE20/FF20) ->  | FH20: =IF(EV20="","",18*LOG10(6*FG20/(FB20/2))) ->  | FI20: =IF(EV20="","",FH20*(FG20*EZ20)^0.5) ->  | FJ20: =IF(EV20="","",IF(FD20+0.15<0.5,0.5,IF(FD20+0.15<1,1,"Amplíe el ancho B"))) -> 
L21: 0 | N21: 0 | U21: =IF(K21="No","",IF(O21="",YcCi(P21,N21),YcTr(N21,O21,S21))) ->  | V21: =IF(K21="No","",IF(O21="",Teta1(U21,P21),"-")) ->  | Y21: =IF(K21="No","",IF(O21="",Ynci(P21,N21,R21,T21),YnTr(1,R21,O21,S21,T21,N21))) ->  | Z21: =IF(K21="No","",IF(O21="",Teta1(Y21,P21),"-")) ->  | AA21: =IF(K21="No","",IF(O21="",AreaCi(P21,Y21),AreaTr(O21,S21,Y21))) ->  | AB21: =IF(K21="No","",IF(O21="",FrCi(AC21,9.806,Z21,P21),FrTr(AC21,9.806,O21,S21,Y21))) ->  | AS21: 0 | AT21: 0 | AX21: =IF(AD21="","",IF(AE21=1,YcCi(AK21,J21),YcTr(J21,AJ21,AN21))) ->  | AY21: =IF(AD21="","",IF(AE21=1,Teta1(AX21,AK21),"-")) ->  | AZ21: =IF(AD21="","",IF(AE21=1,AreaCi(AK21,AX21),AreaTr(AJ21,AN21,AX21))) ->  | BB21: =IF(AD21="","",IF(AE21=1,Ynci(AK21,J21,AM21,AO21),YnTr(1,AM21,AJ21,AN21,AO21,J21))) ->  | BC21: =IF(AD21="","",IF(AE21=1,Teta1(BB21,AK21),"-")) ->  | BD21: =IF(AD21="","",IF(AE21=1,AreaCi(AK21,BB21),AreaTr(AJ21,AN21,BB21))) ->  | BE21: =IF(AD21="","",IF(AE21=1,FrCi(BF21,9.806,BC21,AK21),FrTr(BF21,9.806,AJ21,AN21,BB21))) ->  | BG21: =IF(AD21="","",IF(AE21=1,LOOKUP(AI21,'Vmáx(material) - Tab.4.3'!$L$2:$L$11,'Vmáx(material) - Tab.4.3'!$M$2:$M$11),LOOKUP(AI21,'Vmáx(material) - Tab.4.3'!$L$15,'Vmáx(material) - Tab.4.3'!$M$15))) ->  | BH21: =IF(AD21="","",VLOOKUP($AH21,'Vmáx(material) - Tab.4.3'!$R$35:$X$41,2)) ->  | BI21: =IF(AD21="","",VLOOKUP($AH21,'Vmáx(material) - Tab.4.3'!$R$35:$X$41,3)) ->  | BJ21: =IF(AD21="","",VLOOKUP($AH21,'Vmáx(material) - Tab.4.3'!$R$35:$X$41,4)) ->  | BK21: =IF(AD21="","",VLOOKUP($AH21,'Vmáx(material) - Tab.4.3'!$R$35:$X$41,5)) ->  | BL21: =IF(AD21="","",VLOOKUP($AH21,'Vmáx(material) - Tab.4.3'!$R$35:$X$41,6)) ->  | BM21: =IF(AD21="","",IF(AD21="","",VLOOKUP($AH21,'Vmáx(material) - Tab.4.3'!$R$35:$X$41,7))) ->  | BN21: =IF(AD21="","",IF(AE21=1,FCi(J21,AK21),FTr(J21,AJ21,AK21))) ->  | BP21: =IF(AD21="","",Hw(BH21,BI21,BJ21,BK21,BL21,BM21,Z,BN21,AO21,AK21)) ->  | BU21: =IF(AD21="","",ho(BT21,AK21,AX21)) ->  | BV21: =IF(AD21="","",IF(AE21=1,PeriCi(AK21,BB21),PeriTr(AJ21,AN21,BB21))) ->  | BW21: =IF(AD21="","",IF(AE21=1,AreaCi(AK21,BB21),AreaTr(AJ21,AN21,BB21))) ->  | BX21: =IF(AD21="","",RhCi(BW21,BV21)) ->  | BZ21: =IF(AD21="","",hf(AL21,J21,AM21,BW21,BX21)) ->  | CA21: =IF(AD21="","",LOOKUP(AP21,Tab.4.5!$J$6:$J$27,Tab.4.5!$L$6:$L$27)) ->  | CB21: =IF(AD21="","",He(CA21,BY21)) ->  | CC21: =IF(AD21="","",Hs(BY21)) ->  | CD21: =IF(AD21="","",Hm(BU21,BZ21,CB21,CC21,AL21,AO21)) ->  | CZ21: 0 | DA21: 0 | DB21: 0 | DC21: 0 | DD21: 0 | DE21: =IF(CK21="","",IF(CL21=1,YcCi(CR21,J21),YcTr(J21,CQ21,CU21))) ->  | DF21: =IF(CK21="","",IF(CL21=1,Teta1(DE21,CR21),"-")) ->  | DI21: =IF(CK21="","",IF(CL21=1,Ynci(CR21,J21,CT21,CV21),YnTr(1,CT21,CQ21,CU21,CV21,J21))) ->  | DJ21: =IF(CK21="","",IF(CL21=1,Teta1(DI21,CR21),"-")) ->  | DK21: =IF(CK21="","",IF(CL21=1,AreaCi(CR21,J21),AreaTr(CQ21,CU21,DI21))) ->  | DL21: =IF(CK21="","",IF(CL21=1,FrCi(DM21,9.806,DJ21,CR21),FrTr(DM21,9.806,CQ21,CU21,DI21))) ->  | DN21: =IF(CK21="","",IF(CL21=1,LOOKUP(CP21,'Vmáx(material) - Tab.4.3'!$L$2:$L$11,'Vmáx(material) - Tab.4.3'!$M$2:$M$11),LOOKUP(CP21,'Vmáx(material) - Tab.4.3'!$L$15,'Vmáx(material) - Tab.4.3'!$M$15))) ->  | DO21: =IF(CK21="","",VLOOKUP($CO21,'Vmáx(material) - Tab.4.3'!$R$35:$X$41,2)) ->  | DP21: =IF(CK21="","",VLOOKUP($CO21,'Vmáx(material) - Tab.4.3'!$R$35:$X$41,3)) ->  | DQ21: =IF(CK21="","",VLOOKUP($CO21,'Vmáx(material) - Tab.4.3'!$R$35:$X$41,4)) ->  | DR21: =IF(CK21="","",VLOOKUP($CO21,'Vmáx(material) - Tab.4.3'!$R$35:$X$41,5)) ->  | DS21: =IF(CK21="","",VLOOKUP($CO21,'Vmáx(material) - Tab.4.3'!$R$35:$X$41,6)) ->  | DT21: =IF(CK21="","",IF(CK21="","",VLOOKUP(CO21,'Vmáx(material) - Tab.4.3'!$R$35:$X$41,7))) ->  | DU21: =IF(CK21="","",IF(CL21=1,FCi(J21,CR21),FTr(J21,CQ21,CR21))) ->  | DW21: =IF(CK21="","",Hw(DO21,DP21,DQ21,DR21,DS21,DT21,Z,DU21,CV21,CR21)) ->  | EC21: =IF(CK21="","",IF(CL21=1,PeriCi(CR21,DI21),PeriTr(CQ21,CU21,DI21))) ->  | ED21: =IF(CK21="","",IF(CL21=1,AreaCi(CR21,DI21),AreaTr(CQ21,CU21,DI21))) ->  | EE21: =IF(CK21="","",RhCi(DK21,EC21)) ->  | EG21: =IF(CK21="","",hf(CS21,J21,CT21,DK21,EE21)) ->  | EH21: =IF(CK21="","",LOOKUP(CW21,Tab.4.5!$J$6:$J$27,Tab.4.5!$L$6:$L$27)) ->  | EI21: =IF(CK21="","",He(EH21,DM21)) ->  | EJ21: =IF(CK21="","",Hs(DM21)) ->  | EK21: =IF(CK21="","",Hm(EB21,EG21,EI21,EJ21,CS21,CV21)) ->  | ER21: K45+-45000 () | ES21: =IF(B21="Existe.",IF(AE21=1,CONCATENATE(#REF!,AK21," m."),CONCATENATE(#REF!,AJ21," m x ",AK21," m.")),IF(CL21=1,CONCATENATE(#REF!,CR21," m."),CONCATENATE(#REF!,CQ21," m x ",CR21," m."))) ->  | ET21: Concreto, L = m, S = 0 %. | EU21: Cota clave eje= 0 msnm. | FD21: =IF(EV21="","",VLOOKUP(EY21,'Estructura escalonada'!$D$3:$H$953,2)) -> 
L22: =IF(K22="No","",J22) -> 0 | N22: =IF(K22="No","",L22+M22) -> 0 | U22: =IF(K22="No","",IF(O22="",YcCi(P22,N22),YcTr(N22,O22,S22))) ->  | V22: =IF(K22="No","",IF(O22="",Teta1(U22,P22),"-")) ->  | W22: =IF(K22="No","",IF(O22="",(1/8*(V22-SIN(V22))*P22^2),(O22+S22*U22)*U22)) ->  | X22: =IF(W22="","",N22/W22) ->  | Y22: =IF(K22="No","",IF(O22="",Ynci(P22,N22,R22,T22),YnTr(1,R22,O22,S22,T22,N22))) ->  | Z22: =IF(K22="No","",IF(O22="",Teta1(Y22,P22),"-")) ->  | AA22: =IF(K22="No","",IF(O22="",AreaCi(P22,Y22),AreaTr(O22,S22,Y22))) ->  | AB22: =IF(K22="No","",IF(O22="",FrCi(AC22,9.806,Z22,P22),FrTr(AC22,9.806,O22,S22,Y22))) ->  | AC22: =IF(K22="No","",N22/AA22) ->  | AS22: =AQ22-AO22*AL22/2 -> 0 | AT22: =AQ22-AO22*AL22 -> 0 | AU22: =IF(AD22="","",AR22-AS22) ->  | AV22: =IF(AD22="","",1.2*AK22) ->  | AW22: =IF(AD22="","",AK22) ->  | AX22: =IF(AD22="","",IF(AE22=1,YcCi(AK22,J22),YcTr(J22,AJ22,AN22))) ->  | AY22: =IF(AD22="","",IF(AE22=1,Teta1(AX22,AK22),"-")) ->  | AZ22: =IF(AD22="","",IF(AE22=1,AreaCi(AK22,AX22),AreaTr(AJ22,AN22,AX22))) ->  | BA22: =IF(AD22="","",J22/AZ22) ->  | BB22: =IF(AD22="","",IF(AE22=1,Ynci(AK22,J22,AM22,AO22),YnTr(1,AM22,AJ22,AN22,AO22,J22))) ->  | BC22: =IF(AD22="","",IF(AE22=1,Teta1(BB22,AK22),"-")) ->  | BD22: =IF(AD22="","",IF(AE22=1,AreaCi(AK22,BB22),AreaTr(AJ22,AN22,BB22))) ->  | BE22: =IF(AD22="","",IF(AE22=1,FrCi(BF22,9.806,BC22,AK22),FrTr(BF22,9.806,AJ22,AN22,BB22))) ->  | BF22: =IF(AD22="","",J22/BD22) ->  | BG22: =IF(AD22="","",IF(AE22=1,LOOKUP(AI22,'Vmáx(material) - Tab.4.3'!$L$2:$L$11,'Vmáx(material) - Tab.4.3'!$M$2:$M$11),LOOKUP(AI22,'Vmáx(material) - Tab.4.3'!$L$15,'Vmáx(material) - Tab.4.3'!$M$15))) ->  | BH22: =IF(AD22="","",VLOOKUP($AH22,'Vmáx(material) - Tab.4.3'!$R$35:$X$41,2)) ->  | BI22: =IF(AD22="","",VLOOKUP($AH22,'Vmáx(material) - Tab.4.3'!$R$35:$X$41,3)) ->  | BJ22: =IF(AD22="","",VLOOKUP($AH22,'Vmáx(material) - Tab.4.3'!$R$35:$X$41,4)) ->  | BK22: =IF(AD22="","",VLOOKUP($AH22,'Vmáx(material) - Tab.4.3'!$R$35:$X$41,5)) ->  | BL22: =IF(AD22="","",VLOOKUP($AH22,'Vmáx(material) - Tab.4.3'!$R$35:$X$41,6)) ->  | BM22: =IF(AD22="","",IF(AD22="","",VLOOKUP($AH22,'Vmáx(material) - Tab.4.3'!$R$35:$X$41,7))) ->  | BN22: =IF(AD22="","",IF(AE22=1,FCi(J22,AK22),FTr(J22,AJ22,AK22))) ->  | BO22: =IF(AD22="","",IF(BB22="Q > Qmax","Insuficiencia hidráulica.", IF(ABS(AX22-BB22)<=0.0001,"Crítico",IF(AX22>BB22,"Supercrítico","Subcrítico")))) ->  | BP22: =IF(AD22="","",Hw(BH22,BI22,BJ22,BK22,BL22,BM22,Z,BN22,AO22,AK22)) ->  | BQ22: =IF(AD22="","",BP22/AK22) ->  | BR22: =IF(AD22="","",IF(AE22=1,0.438*AK22*SQRT(9.806)*AV22^1.5/AK22^0.4,2/3*0.9*AJ22*AV22*SQRT(2/3*9.806*AV22))*AD22) ->  | BS22: =IF(AD22="","",IF(BQ22<1.2,"Cumple","No Cumple")) ->  | BT22: =IF(AD22="","",IF(K22="No",0,Y22)) ->  | BU22: =IF(AD22="","",ho(BT22,AK22,AX22)) ->  | BV22: =IF(AD22="","",IF(AE22=1,PeriCi(AK22,BB22),PeriTr(AJ22,AN22,BB22))) ->  | BW22: =IF(AD22="","",IF(AE22=1,AreaCi(AK22,BB22),AreaTr(AJ22,AN22,BB22))) ->  | BX22: =IF(AD22="","",RhCi(BW22,BV22)) ->  | BY22: =IF(AD22="","",J22/BW22) ->  | BZ22: =IF(AD22="","",hf(AL22,J22,AM22,BW22,BX22)) ->  | CA22: =IF(AD22="","",LOOKUP(AP22,Tab.4.5!$J$6:$J$27,Tab.4.5!$L$6:$L$27)) ->  | CB22: =IF(AD22="","",He(CA22,BY22)) ->  | CC22: =IF(AD22="","",Hs(BY22)) ->  | CD22: =IF(AD22="","",Hm(BU22,BZ22,CB22,CC22,AL22,AO22)) ->  | CE22: =IF(AD22="","",CD22/AK22) ->  | CF22: =IF(AD22="","",IF(AE22=1,0.438*AK22*SQRT(9.806)*AV22^1.5/AK22^0.4,2/3*0.9*AJ22*AV22*SQRT(2/3*9.806*AV22))*AD22) ->  | CG22: =IF(AD22="","",IF(CE22<1.2,"Cumple","No Cumple")) ->  | CH22: =IF(AD22="","",IF(BT22="","",IF(BO22="Supercrítico","Funciona con control a la entrada.","Funciona con control a la salida"))) ->  | CI22: =IF(AD22="","",IF(BT22="","",IF(BO22="Supercrítico",IF(BT22>BB22,"Se presenta resalto hidráulico cerca de la salida.",""),""))) ->  | CJ22: =IF(AD22="","",IF(BS22="No Cumple","Reemplazar.",IF(B22="Nueva","Se requiere obra nueva.","Conservar y realizar labores de limpieza y mantenimiento."))) ->  | CZ22: =CX22-CV22*CS22/2 -> 0 | DA22: =CX22-CV22*CS22 -> 0 | DB22: =CY22-CZ22 -> 0 | DC22: =1.2*CR22 -> 0 | DD22: =CR22 -> 0 | DE22: =IF(CK22="","",IF(CL22=1,YcCi(CR22,J22),YcTr(J22,CQ22,CU22))) ->  | DF22: =IF(CK22="","",IF(CL22=1,Teta1(DE22,CR22),"-")) ->  | DG22: =IF(CK22="","",IF(CL22=1,1/8*(DF22-SIN(DF22))*CR22^2,(CQ22+CU22*DE22)*DE22)) ->  | DH22: =IF(CK22="","",J22/DG22) ->  | DI22: =IF(CK22="","",IF(CL22=1,Ynci(CR22,J22,CT22,CV22),YnTr(1,CT22,CQ22,CU22,CV22,J22))) ->  | DJ22: =IF(CK22="","",IF(CL22=1,Teta1(DI22,CR22),"-")) ->  | DK22: =IF(CK22="","",IF(CL22=1,AreaCi(CR22,J22),AreaTr(CQ22,CU22,DI22))) ->  | DL22: =IF(CK22="","",IF(CL22=1,FrCi(DM22,9.806,DJ22,CR22),FrTr(DM22,9.806,CQ22,CU22,DI22))) ->  | DM22: =IF(CK22="","",J22/DK22) ->  | DN22: =IF(CK22="","",IF(CL22=1,LOOKUP(CP22,'Vmáx(material) - Tab.4.3'!$L$2:$L$11,'Vmáx(material) - Tab.4.3'!$M$2:$M$11),LOOKUP(CP22,'Vmáx(material) - Tab.4.3'!$L$15,'Vmáx(material) - Tab.4.3'!$M$15))) ->  | DO22: =IF(CK22="","",VLOOKUP($CO22,'Vmáx(material) - Tab.4.3'!$R$35:$X$41,2)) ->  | DP22: =IF(CK22="","",VLOOKUP($CO22,'Vmáx(material) - Tab.4.3'!$R$35:$X$41,3)) ->  | DQ22: =IF(CK22="","",VLOOKUP($CO22,'Vmáx(material) - Tab.4.3'!$R$35:$X$41,4)) ->  | DR22: =IF(CK22="","",VLOOKUP($CO22,'Vmáx(material) - Tab.4.3'!$R$35:$X$41,5)) ->  | DS22: =IF(CK22="","",VLOOKUP($CO22,'Vmáx(material) - Tab.4.3'!$R$35:$X$41,6)) ->  | DT22: =IF(CK22="","",IF(CK22="","",VLOOKUP(CO22,'Vmáx(material) - Tab.4.3'!$R$35:$X$41,7))) ->  | DU22: =IF(CK22="","",IF(CL22=1,FCi(J22,CR22),FTr(J22,CQ22,CR22))) ->  | DV22: =IF(CK22="","",IF(DI22="Q > Qmax","Insuficiencia hidráulica.",IF(ABS(DE22-DI22)<=0.0001,"Crítico",IF(DE22>DI22,"Supercrítico","Subcrítico")))) ->  | DW22: =IF(CK22="","",Hw(DO22,DP22,DQ22,DR22,DS22,DT22,Z,DU22,CV22,CR22)) ->  | DX22: =IF(CK22="","",DW22/CR22) ->  | DY22: =IF(CK22="","",IF(CL22=1,0.438*CR22*SQRT(9.806)*DC22^1.5/CR22^0.4,2/3*0.9*CQ22*DC22*SQRT(2/3*9.806*DC22))*CK22) ->  | DZ22: =IF(CK22="","",IF(DX22<1.2,"Cumple","No Cumple")) ->  | EA22: =IF(CK22="","",IF(K22="No",0,Y22)) ->  | EB22: =IF(CK22="","",MAX(EA22,(CR22+DE22)/2)) ->  | EC22: =IF(CK22="","",IF(CL22=1,PeriCi(CR22,DI22),PeriTr(CQ22,CU22,DI22))) ->  | ED22: =IF(CK22="","",IF(CL22=1,AreaCi(CR22,DI22),AreaTr(CQ22,CU22,DI22))) ->  | EE22: =IF(CK22="","",RhCi(DK22,EC22)) ->  | EF22: =IF(CK22="","",AVERAGE(AC22,J22/ED22)) ->  | EG22: =IF(CK22="","",hf(CS22,J22,CT22,DK22,EE22)) ->  | EH22: =IF(CK22="","",LOOKUP(CW22,Tab.4.5!$J$6:$J$27,Tab.4.5!$L$6:$L$27)) ->  | EI22: =IF(CK22="","",He(EH22,DM22)) ->  | EJ22: =IF(CK22="","",Hs(DM22)) ->  | EK22: =IF(CK22="","",Hm(EB22,EG22,EI22,EJ22,CS22,CV22)) ->  | EL22: =IF(CK22="","",EK22/CR22) ->  | EM22: =IF(CK22="","",IF(CL22=1,0.438*CR22*SQRT(9.806)*DC22^1.5/CR22^0.4,2/3*0.9*CQ22*DC22*SQRT(2/3*9.806*DC22))*CK22) ->  | EN22: =IF(EL22="","",IF(EL22<1.2,"Cumple","No Cumple")) ->  | EO22: =IF(CK22="","",IF(EA22="","",IF(DV22="Supercrítico","Funciona con control a la entrada.","Funciona con control a la salida"))) ->  | EP22: =IF(CK22="","",IF(EA22="","",IF(DV22="Supercrítico",IF(EA22>DI22,"Se presenta resalto hidráulico cerca de la salida.",""),""))) ->  | EQ22: =IF(CK22="","",ES22) ->  | ER22: =CONCATENATE("K45+",D22-45000, " (",A22,")"," ",B22) -> K45+-45000 () | ES22: =IF(B22="Existe.",IF(AE22=1,CONCATENATE(#REF!,AK22," m."),CONCATENATE(#REF!,AJ22," m x ",AK22," m.")),IF(CL22=1,CONCATENATE(#REF!,CR22," m."),CONCATENATE(#REF!,CQ22," m x ",CR22," m."))) ->  | ET22: =IF(AI22=2,CONCATENATE("Concreto, L = ",AL22," m, S = ",AO22*100," %."),CONCATENATE("Concreto, L = ",CS22," m, S = ",CV22*100," %.")) -> Concreto, L = m, S = 0 %. | EU22: =IF(B22="Existe.","",CONCATENATE("Cota clave eje= ",CZ22," msnm.")) -> Cota clave eje= 0 msnm. | EY22: =IF(EV22="","",N22) ->  | EZ22: =IF(EV22="","",EW22/EX22) ->  | FA22: =IF(EV22="","",ATAN(EZ22)*(180/PI())) ->  | FB22: =IF(EV22="","",EX22*(SIN(FA22*PI()/180))) ->  | FC22: =IF(EV22="","",(EW22^2+EX22^2)^0.5) ->  | FD22: =IF(EV22="","",VLOOKUP(EY22,'Estructura escalonada'!$D$3:$H$953,2)) ->  | FE22: =IF(EV22="","",EV22*FD22) ->  | FF22: =IF(EV22="","",(2*FD22+EV22)) ->  | FG22: =IF(EV22="","",FE22/FF22) ->  | FH22: =IF(EV22="","",18*LOG10(6*FG22/(FB22/2))) ->  | FI22: =IF(EV22="","",FH22*(FG22*EZ22)^0.5) ->  | FJ22: =IF(EV22="","",IF(FD22+0.15<0.5,0.5,IF(FD22+0.15<1,1,"Amplíe el ancho B"))) -> 
L23: 0 | N23: 0 | U23: =IF(K23="No","",IF(O23="",YcCi(P23,N23),YcTr(N23,O23,S23))) ->  | V23: =IF(K23="No","",IF(O23="",Teta1(U23,P23),"-")) ->  | Y23: =IF(K23="No","",IF(O23="",Ynci(P23,N23,R23,T23),YnTr(1,R23,O23,S23,T23,N23))) ->  | Z23: =IF(K23="No","",IF(O23="",Teta1(Y23,P23),"-")) ->  | AA23: =IF(K23="No","",IF(O23="",AreaCi(P23,Y23),AreaTr(O23,S23,Y23))) ->  | AB23: =IF(K23="No","",IF(O23="",FrCi(AC23,9.806,Z23,P23),FrTr(AC23,9.806,O23,S23,Y23))) ->  | AS23: 0 | AT23: 0 | AX23: =IF(AD23="","",IF(AE23=1,YcCi(AK23,J23),YcTr(J23,AJ23,AN23))) ->  | AY23: =IF(AD23="","",IF(AE23=1,Teta1(AX23,AK23),"-")) ->  | AZ23: =IF(AD23="","",IF(AE23=1,AreaCi(AK23,AX23),AreaTr(AJ23,AN23,AX23))) ->  | BB23: =IF(AD23="","",IF(AE23=1,Ynci(AK23,J23,AM23,AO23),YnTr(1,AM23,AJ23,AN23,AO23,J23))) ->  | BC23: =IF(AD23="","",IF(AE23=1,Teta1(BB23,AK23),"-")) ->  | BD23: =IF(AD23="","",IF(AE23=1,AreaCi(AK23,BB23),AreaTr(AJ23,AN23,BB23))) ->  | BE23: =IF(AD23="","",IF(AE23=1,FrCi(BF23,9.806,BC23,AK23),FrTr(BF23,9.806,AJ23,AN23,BB23))) ->  | BG23: =IF(AD23="","",IF(AE23=1,LOOKUP(AI23,'Vmáx(material) - Tab.4.3'!$L$2:$L$11,'Vmáx(material) - Tab.4.3'!$M$2:$M$11),LOOKUP(AI23,'Vmáx(material) - Tab.4.3'!$L$15,'Vmáx(material) - Tab.4.3'!$M$15))) ->  | BH23: =IF(AD23="","",VLOOKUP($AH23,'Vmáx(material) - Tab.4.3'!$R$35:$X$41,2)) ->  | BI23: =IF(AD23="","",VLOOKUP($AH23,'Vmáx(material) - Tab.4.3'!$R$35:$X$41,3)) ->  | BJ23: =IF(AD23="","",VLOOKUP($AH23,'Vmáx(material) - Tab.4.3'!$R$35:$X$41,4)) ->  | BK23: =IF(AD23="","",VLOOKUP($AH23,'Vmáx(material) - Tab.4.3'!$R$35:$X$41,5)) ->  | BL23: =IF(AD23="","",VLOOKUP($AH23,'Vmáx(material) - Tab.4.3'!$R$35:$X$41,6)) ->  | BM23: =IF(AD23="","",IF(AD23="","",VLOOKUP($AH23,'Vmáx(material) - Tab.4.3'!$R$35:$X$41,7))) ->  | BN23: =IF(AD23="","",IF(AE23=1,FCi(J23,AK23),FTr(J23,AJ23,AK23))) ->  | BP23: =IF(AD23="","",Hw(BH23,BI23,BJ23,BK23,BL23,BM23,Z,BN23,AO23,AK23)) ->  | BU23: =IF(AD23="","",ho(BT23,AK23,AX23)) ->  | BV23: =IF(AD23="","",IF(AE23=1,PeriCi(AK23,BB23),PeriTr(AJ23,AN23,BB23))) ->  | BW23: =IF(AD23="","",IF(AE23=1,AreaCi(AK23,BB23),AreaTr(AJ23,AN23,BB23))) ->  | BX23: =IF(AD23="","",RhCi(BW23,BV23)) ->  | BZ23: =IF(AD23="","",hf(AL23,J23,AM23,BW23,BX23)) ->  | CA23: =IF(AD23="","",LOOKUP(AP23,Tab.4.5!$J$6:$J$27,Tab.4.5!$L$6:$L$27)) ->  | CB23: =IF(AD23="","",He(CA23,BY23)) ->  | CC23: =IF(AD23="","",Hs(BY23)) ->  | CD23: =IF(AD23="","",Hm(BU23,BZ23,CB23,CC23,AL23,AO23)) ->  | CZ23: 0 | DA23: 0 | DB23: 0 | DC23: 0 | DD23: 0 | DE23: =IF(CK23="","",IF(CL23=1,YcCi(CR23,J23),YcTr(J23,CQ23,CU23))) ->  | DF23: =IF(CK23="","",IF(CL23=1,Teta1(DE23,CR23),"-")) ->  | DI23: =IF(CK23="","",IF(CL23=1,Ynci(CR23,J23,CT23,CV23),YnTr(1,CT23,CQ23,CU23,CV23,J23))) ->  | DJ23: =IF(CK23="","",IF(CL23=1,Teta1(DI23,CR23),"-")) ->  | DK23: =IF(CK23="","",IF(CL23=1,AreaCi(CR23,J23),AreaTr(CQ23,CU23,DI23))) ->  | DL23: =IF(CK23="","",IF(CL23=1,FrCi(DM23,9.806,DJ23,CR23),FrTr(DM23,9.806,CQ23,CU23,DI23))) ->  | DN23: =IF(CK23="","",IF(CL23=1,LOOKUP(CP23,'Vmáx(material) - Tab.4.3'!$L$2:$L$11,'Vmáx(material) - Tab.4.3'!$M$2:$M$11),LOOKUP(CP23,'Vmáx(material) - Tab.4.3'!$L$15,'Vmáx(material) - Tab.4.3'!$M$15))) ->  | DO23: =IF(CK23="","",VLOOKUP($CO23,'Vmáx(material) - Tab.4.3'!$R$35:$X$41,2)) ->  | DP23: =IF(CK23="","",VLOOKUP($CO23,'Vmáx(material) - Tab.4.3'!$R$35:$X$41,3)) ->  | DQ23: =IF(CK23="","",VLOOKUP($CO23,'Vmáx(material) - Tab.4.3'!$R$35:$X$41,4)) ->  | DR23: =IF(CK23="","",VLOOKUP($CO23,'Vmáx(material) - Tab.4.3'!$R$35:$X$41,5)) ->  | DS23: =IF(CK23="","",VLOOKUP($CO23,'Vmáx(material) - Tab.4.3'!$R$35:$X$41,6)) ->  | DT23: =IF(CK23="","",IF(CK23="","",VLOOKUP(CO23,'Vmáx(material) - Tab.4.3'!$R$35:$X$41,7))) ->  | DU23: =IF(CK23="","",IF(CL23=1,FCi(J23,CR23),FTr(J23,CQ23,CR23))) ->  | DW23: =IF(CK23="","",Hw(DO23,DP23,DQ23,DR23,DS23,DT23,Z,DU23,CV23,CR23)) ->  | EC23: =IF(CK23="","",IF(CL23=1,PeriCi(CR23,DI23),PeriTr(CQ23,CU23,DI23))) ->  | ED23: =IF(CK23="","",IF(CL23=1,AreaCi(CR23,DI23),AreaTr(CQ23,CU23,DI23))) ->  | EE23: =IF(CK23="","",RhCi(DK23,EC23)) ->  | EG23: =IF(CK23="","",hf(CS23,J23,CT23,DK23,EE23)) ->  | EH23: =IF(CK23="","",LOOKUP(CW23,Tab.4.5!$J$6:$J$27,Tab.4.5!$L$6:$L$27)) ->  | EI23: =IF(CK23="","",He(EH23,DM23)) ->  | EJ23: =IF(CK23="","",Hs(DM23)) ->  | EK23: =IF(CK23="","",Hm(EB23,EG23,EI23,EJ23,CS23,CV23)) ->  | ER23: K45+-45000 () | ES23: =IF(B23="Existe.",IF(AE23=1,CONCATENATE(#REF!,AK23," m."),CONCATENATE(#REF!,AJ23," m x ",AK23," m.")),IF(CL23=1,CONCATENATE(#REF!,CR23," m."),CONCATENATE(#REF!,CQ23," m x ",CR23," m."))) ->  | ET23: Concreto, L = m, S = 0 %. | EU23: Cota clave eje= 0 msnm. | FD23: =IF(EV23="","",VLOOKUP(EY23,'Estructura escalonada'!$D$3:$H$953,2)) -> 
L24: 0 | N24: 0 | U24: =IF(K24="No","",IF(O24="",YcCi(P24,N24),YcTr(N24,O24,S24))) ->  | V24: =IF(K24="No","",IF(O24="",Teta1(U24,P24),"-")) ->  | Y24: =IF(K24="No","",IF(O24="",Ynci(P24,N24,R24,T24),YnTr(1,R24,O24,S24,T24,N24))) ->  | Z24: =IF(K24="No","",IF(O24="",Teta1(Y24,P24),"-")) ->  | AA24: =IF(K24="No","",IF(O24="",AreaCi(P24,Y24),AreaTr(O24,S24,Y24))) ->  | AB24: =IF(K24="No","",IF(O24="",FrCi(AC24,9.806,Z24,P24),FrTr(AC24,9.806,O24,S24,Y24))) ->  | AS24: 0 | AT24: 0 | AX24: =IF(AD24="","",IF(AE24=1,YcCi(AK24,J24),YcTr(J24,AJ24,AN24))) ->  | AY24: =IF(AD24="","",IF(AE24=1,Teta1(AX24,AK24),"-")) ->  | AZ24: =IF(AD24="","",IF(AE24=1,AreaCi(AK24,AX24),AreaTr(AJ24,AN24,AX24))) ->  | BB24: =IF(AD24="","",IF(AE24=1,Ynci(AK24,J24,AM24,AO24),YnTr(1,AM24,AJ24,AN24,AO24,J24))) ->  | BC24: =IF(AD24="","",IF(AE24=1,Teta1(BB24,AK24),"-")) ->  | BD24: =IF(AD24="","",IF(AE24=1,AreaCi(AK24,BB24),AreaTr(AJ24,AN24,BB24))) ->  | BE24: =IF(AD24="","",IF(AE24=1,FrCi(BF24,9.806,BC24,AK24),FrTr(BF24,9.806,AJ24,AN24,BB24))) ->  | BG24: =IF(AD24="","",IF(AE24=1,LOOKUP(AI24,'Vmáx(material) - Tab.4.3'!$L$2:$L$11,'Vmáx(material) - Tab.4.3'!$M$2:$M$11),LOOKUP(AI24,'Vmáx(material) - Tab.4.3'!$L$15,'Vmáx(material) - Tab.4.3'!$M$15))) ->  | BH24: =IF(AD24="","",VLOOKUP($AH24,'Vmáx(material) - Tab.4.3'!$R$35:$X$41,2)) ->  | BI24: =IF(AD24="","",VLOOKUP($AH24,'Vmáx(material) - Tab.4.3'!$R$35:$X$41,3)) ->  | BJ24: =IF(AD24="","",VLOOKUP($AH24,'Vmáx(material) - Tab.4.3'!$R$35:$X$41,4)) ->  | BK24: =IF(AD24="","",VLOOKUP($AH24,'Vmáx(material) - Tab.4.3'!$R$35:$X$41,5)) ->  | BL24: =IF(AD24="","",VLOOKUP($AH24,'Vmáx(material) - Tab.4.3'!$R$35:$X$41,6)) ->  | BM24: =IF(AD24="","",IF(AD24="","",VLOOKUP($AH24,'Vmáx(material) - Tab.4.3'!$R$35:$X$41,7))) ->  | BN24: =IF(AD24="","",IF(AE24=1,FCi(J24,AK24),FTr(J24,AJ24,AK24))) ->  | BP24: =IF(AD24="","",Hw(BH24,BI24,BJ24,BK24,BL24,BM24,Z,BN24,AO24,AK24)) ->  | BU24: =IF(AD24="","",ho(BT24,AK24,AX24)) ->  | BV24: =IF(AD24="","",IF(AE24=1,PeriCi(AK24,BB24),PeriTr(AJ24,AN24,BB24))) ->  | BW24: =IF(AD24="","",IF(AE24=1,AreaCi(AK24,BB24),AreaTr(AJ24,AN24,BB24))) ->  | BX24: =IF(AD24="","",RhCi(BW24,BV24)) ->  | BZ24: =IF(AD24="","",hf(AL24,J24,AM24,BW24,BX24)) ->  | CA24: =IF(AD24="","",LOOKUP(AP24,Tab.4.5!$J$6:$J$27,Tab.4.5!$L$6:$L$27)) ->  | CB24: =IF(AD24="","",He(CA24,BY24)) ->  | CC24: =IF(AD24="","",Hs(BY24)) ->  | CD24: =IF(AD24="","",Hm(BU24,BZ24,CB24,CC24,AL24,AO24)) ->  | CZ24: 0 | DA24: 0 | DB24: 0 | DC24: 0 | DD24: 0 | DE24: =IF(CK24="","",IF(CL24=1,YcCi(CR24,J24),YcTr(J24,CQ24,CU24))) ->  | DF24: =IF(CK24="","",IF(CL24=1,Teta1(DE24,CR24),"-")) ->  | DI24: =IF(CK24="","",IF(CL24=1,Ynci(CR24,J24,CT24,CV24),YnTr(1,CT24,CQ24,CU24,CV24,J24))) ->  | DJ24: =IF(CK24="","",IF(CL24=1,Teta1(DI24,CR24),"-")) ->  | DK24: =IF(CK24="","",IF(CL24=1,AreaCi(CR24,J24),AreaTr(CQ24,CU24,DI24))) ->  | DL24: =IF(CK24="","",IF(CL24=1,FrCi(DM24,9.806,DJ24,CR24),FrTr(DM24,9.806,CQ24,CU24,DI24))) ->  | DN24: =IF(CK24="","",IF(CL24=1,LOOKUP(CP24,'Vmáx(material) - Tab.4.3'!$L$2:$L$11,'Vmáx(material) - Tab.4.3'!$M$2:$M$11),LOOKUP(CP24,'Vmáx(material) - Tab.4.3'!$L$15,'Vmáx(material) - Tab.4.3'!$M$15))) ->  | DO24: =IF(CK24="","",VLOOKUP($CO24,'Vmáx(material) - Tab.4.3'!$R$35:$X$41,2)) ->  | DP24: =IF(CK24="","",VLOOKUP($CO24,'Vmáx(material) - Tab.4.3'!$R$35:$X$41,3)) ->  | DQ24: =IF(CK24="","",VLOOKUP($CO24,'Vmáx(material) - Tab.4.3'!$R$35:$X$41,4)) ->  | DR24: =IF(CK24="","",VLOOKUP($CO24,'Vmáx(material) - Tab.4.3'!$R$35:$X$41,5)) ->  | DS24: =IF(CK24="","",VLOOKUP($CO24,'Vmáx(material) - Tab.4.3'!$R$35:$X$41,6)) ->  | DT24: =IF(CK24="","",IF(CK24="","",VLOOKUP(CO24,'Vmáx(material) - Tab.4.3'!$R$35:$X$41,7))) ->  | DU24: =IF(CK24="","",IF(CL24=1,FCi(J24,CR24),FTr(J24,CQ24,CR24))) ->  | DW24: =IF(CK24="","",Hw(DO24,DP24,DQ24,DR24,DS24,DT24,Z,DU24,CV24,CR24)) ->  | EC24: =IF(CK24="","",IF(CL24=1,PeriCi(CR24,DI24),PeriTr(CQ24,CU24,DI24))) ->  | ED24: =IF(CK24="","",IF(CL24=1,AreaCi(CR24,DI24),AreaTr(CQ24,CU24,DI24))) ->  | EE24: =IF(CK24="","",RhCi(DK24,EC24)) ->  | EG24: =IF(CK24="","",hf(CS24,J24,CT24,DK24,EE24)) ->  | EH24: =IF(CK24="","",LOOKUP(CW24,Tab.4.5!$J$6:$J$27,Tab.4.5!$L$6:$L$27)) ->  | EI24: =IF(CK24="","",He(EH24,DM24)) ->  | EJ24: =IF(CK24="","",Hs(DM24)) ->  | EK24: =IF(CK24="","",Hm(EB24,EG24,EI24,EJ24,CS24,CV24)) ->  | ER24: K45+-45000 () | ES24: =IF(B24="Existe.",IF(AE24=1,CONCATENATE(#REF!,AK24," m."),CONCATENATE(#REF!,AJ24," m x ",AK24," m.")),IF(CL24=1,CONCATENATE(#REF!,CR24," m."),CONCATENATE(#REF!,CQ24," m x ",CR24," m."))) ->  | ET24: Concreto, L = m, S = 0 %. | EU24: Cota clave eje= 0 msnm. | FD24: =IF(EV24="","",VLOOKUP(EY24,'Estructura escalonada'!$D$3:$H$953,2)) -> 
L25: 0 | N25: 0 | U25: =IF(K25="No","",IF(O25="",YcCi(P25,N25),YcTr(N25,O25,S25))) ->  | V25: =IF(K25="No","",IF(O25="",Teta1(U25,P25),"-")) ->  | Y25: =IF(K25="No","",IF(O25="",Ynci(P25,N25,R25,T25),YnTr(1,R25,O25,S25,T25,N25))) ->  | Z25: =IF(K25="No","",IF(O25="",Teta1(Y25,P25),"-")) ->  | AA25: =IF(K25="No","",IF(O25="",AreaCi(P25,Y25),AreaTr(O25,S25,Y25))) ->  | AB25: =IF(K25="No","",IF(O25="",FrCi(AC25,9.806,Z25,P25),FrTr(AC25,9.806,O25,S25,Y25))) ->  | AS25: 0 | AT25: 0 | AX25: =IF(AD25="","",IF(AE25=1,YcCi(AK25,J25),YcTr(J25,AJ25,AN25))) ->  | AY25: =IF(AD25="","",IF(AE25=1,Teta1(AX25,AK25),"-")) ->  | AZ25: =IF(AD25="","",IF(AE25=1,AreaCi(AK25,AX25),AreaTr(AJ25,AN25,AX25))) ->  | BB25: =IF(AD25="","",IF(AE25=1,Ynci(AK25,J25,AM25,AO25),YnTr(1,AM25,AJ25,AN25,AO25,J25))) ->  | BC25: =IF(AD25="","",IF(AE25=1,Teta1(BB25,AK25),"-")) ->  | BD25: =IF(AD25="","",IF(AE25=1,AreaCi(AK25,BB25),AreaTr(AJ25,AN25,BB25))) ->  | BE25: =IF(AD25="","",IF(AE25=1,FrCi(BF25,9.806,BC25,AK25),FrTr(BF25,9.806,AJ25,AN25,BB25))) ->  | BG25: =IF(AD25="","",IF(AE25=1,LOOKUP(AI25,'Vmáx(material) - Tab.4.3'!$L$2:$L$11,'Vmáx(material) - Tab.4.3'!$M$2:$M$11),LOOKUP(AI25,'Vmáx(material) - Tab.4.3'!$L$15,'Vmáx(material) - Tab.4.3'!$M$15))) ->  | BH25: =IF(AD25="","",VLOOKUP($AH25,'Vmáx(material) - Tab.4.3'!$R$35:$X$41,2)) ->  | BI25: =IF(AD25="","",VLOOKUP($AH25,'Vmáx(material) - Tab.4.3'!$R$35:$X$41,3)) ->  | BJ25: =IF(AD25="","",VLOOKUP($AH25,'Vmáx(material) - Tab.4.3'!$R$35:$X$41,4)) ->  | BK25: =IF(AD25="","",VLOOKUP($AH25,'Vmáx(material) - Tab.4.3'!$R$35:$X$41,5)) ->  | BL25: =IF(AD25="","",VLOOKUP($AH25,'Vmáx(material) - Tab.4.3'!$R$35:$X$41,6)) ->  | BM25: =IF(AD25="","",IF(AD25="","",VLOOKUP($AH25,'Vmáx(material) - Tab.4.3'!$R$35:$X$41,7))) ->  | BN25: =IF(AD25="","",IF(AE25=1,FCi(J25,AK25),FTr(J25,AJ25,AK25))) ->  | BP25: =IF(AD25="","",Hw(BH25,BI25,BJ25,BK25,BL25,BM25,Z,BN25,AO25,AK25)) ->  | BU25: =IF(AD25="","",ho(BT25,AK25,AX25)) ->  | BV25: =IF(AD25="","",IF(AE25=1,PeriCi(AK25,BB25),PeriTr(AJ25,AN25,BB25))) ->  | BW25: =IF(AD25="","",IF(AE25=1,AreaCi(AK25,BB25),AreaTr(AJ25,AN25,BB25))) ->  | BX25: =IF(AD25="","",RhCi(BW25,BV25)) ->  | BZ25: =IF(AD25="","",hf(AL25,J25,AM25,BW25,BX25)) ->  | CA25: =IF(AD25="","",LOOKUP(AP25,Tab.4.5!$J$6:$J$27,Tab.4.5!$L$6:$L$27)) ->  | CB25: =IF(AD25="","",He(CA25,BY25)) ->  | CC25: =IF(AD25="","",Hs(BY25)) ->  | CD25: =IF(AD25="","",Hm(BU25,BZ25,CB25,CC25,AL25,AO25)) ->  | CZ25: 0 | DA25: 0 | DB25: 0 | DC25: 0 | DD25: 0 | DE25: =IF(CK25="","",IF(CL25=1,YcCi(CR25,J25),YcTr(J25,CQ25,CU25))) ->  | DF25: =IF(CK25="","",IF(CL25=1,Teta1(DE25,CR25),"-")) ->  | DI25: =IF(CK25="","",IF(CL25=1,Ynci(CR25,J25,CT25,CV25),YnTr(1,CT25,CQ25,CU25,CV25,J25))) ->  | DJ25: =IF(CK25="","",IF(CL25=1,Teta1(DI25,CR25),"-")) ->  | DK25: =IF(CK25="","",IF(CL25=1,AreaCi(CR25,J25),AreaTr(CQ25,CU25,DI25))) ->  | DL25: =IF(CK25="","",IF(CL25=1,FrCi(DM25,9.806,DJ25,CR25),FrTr(DM25,9.806,CQ25,CU25,DI25))) ->  | DN25: =IF(CK25="","",IF(CL25=1,LOOKUP(CP25,'Vmáx(material) - Tab.4.3'!$L$2:$L$11,'Vmáx(material) - Tab.4.3'!$M$2:$M$11),LOOKUP(CP25,'Vmáx(material) - Tab.4.3'!$L$15,'Vmáx(material) - Tab.4.3'!$M$15))) ->  | DO25: =IF(CK25="","",VLOOKUP($CO25,'Vmáx(material) - Tab.4.3'!$R$35:$X$41,2)) ->  | DP25: =IF(CK25="","",VLOOKUP($CO25,'Vmáx(material) - Tab.4.3'!$R$35:$X$41,3)) ->  | DQ25: =IF(CK25="","",VLOOKUP($CO25,'Vmáx(material) - Tab.4.3'!$R$35:$X$41,4)) ->  | DR25: =IF(CK25="","",VLOOKUP($CO25,'Vmáx(material) - Tab.4.3'!$R$35:$X$41,5)) ->  | DS25: =IF(CK25="","",VLOOKUP($CO25,'Vmáx(material) - Tab.4.3'!$R$35:$X$41,6)) ->  | DT25: =IF(CK25="","",IF(CK25="","",VLOOKUP(CO25,'Vmáx(material) - Tab.4.3'!$R$35:$X$41,7))) ->  | DU25: =IF(CK25="","",IF(CL25=1,FCi(J25,CR25),FTr(J25,CQ25,CR25))) ->  | DW25: =IF(CK25="","",Hw(DO25,DP25,DQ25,DR25,DS25,DT25,Z,DU25,CV25,CR25)) ->  | EC25: =IF(CK25="","",IF(CL25=1,PeriCi(CR25,DI25),PeriTr(CQ25,CU25,DI25))) ->  | ED25: =IF(CK25="","",IF(CL25=1,AreaCi(CR25,DI25),AreaTr(CQ25,CU25,DI25))) ->  | EE25: =IF(CK25="","",RhCi(DK25,EC25)) ->  | EG25: =IF(CK25="","",hf(CS25,J25,CT25,DK25,EE25)) ->  | EH25: =IF(CK25="","",LOOKUP(CW25,Tab.4.5!$J$6:$J$27,Tab.4.5!$L$6:$L$27)) ->  | EI25: =IF(CK25="","",He(EH25,DM25)) ->  | EJ25: =IF(CK25="","",Hs(DM25)) ->  | EK25: =IF(CK25="","",Hm(EB25,EG25,EI25,EJ25,CS25,CV25)) ->  | ER25: K45+-45000 () | ES25: =IF(B25="Existe.",IF(AE25=1,CONCATENATE(#REF!,AK25," m."),CONCATENATE(#REF!,AJ25," m x ",AK25," m.")),IF(CL25=1,CONCATENATE(#REF!,CR25," m."),CONCATENATE(#REF!,CQ25," m x ",CR25," m."))) ->  | ET25: Concreto, L = m, S = 0 %. | EU25: Cota clave eje= 0 msnm. | FD25: =IF(EV25="","",VLOOKUP(EY25,'Estructura escalonada'!$D$3:$H$953,2)) -> 
L26: 0 | N26: 0 | U26: =IF(K26="No","",IF(O26="",YcCi(P26,N26),YcTr(N26,O26,S26))) ->  | V26: =IF(K26="No","",IF(O26="",Teta1(U26,P26),"-")) ->  | Y26: =IF(K26="No","",IF(O26="",Ynci(P26,N26,R26,T26),YnTr(1,R26,O26,S26,T26,N26))) ->  | Z26: =IF(K26="No","",IF(O26="",Teta1(Y26,P26),"-")) ->  | AA26: =IF(K26="No","",IF(O26="",AreaCi(P26,Y26),AreaTr(O26,S26,Y26))) ->  | AB26: =IF(K26="No","",IF(O26="",FrCi(AC26,9.806,Z26,P26),FrTr(AC26,9.806,O26,S26,Y26))) ->  | AS26: 0 | AT26: 0 | AX26: =IF(AD26="","",IF(AE26=1,YcCi(AK26,J26),YcTr(J26,AJ26,AN26))) ->  | AY26: =IF(AD26="","",IF(AE26=1,Teta1(AX26,AK26),"-")) ->  | AZ26: =IF(AD26="","",IF(AE26=1,AreaCi(AK26,AX26),AreaTr(AJ26,AN26,AX26))) ->  | BB26: =IF(AD26="","",IF(AE26=1,Ynci(AK26,J26,AM26,AO26),YnTr(1,AM26,AJ26,AN26,AO26,J26))) ->  | BC26: =IF(AD26="","",IF(AE26=1,Teta1(BB26,AK26),"-")) ->  | BD26: =IF(AD26="","",IF(AE26=1,AreaCi(AK26,BB26),AreaTr(AJ26,AN26,BB26))) ->  | BE26: =IF(AD26="","",IF(AE26=1,FrCi(BF26,9.806,BC26,AK26),FrTr(BF26,9.806,AJ26,AN26,BB26))) ->  | BG26: =IF(AD26="","",IF(AE26=1,LOOKUP(AI26,'Vmáx(material) - Tab.4.3'!$L$2:$L$11,'Vmáx(material) - Tab.4.3'!$M$2:$M$11),LOOKUP(AI26,'Vmáx(material) - Tab.4.3'!$L$15,'Vmáx(material) - Tab.4.3'!$M$15))) ->  | BH26: =IF(AD26="","",VLOOKUP($AH26,'Vmáx(material) - Tab.4.3'!$R$35:$X$41,2)) ->  | BI26: =IF(AD26="","",VLOOKUP($AH26,'Vmáx(material) - Tab.4.3'!$R$35:$X$41,3)) ->  | BJ26: =IF(AD26="","",VLOOKUP($AH26,'Vmáx(material) - Tab.4.3'!$R$35:$X$41,4)) ->  | BK26: =IF(AD26="","",VLOOKUP($AH26,'Vmáx(material) - Tab.4.3'!$R$35:$X$41,5)) ->  | BL26: =IF(AD26="","",VLOOKUP($AH26,'Vmáx(material) - Tab.4.3'!$R$35:$X$41,6)) ->  | BM26: =IF(AD26="","",IF(AD26="","",VLOOKUP($AH26,'Vmáx(material) - Tab.4.3'!$R$35:$X$41,7))) ->  | BN26: =IF(AD26="","",IF(AE26=1,FCi(J26,AK26),FTr(J26,AJ26,AK26))) ->  | BP26: =IF(AD26="","",Hw(BH26,BI26,BJ26,BK26,BL26,BM26,Z,BN26,AO26,AK26)) ->  | BU26: =IF(AD26="","",ho(BT26,AK26,AX26)) ->  | BV26: =IF(AD26="","",IF(AE26=1,PeriCi(AK26,BB26),PeriTr(AJ26,AN26,BB26))) ->  | BW26: =IF(AD26="","",IF(AE26=1,AreaCi(AK26,BB26),AreaTr(AJ26,AN26,BB26))) ->  | BX26: =IF(AD26="","",RhCi(BW26,BV26)) ->  | BZ26: =IF(AD26="","",hf(AL26,J26,AM26,BW26,BX26)) ->  | CA26: =IF(AD26="","",LOOKUP(AP26,Tab.4.5!$J$6:$J$27,Tab.4.5!$L$6:$L$27)) ->  | CB26: =IF(AD26="","",He(CA26,BY26)) ->  | CC26: =IF(AD26="","",Hs(BY26)) ->  | CD26: =IF(AD26="","",Hm(BU26,BZ26,CB26,CC26,AL26,AO26)) ->  | CZ26: 0 | DA26: 0 | DB26: 0 | DC26: 0 | DD26: 0 | DE26: =IF(CK26="","",IF(CL26=1,YcCi(CR26,J26),YcTr(J26,CQ26,CU26))) ->  | DF26: =IF(CK26="","",IF(CL26=1,Teta1(DE26,CR26),"-")) ->  | DI26: =IF(CK26="","",IF(CL26=1,Ynci(CR26,J26,CT26,CV26),YnTr(1,CT26,CQ26,CU26,CV26,J26))) ->  | DJ26: =IF(CK26="","",IF(CL26=1,Teta1(DI26,CR26),"-")) ->  | DK26: =IF(CK26="","",IF(CL26=1,AreaCi(CR26,J26),AreaTr(CQ26,CU26,DI26))) ->  | DL26: =IF(CK26="","",IF(CL26=1,FrCi(DM26,9.806,DJ26,CR26),FrTr(DM26,9.806,CQ26,CU26,DI26))) ->  | DN26: =IF(CK26="","",IF(CL26=1,LOOKUP(CP26,'Vmáx(material) - Tab.4.3'!$L$2:$L$11,'Vmáx(material) - Tab.4.3'!$M$2:$M$11),LOOKUP(CP26,'Vmáx(material) - Tab.4.3'!$L$15,'Vmáx(material) - Tab.4.3'!$M$15))) ->  | DO26: =IF(CK26="","",VLOOKUP($CO26,'Vmáx(material) - Tab.4.3'!$R$35:$X$41,2)) ->  | DP26: =IF(CK26="","",VLOOKUP($CO26,'Vmáx(material) - Tab.4.3'!$R$35:$X$41,3)) ->  | DQ26: =IF(CK26="","",VLOOKUP($CO26,'Vmáx(material) - Tab.4.3'!$R$35:$X$41,4)) ->  | DR26: =IF(CK26="","",VLOOKUP($CO26,'Vmáx(material) - Tab.4.3'!$R$35:$X$41,5)) ->  | DS26: =IF(CK26="","",VLOOKUP($CO26,'Vmáx(material) - Tab.4.3'!$R$35:$X$41,6)) ->  | DT26: =IF(CK26="","",IF(CK26="","",VLOOKUP(CO26,'Vmáx(material) - Tab.4.3'!$R$35:$X$41,7))) ->  | DU26: =IF(CK26="","",IF(CL26=1,FCi(J26,CR26),FTr(J26,CQ26,CR26))) ->  | DW26: =IF(CK26="","",Hw(DO26,DP26,DQ26,DR26,DS26,DT26,Z,DU26,CV26,CR26)) ->  | EC26: =IF(CK26="","",IF(CL26=1,PeriCi(CR26,DI26),PeriTr(CQ26,CU26,DI26))) ->  | ED26: =IF(CK26="","",IF(CL26=1,AreaCi(CR26,DI26),AreaTr(CQ26,CU26,DI26))) ->  | EE26: =IF(CK26="","",RhCi(DK26,EC26)) ->  | EG26: =IF(CK26="","",hf(CS26,J26,CT26,DK26,EE26)) ->  | EH26: =IF(CK26="","",LOOKUP(CW26,Tab.4.5!$J$6:$J$27,Tab.4.5!$L$6:$L$27)) ->  | EI26: =IF(CK26="","",He(EH26,DM26)) ->  | EJ26: =IF(CK26="","",Hs(DM26)) ->  | EK26: =IF(CK26="","",Hm(EB26,EG26,EI26,EJ26,CS26,CV26)) ->  | ER26: K45+-45000 () | ES26: =IF(B26="Existe.",IF(AE26=1,CONCATENATE(#REF!,AK26," m."),CONCATENATE(#REF!,AJ26," m x ",AK26," m.")),IF(CL26=1,CONCATENATE(#REF!,CR26," m."),CONCATENATE(#REF!,CQ26," m x ",CR26," m."))) ->  | ET26: Concreto, L = m, S = 0 %. | EU26: Cota clave eje= 0 msnm. | FD26: =IF(EV26="","",VLOOKUP(EY26,'Estructura escalonada'!$D$3:$H$953,2)) -> 
L27: 0 | N27: 0 | U27: =IF(K27="No","",IF(O27="",YcCi(P27,N27),YcTr(N27,O27,S27))) ->  | V27: =IF(K27="No","",IF(O27="",Teta1(U27,P27),"-")) ->  | Y27: =IF(K27="No","",IF(O27="",Ynci(P27,N27,R27,T27),YnTr(1,R27,O27,S27,T27,N27))) ->  | Z27: =IF(K27="No","",IF(O27="",Teta1(Y27,P27),"-")) ->  | AA27: =IF(K27="No","",IF(O27="",AreaCi(P27,Y27),AreaTr(O27,S27,Y27))) ->  | AB27: =IF(K27="No","",IF(O27="",FrCi(AC27,9.806,Z27,P27),FrTr(AC27,9.806,O27,S27,Y27))) ->  | AS27: 0 | AT27: 0 | AX27: =IF(AD27="","",IF(AE27=1,YcCi(AK27,J27),YcTr(J27,AJ27,AN27))) ->  | AY27: =IF(AD27="","",IF(AE27=1,Teta1(AX27,AK27),"-")) ->  | AZ27: =IF(AD27="","",IF(AE27=1,AreaCi(AK27,AX27),AreaTr(AJ27,AN27,AX27))) ->  | BB27: =IF(AD27="","",IF(AE27=1,Ynci(AK27,J27,AM27,AO27),YnTr(1,AM27,AJ27,AN27,AO27,J27))) ->  | BC27: =IF(AD27="","",IF(AE27=1,Teta1(BB27,AK27),"-")) ->  | BD27: =IF(AD27="","",IF(AE27=1,AreaCi(AK27,BB27),AreaTr(AJ27,AN27,BB27))) ->  | BE27: =IF(AD27="","",IF(AE27=1,FrCi(BF27,9.806,BC27,AK27),FrTr(BF27,9.806,AJ27,AN27,BB27))) ->  | BG27: =IF(AD27="","",IF(AE27=1,LOOKUP(AI27,'Vmáx(material) - Tab.4.3'!$L$2:$L$11,'Vmáx(material) - Tab.4.3'!$M$2:$M$11),LOOKUP(AI27,'Vmáx(material) - Tab.4.3'!$L$15,'Vmáx(material) - Tab.4.3'!$M$15))) ->  | BH27: =IF(AD27="","",VLOOKUP($AH27,'Vmáx(material) - Tab.4.3'!$R$35:$X$41,2)) ->  | BI27: =IF(AD27="","",VLOOKUP($AH27,'Vmáx(material) - Tab.4.3'!$R$35:$X$41,3)) ->  | BJ27: =IF(AD27="","",VLOOKUP($AH27,'Vmáx(material) - Tab.4.3'!$R$35:$X$41,4)) ->  | BK27: =IF(AD27="","",VLOOKUP($AH27,'Vmáx(material) - Tab.4.3'!$R$35:$X$41,5)) ->  | BL27: =IF(AD27="","",VLOOKUP($AH27,'Vmáx(material) - Tab.4.3'!$R$35:$X$41,6)) ->  | BM27: =IF(AD27="","",IF(AD27="","",VLOOKUP($AH27,'Vmáx(material) - Tab.4.3'!$R$35:$X$41,7))) ->  | BN27: =IF(AD27="","",IF(AE27=1,FCi(J27,AK27),FTr(J27,AJ27,AK27))) ->  | BP27: =IF(AD27="","",Hw(BH27,BI27,BJ27,BK27,BL27,BM27,Z,BN27,AO27,AK27)) ->  | BU27: =IF(AD27="","",ho(BT27,AK27,AX27)) ->  | BV27: =IF(AD27="","",IF(AE27=1,PeriCi(AK27,BB27),PeriTr(AJ27,AN27,BB27))) ->  | BW27: =IF(AD27="","",IF(AE27=1,AreaCi(AK27,BB27),AreaTr(AJ27,AN27,BB27))) ->  | BX27: =IF(AD27="","",RhCi(BW27,BV27)) ->  | BZ27: =IF(AD27="","",hf(AL27,J27,AM27,BW27,BX27)) ->  | CA27: =IF(AD27="","",LOOKUP(AP27,Tab.4.5!$J$6:$J$27,Tab.4.5!$L$6:$L$27)) ->  | CB27: =IF(AD27="","",He(CA27,BY27)) ->  | CC27: =IF(AD27="","",Hs(BY27)) ->  | CD27: =IF(AD27="","",Hm(BU27,BZ27,CB27,CC27,AL27,AO27)) ->  | CZ27: 0 | DA27: 0 | DB27: 0 | DC27: 0 | DD27: 0 | DE27: =IF(CK27="","",IF(CL27=1,YcCi(CR27,J27),YcTr(J27,CQ27,CU27))) ->  | DF27: =IF(CK27="","",IF(CL27=1,Teta1(DE27,CR27),"-")) ->  | DI27: =IF(CK27="","",IF(CL27=1,Ynci(CR27,J27,CT27,CV27),YnTr(1,CT27,CQ27,CU27,CV27,J27))) ->  | DJ27: =IF(CK27="","",IF(CL27=1,Teta1(DI27,CR27),"-")) ->  | DK27: =IF(CK27="","",IF(CL27=1,AreaCi(CR27,J27),AreaTr(CQ27,CU27,DI27))) ->  | DL27: =IF(CK27="","",IF(CL27=1,FrCi(DM27,9.806,DJ27,CR27),FrTr(DM27,9.806,CQ27,CU27,DI27))) ->  | DN27: =IF(CK27="","",IF(CL27=1,LOOKUP(CP27,'Vmáx(material) - Tab.4.3'!$L$2:$L$11,'Vmáx(material) - Tab.4.3'!$M$2:$M$11),LOOKUP(CP27,'Vmáx(material) - Tab.4.3'!$L$15,'Vmáx(material) - Tab.4.3'!$M$15))) ->  | DO27: =IF(CK27="","",VLOOKUP($CO27,'Vmáx(material) - Tab.4.3'!$R$35:$X$41,2)) ->  | DP27: =IF(CK27="","",VLOOKUP($CO27,'Vmáx(material) - Tab.4.3'!$R$35:$X$41,3)) ->  | DQ27: =IF(CK27="","",VLOOKUP($CO27,'Vmáx(material) - Tab.4.3'!$R$35:$X$41,4)) ->  | DR27: =IF(CK27="","",VLOOKUP($CO27,'Vmáx(material) - Tab.4.3'!$R$35:$X$41,5)) ->  | DS27: =IF(CK27="","",VLOOKUP($CO27,'Vmáx(material) - Tab.4.3'!$R$35:$X$41,6)) ->  | DT27: =IF(CK27="","",IF(CK27="","",VLOOKUP(CO27,'Vmáx(material) - Tab.4.3'!$R$35:$X$41,7))) ->  | DU27: =IF(CK27="","",IF(CL27=1,FCi(J27,CR27),FTr(J27,CQ27,CR27))) ->  | DW27: =IF(CK27="","",Hw(DO27,DP27,DQ27,DR27,DS27,DT27,Z,DU27,CV27,CR27)) ->  | EC27: =IF(CK27="","",IF(CL27=1,PeriCi(CR27,DI27),PeriTr(CQ27,CU27,DI27))) ->  | ED27: =IF(CK27="","",IF(CL27=1,AreaCi(CR27,DI27),AreaTr(CQ27,CU27,DI27))) ->  | EE27: =IF(CK27="","",RhCi(DK27,EC27)) ->  | EG27: =IF(CK27="","",hf(CS27,J27,CT27,DK27,EE27)) ->  | EH27: =IF(CK27="","",LOOKUP(CW27,Tab.4.5!$J$6:$J$27,Tab.4.5!$L$6:$L$27)) ->  | EI27: =IF(CK27="","",He(EH27,DM27)) ->  | EJ27: =IF(CK27="","",Hs(DM27)) ->  | EK27: =IF(CK27="","",Hm(EB27,EG27,EI27,EJ27,CS27,CV27)) ->  | ER27: K45+-45000 () | ES27: =IF(B27="Existe.",IF(AE27=1,CONCATENATE(#REF!,AK27," m."),CONCATENATE(#REF!,AJ27," m x ",AK27," m.")),IF(CL27=1,CONCATENATE(#REF!,CR27," m."),CONCATENATE(#REF!,CQ27," m x ",CR27," m."))) ->  | ET27: Concreto, L = m, S = 0 %. | EU27: Cota clave eje= 0 msnm. | FD27: =IF(EV27="","",VLOOKUP(EY27,'Estructura escalonada'!$D$3:$H$953,2)) -> 
L28: 0 | N28: 0 | U28: =IF(K28="No","",IF(O28="",YcCi(P28,N28),YcTr(N28,O28,S28))) ->  | V28: =IF(K28="No","",IF(O28="",Teta1(U28,P28),"-")) ->  | Y28: =IF(K28="No","",IF(O28="",Ynci(P28,N28,R28,T28),YnTr(1,R28,O28,S28,T28,N28))) ->  | Z28: =IF(K28="No","",IF(O28="",Teta1(Y28,P28),"-")) ->  | AA28: =IF(K28="No","",IF(O28="",AreaCi(P28,Y28),AreaTr(O28,S28,Y28))) ->  | AB28: =IF(K28="No","",IF(O28="",FrCi(AC28,9.806,Z28,P28),FrTr(AC28,9.806,O28,S28,Y28))) ->  | AS28: 0 | AT28: 0 | AX28: =IF(AD28="","",IF(AE28=1,YcCi(AK28,J28),YcTr(J28,AJ28,AN28))) ->  | AY28: =IF(AD28="","",IF(AE28=1,Teta1(AX28,AK28),"-")) ->  | AZ28: =IF(AD28="","",IF(AE28=1,AreaCi(AK28,AX28),AreaTr(AJ28,AN28,AX28))) ->  | BB28: =IF(AD28="","",IF(AE28=1,Ynci(AK28,J28,AM28,AO28),YnTr(1,AM28,AJ28,AN28,AO28,J28))) ->  | BC28: =IF(AD28="","",IF(AE28=1,Teta1(BB28,AK28),"-")) ->  | BD28: =IF(AD28="","",IF(AE28=1,AreaCi(AK28,BB28),AreaTr(AJ28,AN28,BB28))) ->  | BE28: =IF(AD28="","",IF(AE28=1,FrCi(BF28,9.806,BC28,AK28),FrTr(BF28,9.806,AJ28,AN28,BB28))) ->  | BG28: =IF(AD28="","",IF(AE28=1,LOOKUP(AI28,'Vmáx(material) - Tab.4.3'!$L$2:$L$11,'Vmáx(material) - Tab.4.3'!$M$2:$M$11),LOOKUP(AI28,'Vmáx(material) - Tab.4.3'!$L$15,'Vmáx(material) - Tab.4.3'!$M$15))) ->  | BH28: =IF(AD28="","",VLOOKUP($AH28,'Vmáx(material) - Tab.4.3'!$R$35:$X$41,2)) ->  | BI28: =IF(AD28="","",VLOOKUP($AH28,'Vmáx(material) - Tab.4.3'!$R$35:$X$41,3)) ->  | BJ28: =IF(AD28="","",VLOOKUP($AH28,'Vmáx(material) - Tab.4.3'!$R$35:$X$41,4)) ->  | BK28: =IF(AD28="","",VLOOKUP($AH28,'Vmáx(material) - Tab.4.3'!$R$35:$X$41,5)) ->  | BL28: =IF(AD28="","",VLOOKUP($AH28,'Vmáx(material) - Tab.4.3'!$R$35:$X$41,6)) ->  | BM28: =IF(AD28="","",IF(AD28="","",VLOOKUP($AH28,'Vmáx(material) - Tab.4.3'!$R$35:$X$41,7))) ->  | BN28: =IF(AD28="","",IF(AE28=1,FCi(J28,AK28),FTr(J28,AJ28,AK28))) ->  | BP28: =IF(AD28="","",Hw(BH28,BI28,BJ28,BK28,BL28,BM28,Z,BN28,AO28,AK28)) ->  | BU28: =IF(AD28="","",ho(BT28,AK28,AX28)) ->  | BV28: =IF(AD28="","",IF(AE28=1,PeriCi(AK28,BB28),PeriTr(AJ28,AN28,BB28))) ->  | BW28: =IF(AD28="","",IF(AE28=1,AreaCi(AK28,BB28),AreaTr(AJ28,AN28,BB28))) ->  | BX28: =IF(AD28="","",RhCi(BW28,BV28)) ->  | BZ28: =IF(AD28="","",hf(AL28,J28,AM28,BW28,BX28)) ->  | CA28: =IF(AD28="","",LOOKUP(AP28,Tab.4.5!$J$6:$J$27,Tab.4.5!$L$6:$L$27)) ->  | CB28: =IF(AD28="","",He(CA28,BY28)) ->  | CC28: =IF(AD28="","",Hs(BY28)) ->  | CD28: =IF(AD28="","",Hm(BU28,BZ28,CB28,CC28,AL28,AO28)) ->  | CZ28: 0 | DA28: 0 | DB28: 0 | DC28: 0 | DD28: 0 | DE28: =IF(CK28="","",IF(CL28=1,YcCi(CR28,J28),YcTr(J28,CQ28,CU28))) ->  | DF28: =IF(CK28="","",IF(CL28=1,Teta1(DE28,CR28),"-")) ->  | DI28: =IF(CK28="","",IF(CL28=1,Ynci(CR28,J28,CT28,CV28),YnTr(1,CT28,CQ28,CU28,CV28,J28))) ->  | DJ28: =IF(CK28="","",IF(CL28=1,Teta1(DI28,CR28),"-")) ->  | DK28: =IF(CK28="","",IF(CL28=1,AreaCi(CR28,J28),AreaTr(CQ28,CU28,DI28))) ->  | DL28: =IF(CK28="","",IF(CL28=1,FrCi(DM28,9.806,DJ28,CR28),FrTr(DM28,9.806,CQ28,CU28,DI28))) ->  | DN28: =IF(CK28="","",IF(CL28=1,LOOKUP(CP28,'Vmáx(material) - Tab.4.3'!$L$2:$L$11,'Vmáx(material) - Tab.4.3'!$M$2:$M$11),LOOKUP(CP28,'Vmáx(material) - Tab.4.3'!$L$15,'Vmáx(material) - Tab.4.3'!$M$15))) ->  | DO28: =IF(CK28="","",VLOOKUP($CO28,'Vmáx(material) - Tab.4.3'!$R$35:$X$41,2)) ->  | DP28: =IF(CK28="","",VLOOKUP($CO28,'Vmáx(material) - Tab.4.3'!$R$35:$X$41,3)) ->  | DQ28: =IF(CK28="","",VLOOKUP($CO28,'Vmáx(material) - Tab.4.3'!$R$35:$X$41,4)) ->  | DR28: =IF(CK28="","",VLOOKUP($CO28,'Vmáx(material) - Tab.4.3'!$R$35:$X$41,5)) ->  | DS28: =IF(CK28="","",VLOOKUP($CO28,'Vmáx(material) - Tab.4.3'!$R$35:$X$41,6)) ->  | DT28: =IF(CK28="","",IF(CK28="","",VLOOKUP(CO28,'Vmáx(material) - Tab.4.3'!$R$35:$X$41,7))) ->  | DU28: =IF(CK28="","",IF(CL28=1,FCi(J28,CR28),FTr(J28,CQ28,CR28))) ->  | DW28: =IF(CK28="","",Hw(DO28,DP28,DQ28,DR28,DS28,DT28,Z,DU28,CV28,CR28)) ->  | EC28: =IF(CK28="","",IF(CL28=1,PeriCi(CR28,DI28),PeriTr(CQ28,CU28,DI28))) ->  | ED28: =IF(CK28="","",IF(CL28=1,AreaCi(CR28,DI28),AreaTr(CQ28,CU28,DI28))) ->  | EE28: =IF(CK28="","",RhCi(DK28,EC28)) ->  | EG28: =IF(CK28="","",hf(CS28,J28,CT28,DK28,EE28)) ->  | EH28: =IF(CK28="","",LOOKUP(CW28,Tab.4.5!$J$6:$J$27,Tab.4.5!$L$6:$L$27)) ->  | EI28: =IF(CK28="","",He(EH28,DM28)) ->  | EJ28: =IF(CK28="","",Hs(DM28)) ->  | EK28: =IF(CK28="","",Hm(EB28,EG28,EI28,EJ28,CS28,CV28)) ->  | ER28: K45+-45000 () | ES28: =IF(B28="Existe.",IF(AE28=1,CONCATENATE(#REF!,AK28," m."),CONCATENATE(#REF!,AJ28," m x ",AK28," m.")),IF(CL28=1,CONCATENATE(#REF!,CR28," m."),CONCATENATE(#REF!,CQ28," m x ",CR28," m."))) ->  | ET28: Concreto, L = m, S = 0 %. | EU28: Cota clave eje= 0 msnm. | FD28: =IF(EV28="","",VLOOKUP(EY28,'Estructura escalonada'!$D$3:$H$953,2)) -> 
L29: 0 | N29: 0 | U29: =IF(K29="No","",IF(O29="",YcCi(P29,N29),YcTr(N29,O29,S29))) ->  | V29: =IF(K29="No","",IF(O29="",Teta1(U29,P29),"-")) ->  | Y29: =IF(K29="No","",IF(O29="",Ynci(P29,N29,R29,T29),YnTr(1,R29,O29,S29,T29,N29))) ->  | Z29: =IF(K29="No","",IF(O29="",Teta1(Y29,P29),"-")) ->  | AA29: =IF(K29="No","",IF(O29="",AreaCi(P29,Y29),AreaTr(O29,S29,Y29))) ->  | AB29: =IF(K29="No","",IF(O29="",FrCi(AC29,9.806,Z29,P29),FrTr(AC29,9.806,O29,S29,Y29))) ->  | AS29: 0 | AT29: 0 | AX29: =IF(AD29="","",IF(AE29=1,YcCi(AK29,J29),YcTr(J29,AJ29,AN29))) ->  | AY29: =IF(AD29="","",IF(AE29=1,Teta1(AX29,AK29),"-")) ->  | AZ29: =IF(AD29="","",IF(AE29=1,AreaCi(AK29,AX29),AreaTr(AJ29,AN29,AX29))) ->  | BB29: =IF(AD29="","",IF(AE29=1,Ynci(AK29,J29,AM29,AO29),YnTr(1,AM29,AJ29,AN29,AO29,J29))) ->  | BC29: =IF(AD29="","",IF(AE29=1,Teta1(BB29,AK29),"-")) ->  | BD29: =IF(AD29="","",IF(AE29=1,AreaCi(AK29,BB29),AreaTr(AJ29,AN29,BB29))) ->  | BE29: =IF(AD29="","",IF(AE29=1,FrCi(BF29,9.806,BC29,AK29),FrTr(BF29,9.806,AJ29,AN29,BB29))) ->  | BG29: =IF(AD29="","",IF(AE29=1,LOOKUP(AI29,'Vmáx(material) - Tab.4.3'!$L$2:$L$11,'Vmáx(material) - Tab.4.3'!$M$2:$M$11),LOOKUP(AI29,'Vmáx(material) - Tab.4.3'!$L$15,'Vmáx(material) - Tab.4.3'!$M$15))) ->  | BH29: =IF(AD29="","",VLOOKUP($AH29,'Vmáx(material) - Tab.4.3'!$R$35:$X$41,2)) ->  | BI29: =IF(AD29="","",VLOOKUP($AH29,'Vmáx(material) - Tab.4.3'!$R$35:$X$41,3)) ->  | BJ29: =IF(AD29="","",VLOOKUP($AH29,'Vmáx(material) - Tab.4.3'!$R$35:$X$41,4)) ->  | BK29: =IF(AD29="","",VLOOKUP($AH29,'Vmáx(material) - Tab.4.3'!$R$35:$X$41,5)) ->  | BL29: =IF(AD29="","",VLOOKUP($AH29,'Vmáx(material) - Tab.4.3'!$R$35:$X$41,6)) ->  | BM29: =IF(AD29="","",IF(AD29="","",VLOOKUP($AH29,'Vmáx(material) - Tab.4.3'!$R$35:$X$41,7))) ->  | BN29: =IF(AD29="","",IF(AE29=1,FCi(J29,AK29),FTr(J29,AJ29,AK29))) ->  | BP29: =IF(AD29="","",Hw(BH29,BI29,BJ29,BK29,BL29,BM29,Z,BN29,AO29,AK29)) ->  | BU29: =IF(AD29="","",ho(BT29,AK29,AX29)) ->  | BV29: =IF(AD29="","",IF(AE29=1,PeriCi(AK29,BB29),PeriTr(AJ29,AN29,BB29))) ->  | BW29: =IF(AD29="","",IF(AE29=1,AreaCi(AK29,BB29),AreaTr(AJ29,AN29,BB29))) ->  | BX29: =IF(AD29="","",RhCi(BW29,BV29)) ->  | BZ29: =IF(AD29="","",hf(AL29,J29,AM29,BW29,BX29)) ->  | CA29: =IF(AD29="","",LOOKUP(AP29,Tab.4.5!$J$6:$J$27,Tab.4.5!$L$6:$L$27)) ->  | CB29: =IF(AD29="","",He(CA29,BY29)) ->  | CC29: =IF(AD29="","",Hs(BY29)) ->  | CD29: =IF(AD29="","",Hm(BU29,BZ29,CB29,CC29,AL29,AO29)) ->  | CZ29: 0 | DA29: 0 | DB29: 0 | DC29: 0 | DD29: 0 | DE29: =IF(CK29="","",IF(CL29=1,YcCi(CR29,J29),YcTr(J29,CQ29,CU29))) ->  | DF29: =IF(CK29="","",IF(CL29=1,Teta1(DE29,CR29),"-")) ->  | DI29: =IF(CK29="","",IF(CL29=1,Ynci(CR29,J29,CT29,CV29),YnTr(1,CT29,CQ29,CU29,CV29,J29))) ->  | DJ29: =IF(CK29="","",IF(CL29=1,Teta1(DI29,CR29),"-")) ->  | DK29: =IF(CK29="","",IF(CL29=1,AreaCi(CR29,J29),AreaTr(CQ29,CU29,DI29))) ->  | DL29: =IF(CK29="","",IF(CL29=1,FrCi(DM29,9.806,DJ29,CR29),FrTr(DM29,9.806,CQ29,CU29,DI29))) ->  | DN29: =IF(CK29="","",IF(CL29=1,LOOKUP(CP29,'Vmáx(material) - Tab.4.3'!$L$2:$L$11,'Vmáx(material) - Tab.4.3'!$M$2:$M$11),LOOKUP(CP29,'Vmáx(material) - Tab.4.3'!$L$15,'Vmáx(material) - Tab.4.3'!$M$15))) ->  | DO29: =IF(CK29="","",VLOOKUP($CO29,'Vmáx(material) - Tab.4.3'!$R$35:$X$41,2)) ->  | DP29: =IF(CK29="","",VLOOKUP($CO29,'Vmáx(material) - Tab.4.3'!$R$35:$X$41,3)) ->  | DQ29: =IF(CK29="","",VLOOKUP($CO29,'Vmáx(material) - Tab.4.3'!$R$35:$X$41,4)) ->  | DR29: =IF(CK29="","",VLOOKUP($CO29,'Vmáx(material) - Tab.4.3'!$R$35:$X$41,5)) ->  | DS29: =IF(CK29="","",VLOOKUP($CO29,'Vmáx(material) - Tab.4.3'!$R$35:$X$41,6)) ->  | DT29: =IF(CK29="","",IF(CK29="","",VLOOKUP(CO29,'Vmáx(material) - Tab.4.3'!$R$35:$X$41,7))) ->  | DU29: =IF(CK29="","",IF(CL29=1,FCi(J29,CR29),FTr(J29,CQ29,CR29))) ->  | DW29: =IF(CK29="","",Hw(DO29,DP29,DQ29,DR29,DS29,DT29,Z,DU29,CV29,CR29)) ->  | EC29: =IF(CK29="","",IF(CL29=1,PeriCi(CR29,DI29),PeriTr(CQ29,CU29,DI29))) ->  | ED29: =IF(CK29="","",IF(CL29=1,AreaCi(CR29,DI29),AreaTr(CQ29,CU29,DI29))) ->  | EE29: =IF(CK29="","",RhCi(DK29,EC29)) ->  | EG29: =IF(CK29="","",hf(CS29,J29,CT29,DK29,EE29)) ->  | EH29: =IF(CK29="","",LOOKUP(CW29,Tab.4.5!$J$6:$J$27,Tab.4.5!$L$6:$L$27)) ->  | EI29: =IF(CK29="","",He(EH29,DM29)) ->  | EJ29: =IF(CK29="","",Hs(DM29)) ->  | EK29: =IF(CK29="","",Hm(EB29,EG29,EI29,EJ29,CS29,CV29)) ->  | ER29: K45+-45000 () | ES29: =IF(B29="Existe.",IF(AE29=1,CONCATENATE(#REF!,AK29," m."),CONCATENATE(#REF!,AJ29," m x ",AK29," m.")),IF(CL29=1,CONCATENATE(#REF!,CR29," m."),CONCATENATE(#REF!,CQ29," m x ",CR29," m."))) ->  | ET29: Concreto, L = m, S = 0 %. | EU29: Cota clave eje= 0 msnm. | FD29: =IF(EV29="","",VLOOKUP(EY29,'Estructura escalonada'!$D$3:$H$953,2)) -> 
L30: 0 | N30: 0 | U30: =IF(K30="No","",IF(O30="",YcCi(P30,N30),YcTr(N30,O30,S30))) ->  | V30: =IF(K30="No","",IF(O30="",Teta1(U30,P30),"-")) ->  | Y30: =IF(K30="No","",IF(O30="",Ynci(P30,N30,R30,T30),YnTr(1,R30,O30,S30,T30,N30))) ->  | Z30: =IF(K30="No","",IF(O30="",Teta1(Y30,P30),"-")) ->  | AA30: =IF(K30="No","",IF(O30="",AreaCi(P30,Y30),AreaTr(O30,S30,Y30))) ->  | AB30: =IF(K30="No","",IF(O30="",FrCi(AC30,9.806,Z30,P30),FrTr(AC30,9.806,O30,S30,Y30))) ->  | AS30: 0 | AT30: 0 | AX30: =IF(AD30="","",IF(AE30=1,YcCi(AK30,J30),YcTr(J30,AJ30,AN30))) ->  | AY30: =IF(AD30="","",IF(AE30=1,Teta1(AX30,AK30),"-")) ->  | AZ30: =IF(AD30="","",IF(AE30=1,AreaCi(AK30,AX30),AreaTr(AJ30,AN30,AX30))) ->  | BB30: =IF(AD30="","",IF(AE30=1,Ynci(AK30,J30,AM30,AO30),YnTr(1,AM30,AJ30,AN30,AO30,J30))) ->  | BC30: =IF(AD30="","",IF(AE30=1,Teta1(BB30,AK30),"-")) ->  | BD30: =IF(AD30="","",IF(AE30=1,AreaCi(AK30,BB30),AreaTr(AJ30,AN30,BB30))) ->  | BE30: =IF(AD30="","",IF(AE30=1,FrCi(BF30,9.806,BC30,AK30),FrTr(BF30,9.806,AJ30,AN30,BB30))) ->  | BG30: =IF(AD30="","",IF(AE30=1,LOOKUP(AI30,'Vmáx(material) - Tab.4.3'!$L$2:$L$11,'Vmáx(material) - Tab.4.3'!$M$2:$M$11),LOOKUP(AI30,'Vmáx(material) - Tab.4.3'!$L$15,'Vmáx(material) - Tab.4.3'!$M$15))) ->  | BH30: =IF(AD30="","",VLOOKUP($AH30,'Vmáx(material) - Tab.4.3'!$R$35:$X$41,2)) ->  | BI30: =IF(AD30="","",VLOOKUP($AH30,'Vmáx(material) - Tab.4.3'!$R$35:$X$41,3)) ->  | BJ30: =IF(AD30="","",VLOOKUP($AH30,'Vmáx(material) - Tab.4.3'!$R$35:$X$41,4)) ->  | BK30: =IF(AD30="","",VLOOKUP($AH30,'Vmáx(material) - Tab.4.3'!$R$35:$X$41,5)) ->  | BL30: =IF(AD30="","",VLOOKUP($AH30,'Vmáx(material) - Tab.4.3'!$R$35:$X$41,6)) ->  | BM30: =IF(AD30="","",IF(AD30="","",VLOOKUP($AH30,'Vmáx(material) - Tab.4.3'!$R$35:$X$41,7))) ->  | BN30: =IF(AD30="","",IF(AE30=1,FCi(J30,AK30),FTr(J30,AJ30,AK30))) ->  | BP30: =IF(AD30="","",Hw(BH30,BI30,BJ30,BK30,BL30,BM30,Z,BN30,AO30,AK30)) ->  | BU30: =IF(AD30="","",ho(BT30,AK30,AX30)) ->  | BV30: =IF(AD30="","",IF(AE30=1,PeriCi(AK30,BB30),PeriTr(AJ30,AN30,BB30))) ->  | BW30: =IF(AD30="","",IF(AE30=1,AreaCi(AK30,BB30),AreaTr(AJ30,AN30,BB30))) ->  | BX30: =IF(AD30="","",RhCi(BW30,BV30)) ->  | BZ30: =IF(AD30="","",hf(AL30,J30,AM30,BW30,BX30)) ->  | CA30: =IF(AD30="","",LOOKUP(AP30,Tab.4.5!$J$6:$J$27,Tab.4.5!$L$6:$L$27)) ->  | CB30: =IF(AD30="","",He(CA30,BY30)) ->  | CC30: =IF(AD30="","",Hs(BY30)) ->  | CD30: =IF(AD30="","",Hm(BU30,BZ30,CB30,CC30,AL30,AO30)) ->  | CZ30: 0 | DA30: 0 | DB30: 0 | DC30: 0 | DD30: 0 | DE30: =IF(CK30="","",IF(CL30=1,YcCi(CR30,J30),YcTr(J30,CQ30,CU30))) ->  | DF30: =IF(CK30="","",IF(CL30=1,Teta1(DE30,CR30),"-")) ->  | DI30: =IF(CK30="","",IF(CL30=1,Ynci(CR30,J30,CT30,CV30),YnTr(1,CT30,CQ30,CU30,CV30,J30))) ->  | DJ30: =IF(CK30="","",IF(CL30=1,Teta1(DI30,CR30),"-")) ->  | DK30: =IF(CK30="","",IF(CL30=1,AreaCi(CR30,J30),AreaTr(CQ30,CU30,DI30))) ->  | DL30: =IF(CK30="","",IF(CL30=1,FrCi(DM30,9.806,DJ30,CR30),FrTr(DM30,9.806,CQ30,CU30,DI30))) ->  | DN30: =IF(CK30="","",IF(CL30=1,LOOKUP(CP30,'Vmáx(material) - Tab.4.3'!$L$2:$L$11,'Vmáx(material) - Tab.4.3'!$M$2:$M$11),LOOKUP(CP30,'Vmáx(material) - Tab.4.3'!$L$15,'Vmáx(material) - Tab.4.3'!$M$15))) ->  | DO30: =IF(CK30="","",VLOOKUP($CO30,'Vmáx(material) - Tab.4.3'!$R$35:$X$41,2)) ->  | DP30: =IF(CK30="","",VLOOKUP($CO30,'Vmáx(material) - Tab.4.3'!$R$35:$X$41,3)) ->  | DQ30: =IF(CK30="","",VLOOKUP($CO30,'Vmáx(material) - Tab.4.3'!$R$35:$X$41,4)) ->  | DR30: =IF(CK30="","",VLOOKUP($CO30,'Vmáx(material) - Tab.4.3'!$R$35:$X$41,5)) ->  | DS30: =IF(CK30="","",VLOOKUP($CO30,'Vmáx(material) - Tab.4.3'!$R$35:$X$41,6)) ->  | DT30: =IF(CK30="","",IF(CK30="","",VLOOKUP(CO30,'Vmáx(material) - Tab.4.3'!$R$35:$X$41,7))) ->  | DU30: =IF(CK30="","",IF(CL30=1,FCi(J30,CR30),FTr(J30,CQ30,CR30))) ->  | DW30: =IF(CK30="","",Hw(DO30,DP30,DQ30,DR30,DS30,DT30,Z,DU30,CV30,CR30)) ->  | EC30: =IF(CK30="","",IF(CL30=1,PeriCi(CR30,DI30),PeriTr(CQ30,CU30,DI30))) ->  | ED30: =IF(CK30="","",IF(CL30=1,AreaCi(CR30,DI30),AreaTr(CQ30,CU30,DI30))) ->  | EE30: =IF(CK30="","",RhCi(DK30,EC30)) ->  | EG30: =IF(CK30="","",hf(CS30,J30,CT30,DK30,EE30)) ->  | EH30: =IF(CK30="","",LOOKUP(CW30,Tab.4.5!$J$6:$J$27,Tab.4.5!$L$6:$L$27)) ->  | EI30: =IF(CK30="","",He(EH30,DM30)) ->  | EJ30: =IF(CK30="","",Hs(DM30)) ->  | EK30: =IF(CK30="","",Hm(EB30,EG30,EI30,EJ30,CS30,CV30)) ->  | ER30: K45+-45000 () | ES30: =IF(B30="Existe.",IF(AE30=1,CONCATENATE(#REF!,AK30," m."),CONCATENATE(#REF!,AJ30," m x ",AK30," m.")),IF(CL30=1,CONCATENATE(#REF!,CR30," m."),CONCATENATE(#REF!,CQ30," m x ",CR30," m."))) ->  | ET30: Concreto, L = m, S = 0 %. | EU30: Cota clave eje= 0 msnm. | FD30: =IF(EV30="","",VLOOKUP(EY30,'Estructura escalonada'!$D$3:$H$953,2)) -> 
L31: 0 | N31: 0 | U31: =IF(K31="No","",IF(O31="",YcCi(P31,N31),YcTr(N31,O31,S31))) ->  | V31: =IF(K31="No","",IF(O31="",Teta1(U31,P31),"-")) ->  | Y31: =IF(K31="No","",IF(O31="",Ynci(P31,N31,R31,T31),YnTr(1,R31,O31,S31,T31,N31))) ->  | Z31: =IF(K31="No","",IF(O31="",Teta1(Y31,P31),"-")) ->  | AA31: =IF(K31="No","",IF(O31="",AreaCi(P31,Y31),AreaTr(O31,S31,Y31))) ->  | AB31: =IF(K31="No","",IF(O31="",FrCi(AC31,9.806,Z31,P31),FrTr(AC31,9.806,O31,S31,Y31))) ->  | AS31: 0 | AT31: 0 | AX31: =IF(AD31="","",IF(AE31=1,YcCi(AK31,J31),YcTr(J31,AJ31,AN31))) ->  | AY31: =IF(AD31="","",IF(AE31=1,Teta1(AX31,AK31),"-")) ->  | AZ31: =IF(AD31="","",IF(AE31=1,AreaCi(AK31,AX31),AreaTr(AJ31,AN31,AX31))) ->  | BB31: =IF(AD31="","",IF(AE31=1,Ynci(AK31,J31,AM31,AO31),YnTr(1,AM31,AJ31,AN31,AO31,J31))) ->  | BC31: =IF(AD31="","",IF(AE31=1,Teta1(BB31,AK31),"-")) ->  | BD31: =IF(AD31="","",IF(AE31=1,AreaCi(AK31,BB31),AreaTr(AJ31,AN31,BB31))) ->  | BE31: =IF(AD31="","",IF(AE31=1,FrCi(BF31,9.806,BC31,AK31),FrTr(BF31,9.806,AJ31,AN31,BB31))) ->  | BG31: =IF(AD31="","",IF(AE31=1,LOOKUP(AI31,'Vmáx(material) - Tab.4.3'!$L$2:$L$11,'Vmáx(material) - Tab.4.3'!$M$2:$M$11),LOOKUP(AI31,'Vmáx(material) - Tab.4.3'!$L$15,'Vmáx(material) - Tab.4.3'!$M$15))) ->  | BH31: =IF(AD31="","",VLOOKUP($AH31,'Vmáx(material) - Tab.4.3'!$R$35:$X$41,2)) ->  | BI31: =IF(AD31="","",VLOOKUP($AH31,'Vmáx(material) - Tab.4.3'!$R$35:$X$41,3)) ->  | BJ31: =IF(AD31="","",VLOOKUP($AH31,'Vmáx(material) - Tab.4.3'!$R$35:$X$41,4)) ->  | BK31: =IF(AD31="","",VLOOKUP($AH31,'Vmáx(material) - Tab.4.3'!$R$35:$X$41,5)) ->  | BL31: =IF(AD31="","",VLOOKUP($AH31,'Vmáx(material) - Tab.4.3'!$R$35:$X$41,6)) ->  | BM31: =IF(AD31="","",IF(AD31="","",VLOOKUP($AH31,'Vmáx(material) - Tab.4.3'!$R$35:$X$41,7))) ->  | BN31: =IF(AD31="","",IF(AE31=1,FCi(J31,AK31),FTr(J31,AJ31,AK31))) ->  | BP31: =IF(AD31="","",Hw(BH31,BI31,BJ31,BK31,BL31,BM31,Z,BN31,AO31,AK31)) ->  | BU31: =IF(AD31="","",ho(BT31,AK31,AX31)) ->  | BV31: =IF(AD31="","",IF(AE31=1,PeriCi(AK31,BB31),PeriTr(AJ31,AN31,BB31))) ->  | BW31: =IF(AD31="","",IF(AE31=1,AreaCi(AK31,BB31),AreaTr(AJ31,AN31,BB31))) ->  | BX31: =IF(AD31="","",RhCi(BW31,BV31)) ->  | BZ31: =IF(AD31="","",hf(AL31,J31,AM31,BW31,BX31)) ->  | CA31: =IF(AD31="","",LOOKUP(AP31,Tab.4.5!$J$6:$J$27,Tab.4.5!$L$6:$L$27)) ->  | CB31: =IF(AD31="","",He(CA31,BY31)) ->  | CC31: =IF(AD31="","",Hs(BY31)) ->  | CD31: =IF(AD31="","",Hm(BU31,BZ31,CB31,CC31,AL31,AO31)) ->  | CZ31: 0 | DA31: 0 | DB31: 0 | DC31: 0 | DD31: 0 | DE31: =IF(CK31="","",IF(CL31=1,YcCi(CR31,J31),YcTr(J31,CQ31,CU31))) ->  | DF31: =IF(CK31="","",IF(CL31=1,Teta1(DE31,CR31),"-")) ->  | DI31: =IF(CK31="","",IF(CL31=1,Ynci(CR31,J31,CT31,CV31),YnTr(1,CT31,CQ31,CU31,CV31,J31))) ->  | DJ31: =IF(CK31="","",IF(CL31=1,Teta1(DI31,CR31),"-")) ->  | DK31: =IF(CK31="","",IF(CL31=1,AreaCi(CR31,J31),AreaTr(CQ31,CU31,DI31))) ->  | DL31: =IF(CK31="","",IF(CL31=1,FrCi(DM31,9.806,DJ31,CR31),FrTr(DM31,9.806,CQ31,CU31,DI31))) ->  | DN31: =IF(CK31="","",IF(CL31=1,LOOKUP(CP31,'Vmáx(material) - Tab.4.3'!$L$2:$L$11,'Vmáx(material) - Tab.4.3'!$M$2:$M$11),LOOKUP(CP31,'Vmáx(material) - Tab.4.3'!$L$15,'Vmáx(material) - Tab.4.3'!$M$15))) ->  | DO31: =IF(CK31="","",VLOOKUP($CO31,'Vmáx(material) - Tab.4.3'!$R$35:$X$41,2)) ->  | DP31: =IF(CK31="","",VLOOKUP($CO31,'Vmáx(material) - Tab.4.3'!$R$35:$X$41,3)) ->  | DQ31: =IF(CK31="","",VLOOKUP($CO31,'Vmáx(material) - Tab.4.3'!$R$35:$X$41,4)) ->  | DR31: =IF(CK31="","",VLOOKUP($CO31,'Vmáx(material) - Tab.4.3'!$R$35:$X$41,5)) ->  | DS31: =IF(CK31="","",VLOOKUP($CO31,'Vmáx(material) - Tab.4.3'!$R$35:$X$41,6)) ->  | DT31: =IF(CK31="","",IF(CK31="","",VLOOKUP(CO31,'Vmáx(material) - Tab.4.3'!$R$35:$X$41,7))) ->  | DU31: =IF(CK31="","",IF(CL31=1,FCi(J31,CR31),FTr(J31,CQ31,CR31))) ->  | DW31: =IF(CK31="","",Hw(DO31,DP31,DQ31,DR31,DS31,DT31,Z,DU31,CV31,CR31)) ->  | EC31: =IF(CK31="","",IF(CL31=1,PeriCi(CR31,DI31),PeriTr(CQ31,CU31,DI31))) ->  | ED31: =IF(CK31="","",IF(CL31=1,AreaCi(CR31,DI31),AreaTr(CQ31,CU31,DI31))) ->  | EE31: =IF(CK31="","",RhCi(DK31,EC31)) ->  | EG31: =IF(CK31="","",hf(CS31,J31,CT31,DK31,EE31)) ->  | EH31: =IF(CK31="","",LOOKUP(CW31,Tab.4.5!$J$6:$J$27,Tab.4.5!$L$6:$L$27)) ->  | EI31: =IF(CK31="","",He(EH31,DM31)) ->  | EJ31: =IF(CK31="","",Hs(DM31)) ->  | EK31: =IF(CK31="","",Hm(EB31,EG31,EI31,EJ31,CS31,CV31)) ->  | ER31: K45+-45000 () | ES31: =IF(B31="Existe.",IF(AE31=1,CONCATENATE(#REF!,AK31," m."),CONCATENATE(#REF!,AJ31," m x ",AK31," m.")),IF(CL31=1,CONCATENATE(#REF!,CR31," m."),CONCATENATE(#REF!,CQ31," m x ",CR31," m."))) ->  | ET31: Concreto, L = m, S = 0 %. | EU31: Cota clave eje= 0 msnm. | FD31: =IF(EV31="","",VLOOKUP(EY31,'Estructura escalonada'!$D$3:$H$953,2)) -> 
L32: 0 | N32: 0 | U32: =IF(K32="No","",IF(O32="",YcCi(P32,N32),YcTr(N32,O32,S32))) ->  | V32: =IF(K32="No","",IF(O32="",Teta1(U32,P32),"-")) ->  | Y32: =IF(K32="No","",IF(O32="",Ynci(P32,N32,R32,T32),YnTr(1,R32,O32,S32,T32,N32))) ->  | Z32: =IF(K32="No","",IF(O32="",Teta1(Y32,P32),"-")) ->  | AA32: =IF(K32="No","",IF(O32="",AreaCi(P32,Y32),AreaTr(O32,S32,Y32))) ->  | AB32: =IF(K32="No","",IF(O32="",FrCi(AC32,9.806,Z32,P32),FrTr(AC32,9.806,O32,S32,Y32))) ->  | AS32: 0 | AT32: 0 | AX32: =IF(AD32="","",IF(AE32=1,YcCi(AK32,J32),YcTr(J32,AJ32,AN32))) ->  | AY32: =IF(AD32="","",IF(AE32=1,Teta1(AX32,AK32),"-")) ->  | AZ32: =IF(AD32="","",IF(AE32=1,AreaCi(AK32,AX32),AreaTr(AJ32,AN32,AX32))) ->  | BB32: =IF(AD32="","",IF(AE32=1,Ynci(AK32,J32,AM32,AO32),YnTr(1,AM32,AJ32,AN32,AO32,J32))) ->  | BC32: =IF(AD32="","",IF(AE32=1,Teta1(BB32,AK32),"-")) ->  | BD32: =IF(AD32="","",IF(AE32=1,AreaCi(AK32,BB32),AreaTr(AJ32,AN32,BB32))) ->  | BE32: =IF(AD32="","",IF(AE32=1,FrCi(BF32,9.806,BC32,AK32),FrTr(BF32,9.806,AJ32,AN32,BB32))) ->  | BG32: =IF(AD32="","",IF(AE32=1,LOOKUP(AI32,'Vmáx(material) - Tab.4.3'!$L$2:$L$11,'Vmáx(material) - Tab.4.3'!$M$2:$M$11),LOOKUP(AI32,'Vmáx(material) - Tab.4.3'!$L$15,'Vmáx(material) - Tab.4.3'!$M$15))) ->  | BH32: =IF(AD32="","",VLOOKUP($AH32,'Vmáx(material) - Tab.4.3'!$R$35:$X$41,2)) ->  | BI32: =IF(AD32="","",VLOOKUP($AH32,'Vmáx(material) - Tab.4.3'!$R$35:$X$41,3)) ->  | BJ32: =IF(AD32="","",VLOOKUP($AH32,'Vmáx(material) - Tab.4.3'!$R$35:$X$41,4)) ->  | BK32: =IF(AD32="","",VLOOKUP($AH32,'Vmáx(material) - Tab.4.3'!$R$35:$X$41,5)) ->  | BL32: =IF(AD32="","",VLOOKUP($AH32,'Vmáx(material) - Tab.4.3'!$R$35:$X$41,6)) ->  | BM32: =IF(AD32="","",IF(AD32="","",VLOOKUP($AH32,'Vmáx(material) - Tab.4.3'!$R$35:$X$41,7))) ->  | BN32: =IF(AD32="","",IF(AE32=1,FCi(J32,AK32),FTr(J32,AJ32,AK32))) ->  | BP32: =IF(AD32="","",Hw(BH32,BI32,BJ32,BK32,BL32,BM32,Z,BN32,AO32,AK32)) ->  | BU32: =IF(AD32="","",ho(BT32,AK32,AX32)) ->  | BV32: =IF(AD32="","",IF(AE32=1,PeriCi(AK32,BB32),PeriTr(AJ32,AN32,BB32))) ->  | BW32: =IF(AD32="","",IF(AE32=1,AreaCi(AK32,BB32),AreaTr(AJ32,AN32,BB32))) ->  | BX32: =IF(AD32="","",RhCi(BW32,BV32)) ->  | BZ32: =IF(AD32="","",hf(AL32,J32,AM32,BW32,BX32)) ->  | CA32: =IF(AD32="","",LOOKUP(AP32,Tab.4.5!$J$6:$J$27,Tab.4.5!$L$6:$L$27)) ->  | CB32: =IF(AD32="","",He(CA32,BY32)) ->  | CC32: =IF(AD32="","",Hs(BY32)) ->  | CD32: =IF(AD32="","",Hm(BU32,BZ32,CB32,CC32,AL32,AO32)) ->  | CZ32: 0 | DA32: 0 | DB32: 0 | DC32: 0 | DD32: 0 | DE32: =IF(CK32="","",IF(CL32=1,YcCi(CR32,J32),YcTr(J32,CQ32,CU32))) ->  | DF32: =IF(CK32="","",IF(CL32=1,Teta1(DE32,CR32),"-")) ->  | DI32: =IF(CK32="","",IF(CL32=1,Ynci(CR32,J32,CT32,CV32),YnTr(1,CT32,CQ32,CU32,CV32,J32))) ->  | DJ32: =IF(CK32="","",IF(CL32=1,Teta1(DI32,CR32),"-")) ->  | DK32: =IF(CK32="","",IF(CL32=1,AreaCi(CR32,J32),AreaTr(CQ32,CU32,DI32))) ->  | DL32: =IF(CK32="","",IF(CL32=1,FrCi(DM32,9.806,DJ32,CR32),FrTr(DM32,9.806,CQ32,CU32,DI32))) ->  | DN32: =IF(CK32="","",IF(CL32=1,LOOKUP(CP32,'Vmáx(material) - Tab.4.3'!$L$2:$L$11,'Vmáx(material) - Tab.4.3'!$M$2:$M$11),LOOKUP(CP32,'Vmáx(material) - Tab.4.3'!$L$15,'Vmáx(material) - Tab.4.3'!$M$15))) ->  | DO32: =IF(CK32="","",VLOOKUP($CO32,'Vmáx(material) - Tab.4.3'!$R$35:$X$41,2)) ->  | DP32: =IF(CK32="","",VLOOKUP($CO32,'Vmáx(material) - Tab.4.3'!$R$35:$X$41,3)) ->  | DQ32: =IF(CK32="","",VLOOKUP($CO32,'Vmáx(material) - Tab.4.3'!$R$35:$X$41,4)) ->  | DR32: =IF(CK32="","",VLOOKUP($CO32,'Vmáx(material) - Tab.4.3'!$R$35:$X$41,5)) ->  | DS32: =IF(CK32="","",VLOOKUP($CO32,'Vmáx(material) - Tab.4.3'!$R$35:$X$41,6)) ->  | DT32: =IF(CK32="","",IF(CK32="","",VLOOKUP(CO32,'Vmáx(material) - Tab.4.3'!$R$35:$X$41,7))) ->  | DU32: =IF(CK32="","",IF(CL32=1,FCi(J32,CR32),FTr(J32,CQ32,CR32))) ->  | DW32: =IF(CK32="","",Hw(DO32,DP32,DQ32,DR32,DS32,DT32,Z,DU32,CV32,CR32)) ->  | EC32: =IF(CK32="","",IF(CL32=1,PeriCi(CR32,DI32),PeriTr(CQ32,CU32,DI32))) ->  | ED32: =IF(CK32="","",IF(CL32=1,AreaCi(CR32,DI32),AreaTr(CQ32,CU32,DI32))) ->  | EE32: =IF(CK32="","",RhCi(DK32,EC32)) ->  | EG32: =IF(CK32="","",hf(CS32,J32,CT32,DK32,EE32)) ->  | EH32: =IF(CK32="","",LOOKUP(CW32,Tab.4.5!$J$6:$J$27,Tab.4.5!$L$6:$L$27)) ->  | EI32: =IF(CK32="","",He(EH32,DM32)) ->  | EJ32: =IF(CK32="","",Hs(DM32)) ->  | EK32: =IF(CK32="","",Hm(EB32,EG32,EI32,EJ32,CS32,CV32)) ->  | ER32: K45+-45000 () | ES32: =IF(B32="Existe.",IF(AE32=1,CONCATENATE(#REF!,AK32," m."),CONCATENATE(#REF!,AJ32," m x ",AK32," m.")),IF(CL32=1,CONCATENATE(#REF!,CR32," m."),CONCATENATE(#REF!,CQ32," m x ",CR32," m."))) ->  | ET32: Concreto, L = m, S = 0 %. | EU32: Cota clave eje= 0 msnm. | FD32: =IF(EV32="","",VLOOKUP(EY32,'Estructura escalonada'!$D$3:$H$953,2)) -> 
L33: 0 | N33: 0 | U33: =IF(K33="No","",IF(O33="",YcCi(P33,N33),YcTr(N33,O33,S33))) ->  | V33: =IF(K33="No","",IF(O33="",Teta1(U33,P33),"-")) ->  | Y33: =IF(K33="No","",IF(O33="",Ynci(P33,N33,R33,T33),YnTr(1,R33,O33,S33,T33,N33))) ->  | Z33: =IF(K33="No","",IF(O33="",Teta1(Y33,P33),"-")) ->  | AA33: =IF(K33="No","",IF(O33="",AreaCi(P33,Y33),AreaTr(O33,S33,Y33))) ->  | AB33: =IF(K33="No","",IF(O33="",FrCi(AC33,9.806,Z33,P33),FrTr(AC33,9.806,O33,S33,Y33))) ->  | AS33: 0 | AT33: 0 | AX33: =IF(AD33="","",IF(AE33=1,YcCi(AK33,J33),YcTr(J33,AJ33,AN33))) ->  | AY33: =IF(AD33="","",IF(AE33=1,Teta1(AX33,AK33),"-")) ->  | AZ33: =IF(AD33="","",IF(AE33=1,AreaCi(AK33,AX33),AreaTr(AJ33,AN33,AX33))) ->  | BB33: =IF(AD33="","",IF(AE33=1,Ynci(AK33,J33,AM33,AO33),YnTr(1,AM33,AJ33,AN33,AO33,J33))) ->  | BC33: =IF(AD33="","",IF(AE33=1,Teta1(BB33,AK33),"-")) ->  | BD33: =IF(AD33="","",IF(AE33=1,AreaCi(AK33,BB33),AreaTr(AJ33,AN33,BB33))) ->  | BE33: =IF(AD33="","",IF(AE33=1,FrCi(BF33,9.806,BC33,AK33),FrTr(BF33,9.806,AJ33,AN33,BB33))) ->  | BG33: =IF(AD33="","",IF(AE33=1,LOOKUP(AI33,'Vmáx(material) - Tab.4.3'!$L$2:$L$11,'Vmáx(material) - Tab.4.3'!$M$2:$M$11),LOOKUP(AI33,'Vmáx(material) - Tab.4.3'!$L$15,'Vmáx(material) - Tab.4.3'!$M$15))) ->  | BH33: =IF(AD33="","",VLOOKUP($AH33,'Vmáx(material) - Tab.4.3'!$R$35:$X$41,2)) ->  | BI33: =IF(AD33="","",VLOOKUP($AH33,'Vmáx(material) - Tab.4.3'!$R$35:$X$41,3)) ->  | BJ33: =IF(AD33="","",VLOOKUP($AH33,'Vmáx(material) - Tab.4.3'!$R$35:$X$41,4)) ->  | BK33: =IF(AD33="","",VLOOKUP($AH33,'Vmáx(material) - Tab.4.3'!$R$35:$X$41,5)) ->  | BL33: =IF(AD33="","",VLOOKUP($AH33,'Vmáx(material) - Tab.4.3'!$R$35:$X$41,6)) ->  | BM33: =IF(AD33="","",IF(AD33="","",VLOOKUP($AH33,'Vmáx(material) - Tab.4.3'!$R$35:$X$41,7))) ->  | BN33: =IF(AD33="","",IF(AE33=1,FCi(J33,AK33),FTr(J33,AJ33,AK33))) ->  | BP33: =IF(AD33="","",Hw(BH33,BI33,BJ33,BK33,BL33,BM33,Z,BN33,AO33,AK33)) ->  | BU33: =IF(AD33="","",ho(BT33,AK33,AX33)) ->  | BV33: =IF(AD33="","",IF(AE33=1,PeriCi(AK33,BB33),PeriTr(AJ33,AN33,BB33))) ->  | BW33: =IF(AD33="","",IF(AE33=1,AreaCi(AK33,BB33),AreaTr(AJ33,AN33,BB33))) ->  | BX33: =IF(AD33="","",RhCi(BW33,BV33)) ->  | BZ33: =IF(AD33="","",hf(AL33,J33,AM33,BW33,BX33)) ->  | CA33: =IF(AD33="","",LOOKUP(AP33,Tab.4.5!$J$6:$J$27,Tab.4.5!$L$6:$L$27)) ->  | CB33: =IF(AD33="","",He(CA33,BY33)) ->  | CC33: =IF(AD33="","",Hs(BY33)) ->  | CD33: =IF(AD33="","",Hm(BU33,BZ33,CB33,CC33,AL33,AO33)) ->  | CZ33: 0 | DA33: 0 | DB33: 0 | DC33: 0 | DD33: 0 | DE33: =IF(CK33="","",IF(CL33=1,YcCi(CR33,J33),YcTr(J33,CQ33,CU33))) ->  | DF33: =IF(CK33="","",IF(CL33=1,Teta1(DE33,CR33),"-")) ->  | DI33: =IF(CK33="","",IF(CL33=1,Ynci(CR33,J33,CT33,CV33),YnTr(1,CT33,CQ33,CU33,CV33,J33))) ->  | DJ33: =IF(CK33="","",IF(CL33=1,Teta1(DI33,CR33),"-")) ->  | DK33: =IF(CK33="","",IF(CL33=1,AreaCi(CR33,J33),AreaTr(CQ33,CU33,DI33))) ->  | DL33: =IF(CK33="","",IF(CL33=1,FrCi(DM33,9.806,DJ33,CR33),FrTr(DM33,9.806,CQ33,CU33,DI33))) ->  | DN33: =IF(CK33="","",IF(CL33=1,LOOKUP(CP33,'Vmáx(material) - Tab.4.3'!$L$2:$L$11,'Vmáx(material) - Tab.4.3'!$M$2:$M$11),LOOKUP(CP33,'Vmáx(material) - Tab.4.3'!$L$15,'Vmáx(material) - Tab.4.3'!$M$15))) ->  | DO33: =IF(CK33="","",VLOOKUP($CO33,'Vmáx(material) - Tab.4.3'!$R$35:$X$41,2)) ->  | DP33: =IF(CK33="","",VLOOKUP($CO33,'Vmáx(material) - Tab.4.3'!$R$35:$X$41,3)) ->  | DQ33: =IF(CK33="","",VLOOKUP($CO33,'Vmáx(material) - Tab.4.3'!$R$35:$X$41,4)) ->  | DR33: =IF(CK33="","",VLOOKUP($CO33,'Vmáx(material) - Tab.4.3'!$R$35:$X$41,5)) ->  | DS33: =IF(CK33="","",VLOOKUP($CO33,'Vmáx(material) - Tab.4.3'!$R$35:$X$41,6)) ->  | DT33: =IF(CK33="","",IF(CK33="","",VLOOKUP(CO33,'Vmáx(material) - Tab.4.3'!$R$35:$X$41,7))) ->  | DU33: =IF(CK33="","",IF(CL33=1,FCi(J33,CR33),FTr(J33,CQ33,CR33))) ->  | DW33: =IF(CK33="","",Hw(DO33,DP33,DQ33,DR33,DS33,DT33,Z,DU33,CV33,CR33)) ->  | EC33: =IF(CK33="","",IF(CL33=1,PeriCi(CR33,DI33),PeriTr(CQ33,CU33,DI33))) ->  | ED33: =IF(CK33="","",IF(CL33=1,AreaCi(CR33,DI33),AreaTr(CQ33,CU33,DI33))) ->  | EE33: =IF(CK33="","",RhCi(DK33,EC33)) ->  | EG33: =IF(CK33="","",hf(CS33,J33,CT33,DK33,EE33)) ->  | EH33: =IF(CK33="","",LOOKUP(CW33,Tab.4.5!$J$6:$J$27,Tab.4.5!$L$6:$L$27)) ->  | EI33: =IF(CK33="","",He(EH33,DM33)) ->  | EJ33: =IF(CK33="","",Hs(DM33)) ->  | EK33: =IF(CK33="","",Hm(EB33,EG33,EI33,EJ33,CS33,CV33)) ->  | ER33: K45+-45000 () | ES33: =IF(B33="Existe.",IF(AE33=1,CONCATENATE(#REF!,AK33," m."),CONCATENATE(#REF!,AJ33," m x ",AK33," m.")),IF(CL33=1,CONCATENATE(#REF!,CR33," m."),CONCATENATE(#REF!,CQ33," m x ",CR33," m."))) ->  | ET33: Concreto, L = m, S = 0 %. | EU33: Cota clave eje= 0 msnm. | FD33: =IF(EV33="","",VLOOKUP(EY33,'Estructura escalonada'!$D$3:$H$953,2)) -> 
L34: 0 | N34: 0 | U34: =IF(K34="No","",IF(O34="",YcCi(P34,N34),YcTr(N34,O34,S34))) ->  | V34: =IF(K34="No","",IF(O34="",Teta1(U34,P34),"-")) ->  | Y34: =IF(K34="No","",IF(O34="",Ynci(P34,N34,R34,T34),YnTr(1,R34,O34,S34,T34,N34))) ->  | Z34: =IF(K34="No","",IF(O34="",Teta1(Y34,P34),"-")) ->  | AA34: =IF(K34="No","",IF(O34="",AreaCi(P34,Y34),AreaTr(O34,S34,Y34))) ->  | AB34: =IF(K34="No","",IF(O34="",FrCi(AC34,9.806,Z34,P34),FrTr(AC34,9.806,O34,S34,Y34))) ->  | AS34: 0 | AT34: 0 | AX34: =IF(AD34="","",IF(AE34=1,YcCi(AK34,J34),YcTr(J34,AJ34,AN34))) ->  | AY34: =IF(AD34="","",IF(AE34=1,Teta1(AX34,AK34),"-")) ->  | AZ34: =IF(AD34="","",IF(AE34=1,AreaCi(AK34,AX34),AreaTr(AJ34,AN34,AX34))) ->  | BB34: =IF(AD34="","",IF(AE34=1,Ynci(AK34,J34,AM34,AO34),YnTr(1,AM34,AJ34,AN34,AO34,J34))) ->  | BC34: =IF(AD34="","",IF(AE34=1,Teta1(BB34,AK34),"-")) ->  | BD34: =IF(AD34="","",IF(AE34=1,AreaCi(AK34,BB34),AreaTr(AJ34,AN34,BB34))) ->  | BE34: =IF(AD34="","",IF(AE34=1,FrCi(BF34,9.806,BC34,AK34),FrTr(BF34,9.806,AJ34,AN34,BB34))) ->  | BG34: =IF(AD34="","",IF(AE34=1,LOOKUP(AI34,'Vmáx(material) - Tab.4.3'!$L$2:$L$11,'Vmáx(material) - Tab.4.3'!$M$2:$M$11),LOOKUP(AI34,'Vmáx(material) - Tab.4.3'!$L$15,'Vmáx(material) - Tab.4.3'!$M$15))) ->  | BH34: =IF(AD34="","",VLOOKUP($AH34,'Vmáx(material) - Tab.4.3'!$R$35:$X$41,2)) ->  | BI34: =IF(AD34="","",VLOOKUP($AH34,'Vmáx(material) - Tab.4.3'!$R$35:$X$41,3)) ->  | BJ34: =IF(AD34="","",VLOOKUP($AH34,'Vmáx(material) - Tab.4.3'!$R$35:$X$41,4)) ->  | BK34: =IF(AD34="","",VLOOKUP($AH34,'Vmáx(material) - Tab.4.3'!$R$35:$X$41,5)) ->  | BL34: =IF(AD34="","",VLOOKUP($AH34,'Vmáx(material) - Tab.4.3'!$R$35:$X$41,6)) ->  | BM34: =IF(AD34="","",IF(AD34="","",VLOOKUP($AH34,'Vmáx(material) - Tab.4.3'!$R$35:$X$41,7))) ->  | BN34: =IF(AD34="","",IF(AE34=1,FCi(J34,AK34),FTr(J34,AJ34,AK34))) ->  | BP34: =IF(AD34="","",Hw(BH34,BI34,BJ34,BK34,BL34,BM34,Z,BN34,AO34,AK34)) ->  | BU34: =IF(AD34="","",ho(BT34,AK34,AX34)) ->  | BV34: =IF(AD34="","",IF(AE34=1,PeriCi(AK34,BB34),PeriTr(AJ34,AN34,BB34))) ->  | BW34: =IF(AD34="","",IF(AE34=1,AreaCi(AK34,BB34),AreaTr(AJ34,AN34,BB34))) ->  | BX34: =IF(AD34="","",RhCi(BW34,BV34)) ->  | BZ34: =IF(AD34="","",hf(AL34,J34,AM34,BW34,BX34)) ->  | CA34: =IF(AD34="","",LOOKUP(AP34,Tab.4.5!$J$6:$J$27,Tab.4.5!$L$6:$L$27)) ->  | CB34: =IF(AD34="","",He(CA34,BY34)) ->  | CC34: =IF(AD34="","",Hs(BY34)) ->  | CD34: =IF(AD34="","",Hm(BU34,BZ34,CB34,CC34,AL34,AO34)) ->  | CZ34: 0 | DA34: 0 | DB34: 0 | DC34: 0 | DD34: 0 | DE34: =IF(CK34="","",IF(CL34=1,YcCi(CR34,J34),YcTr(J34,CQ34,CU34))) ->  | DF34: =IF(CK34="","",IF(CL34=1,Teta1(DE34,CR34),"-")) ->  | DI34: =IF(CK34="","",IF(CL34=1,Ynci(CR34,J34,CT34,CV34),YnTr(1,CT34,CQ34,CU34,CV34,J34))) ->  | DJ34: =IF(CK34="","",IF(CL34=1,Teta1(DI34,CR34),"-")) ->  | DK34: =IF(CK34="","",IF(CL34=1,AreaCi(CR34,J34),AreaTr(CQ34,CU34,DI34))) ->  | DL34: =IF(CK34="","",IF(CL34=1,FrCi(DM34,9.806,DJ34,CR34),FrTr(DM34,9.806,CQ34,CU34,DI34))) ->  | DN34: =IF(CK34="","",IF(CL34=1,LOOKUP(CP34,'Vmáx(material) - Tab.4.3'!$L$2:$L$11,'Vmáx(material) - Tab.4.3'!$M$2:$M$11),LOOKUP(CP34,'Vmáx(material) - Tab.4.3'!$L$15,'Vmáx(material) - Tab.4.3'!$M$15))) ->  | DO34: =IF(CK34="","",VLOOKUP($CO34,'Vmáx(material) - Tab.4.3'!$R$35:$X$41,2)) ->  | DP34: =IF(CK34="","",VLOOKUP($CO34,'Vmáx(material) - Tab.4.3'!$R$35:$X$41,3)) ->  | DQ34: =IF(CK34="","",VLOOKUP($CO34,'Vmáx(material) - Tab.4.3'!$R$35:$X$41,4)) ->  | DR34: =IF(CK34="","",VLOOKUP($CO34,'Vmáx(material) - Tab.4.3'!$R$35:$X$41,5)) ->  | DS34: =IF(CK34="","",VLOOKUP($CO34,'Vmáx(material) - Tab.4.3'!$R$35:$X$41,6)) ->  | DT34: =IF(CK34="","",IF(CK34="","",VLOOKUP(CO34,'Vmáx(material) - Tab.4.3'!$R$35:$X$41,7))) ->  | DU34: =IF(CK34="","",IF(CL34=1,FCi(J34,CR34),FTr(J34,CQ34,CR34))) ->  | DW34: =IF(CK34="","",Hw(DO34,DP34,DQ34,DR34,DS34,DT34,Z,DU34,CV34,CR34)) ->  | EC34: =IF(CK34="","",IF(CL34=1,PeriCi(CR34,DI34),PeriTr(CQ34,CU34,DI34))) ->  | ED34: =IF(CK34="","",IF(CL34=1,AreaCi(CR34,DI34),AreaTr(CQ34,CU34,DI34))) ->  | EE34: =IF(CK34="","",RhCi(DK34,EC34)) ->  | EG34: =IF(CK34="","",hf(CS34,J34,CT34,DK34,EE34)) ->  | EH34: =IF(CK34="","",LOOKUP(CW34,Tab.4.5!$J$6:$J$27,Tab.4.5!$L$6:$L$27)) ->  | EI34: =IF(CK34="","",He(EH34,DM34)) ->  | EJ34: =IF(CK34="","",Hs(DM34)) ->  | EK34: =IF(CK34="","",Hm(EB34,EG34,EI34,EJ34,CS34,CV34)) ->  | ER34: K45+-45000 () | ES34: =IF(B34="Existe.",IF(AE34=1,CONCATENATE(#REF!,AK34," m."),CONCATENATE(#REF!,AJ34," m x ",AK34," m.")),IF(CL34=1,CONCATENATE(#REF!,CR34," m."),CONCATENATE(#REF!,CQ34," m x ",CR34," m."))) ->  | ET34: Concreto, L = m, S = 0 %. | EU34: Cota clave eje= 0 msnm. | FD34: =IF(EV34="","",VLOOKUP(EY34,'Estructura escalonada'!$D$3:$H$953,2)) -> 
L35: 0 | N35: 0 | U35: =IF(K35="No","",IF(O35="",YcCi(P35,N35),YcTr(N35,O35,S35))) ->  | V35: =IF(K35="No","",IF(O35="",Teta1(U35,P35),"-")) ->  | Y35: =IF(K35="No","",IF(O35="",Ynci(P35,N35,R35,T35),YnTr(1,R35,O35,S35,T35,N35))) ->  | Z35: =IF(K35="No","",IF(O35="",Teta1(Y35,P35),"-")) ->  | AA35: =IF(K35="No","",IF(O35="",AreaCi(P35,Y35),AreaTr(O35,S35,Y35))) ->  | AB35: =IF(K35="No","",IF(O35="",FrCi(AC35,9.806,Z35,P35),FrTr(AC35,9.806,O35,S35,Y35))) ->  | AS35: 0 | AT35: 0 | AX35: =IF(AD35="","",IF(AE35=1,YcCi(AK35,J35),YcTr(J35,AJ35,AN35))) ->  | AY35: =IF(AD35="","",IF(AE35=1,Teta1(AX35,AK35),"-")) ->  | AZ35: =IF(AD35="","",IF(AE35=1,AreaCi(AK35,AX35),AreaTr(AJ35,AN35,AX35))) ->  | BB35: =IF(AD35="","",IF(AE35=1,Ynci(AK35,J35,AM35,AO35),YnTr(1,AM35,AJ35,AN35,AO35,J35))) ->  | BC35: =IF(AD35="","",IF(AE35=1,Teta1(BB35,AK35),"-")) ->  | BD35: =IF(AD35="","",IF(AE35=1,AreaCi(AK35,BB35),AreaTr(AJ35,AN35,BB35))) ->  | BE35: =IF(AD35="","",IF(AE35=1,FrCi(BF35,9.806,BC35,AK35),FrTr(BF35,9.806,AJ35,AN35,BB35))) ->  | BG35: =IF(AD35="","",IF(AE35=1,LOOKUP(AI35,'Vmáx(material) - Tab.4.3'!$L$2:$L$11,'Vmáx(material) - Tab.4.3'!$M$2:$M$11),LOOKUP(AI35,'Vmáx(material) - Tab.4.3'!$L$15,'Vmáx(material) - Tab.4.3'!$M$15))) ->  | BH35: =IF(AD35="","",VLOOKUP($AH35,'Vmáx(material) - Tab.4.3'!$R$35:$X$41,2)) ->  | BI35: =IF(AD35="","",VLOOKUP($AH35,'Vmáx(material) - Tab.4.3'!$R$35:$X$41,3)) ->  | BJ35: =IF(AD35="","",VLOOKUP($AH35,'Vmáx(material) - Tab.4.3'!$R$35:$X$41,4)) ->  | BK35: =IF(AD35="","",VLOOKUP($AH35,'Vmáx(material) - Tab.4.3'!$R$35:$X$41,5)) ->  | BL35: =IF(AD35="","",VLOOKUP($AH35,'Vmáx(material) - Tab.4.3'!$R$35:$X$41,6)) ->  | BM35: =IF(AD35="","",IF(AD35="","",VLOOKUP($AH35,'Vmáx(material) - Tab.4.3'!$R$35:$X$41,7))) ->  | BN35: =IF(AD35="","",IF(AE35=1,FCi(J35,AK35),FTr(J35,AJ35,AK35))) ->  | BP35: =IF(AD35="","",Hw(BH35,BI35,BJ35,BK35,BL35,BM35,Z,BN35,AO35,AK35)) ->  | BU35: =IF(AD35="","",ho(BT35,AK35,AX35)) ->  | BV35: =IF(AD35="","",IF(AE35=1,PeriCi(AK35,BB35),PeriTr(AJ35,AN35,BB35))) ->  | BW35: =IF(AD35="","",IF(AE35=1,AreaCi(AK35,BB35),AreaTr(AJ35,AN35,BB35))) ->  | BX35: =IF(AD35="","",RhCi(BW35,BV35)) ->  | BZ35: =IF(AD35="","",hf(AL35,J35,AM35,BW35,BX35)) ->  | CA35: =IF(AD35="","",LOOKUP(AP35,Tab.4.5!$J$6:$J$27,Tab.4.5!$L$6:$L$27)) ->  | CB35: =IF(AD35="","",He(CA35,BY35)) ->  | CC35: =IF(AD35="","",Hs(BY35)) ->  | CD35: =IF(AD35="","",Hm(BU35,BZ35,CB35,CC35,AL35,AO35)) ->  | CZ35: 0 | DA35: 0 | DB35: 0 | DC35: 0 | DD35: 0 | DE35: =IF(CK35="","",IF(CL35=1,YcCi(CR35,J35),YcTr(J35,CQ35,CU35))) ->  | DF35: =IF(CK35="","",IF(CL35=1,Teta1(DE35,CR35),"-")) ->  | DI35: =IF(CK35="","",IF(CL35=1,Ynci(CR35,J35,CT35,CV35),YnTr(1,CT35,CQ35,CU35,CV35,J35))) ->  | DJ35: =IF(CK35="","",IF(CL35=1,Teta1(DI35,CR35),"-")) ->  | DK35: =IF(CK35="","",IF(CL35=1,AreaCi(CR35,J35),AreaTr(CQ35,CU35,DI35))) ->  | DL35: =IF(CK35="","",IF(CL35=1,FrCi(DM35,9.806,DJ35,CR35),FrTr(DM35,9.806,CQ35,CU35,DI35))) ->  | DN35: =IF(CK35="","",IF(CL35=1,LOOKUP(CP35,'Vmáx(material) - Tab.4.3'!$L$2:$L$11,'Vmáx(material) - Tab.4.3'!$M$2:$M$11),LOOKUP(CP35,'Vmáx(material) - Tab.4.3'!$L$15,'Vmáx(material) - Tab.4.3'!$M$15))) ->  | DO35: =IF(CK35="","",VLOOKUP($CO35,'Vmáx(material) - Tab.4.3'!$R$35:$X$41,2)) ->  | DP35: =IF(CK35="","",VLOOKUP($CO35,'Vmáx(material) - Tab.4.3'!$R$35:$X$41,3)) ->  | DQ35: =IF(CK35="","",VLOOKUP($CO35,'Vmáx(material) - Tab.4.3'!$R$35:$X$41,4)) ->  | DR35: =IF(CK35="","",VLOOKUP($CO35,'Vmáx(material) - Tab.4.3'!$R$35:$X$41,5)) ->  | DS35: =IF(CK35="","",VLOOKUP($CO35,'Vmáx(material) - Tab.4.3'!$R$35:$X$41,6)) ->  | DT35: =IF(CK35="","",IF(CK35="","",VLOOKUP(CO35,'Vmáx(material) - Tab.4.3'!$R$35:$X$41,7))) ->  | DU35: =IF(CK35="","",IF(CL35=1,FCi(J35,CR35),FTr(J35,CQ35,CR35))) ->  | DW35: =IF(CK35="","",Hw(DO35,DP35,DQ35,DR35,DS35,DT35,Z,DU35,CV35,CR35)) ->  | EC35: =IF(CK35="","",IF(CL35=1,PeriCi(CR35,DI35),PeriTr(CQ35,CU35,DI35))) ->  | ED35: =IF(CK35="","",IF(CL35=1,AreaCi(CR35,DI35),AreaTr(CQ35,CU35,DI35))) ->  | EE35: =IF(CK35="","",RhCi(DK35,EC35)) ->  | EG35: =IF(CK35="","",hf(CS35,J35,CT35,DK35,EE35)) ->  | EH35: =IF(CK35="","",LOOKUP(CW35,Tab.4.5!$J$6:$J$27,Tab.4.5!$L$6:$L$27)) ->  | EI35: =IF(CK35="","",He(EH35,DM35)) ->  | EJ35: =IF(CK35="","",Hs(DM35)) ->  | EK35: =IF(CK35="","",Hm(EB35,EG35,EI35,EJ35,CS35,CV35)) ->  | ER35: K45+-45000 () | ES35: =IF(B35="Existe.",IF(AE35=1,CONCATENATE(#REF!,AK35," m."),CONCATENATE(#REF!,AJ35," m x ",AK35," m.")),IF(CL35=1,CONCATENATE(#REF!,CR35," m."),CONCATENATE(#REF!,CQ35," m x ",CR35," m."))) ->  | ET35: Concreto, L = m, S = 0 %. | EU35: Cota clave eje= 0 msnm. | FD35: =IF(EV35="","",VLOOKUP(EY35,'Estructura escalonada'!$D$3:$H$953,2)) -> 
L36: 0 | N36: 0 | U36: =IF(K36="No","",IF(O36="",YcCi(P36,N36),YcTr(N36,O36,S36))) ->  | V36: =IF(K36="No","",IF(O36="",Teta1(U36,P36),"-")) ->  | Y36: =IF(K36="No","",IF(O36="",Ynci(P36,N36,R36,T36),YnTr(1,R36,O36,S36,T36,N36))) ->  | Z36: =IF(K36="No","",IF(O36="",Teta1(Y36,P36),"-")) ->  | AA36: =IF(K36="No","",IF(O36="",AreaCi(P36,Y36),AreaTr(O36,S36,Y36))) ->  | AB36: =IF(K36="No","",IF(O36="",FrCi(AC36,9.806,Z36,P36),FrTr(AC36,9.806,O36,S36,Y36))) ->  | AS36: 0 | AT36: 0 | AX36: =IF(AD36="","",IF(AE36=1,YcCi(AK36,J36),YcTr(J36,AJ36,AN36))) ->  | AY36: =IF(AD36="","",IF(AE36=1,Teta1(AX36,AK36),"-")) ->  | AZ36: =IF(AD36="","",IF(AE36=1,AreaCi(AK36,AX36),AreaTr(AJ36,AN36,AX36))) ->  | BB36: =IF(AD36="","",IF(AE36=1,Ynci(AK36,J36,AM36,AO36),YnTr(1,AM36,AJ36,AN36,AO36,J36))) ->  | BC36: =IF(AD36="","",IF(AE36=1,Teta1(BB36,AK36),"-")) ->  | BD36: =IF(AD36="","",IF(AE36=1,AreaCi(AK36,BB36),AreaTr(AJ36,AN36,BB36))) ->  | BE36: =IF(AD36="","",IF(AE36=1,FrCi(BF36,9.806,BC36,AK36),FrTr(BF36,9.806,AJ36,AN36,BB36))) ->  | BG36: =IF(AD36="","",IF(AE36=1,LOOKUP(AI36,'Vmáx(material) - Tab.4.3'!$L$2:$L$11,'Vmáx(material) - Tab.4.3'!$M$2:$M$11),LOOKUP(AI36,'Vmáx(material) - Tab.4.3'!$L$15,'Vmáx(material) - Tab.4.3'!$M$15))) ->  | BH36: =IF(AD36="","",VLOOKUP($AH36,'Vmáx(material) - Tab.4.3'!$R$35:$X$41,2)) ->  | BI36: =IF(AD36="","",VLOOKUP($AH36,'Vmáx(material) - Tab.4.3'!$R$35:$X$41,3)) ->  | BJ36: =IF(AD36="","",VLOOKUP($AH36,'Vmáx(material) - Tab.4.3'!$R$35:$X$41,4)) ->  | BK36: =IF(AD36="","",VLOOKUP($AH36,'Vmáx(material) - Tab.4.3'!$R$35:$X$41,5)) ->  | BL36: =IF(AD36="","",VLOOKUP($AH36,'Vmáx(material) - Tab.4.3'!$R$35:$X$41,6)) ->  | BM36: =IF(AD36="","",IF(AD36="","",VLOOKUP($AH36,'Vmáx(material) - Tab.4.3'!$R$35:$X$41,7))) ->  | BN36: =IF(AD36="","",IF(AE36=1,FCi(J36,AK36),FTr(J36,AJ36,AK36))) ->  | BP36: =IF(AD36="","",Hw(BH36,BI36,BJ36,BK36,BL36,BM36,Z,BN36,AO36,AK36)) ->  | BU36: =IF(AD36="","",ho(BT36,AK36,AX36)) ->  | BV36: =IF(AD36="","",IF(AE36=1,PeriCi(AK36,BB36),PeriTr(AJ36,AN36,BB36))) ->  | BW36: =IF(AD36="","",IF(AE36=1,AreaCi(AK36,BB36),AreaTr(AJ36,AN36,BB36))) ->  | BX36: =IF(AD36="","",RhCi(BW36,BV36)) ->  | BZ36: =IF(AD36="","",hf(AL36,J36,AM36,BW36,BX36)) ->  | CA36: =IF(AD36="","",LOOKUP(AP36,Tab.4.5!$J$6:$J$27,Tab.4.5!$L$6:$L$27)) ->  | CB36: =IF(AD36="","",He(CA36,BY36)) ->  | CC36: =IF(AD36="","",Hs(BY36)) ->  | CD36: =IF(AD36="","",Hm(BU36,BZ36,CB36,CC36,AL36,AO36)) ->  | CZ36: 0 | DA36: 0 | DB36: 0 | DC36: 0 | DD36: 0 | DE36: =IF(CK36="","",IF(CL36=1,YcCi(CR36,J36),YcTr(J36,CQ36,CU36))) ->  | DF36: =IF(CK36="","",IF(CL36=1,Teta1(DE36,CR36),"-")) ->  | DI36: =IF(CK36="","",IF(CL36=1,Ynci(CR36,J36,CT36,CV36),YnTr(1,CT36,CQ36,CU36,CV36,J36))) ->  | DJ36: =IF(CK36="","",IF(CL36=1,Teta1(DI36,CR36),"-")) ->  | DK36: =IF(CK36="","",IF(CL36=1,AreaCi(CR36,J36),AreaTr(CQ36,CU36,DI36))) ->  | DL36: =IF(CK36="","",IF(CL36=1,FrCi(DM36,9.806,DJ36,CR36),FrTr(DM36,9.806,CQ36,CU36,DI36))) ->  | DN36: =IF(CK36="","",IF(CL36=1,LOOKUP(CP36,'Vmáx(material) - Tab.4.3'!$L$2:$L$11,'Vmáx(material) - Tab.4.3'!$M$2:$M$11),LOOKUP(CP36,'Vmáx(material) - Tab.4.3'!$L$15,'Vmáx(material) - Tab.4.3'!$M$15))) ->  | DO36: =IF(CK36="","",VLOOKUP($CO36,'Vmáx(material) - Tab.4.3'!$R$35:$X$41,2)) ->  | DP36: =IF(CK36="","",VLOOKUP($CO36,'Vmáx(material) - Tab.4.3'!$R$35:$X$41,3)) ->  | DQ36: =IF(CK36="","",VLOOKUP($CO36,'Vmáx(material) - Tab.4.3'!$R$35:$X$41,4)) ->  | DR36: =IF(CK36="","",VLOOKUP($CO36,'Vmáx(material) - Tab.4.3'!$R$35:$X$41,5)) ->  | DS36: =IF(CK36="","",VLOOKUP($CO36,'Vmáx(material) - Tab.4.3'!$R$35:$X$41,6)) ->  | DT36: =IF(CK36="","",IF(CK36="","",VLOOKUP(CO36,'Vmáx(material) - Tab.4.3'!$R$35:$X$41,7))) ->  | DU36: =IF(CK36="","",IF(CL36=1,FCi(J36,CR36),FTr(J36,CQ36,CR36))) ->  | DW36: =IF(CK36="","",Hw(DO36,DP36,DQ36,DR36,DS36,DT36,Z,DU36,CV36,CR36)) ->  | EC36: =IF(CK36="","",IF(CL36=1,PeriCi(CR36,DI36),PeriTr(CQ36,CU36,DI36))) ->  | ED36: =IF(CK36="","",IF(CL36=1,AreaCi(CR36,DI36),AreaTr(CQ36,CU36,DI36))) ->  | EE36: =IF(CK36="","",RhCi(DK36,EC36)) ->  | EG36: =IF(CK36="","",hf(CS36,J36,CT36,DK36,EE36)) ->  | EH36: =IF(CK36="","",LOOKUP(CW36,Tab.4.5!$J$6:$J$27,Tab.4.5!$L$6:$L$27)) ->  | EI36: =IF(CK36="","",He(EH36,DM36)) ->  | EJ36: =IF(CK36="","",Hs(DM36)) ->  | EK36: =IF(CK36="","",Hm(EB36,EG36,EI36,EJ36,CS36,CV36)) ->  | ER36: K45+-45000 () | ES36: =IF(B36="Existe.",IF(AE36=1,CONCATENATE(#REF!,AK36," m."),CONCATENATE(#REF!,AJ36," m x ",AK36," m.")),IF(CL36=1,CONCATENATE(#REF!,CR36," m."),CONCATENATE(#REF!,CQ36," m x ",CR36," m."))) ->  | ET36: Concreto, L = m, S = 0 %. | EU36: Cota clave eje= 0 msnm. | FD36: =IF(EV36="","",VLOOKUP(EY36,'Estructura escalonada'!$D$3:$H$953,2)) -> 
L37: 0 | N37: 0 | U37: =IF(K37="No","",IF(O37="",YcCi(P37,N37),YcTr(N37,O37,S37))) ->  | V37: =IF(K37="No","",IF(O37="",Teta1(U37,P37),"-")) ->  | Y37: =IF(K37="No","",IF(O37="",Ynci(P37,N37,R37,T37),YnTr(1,R37,O37,S37,T37,N37))) ->  | Z37: =IF(K37="No","",IF(O37="",Teta1(Y37,P37),"-")) ->  | AA37: =IF(K37="No","",IF(O37="",AreaCi(P37,Y37),AreaTr(O37,S37,Y37))) ->  | AB37: =IF(K37="No","",IF(O37="",FrCi(AC37,9.806,Z37,P37),FrTr(AC37,9.806,O37,S37,Y37))) ->  | AS37: 0 | AT37: 0 | AX37: =IF(AD37="","",IF(AE37=1,YcCi(AK37,J37),YcTr(J37,AJ37,AN37))) ->  | AY37: =IF(AD37="","",IF(AE37=1,Teta1(AX37,AK37),"-")) ->  | AZ37: =IF(AD37="","",IF(AE37=1,AreaCi(AK37,AX37),AreaTr(AJ37,AN37,AX37))) ->  | BB37: =IF(AD37="","",IF(AE37=1,Ynci(AK37,J37,AM37,AO37),YnTr(1,AM37,AJ37,AN37,AO37,J37))) ->  | BC37: =IF(AD37="","",IF(AE37=1,Teta1(BB37,AK37),"-")) ->  | BD37: =IF(AD37="","",IF(AE37=1,AreaCi(AK37,BB37),AreaTr(AJ37,AN37,BB37))) ->  | BE37: =IF(AD37="","",IF(AE37=1,FrCi(BF37,9.806,BC37,AK37),FrTr(BF37,9.806,AJ37,AN37,BB37))) ->  | BG37: =IF(AD37="","",IF(AE37=1,LOOKUP(AI37,'Vmáx(material) - Tab.4.3'!$L$2:$L$11,'Vmáx(material) - Tab.4.3'!$M$2:$M$11),LOOKUP(AI37,'Vmáx(material) - Tab.4.3'!$L$15,'Vmáx(material) - Tab.4.3'!$M$15))) ->  | BH37: =IF(AD37="","",VLOOKUP($AH37,'Vmáx(material) - Tab.4.3'!$R$35:$X$41,2)) ->  | BI37: =IF(AD37="","",VLOOKUP($AH37,'Vmáx(material) - Tab.4.3'!$R$35:$X$41,3)) ->  | BJ37: =IF(AD37="","",VLOOKUP($AH37,'Vmáx(material) - Tab.4.3'!$R$35:$X$41,4)) ->  | BK37: =IF(AD37="","",VLOOKUP($AH37,'Vmáx(material) - Tab.4.3'!$R$35:$X$41,5)) ->  | BL37: =IF(AD37="","",VLOOKUP($AH37,'Vmáx(material) - Tab.4.3'!$R$35:$X$41,6)) ->  | BM37: =IF(AD37="","",IF(AD37="","",VLOOKUP($AH37,'Vmáx(material) - Tab.4.3'!$R$35:$X$41,7))) ->  | BN37: =IF(AD37="","",IF(AE37=1,FCi(J37,AK37),FTr(J37,AJ37,AK37))) ->  | BP37: =IF(AD37="","",Hw(BH37,BI37,BJ37,BK37,BL37,BM37,Z,BN37,AO37,AK37)) ->  | BU37: =IF(AD37="","",ho(BT37,AK37,AX37)) ->  | BV37: =IF(AD37="","",IF(AE37=1,PeriCi(AK37,BB37),PeriTr(AJ37,AN37,BB37))) ->  | BW37: =IF(AD37="","",IF(AE37=1,AreaCi(AK37,BB37),AreaTr(AJ37,AN37,BB37))) ->  | BX37: =IF(AD37="","",RhCi(BW37,BV37)) ->  | BZ37: =IF(AD37="","",hf(AL37,J37,AM37,BW37,BX37)) ->  | CA37: =IF(AD37="","",LOOKUP(AP37,Tab.4.5!$J$6:$J$27,Tab.4.5!$L$6:$L$27)) ->  | CB37: =IF(AD37="","",He(CA37,BY37)) ->  | CC37: =IF(AD37="","",Hs(BY37)) ->  | CD37: =IF(AD37="","",Hm(BU37,BZ37,CB37,CC37,AL37,AO37)) ->  | CZ37: 0 | DA37: 0 | DB37: 0 | DC37: 0 | DD37: 0 | DE37: =IF(CK37="","",IF(CL37=1,YcCi(CR37,J37),YcTr(J37,CQ37,CU37))) ->  | DF37: =IF(CK37="","",IF(CL37=1,Teta1(DE37,CR37),"-")) ->  | DI37: =IF(CK37="","",IF(CL37=1,Ynci(CR37,J37,CT37,CV37),YnTr(1,CT37,CQ37,CU37,CV37,J37))) ->  | DJ37: =IF(CK37="","",IF(CL37=1,Teta1(DI37,CR37),"-")) ->  | DK37: =IF(CK37="","",IF(CL37=1,AreaCi(CR37,J37),AreaTr(CQ37,CU37,DI37))) ->  | DL37: =IF(CK37="","",IF(CL37=1,FrCi(DM37,9.806,DJ37,CR37),FrTr(DM37,9.806,CQ37,CU37,DI37))) ->  | DN37: =IF(CK37="","",IF(CL37=1,LOOKUP(CP37,'Vmáx(material) - Tab.4.3'!$L$2:$L$11,'Vmáx(material) - Tab.4.3'!$M$2:$M$11),LOOKUP(CP37,'Vmáx(material) - Tab.4.3'!$L$15,'Vmáx(material) - Tab.4.3'!$M$15))) ->  | DO37: =IF(CK37="","",VLOOKUP($CO37,'Vmáx(material) - Tab.4.3'!$R$35:$X$41,2)) ->  | DP37: =IF(CK37="","",VLOOKUP($CO37,'Vmáx(material) - Tab.4.3'!$R$35:$X$41,3)) ->  | DQ37: =IF(CK37="","",VLOOKUP($CO37,'Vmáx(material) - Tab.4.3'!$R$35:$X$41,4)) ->  | DR37: =IF(CK37="","",VLOOKUP($CO37,'Vmáx(material) - Tab.4.3'!$R$35:$X$41,5)) ->  | DS37: =IF(CK37="","",VLOOKUP($CO37,'Vmáx(material) - Tab.4.3'!$R$35:$X$41,6)) ->  | DT37: =IF(CK37="","",IF(CK37="","",VLOOKUP(CO37,'Vmáx(material) - Tab.4.3'!$R$35:$X$41,7))) ->  | DU37: =IF(CK37="","",IF(CL37=1,FCi(J37,CR37),FTr(J37,CQ37,CR37))) ->  | DW37: =IF(CK37="","",Hw(DO37,DP37,DQ37,DR37,DS37,DT37,Z,DU37,CV37,CR37)) ->  | EC37: =IF(CK37="","",IF(CL37=1,PeriCi(CR37,DI37),PeriTr(CQ37,CU37,DI37))) ->  | ED37: =IF(CK37="","",IF(CL37=1,AreaCi(CR37,DI37),AreaTr(CQ37,CU37,DI37))) ->  | EE37: =IF(CK37="","",RhCi(DK37,EC37)) ->  | EG37: =IF(CK37="","",hf(CS37,J37,CT37,DK37,EE37)) ->  | EH37: =IF(CK37="","",LOOKUP(CW37,Tab.4.5!$J$6:$J$27,Tab.4.5!$L$6:$L$27)) ->  | EI37: =IF(CK37="","",He(EH37,DM37)) ->  | EJ37: =IF(CK37="","",Hs(DM37)) ->  | EK37: =IF(CK37="","",Hm(EB37,EG37,EI37,EJ37,CS37,CV37)) ->  | ER37: K45+-45000 () | ES37: =IF(B37="Existe.",IF(AE37=1,CONCATENATE(#REF!,AK37," m."),CONCATENATE(#REF!,AJ37," m x ",AK37," m.")),IF(CL37=1,CONCATENATE(#REF!,CR37," m."),CONCATENATE(#REF!,CQ37," m x ",CR37," m."))) ->  | ET37: Concreto, L = m, S = 0 %. | EU37: Cota clave eje= 0 msnm. | FD37: =IF(EV37="","",VLOOKUP(EY37,'Estructura escalonada'!$D$3:$H$953,2)) -> 
L38: 0 | N38: 0 | U38: =IF(K38="No","",IF(O38="",YcCi(P38,N38),YcTr(N38,O38,S38))) ->  | V38: =IF(K38="No","",IF(O38="",Teta1(U38,P38),"-")) ->  | Y38: =IF(K38="No","",IF(O38="",Ynci(P38,N38,R38,T38),YnTr(1,R38,O38,S38,T38,N38))) ->  | Z38: =IF(K38="No","",IF(O38="",Teta1(Y38,P38),"-")) ->  | AA38: =IF(K38="No","",IF(O38="",AreaCi(P38,Y38),AreaTr(O38,S38,Y38))) ->  | AB38: =IF(K38="No","",IF(O38="",FrCi(AC38,9.806,Z38,P38),FrTr(AC38,9.806,O38,S38,Y38))) ->  | AS38: 0 | AT38: 0 | AX38: =IF(AD38="","",IF(AE38=1,YcCi(AK38,J38),YcTr(J38,AJ38,AN38))) ->  | AY38: =IF(AD38="","",IF(AE38=1,Teta1(AX38,AK38),"-")) ->  | AZ38: =IF(AD38="","",IF(AE38=1,AreaCi(AK38,AX38),AreaTr(AJ38,AN38,AX38))) ->  | BB38: =IF(AD38="","",IF(AE38=1,Ynci(AK38,J38,AM38,AO38),YnTr(1,AM38,AJ38,AN38,AO38,J38))) ->  | BC38: =IF(AD38="","",IF(AE38=1,Teta1(BB38,AK38),"-")) ->  | BD38: =IF(AD38="","",IF(AE38=1,AreaCi(AK38,BB38),AreaTr(AJ38,AN38,BB38))) ->  | BE38: =IF(AD38="","",IF(AE38=1,FrCi(BF38,9.806,BC38,AK38),FrTr(BF38,9.806,AJ38,AN38,BB38))) ->  | BG38: =IF(AD38="","",IF(AE38=1,LOOKUP(AI38,'Vmáx(material) - Tab.4.3'!$L$2:$L$11,'Vmáx(material) - Tab.4.3'!$M$2:$M$11),LOOKUP(AI38,'Vmáx(material) - Tab.4.3'!$L$15,'Vmáx(material) - Tab.4.3'!$M$15))) ->  | BH38: =IF(AD38="","",VLOOKUP($AH38,'Vmáx(material) - Tab.4.3'!$R$35:$X$41,2)) ->  | BI38: =IF(AD38="","",VLOOKUP($AH38,'Vmáx(material) - Tab.4.3'!$R$35:$X$41,3)) ->  | BJ38: =IF(AD38="","",VLOOKUP($AH38,'Vmáx(material) - Tab.4.3'!$R$35:$X$41,4)) ->  | BK38: =IF(AD38="","",VLOOKUP($AH38,'Vmáx(material) - Tab.4.3'!$R$35:$X$41,5)) ->  | BL38: =IF(AD38="","",VLOOKUP($AH38,'Vmáx(material) - Tab.4.3'!$R$35:$X$41,6)) ->  | BM38: =IF(AD38="","",IF(AD38="","",VLOOKUP($AH38,'Vmáx(material) - Tab.4.3'!$R$35:$X$41,7))) ->  | BN38: =IF(AD38="","",IF(AE38=1,FCi(J38,AK38),FTr(J38,AJ38,AK38))) ->  | BP38: =IF(AD38="","",Hw(BH38,BI38,BJ38,BK38,BL38,BM38,Z,BN38,AO38,AK38)) ->  | BU38: =IF(AD38="","",ho(BT38,AK38,AX38)) ->  | BV38: =IF(AD38="","",IF(AE38=1,PeriCi(AK38,BB38),PeriTr(AJ38,AN38,BB38))) ->  | BW38: =IF(AD38="","",IF(AE38=1,AreaCi(AK38,BB38),AreaTr(AJ38,AN38,BB38))) ->  | BX38: =IF(AD38="","",RhCi(BW38,BV38)) ->  | BZ38: =IF(AD38="","",hf(AL38,J38,AM38,BW38,BX38)) ->  | CA38: =IF(AD38="","",LOOKUP(AP38,Tab.4.5!$J$6:$J$27,Tab.4.5!$L$6:$L$27)) ->  | CB38: =IF(AD38="","",He(CA38,BY38)) ->  | CC38: =IF(AD38="","",Hs(BY38)) ->  | CD38: =IF(AD38="","",Hm(BU38,BZ38,CB38,CC38,AL38,AO38)) ->  | CZ38: 0 | DA38: 0 | DB38: 0 | DC38: 0 | DD38: 0 | DE38: =IF(CK38="","",IF(CL38=1,YcCi(CR38,J38),YcTr(J38,CQ38,CU38))) ->  | DF38: =IF(CK38="","",IF(CL38=1,Teta1(DE38,CR38),"-")) ->  | DI38: =IF(CK38="","",IF(CL38=1,Ynci(CR38,J38,CT38,CV38),YnTr(1,CT38,CQ38,CU38,CV38,J38))) ->  | DJ38: =IF(CK38="","",IF(CL38=1,Teta1(DI38,CR38),"-")) ->  | DK38: =IF(CK38="","",IF(CL38=1,AreaCi(CR38,J38),AreaTr(CQ38,CU38,DI38))) ->  | DL38: =IF(CK38="","",IF(CL38=1,FrCi(DM38,9.806,DJ38,CR38),FrTr(DM38,9.806,CQ38,CU38,DI38))) ->  | DN38: =IF(CK38="","",IF(CL38=1,LOOKUP(CP38,'Vmáx(material) - Tab.4.3'!$L$2:$L$11,'Vmáx(material) - Tab.4.3'!$M$2:$M$11),LOOKUP(CP38,'Vmáx(material) - Tab.4.3'!$L$15,'Vmáx(material) - Tab.4.3'!$M$15))) ->  | DO38: =IF(CK38="","",VLOOKUP($CO38,'Vmáx(material) - Tab.4.3'!$R$35:$X$41,2)) ->  | DP38: =IF(CK38="","",VLOOKUP($CO38,'Vmáx(material) - Tab.4.3'!$R$35:$X$41,3)) ->  | DQ38: =IF(CK38="","",VLOOKUP($CO38,'Vmáx(material) - Tab.4.3'!$R$35:$X$41,4)) ->  | DR38: =IF(CK38="","",VLOOKUP($CO38,'Vmáx(material) - Tab.4.3'!$R$35:$X$41,5)) ->  | DS38: =IF(CK38="","",VLOOKUP($CO38,'Vmáx(material) - Tab.4.3'!$R$35:$X$41,6)) ->  | DT38: =IF(CK38="","",IF(CK38="","",VLOOKUP(CO38,'Vmáx(material) - Tab.4.3'!$R$35:$X$41,7))) ->  | DU38: =IF(CK38="","",IF(CL38=1,FCi(J38,CR38),FTr(J38,CQ38,CR38))) ->  | DW38: =IF(CK38="","",Hw(DO38,DP38,DQ38,DR38,DS38,DT38,Z,DU38,CV38,CR38)) ->  | EC38: =IF(CK38="","",IF(CL38=1,PeriCi(CR38,DI38),PeriTr(CQ38,CU38,DI38))) ->  | ED38: =IF(CK38="","",IF(CL38=1,AreaCi(CR38,DI38),AreaTr(CQ38,CU38,DI38))) ->  | EE38: =IF(CK38="","",RhCi(DK38,EC38)) ->  | EG38: =IF(CK38="","",hf(CS38,J38,CT38,DK38,EE38)) ->  | EH38: =IF(CK38="","",LOOKUP(CW38,Tab.4.5!$J$6:$J$27,Tab.4.5!$L$6:$L$27)) ->  | EI38: =IF(CK38="","",He(EH38,DM38)) ->  | EJ38: =IF(CK38="","",Hs(DM38)) ->  | EK38: =IF(CK38="","",Hm(EB38,EG38,EI38,EJ38,CS38,CV38)) ->  | ER38: K45+-45000 () | ES38: =IF(B38="Existe.",IF(AE38=1,CONCATENATE(#REF!,AK38," m."),CONCATENATE(#REF!,AJ38," m x ",AK38," m.")),IF(CL38=1,CONCATENATE(#REF!,CR38," m."),CONCATENATE(#REF!,CQ38," m x ",CR38," m."))) ->  | ET38: Concreto, L = m, S = 0 %. | EU38: Cota clave eje= 0 msnm. | FD38: =IF(EV38="","",VLOOKUP(EY38,'Estructura escalonada'!$D$3:$H$953,2)) -> 
L39: 0 | N39: 0 | U39: =IF(K39="No","",IF(O39="",YcCi(P39,N39),YcTr(N39,O39,S39))) ->  | V39: =IF(K39="No","",IF(O39="",Teta1(U39,P39),"-")) ->  | Y39: =IF(K39="No","",IF(O39="",Ynci(P39,N39,R39,T39),YnTr(1,R39,O39,S39,T39,N39))) ->  | Z39: =IF(K39="No","",IF(O39="",Teta1(Y39,P39),"-")) ->  | AA39: =IF(K39="No","",IF(O39="",AreaCi(P39,Y39),AreaTr(O39,S39,Y39))) ->  | AB39: =IF(K39="No","",IF(O39="",FrCi(AC39,9.806,Z39,P39),FrTr(AC39,9.806,O39,S39,Y39))) ->  | AS39: 0 | AT39: 0 | AX39: =IF(AD39="","",IF(AE39=1,YcCi(AK39,J39),YcTr(J39,AJ39,AN39))) ->  | AY39: =IF(AD39="","",IF(AE39=1,Teta1(AX39,AK39),"-")) ->  | AZ39: =IF(AD39="","",IF(AE39=1,AreaCi(AK39,AX39),AreaTr(AJ39,AN39,AX39))) ->  | BB39: =IF(AD39="","",IF(AE39=1,Ynci(AK39,J39,AM39,AO39),YnTr(1,AM39,AJ39,AN39,AO39,J39))) ->  | BC39: =IF(AD39="","",IF(AE39=1,Teta1(BB39,AK39),"-")) ->  | BD39: =IF(AD39="","",IF(AE39=1,AreaCi(AK39,BB39),AreaTr(AJ39,AN39,BB39))) ->  | BE39: =IF(AD39="","",IF(AE39=1,FrCi(BF39,9.806,BC39,AK39),FrTr(BF39,9.806,AJ39,AN39,BB39))) ->  | BG39: =IF(AD39="","",IF(AE39=1,LOOKUP(AI39,'Vmáx(material) - Tab.4.3'!$L$2:$L$11,'Vmáx(material) - Tab.4.3'!$M$2:$M$11),LOOKUP(AI39,'Vmáx(material) - Tab.4.3'!$L$15,'Vmáx(material) - Tab.4.3'!$M$15))) ->  | BH39: =IF(AD39="","",VLOOKUP($AH39,'Vmáx(material) - Tab.4.3'!$R$35:$X$41,2)) ->  | BI39: =IF(AD39="","",VLOOKUP($AH39,'Vmáx(material) - Tab.4.3'!$R$35:$X$41,3)) ->  | BJ39: =IF(AD39="","",VLOOKUP($AH39,'Vmáx(material) - Tab.4.3'!$R$35:$X$41,4)) ->  | BK39: =IF(AD39="","",VLOOKUP($AH39,'Vmáx(material) - Tab.4.3'!$R$35:$X$41,5)) ->  | BL39: =IF(AD39="","",VLOOKUP($AH39,'Vmáx(material) - Tab.4.3'!$R$35:$X$41,6)) ->  | BM39: =IF(AD39="","",IF(AD39="","",VLOOKUP($AH39,'Vmáx(material) - Tab.4.3'!$R$35:$X$41,7))) ->  | BN39: =IF(AD39="","",IF(AE39=1,FCi(J39,AK39),FTr(J39,AJ39,AK39))) ->  | BP39: =IF(AD39="","",Hw(BH39,BI39,BJ39,BK39,BL39,BM39,Z,BN39,AO39,AK39)) ->  | BU39: =IF(AD39="","",ho(BT39,AK39,AX39)) ->  | BV39: =IF(AD39="","",IF(AE39=1,PeriCi(AK39,BB39),PeriTr(AJ39,AN39,BB39))) ->  | BW39: =IF(AD39="","",IF(AE39=1,AreaCi(AK39,BB39),AreaTr(AJ39,AN39,BB39))) ->  | BX39: =IF(AD39="","",RhCi(BW39,BV39)) ->  | BZ39: =IF(AD39="","",hf(AL39,J39,AM39,BW39,BX39)) ->  | CA39: =IF(AD39="","",LOOKUP(AP39,Tab.4.5!$J$6:$J$27,Tab.4.5!$L$6:$L$27)) ->  | CB39: =IF(AD39="","",He(CA39,BY39)) ->  | CC39: =IF(AD39="","",Hs(BY39)) ->  | CD39: =IF(AD39="","",Hm(BU39,BZ39,CB39,CC39,AL39,AO39)) ->  | CZ39: 0 | DA39: 0 | DB39: 0 | DC39: 0 | DD39: 0 | DE39: =IF(CK39="","",IF(CL39=1,YcCi(CR39,J39),YcTr(J39,CQ39,CU39))) ->  | DF39: =IF(CK39="","",IF(CL39=1,Teta1(DE39,CR39),"-")) ->  | DI39: =IF(CK39="","",IF(CL39=1,Ynci(CR39,J39,CT39,CV39),YnTr(1,CT39,CQ39,CU39,CV39,J39))) ->  | DJ39: =IF(CK39="","",IF(CL39=1,Teta1(DI39,CR39),"-")) ->  | DK39: =IF(CK39="","",IF(CL39=1,AreaCi(CR39,J39),AreaTr(CQ39,CU39,DI39))) ->  | DL39: =IF(CK39="","",IF(CL39=1,FrCi(DM39,9.806,DJ39,CR39),FrTr(DM39,9.806,CQ39,CU39,DI39))) ->  | DN39: =IF(CK39="","",IF(CL39=1,LOOKUP(CP39,'Vmáx(material) - Tab.4.3'!$L$2:$L$11,'Vmáx(material) - Tab.4.3'!$M$2:$M$11),LOOKUP(CP39,'Vmáx(material) - Tab.4.3'!$L$15,'Vmáx(material) - Tab.4.3'!$M$15))) ->  | DO39: =IF(CK39="","",VLOOKUP($CO39,'Vmáx(material) - Tab.4.3'!$R$35:$X$41,2)) ->  | DP39: =IF(CK39="","",VLOOKUP($CO39,'Vmáx(material) - Tab.4.3'!$R$35:$X$41,3)) ->  | DQ39: =IF(CK39="","",VLOOKUP($CO39,'Vmáx(material) - Tab.4.3'!$R$35:$X$41,4)) ->  | DR39: =IF(CK39="","",VLOOKUP($CO39,'Vmáx(material) - Tab.4.3'!$R$35:$X$41,5)) ->  | DS39: =IF(CK39="","",VLOOKUP($CO39,'Vmáx(material) - Tab.4.3'!$R$35:$X$41,6)) ->  | DT39: =IF(CK39="","",IF(CK39="","",VLOOKUP(CO39,'Vmáx(material) - Tab.4.3'!$R$35:$X$41,7))) ->  | DU39: =IF(CK39="","",IF(CL39=1,FCi(J39,CR39),FTr(J39,CQ39,CR39))) ->  | DW39: =IF(CK39="","",Hw(DO39,DP39,DQ39,DR39,DS39,DT39,Z,DU39,CV39,CR39)) ->  | EC39: =IF(CK39="","",IF(CL39=1,PeriCi(CR39,DI39),PeriTr(CQ39,CU39,DI39))) ->  | ED39: =IF(CK39="","",IF(CL39=1,AreaCi(CR39,DI39),AreaTr(CQ39,CU39,DI39))) ->  | EE39: =IF(CK39="","",RhCi(DK39,EC39)) ->  | EG39: =IF(CK39="","",hf(CS39,J39,CT39,DK39,EE39)) ->  | EH39: =IF(CK39="","",LOOKUP(CW39,Tab.4.5!$J$6:$J$27,Tab.4.5!$L$6:$L$27)) ->  | EI39: =IF(CK39="","",He(EH39,DM39)) ->  | EJ39: =IF(CK39="","",Hs(DM39)) ->  | EK39: =IF(CK39="","",Hm(EB39,EG39,EI39,EJ39,CS39,CV39)) ->  | ER39: K45+-45000 () | ES39: =IF(B39="Existe.",IF(AE39=1,CONCATENATE(#REF!,AK39," m."),CONCATENATE(#REF!,AJ39," m x ",AK39," m.")),IF(CL39=1,CONCATENATE(#REF!,CR39," m."),CONCATENATE(#REF!,CQ39," m x ",CR39," m."))) ->  | ET39: Concreto, L = m, S = 0 %. | EU39: Cota clave eje= 0 msnm. | FD39: =IF(EV39="","",VLOOKUP(EY39,'Estructura escalonada'!$D$3:$H$953,2)) -> 
L40: 0 | N40: 0 | U40: =IF(K40="No","",IF(O40="",YcCi(P40,N40),YcTr(N40,O40,S40))) ->  | V40: =IF(K40="No","",IF(O40="",Teta1(U40,P40),"-")) ->  | Y40: =IF(K40="No","",IF(O40="",Ynci(P40,N40,R40,T40),YnTr(1,R40,O40,S40,T40,N40))) ->  | Z40: =IF(K40="No","",IF(O40="",Teta1(Y40,P40),"-")) ->  | AA40: =IF(K40="No","",IF(O40="",AreaCi(P40,Y40),AreaTr(O40,S40,Y40))) ->  | AB40: =IF(K40="No","",IF(O40="",FrCi(AC40,9.806,Z40,P40),FrTr(AC40,9.806,O40,S40,Y40))) ->  | AS40: 0 | AT40: 0 | AX40: =IF(AD40="","",IF(AE40=1,YcCi(AK40,J40),YcTr(J40,AJ40,AN40))) ->  | AY40: =IF(AD40="","",IF(AE40=1,Teta1(AX40,AK40),"-")) ->  | AZ40: =IF(AD40="","",IF(AE40=1,AreaCi(AK40,AX40),AreaTr(AJ40,AN40,AX40))) ->  | BB40: =IF(AD40="","",IF(AE40=1,Ynci(AK40,J40,AM40,AO40),YnTr(1,AM40,AJ40,AN40,AO40,J40))) ->  | BC40: =IF(AD40="","",IF(AE40=1,Teta1(BB40,AK40),"-")) ->  | BD40: =IF(AD40="","",IF(AE40=1,AreaCi(AK40,BB40),AreaTr(AJ40,AN40,BB40))) ->  | BE40: =IF(AD40="","",IF(AE40=1,FrCi(BF40,9.806,BC40,AK40),FrTr(BF40,9.806,AJ40,AN40,BB40))) ->  | BG40: =IF(AD40="","",IF(AE40=1,LOOKUP(AI40,'Vmáx(material) - Tab.4.3'!$L$2:$L$11,'Vmáx(material) - Tab.4.3'!$M$2:$M$11),LOOKUP(AI40,'Vmáx(material) - Tab.4.3'!$L$15,'Vmáx(material) - Tab.4.3'!$M$15))) ->  | BH40: =IF(AD40="","",VLOOKUP($AH40,'Vmáx(material) - Tab.4.3'!$R$35:$X$41,2)) ->  | BI40: =IF(AD40="","",VLOOKUP($AH40,'Vmáx(material) - Tab.4.3'!$R$35:$X$41,3)) ->  | BJ40: =IF(AD40="","",VLOOKUP($AH40,'Vmáx(material) - Tab.4.3'!$R$35:$X$41,4)) ->  | BK40: =IF(AD40="","",VLOOKUP($AH40,'Vmáx(material) - Tab.4.3'!$R$35:$X$41,5)) ->  | BL40: =IF(AD40="","",VLOOKUP($AH40,'Vmáx(material) - Tab.4.3'!$R$35:$X$41,6)) ->  | BM40: =IF(AD40="","",IF(AD40="","",VLOOKUP($AH40,'Vmáx(material) - Tab.4.3'!$R$35:$X$41,7))) ->  | BN40: =IF(AD40="","",IF(AE40=1,FCi(J40,AK40),FTr(J40,AJ40,AK40))) ->  | BP40: =IF(AD40="","",Hw(BH40,BI40,BJ40,BK40,BL40,BM40,Z,BN40,AO40,AK40)) ->  | BU40: =IF(AD40="","",ho(BT40,AK40,AX40)) ->  | BV40: =IF(AD40="","",IF(AE40=1,PeriCi(AK40,BB40),PeriTr(AJ40,AN40,BB40))) ->  | BW40: =IF(AD40="","",IF(AE40=1,AreaCi(AK40,BB40),AreaTr(AJ40,AN40,BB40))) ->  | BX40: =IF(AD40="","",RhCi(BW40,BV40)) ->  | BZ40: =IF(AD40="","",hf(AL40,J40,AM40,BW40,BX40)) ->  | CA40: =IF(AD40="","",LOOKUP(AP40,Tab.4.5!$J$6:$J$27,Tab.4.5!$L$6:$L$27)) ->  | CB40: =IF(AD40="","",He(CA40,BY40)) ->  | CC40: =IF(AD40="","",Hs(BY40)) ->  | CD40: =IF(AD40="","",Hm(BU40,BZ40,CB40,CC40,AL40,AO40)) ->  | CZ40: 0 | DA40: 0 | DB40: 0 | DC40: 0 | DD40: 0 | DE40: =IF(CK40="","",IF(CL40=1,YcCi(CR40,J40),YcTr(J40,CQ40,CU40))) ->  | DF40: =IF(CK40="","",IF(CL40=1,Teta1(DE40,CR40),"-")) ->  | DI40: =IF(CK40="","",IF(CL40=1,Ynci(CR40,J40,CT40,CV40),YnTr(1,CT40,CQ40,CU40,CV40,J40))) ->  | DJ40: =IF(CK40="","",IF(CL40=1,Teta1(DI40,CR40),"-")) ->  | DK40: =IF(CK40="","",IF(CL40=1,AreaCi(CR40,J40),AreaTr(CQ40,CU40,DI40))) ->  | DL40: =IF(CK40="","",IF(CL40=1,FrCi(DM40,9.806,DJ40,CR40),FrTr(DM40,9.806,CQ40,CU40,DI40))) ->  | DN40: =IF(CK40="","",IF(CL40=1,LOOKUP(CP40,'Vmáx(material) - Tab.4.3'!$L$2:$L$11,'Vmáx(material) - Tab.4.3'!$M$2:$M$11),LOOKUP(CP40,'Vmáx(material) - Tab.4.3'!$L$15,'Vmáx(material) - Tab.4.3'!$M$15))) ->  | DO40: =IF(CK40="","",VLOOKUP($CO40,'Vmáx(material) - Tab.4.3'!$R$35:$X$41,2)) ->  | DP40: =IF(CK40="","",VLOOKUP($CO40,'Vmáx(material) - Tab.4.3'!$R$35:$X$41,3)) ->  | DQ40: =IF(CK40="","",VLOOKUP($CO40,'Vmáx(material) - Tab.4.3'!$R$35:$X$41,4)) ->  | DR40: =IF(CK40="","",VLOOKUP($CO40,'Vmáx(material) - Tab.4.3'!$R$35:$X$41,5)) ->  | DS40: =IF(CK40="","",VLOOKUP($CO40,'Vmáx(material) - Tab.4.3'!$R$35:$X$41,6)) ->  | DT40: =IF(CK40="","",IF(CK40="","",VLOOKUP(CO40,'Vmáx(material) - Tab.4.3'!$R$35:$X$41,7))) ->  | DU40: =IF(CK40="","",IF(CL40=1,FCi(J40,CR40),FTr(J40,CQ40,CR40))) ->  | DW40: =IF(CK40="","",Hw(DO40,DP40,DQ40,DR40,DS40,DT40,Z,DU40,CV40,CR40)) ->  | EC40: =IF(CK40="","",IF(CL40=1,PeriCi(CR40,DI40),PeriTr(CQ40,CU40,DI40))) ->  | ED40: =IF(CK40="","",IF(CL40=1,AreaCi(CR40,DI40),AreaTr(CQ40,CU40,DI40))) ->  | EE40: =IF(CK40="","",RhCi(DK40,EC40)) ->  | EG40: =IF(CK40="","",hf(CS40,J40,CT40,DK40,EE40)) ->  | EH40: =IF(CK40="","",LOOKUP(CW40,Tab.4.5!$J$6:$J$27,Tab.4.5!$L$6:$L$27)) ->  | EI40: =IF(CK40="","",He(EH40,DM40)) ->  | EJ40: =IF(CK40="","",Hs(DM40)) ->  | EK40: =IF(CK40="","",Hm(EB40,EG40,EI40,EJ40,CS40,CV40)) ->  | ER40: K45+-45000 () | ES40: =IF(B40="Existe.",IF(AE40=1,CONCATENATE(#REF!,AK40," m."),CONCATENATE(#REF!,AJ40," m x ",AK40," m.")),IF(CL40=1,CONCATENATE(#REF!,CR40," m."),CONCATENATE(#REF!,CQ40," m x ",CR40," m."))) ->  | ET40: Concreto, L = m, S = 0 %. | EU40: Cota clave eje= 0 msnm. | FD40: =IF(EV40="","",VLOOKUP(EY40,'Estructura escalonada'!$D$3:$H$953,2)) -> 
L41: 0 | N41: 0 | U41: =IF(K41="No","",IF(O41="",YcCi(P41,N41),YcTr(N41,O41,S41))) ->  | V41: =IF(K41="No","",IF(O41="",Teta1(U41,P41),"-")) ->  | Y41: =IF(K41="No","",IF(O41="",Ynci(P41,N41,R41,T41),YnTr(1,R41,O41,S41,T41,N41))) ->  | Z41: =IF(K41="No","",IF(O41="",Teta1(Y41,P41),"-")) ->  | AA41: =IF(K41="No","",IF(O41="",AreaCi(P41,Y41),AreaTr(O41,S41,Y41))) ->  | AB41: =IF(K41="No","",IF(O41="",FrCi(AC41,9.806,Z41,P41),FrTr(AC41,9.806,O41,S41,Y41))) ->  | AS41: 0 | AT41: 0 | AX41: =IF(AD41="","",IF(AE41=1,YcCi(AK41,J41),YcTr(J41,AJ41,AN41))) ->  | AY41: =IF(AD41="","",IF(AE41=1,Teta1(AX41,AK41),"-")) ->  | AZ41: =IF(AD41="","",IF(AE41=1,AreaCi(AK41,AX41),AreaTr(AJ41,AN41,AX41))) ->  | BB41: =IF(AD41="","",IF(AE41=1,Ynci(AK41,J41,AM41,AO41),YnTr(1,AM41,AJ41,AN41,AO41,J41))) ->  | BC41: =IF(AD41="","",IF(AE41=1,Teta1(BB41,AK41),"-")) ->  | BD41: =IF(AD41="","",IF(AE41=1,AreaCi(AK41,BB41),AreaTr(AJ41,AN41,BB41))) ->  | BE41: =IF(AD41="","",IF(AE41=1,FrCi(BF41,9.806,BC41,AK41),FrTr(BF41,9.806,AJ41,AN41,BB41))) ->  | BG41: =IF(AD41="","",IF(AE41=1,LOOKUP(AI41,'Vmáx(material) - Tab.4.3'!$L$2:$L$11,'Vmáx(material) - Tab.4.3'!$M$2:$M$11),LOOKUP(AI41,'Vmáx(material) - Tab.4.3'!$L$15,'Vmáx(material) - Tab.4.3'!$M$15))) ->  | BH41: =IF(AD41="","",VLOOKUP($AH41,'Vmáx(material) - Tab.4.3'!$R$35:$X$41,2)) ->  | BI41: =IF(AD41="","",VLOOKUP($AH41,'Vmáx(material) - Tab.4.3'!$R$35:$X$41,3)) ->  | BJ41: =IF(AD41="","",VLOOKUP($AH41,'Vmáx(material) - Tab.4.3'!$R$35:$X$41,4)) ->  | BK41: =IF(AD41="","",VLOOKUP($AH41,'Vmáx(material) - Tab.4.3'!$R$35:$X$41,5)) ->  | BL41: =IF(AD41="","",VLOOKUP($AH41,'Vmáx(material) - Tab.4.3'!$R$35:$X$41,6)) ->  | BM41: =IF(AD41="","",IF(AD41="","",VLOOKUP($AH41,'Vmáx(material) - Tab.4.3'!$R$35:$X$41,7))) ->  | BN41: =IF(AD41="","",IF(AE41=1,FCi(J41,AK41),FTr(J41,AJ41,AK41))) ->  | BP41: =IF(AD41="","",Hw(BH41,BI41,BJ41,BK41,BL41,BM41,Z,BN41,AO41,AK41)) ->  | BU41: =IF(AD41="","",ho(BT41,AK41,AX41)) ->  | BV41: =IF(AD41="","",IF(AE41=1,PeriCi(AK41,BB41),PeriTr(AJ41,AN41,BB41))) ->  | BW41: =IF(AD41="","",IF(AE41=1,AreaCi(AK41,BB41),AreaTr(AJ41,AN41,BB41))) ->  | BX41: =IF(AD41="","",RhCi(BW41,BV41)) ->  | BZ41: =IF(AD41="","",hf(AL41,J41,AM41,BW41,BX41)) ->  | CA41: =IF(AD41="","",LOOKUP(AP41,Tab.4.5!$J$6:$J$27,Tab.4.5!$L$6:$L$27)) ->  | CB41: =IF(AD41="","",He(CA41,BY41)) ->  | CC41: =IF(AD41="","",Hs(BY41)) ->  | CD41: =IF(AD41="","",Hm(BU41,BZ41,CB41,CC41,AL41,AO41)) ->  | CZ41: 0 | DA41: 0 | DB41: 0 | DC41: 0 | DD41: 0 | DE41: =IF(CK41="","",IF(CL41=1,YcCi(CR41,J41),YcTr(J41,CQ41,CU41))) ->  | DF41: =IF(CK41="","",IF(CL41=1,Teta1(DE41,CR41),"-")) ->  | DI41: =IF(CK41="","",IF(CL41=1,Ynci(CR41,J41,CT41,CV41),YnTr(1,CT41,CQ41,CU41,CV41,J41))) ->  | DJ41: =IF(CK41="","",IF(CL41=1,Teta1(DI41,CR41),"-")) ->  | DK41: =IF(CK41="","",IF(CL41=1,AreaCi(CR41,J41),AreaTr(CQ41,CU41,DI41))) ->  | DL41: =IF(CK41="","",IF(CL41=1,FrCi(DM41,9.806,DJ41,CR41),FrTr(DM41,9.806,CQ41,CU41,DI41))) ->  | DN41: =IF(CK41="","",IF(CL41=1,LOOKUP(CP41,'Vmáx(material) - Tab.4.3'!$L$2:$L$11,'Vmáx(material) - Tab.4.3'!$M$2:$M$11),LOOKUP(CP41,'Vmáx(material) - Tab.4.3'!$L$15,'Vmáx(material) - Tab.4.3'!$M$15))) ->  | DO41: =IF(CK41="","",VLOOKUP($CO41,'Vmáx(material) - Tab.4.3'!$R$35:$X$41,2)) ->  | DP41: =IF(CK41="","",VLOOKUP($CO41,'Vmáx(material) - Tab.4.3'!$R$35:$X$41,3)) ->  | DQ41: =IF(CK41="","",VLOOKUP($CO41,'Vmáx(material) - Tab.4.3'!$R$35:$X$41,4)) ->  | DR41: =IF(CK41="","",VLOOKUP($CO41,'Vmáx(material) - Tab.4.3'!$R$35:$X$41,5)) ->  | DS41: =IF(CK41="","",VLOOKUP($CO41,'Vmáx(material) - Tab.4.3'!$R$35:$X$41,6)) ->  | DT41: =IF(CK41="","",IF(CK41="","",VLOOKUP(CO41,'Vmáx(material) - Tab.4.3'!$R$35:$X$41,7))) ->  | DU41: =IF(CK41="","",IF(CL41=1,FCi(J41,CR41),FTr(J41,CQ41,CR41))) ->  | DW41: =IF(CK41="","",Hw(DO41,DP41,DQ41,DR41,DS41,DT41,Z,DU41,CV41,CR41)) ->  | EC41: =IF(CK41="","",IF(CL41=1,PeriCi(CR41,DI41),PeriTr(CQ41,CU41,DI41))) ->  | ED41: =IF(CK41="","",IF(CL41=1,AreaCi(CR41,DI41),AreaTr(CQ41,CU41,DI41))) ->  | EE41: =IF(CK41="","",RhCi(DK41,EC41)) ->  | EG41: =IF(CK41="","",hf(CS41,J41,CT41,DK41,EE41)) ->  | EH41: =IF(CK41="","",LOOKUP(CW41,Tab.4.5!$J$6:$J$27,Tab.4.5!$L$6:$L$27)) ->  | EI41: =IF(CK41="","",He(EH41,DM41)) ->  | EJ41: =IF(CK41="","",Hs(DM41)) ->  | EK41: =IF(CK41="","",Hm(EB41,EG41,EI41,EJ41,CS41,CV41)) ->  | ER41: K45+-45000 () | ES41: =IF(B41="Existe.",IF(AE41=1,CONCATENATE(#REF!,AK41," m."),CONCATENATE(#REF!,AJ41," m x ",AK41," m.")),IF(CL41=1,CONCATENATE(#REF!,CR41," m."),CONCATENATE(#REF!,CQ41," m x ",CR41," m."))) ->  | ET41: Concreto, L = m, S = 0 %. | EU41: Cota clave eje= 0 msnm. | FD41: =IF(EV41="","",VLOOKUP(EY41,'Estructura escalonada'!$D$3:$H$953,2)) -> 
L42: 0 | N42: 0 | U42: =IF(K42="No","",IF(O42="",YcCi(P42,N42),YcTr(N42,O42,S42))) ->  | V42: =IF(K42="No","",IF(O42="",Teta1(U42,P42),"-")) ->  | Y42: =IF(K42="No","",IF(O42="",Ynci(P42,N42,R42,T42),YnTr(1,R42,O42,S42,T42,N42))) ->  | Z42: =IF(K42="No","",IF(O42="",Teta1(Y42,P42),"-")) ->  | AA42: =IF(K42="No","",IF(O42="",AreaCi(P42,Y42),AreaTr(O42,S42,Y42))) ->  | AB42: =IF(K42="No","",IF(O42="",FrCi(AC42,9.806,Z42,P42),FrTr(AC42,9.806,O42,S42,Y42))) ->  | AS42: 0 | AT42: 0 | AX42: =IF(AD42="","",IF(AE42=1,YcCi(AK42,J42),YcTr(J42,AJ42,AN42))) ->  | AY42: =IF(AD42="","",IF(AE42=1,Teta1(AX42,AK42),"-")) ->  | AZ42: =IF(AD42="","",IF(AE42=1,AreaCi(AK42,AX42),AreaTr(AJ42,AN42,AX42))) ->  | BB42: =IF(AD42="","",IF(AE42=1,Ynci(AK42,J42,AM42,AO42),YnTr(1,AM42,AJ42,AN42,AO42,J42))) ->  | BC42: =IF(AD42="","",IF(AE42=1,Teta1(BB42,AK42),"-")) ->  | BD42: =IF(AD42="","",IF(AE42=1,AreaCi(AK42,BB42),AreaTr(AJ42,AN42,BB42))) ->  | BE42: =IF(AD42="","",IF(AE42=1,FrCi(BF42,9.806,BC42,AK42),FrTr(BF42,9.806,AJ42,AN42,BB42))) ->  | BG42: =IF(AD42="","",IF(AE42=1,LOOKUP(AI42,'Vmáx(material) - Tab.4.3'!$L$2:$L$11,'Vmáx(material) - Tab.4.3'!$M$2:$M$11),LOOKUP(AI42,'Vmáx(material) - Tab.4.3'!$L$15,'Vmáx(material) - Tab.4.3'!$M$15))) ->  | BH42: =IF(AD42="","",VLOOKUP($AH42,'Vmáx(material) - Tab.4.3'!$R$35:$X$41,2)) ->  | BI42: =IF(AD42="","",VLOOKUP($AH42,'Vmáx(material) - Tab.4.3'!$R$35:$X$41,3)) ->  | BJ42: =IF(AD42="","",VLOOKUP($AH42,'Vmáx(material) - Tab.4.3'!$R$35:$X$41,4)) ->  | BK42: =IF(AD42="","",VLOOKUP($AH42,'Vmáx(material) - Tab.4.3'!$R$35:$X$41,5)) ->  | BL42: =IF(AD42="","",VLOOKUP($AH42,'Vmáx(material) - Tab.4.3'!$R$35:$X$41,6)) ->  | BM42: =IF(AD42="","",IF(AD42="","",VLOOKUP($AH42,'Vmáx(material) - Tab.4.3'!$R$35:$X$41,7))) ->  | BN42: =IF(AD42="","",IF(AE42=1,FCi(J42,AK42),FTr(J42,AJ42,AK42))) ->  | BP42: =IF(AD42="","",Hw(BH42,BI42,BJ42,BK42,BL42,BM42,Z,BN42,AO42,AK42)) ->  | BU42: =IF(AD42="","",ho(BT42,AK42,AX42)) ->  | BV42: =IF(AD42="","",IF(AE42=1,PeriCi(AK42,BB42),PeriTr(AJ42,AN42,BB42))) ->  | BW42: =IF(AD42="","",IF(AE42=1,AreaCi(AK42,BB42),AreaTr(AJ42,AN42,BB42))) ->  | BX42: =IF(AD42="","",RhCi(BW42,BV42)) ->  | BZ42: =IF(AD42="","",hf(AL42,J42,AM42,BW42,BX42)) ->  | CA42: =IF(AD42="","",LOOKUP(AP42,Tab.4.5!$J$6:$J$27,Tab.4.5!$L$6:$L$27)) ->  | CB42: =IF(AD42="","",He(CA42,BY42)) ->  | CC42: =IF(AD42="","",Hs(BY42)) ->  | CD42: =IF(AD42="","",Hm(BU42,BZ42,CB42,CC42,AL42,AO42)) ->  | CZ42: 0 | DA42: 0 | DB42: 0 | DC42: 0 | DD42: 0 | DE42: =IF(CK42="","",IF(CL42=1,YcCi(CR42,J42),YcTr(J42,CQ42,CU42))) ->  | DF42: =IF(CK42="","",IF(CL42=1,Teta1(DE42,CR42),"-")) ->  | DI42: =IF(CK42="","",IF(CL42=1,Ynci(CR42,J42,CT42,CV42),YnTr(1,CT42,CQ42,CU42,CV42,J42))) ->  | DJ42: =IF(CK42="","",IF(CL42=1,Teta1(DI42,CR42),"-")) ->  | DK42: =IF(CK42="","",IF(CL42=1,AreaCi(CR42,J42),AreaTr(CQ42,CU42,DI42))) ->  | DL42: =IF(CK42="","",IF(CL42=1,FrCi(DM42,9.806,DJ42,CR42),FrTr(DM42,9.806,CQ42,CU42,DI42))) ->  | DN42: =IF(CK42="","",IF(CL42=1,LOOKUP(CP42,'Vmáx(material) - Tab.4.3'!$L$2:$L$11,'Vmáx(material) - Tab.4.3'!$M$2:$M$11),LOOKUP(CP42,'Vmáx(material) - Tab.4.3'!$L$15,'Vmáx(material) - Tab.4.3'!$M$15))) ->  | DO42: =IF(CK42="","",VLOOKUP($CO42,'Vmáx(material) - Tab.4.3'!$R$35:$X$41,2)) ->  | DP42: =IF(CK42="","",VLOOKUP($CO42,'Vmáx(material) - Tab.4.3'!$R$35:$X$41,3)) ->  | DQ42: =IF(CK42="","",VLOOKUP($CO42,'Vmáx(material) - Tab.4.3'!$R$35:$X$41,4)) ->  | DR42: =IF(CK42="","",VLOOKUP($CO42,'Vmáx(material) - Tab.4.3'!$R$35:$X$41,5)) ->  | DS42: =IF(CK42="","",VLOOKUP($CO42,'Vmáx(material) - Tab.4.3'!$R$35:$X$41,6)) ->  | DT42: =IF(CK42="","",IF(CK42="","",VLOOKUP(CO42,'Vmáx(material) - Tab.4.3'!$R$35:$X$41,7))) ->  | DU42: =IF(CK42="","",IF(CL42=1,FCi(J42,CR42),FTr(J42,CQ42,CR42))) ->  | DW42: =IF(CK42="","",Hw(DO42,DP42,DQ42,DR42,DS42,DT42,Z,DU42,CV42,CR42)) ->  | EC42: =IF(CK42="","",IF(CL42=1,PeriCi(CR42,DI42),PeriTr(CQ42,CU42,DI42))) ->  | ED42: =IF(CK42="","",IF(CL42=1,AreaCi(CR42,DI42),AreaTr(CQ42,CU42,DI42))) ->  | EE42: =IF(CK42="","",RhCi(DK42,EC42)) ->  | EG42: =IF(CK42="","",hf(CS42,J42,CT42,DK42,EE42)) ->  | EH42: =IF(CK42="","",LOOKUP(CW42,Tab.4.5!$J$6:$J$27,Tab.4.5!$L$6:$L$27)) ->  | EI42: =IF(CK42="","",He(EH42,DM42)) ->  | EJ42: =IF(CK42="","",Hs(DM42)) ->  | EK42: =IF(CK42="","",Hm(EB42,EG42,EI42,EJ42,CS42,CV42)) ->  | ER42: K45+-45000 () | ES42: =IF(B42="Existe.",IF(AE42=1,CONCATENATE(#REF!,AK42," m."),CONCATENATE(#REF!,AJ42," m x ",AK42," m.")),IF(CL42=1,CONCATENATE(#REF!,CR42," m."),CONCATENATE(#REF!,CQ42," m x ",CR42," m."))) ->  | ET42: Concreto, L = m, S = 0 %. | EU42: Cota clave eje= 0 msnm. | FD42: =IF(EV42="","",VLOOKUP(EY42,'Estructura escalonada'!$D$3:$H$953,2)) -> 
L43: 0 | N43: 0 | U43: =IF(K43="No","",IF(O43="",YcCi(P43,N43),YcTr(N43,O43,S43))) ->  | V43: =IF(K43="No","",IF(O43="",Teta1(U43,P43),"-")) ->  | Y43: =IF(K43="No","",IF(O43="",Ynci(P43,N43,R43,T43),YnTr(1,R43,O43,S43,T43,N43))) ->  | Z43: =IF(K43="No","",IF(O43="",Teta1(Y43,P43),"-")) ->  | AA43: =IF(K43="No","",IF(O43="",AreaCi(P43,Y43),AreaTr(O43,S43,Y43))) ->  | AB43: =IF(K43="No","",IF(O43="",FrCi(AC43,9.806,Z43,P43),FrTr(AC43,9.806,O43,S43,Y43))) ->  | AS43: 0 | AT43: 0 | AX43: =IF(AD43="","",IF(AE43=1,YcCi(AK43,J43),YcTr(J43,AJ43,AN43))) ->  | AY43: =IF(AD43="","",IF(AE43=1,Teta1(AX43,AK43),"-")) ->  | AZ43: =IF(AD43="","",IF(AE43=1,AreaCi(AK43,AX43),AreaTr(AJ43,AN43,AX43))) ->  | BB43: =IF(AD43="","",IF(AE43=1,Ynci(AK43,J43,AM43,AO43),YnTr(1,AM43,AJ43,AN43,AO43,J43))) ->  | BC43: =IF(AD43="","",IF(AE43=1,Teta1(BB43,AK43),"-")) ->  | BD43: =IF(AD43="","",IF(AE43=1,AreaCi(AK43,BB43),AreaTr(AJ43,AN43,BB43))) ->  | BE43: =IF(AD43="","",IF(AE43=1,FrCi(BF43,9.806,BC43,AK43),FrTr(BF43,9.806,AJ43,AN43,BB43))) ->  | BG43: =IF(AD43="","",IF(AE43=1,LOOKUP(AI43,'Vmáx(material) - Tab.4.3'!$L$2:$L$11,'Vmáx(material) - Tab.4.3'!$M$2:$M$11),LOOKUP(AI43,'Vmáx(material) - Tab.4.3'!$L$15,'Vmáx(material) - Tab.4.3'!$M$15))) ->  | BH43: =IF(AD43="","",VLOOKUP($AH43,'Vmáx(material) - Tab.4.3'!$R$35:$X$41,2)) ->  | BI43: =IF(AD43="","",VLOOKUP($AH43,'Vmáx(material) - Tab.4.3'!$R$35:$X$41,3)) ->  | BJ43: =IF(AD43="","",VLOOKUP($AH43,'Vmáx(material) - Tab.4.3'!$R$35:$X$41,4)) ->  | BK43: =IF(AD43="","",VLOOKUP($AH43,'Vmáx(material) - Tab.4.3'!$R$35:$X$41,5)) ->  | BL43: =IF(AD43="","",VLOOKUP($AH43,'Vmáx(material) - Tab.4.3'!$R$35:$X$41,6)) ->  | BM43: =IF(AD43="","",IF(AD43="","",VLOOKUP($AH43,'Vmáx(material) - Tab.4.3'!$R$35:$X$41,7))) ->  | BN43: =IF(AD43="","",IF(AE43=1,FCi(J43,AK43),FTr(J43,AJ43,AK43))) ->  | BP43: =IF(AD43="","",Hw(BH43,BI43,BJ43,BK43,BL43,BM43,Z,BN43,AO43,AK43)) ->  | BU43: =IF(AD43="","",ho(BT43,AK43,AX43)) ->  | BV43: =IF(AD43="","",IF(AE43=1,PeriCi(AK43,BB43),PeriTr(AJ43,AN43,BB43))) ->  | BW43: =IF(AD43="","",IF(AE43=1,AreaCi(AK43,BB43),AreaTr(AJ43,AN43,BB43))) ->  | BX43: =IF(AD43="","",RhCi(BW43,BV43)) ->  | BZ43: =IF(AD43="","",hf(AL43,J43,AM43,BW43,BX43)) ->  | CA43: =IF(AD43="","",LOOKUP(AP43,Tab.4.5!$J$6:$J$27,Tab.4.5!$L$6:$L$27)) ->  | CB43: =IF(AD43="","",He(CA43,BY43)) ->  | CC43: =IF(AD43="","",Hs(BY43)) ->  | CD43: =IF(AD43="","",Hm(BU43,BZ43,CB43,CC43,AL43,AO43)) ->  | CZ43: 0 | DA43: 0 | DB43: 0 | DC43: 0 | DD43: 0 | DE43: =IF(CK43="","",IF(CL43=1,YcCi(CR43,J43),YcTr(J43,CQ43,CU43))) ->  | DF43: =IF(CK43="","",IF(CL43=1,Teta1(DE43,CR43),"-")) ->  | DI43: =IF(CK43="","",IF(CL43=1,Ynci(CR43,J43,CT43,CV43),YnTr(1,CT43,CQ43,CU43,CV43,J43))) ->  | DJ43: =IF(CK43="","",IF(CL43=1,Teta1(DI43,CR43),"-")) ->  | DK43: =IF(CK43="","",IF(CL43=1,AreaCi(CR43,J43),AreaTr(CQ43,CU43,DI43))) ->  | DL43: =IF(CK43="","",IF(CL43=1,FrCi(DM43,9.806,DJ43,CR43),FrTr(DM43,9.806,CQ43,CU43,DI43))) ->  | DN43: =IF(CK43="","",IF(CL43=1,LOOKUP(CP43,'Vmáx(material) - Tab.4.3'!$L$2:$L$11,'Vmáx(material) - Tab.4.3'!$M$2:$M$11),LOOKUP(CP43,'Vmáx(material) - Tab.4.3'!$L$15,'Vmáx(material) - Tab.4.3'!$M$15))) ->  | DO43: =IF(CK43="","",VLOOKUP($CO43,'Vmáx(material) - Tab.4.3'!$R$35:$X$41,2)) ->  | DP43: =IF(CK43="","",VLOOKUP($CO43,'Vmáx(material) - Tab.4.3'!$R$35:$X$41,3)) ->  | DQ43: =IF(CK43="","",VLOOKUP($CO43,'Vmáx(material) - Tab.4.3'!$R$35:$X$41,4)) ->  | DR43: =IF(CK43="","",VLOOKUP($CO43,'Vmáx(material) - Tab.4.3'!$R$35:$X$41,5)) ->  | DS43: =IF(CK43="","",VLOOKUP($CO43,'Vmáx(material) - Tab.4.3'!$R$35:$X$41,6)) ->  | DT43: =IF(CK43="","",IF(CK43="","",VLOOKUP(CO43,'Vmáx(material) - Tab.4.3'!$R$35:$X$41,7))) ->  | DU43: =IF(CK43="","",IF(CL43=1,FCi(J43,CR43),FTr(J43,CQ43,CR43))) ->  | DW43: =IF(CK43="","",Hw(DO43,DP43,DQ43,DR43,DS43,DT43,Z,DU43,CV43,CR43)) ->  | EC43: =IF(CK43="","",IF(CL43=1,PeriCi(CR43,DI43),PeriTr(CQ43,CU43,DI43))) ->  | ED43: =IF(CK43="","",IF(CL43=1,AreaCi(CR43,DI43),AreaTr(CQ43,CU43,DI43))) ->  | EE43: =IF(CK43="","",RhCi(DK43,EC43)) ->  | EG43: =IF(CK43="","",hf(CS43,J43,CT43,DK43,EE43)) ->  | EH43: =IF(CK43="","",LOOKUP(CW43,Tab.4.5!$J$6:$J$27,Tab.4.5!$L$6:$L$27)) ->  | EI43: =IF(CK43="","",He(EH43,DM43)) ->  | EJ43: =IF(CK43="","",Hs(DM43)) ->  | EK43: =IF(CK43="","",Hm(EB43,EG43,EI43,EJ43,CS43,CV43)) ->  | ER43: K45+-45000 () | ES43: =IF(B43="Existe.",IF(AE43=1,CONCATENATE(#REF!,AK43," m."),CONCATENATE(#REF!,AJ43," m x ",AK43," m.")),IF(CL43=1,CONCATENATE(#REF!,CR43," m."),CONCATENATE(#REF!,CQ43," m x ",CR43," m."))) ->  | ET43: Concreto, L = m, S = 0 %. | EU43: Cota clave eje= 0 msnm. | FD43: =IF(EV43="","",VLOOKUP(EY43,'Estructura escalonada'!$D$3:$H$953,2)) -> 
L44: 0 | N44: 0 | U44: =IF(K44="No","",IF(O44="",YcCi(P44,N44),YcTr(N44,O44,S44))) ->  | V44: =IF(K44="No","",IF(O44="",Teta1(U44,P44),"-")) ->  | Y44: =IF(K44="No","",IF(O44="",Ynci(P44,N44,R44,T44),YnTr(1,R44,O44,S44,T44,N44))) ->  | Z44: =IF(K44="No","",IF(O44="",Teta1(Y44,P44),"-")) ->  | AA44: =IF(K44="No","",IF(O44="",AreaCi(P44,Y44),AreaTr(O44,S44,Y44))) ->  | AB44: =IF(K44="No","",IF(O44="",FrCi(AC44,9.806,Z44,P44),FrTr(AC44,9.806,O44,S44,Y44))) ->  | AS44: 0 | AT44: 0 | AX44: =IF(AD44="","",IF(AE44=1,YcCi(AK44,J44),YcTr(J44,AJ44,AN44))) ->  | AY44: =IF(AD44="","",IF(AE44=1,Teta1(AX44,AK44),"-")) ->  | AZ44: =IF(AD44="","",IF(AE44=1,AreaCi(AK44,AX44),AreaTr(AJ44,AN44,AX44))) ->  | BB44: =IF(AD44="","",IF(AE44=1,Ynci(AK44,J44,AM44,AO44),YnTr(1,AM44,AJ44,AN44,AO44,J44))) ->  | BC44: =IF(AD44="","",IF(AE44=1,Teta1(BB44,AK44),"-")) ->  | BD44: =IF(AD44="","",IF(AE44=1,AreaCi(AK44,BB44),AreaTr(AJ44,AN44,BB44))) ->  | BE44: =IF(AD44="","",IF(AE44=1,FrCi(BF44,9.806,BC44,AK44),FrTr(BF44,9.806,AJ44,AN44,BB44))) ->  | BG44: =IF(AD44="","",IF(AE44=1,LOOKUP(AI44,'Vmáx(material) - Tab.4.3'!$L$2:$L$11,'Vmáx(material) - Tab.4.3'!$M$2:$M$11),LOOKUP(AI44,'Vmáx(material) - Tab.4.3'!$L$15,'Vmáx(material) - Tab.4.3'!$M$15))) ->  | BH44: =IF(AD44="","",VLOOKUP($AH44,'Vmáx(material) - Tab.4.3'!$R$35:$X$41,2)) ->  | BI44: =IF(AD44="","",VLOOKUP($AH44,'Vmáx(material) - Tab.4.3'!$R$35:$X$41,3)) ->  | BJ44: =IF(AD44="","",VLOOKUP($AH44,'Vmáx(material) - Tab.4.3'!$R$35:$X$41,4)) ->  | BK44: =IF(AD44="","",VLOOKUP($AH44,'Vmáx(material) - Tab.4.3'!$R$35:$X$41,5)) ->  | BL44: =IF(AD44="","",VLOOKUP($AH44,'Vmáx(material) - Tab.4.3'!$R$35:$X$41,6)) ->  | BM44: =IF(AD44="","",IF(AD44="","",VLOOKUP($AH44,'Vmáx(material) - Tab.4.3'!$R$35:$X$41,7))) ->  | BN44: =IF(AD44="","",IF(AE44=1,FCi(J44,AK44),FTr(J44,AJ44,AK44))) ->  | BP44: =IF(AD44="","",Hw(BH44,BI44,BJ44,BK44,BL44,BM44,Z,BN44,AO44,AK44)) ->  | BU44: =IF(AD44="","",ho(BT44,AK44,AX44)) ->  | BV44: =IF(AD44="","",IF(AE44=1,PeriCi(AK44,BB44),PeriTr(AJ44,AN44,BB44))) ->  | BW44: =IF(AD44="","",IF(AE44=1,AreaCi(AK44,BB44),AreaTr(AJ44,AN44,BB44))) ->  | BX44: =IF(AD44="","",RhCi(BW44,BV44)) ->  | BZ44: =IF(AD44="","",hf(AL44,J44,AM44,BW44,BX44)) ->  | CA44: =IF(AD44="","",LOOKUP(AP44,Tab.4.5!$J$6:$J$27,Tab.4.5!$L$6:$L$27)) ->  | CB44: =IF(AD44="","",He(CA44,BY44)) ->  | CC44: =IF(AD44="","",Hs(BY44)) ->  | CD44: =IF(AD44="","",Hm(BU44,BZ44,CB44,CC44,AL44,AO44)) ->  | CZ44: 0 | DA44: 0 | DB44: 0 | DC44: 0 | DD44: 0 | DE44: =IF(CK44="","",IF(CL44=1,YcCi(CR44,J44),YcTr(J44,CQ44,CU44))) ->  | DF44: =IF(CK44="","",IF(CL44=1,Teta1(DE44,CR44),"-")) ->  | DI44: =IF(CK44="","",IF(CL44=1,Ynci(CR44,J44,CT44,CV44),YnTr(1,CT44,CQ44,CU44,CV44,J44))) ->  | DJ44: =IF(CK44="","",IF(CL44=1,Teta1(DI44,CR44),"-")) ->  | DK44: =IF(CK44="","",IF(CL44=1,AreaCi(CR44,J44),AreaTr(CQ44,CU44,DI44))) ->  | DL44: =IF(CK44="","",IF(CL44=1,FrCi(DM44,9.806,DJ44,CR44),FrTr(DM44,9.806,CQ44,CU44,DI44))) ->  | DN44: =IF(CK44="","",IF(CL44=1,LOOKUP(CP44,'Vmáx(material) - Tab.4.3'!$L$2:$L$11,'Vmáx(material) - Tab.4.3'!$M$2:$M$11),LOOKUP(CP44,'Vmáx(material) - Tab.4.3'!$L$15,'Vmáx(material) - Tab.4.3'!$M$15))) ->  | DO44: =IF(CK44="","",VLOOKUP($CO44,'Vmáx(material) - Tab.4.3'!$R$35:$X$41,2)) ->  | DP44: =IF(CK44="","",VLOOKUP($CO44,'Vmáx(material) - Tab.4.3'!$R$35:$X$41,3)) ->  | DQ44: =IF(CK44="","",VLOOKUP($CO44,'Vmáx(material) - Tab.4.3'!$R$35:$X$41,4)) ->  | DR44: =IF(CK44="","",VLOOKUP($CO44,'Vmáx(material) - Tab.4.3'!$R$35:$X$41,5)) ->  | DS44: =IF(CK44="","",VLOOKUP($CO44,'Vmáx(material) - Tab.4.3'!$R$35:$X$41,6)) ->  | DT44: =IF(CK44="","",IF(CK44="","",VLOOKUP(CO44,'Vmáx(material) - Tab.4.3'!$R$35:$X$41,7))) ->  | DU44: =IF(CK44="","",IF(CL44=1,FCi(J44,CR44),FTr(J44,CQ44,CR44))) ->  | DW44: =IF(CK44="","",Hw(DO44,DP44,DQ44,DR44,DS44,DT44,Z,DU44,CV44,CR44)) ->  | EC44: =IF(CK44="","",IF(CL44=1,PeriCi(CR44,DI44),PeriTr(CQ44,CU44,DI44))) ->  | ED44: =IF(CK44="","",IF(CL44=1,AreaCi(CR44,DI44),AreaTr(CQ44,CU44,DI44))) ->  | EE44: =IF(CK44="","",RhCi(DK44,EC44)) ->  | EG44: =IF(CK44="","",hf(CS44,J44,CT44,DK44,EE44)) ->  | EH44: =IF(CK44="","",LOOKUP(CW44,Tab.4.5!$J$6:$J$27,Tab.4.5!$L$6:$L$27)) ->  | EI44: =IF(CK44="","",He(EH44,DM44)) ->  | EJ44: =IF(CK44="","",Hs(DM44)) ->  | EK44: =IF(CK44="","",Hm(EB44,EG44,EI44,EJ44,CS44,CV44)) ->  | ER44: K45+-45000 () | ES44: =IF(B44="Existe.",IF(AE44=1,CONCATENATE(#REF!,AK44," m."),CONCATENATE(#REF!,AJ44," m x ",AK44," m.")),IF(CL44=1,CONCATENATE(#REF!,CR44," m."),CONCATENATE(#REF!,CQ44," m x ",CR44," m."))) ->  | ET44: Concreto, L = m, S = 0 %. | EU44: Cota clave eje= 0 msnm. | FD44: =IF(EV44="","",VLOOKUP(EY44,'Estructura escalonada'!$D$3:$H$953,2)) -> 
L45: 0 | N45: 0 | U45: =IF(K45="No","",IF(O45="",YcCi(P45,N45),YcTr(N45,O45,S45))) ->  | V45: =IF(K45="No","",IF(O45="",Teta1(U45,P45),"-")) ->  | Y45: =IF(K45="No","",IF(O45="",Ynci(P45,N45,R45,T45),YnTr(1,R45,O45,S45,T45,N45))) ->  | Z45: =IF(K45="No","",IF(O45="",Teta1(Y45,P45),"-")) ->  | AA45: =IF(K45="No","",IF(O45="",AreaCi(P45,Y45),AreaTr(O45,S45,Y45))) ->  | AB45: =IF(K45="No","",IF(O45="",FrCi(AC45,9.806,Z45,P45),FrTr(AC45,9.806,O45,S45,Y45))) ->  | AS45: 0 | AT45: 0 | AX45: =IF(AD45="","",IF(AE45=1,YcCi(AK45,J45),YcTr(J45,AJ45,AN45))) ->  | AY45: =IF(AD45="","",IF(AE45=1,Teta1(AX45,AK45),"-")) ->  | AZ45: =IF(AD45="","",IF(AE45=1,AreaCi(AK45,AX45),AreaTr(AJ45,AN45,AX45))) ->  | BB45: =IF(AD45="","",IF(AE45=1,Ynci(AK45,J45,AM45,AO45),YnTr(1,AM45,AJ45,AN45,AO45,J45))) ->  | BC45: =IF(AD45="","",IF(AE45=1,Teta1(BB45,AK45),"-")) ->  | BD45: =IF(AD45="","",IF(AE45=1,AreaCi(AK45,BB45),AreaTr(AJ45,AN45,BB45))) ->  | BE45: =IF(AD45="","",IF(AE45=1,FrCi(BF45,9.806,BC45,AK45),FrTr(BF45,9.806,AJ45,AN45,BB45))) ->  | BG45: =IF(AD45="","",IF(AE45=1,LOOKUP(AI45,'Vmáx(material) - Tab.4.3'!$L$2:$L$11,'Vmáx(material) - Tab.4.3'!$M$2:$M$11),LOOKUP(AI45,'Vmáx(material) - Tab.4.3'!$L$15,'Vmáx(material) - Tab.4.3'!$M$15))) ->  | BH45: =IF(AD45="","",VLOOKUP($AH45,'Vmáx(material) - Tab.4.3'!$R$35:$X$41,2)) ->  | BI45: =IF(AD45="","",VLOOKUP($AH45,'Vmáx(material) - Tab.4.3'!$R$35:$X$41,3)) ->  | BJ45: =IF(AD45="","",VLOOKUP($AH45,'Vmáx(material) - Tab.4.3'!$R$35:$X$41,4)) ->  | BK45: =IF(AD45="","",VLOOKUP($AH45,'Vmáx(material) - Tab.4.3'!$R$35:$X$41,5)) ->  | BL45: =IF(AD45="","",VLOOKUP($AH45,'Vmáx(material) - Tab.4.3'!$R$35:$X$41,6)) ->  | BM45: =IF(AD45="","",IF(AD45="","",VLOOKUP($AH45,'Vmáx(material) - Tab.4.3'!$R$35:$X$41,7))) ->  | BN45: =IF(AD45="","",IF(AE45=1,FCi(J45,AK45),FTr(J45,AJ45,AK45))) ->  | BP45: =IF(AD45="","",Hw(BH45,BI45,BJ45,BK45,BL45,BM45,Z,BN45,AO45,AK45)) ->  | BU45: =IF(AD45="","",ho(BT45,AK45,AX45)) ->  | BV45: =IF(AD45="","",IF(AE45=1,PeriCi(AK45,BB45),PeriTr(AJ45,AN45,BB45))) ->  | BW45: =IF(AD45="","",IF(AE45=1,AreaCi(AK45,BB45),AreaTr(AJ45,AN45,BB45))) ->  | BX45: =IF(AD45="","",RhCi(BW45,BV45)) ->  | BZ45: =IF(AD45="","",hf(AL45,J45,AM45,BW45,BX45)) ->  | CA45: =IF(AD45="","",LOOKUP(AP45,Tab.4.5!$J$6:$J$27,Tab.4.5!$L$6:$L$27)) ->  | CB45: =IF(AD45="","",He(CA45,BY45)) ->  | CC45: =IF(AD45="","",Hs(BY45)) ->  | CD45: =IF(AD45="","",Hm(BU45,BZ45,CB45,CC45,AL45,AO45)) ->  | CZ45: 0 | DA45: 0 | DB45: 0 | DC45: 0 | DD45: 0 | DE45: =IF(CK45="","",IF(CL45=1,YcCi(CR45,J45),YcTr(J45,CQ45,CU45))) ->  | DF45: =IF(CK45="","",IF(CL45=1,Teta1(DE45,CR45),"-")) ->  | DI45: =IF(CK45="","",IF(CL45=1,Ynci(CR45,J45,CT45,CV45),YnTr(1,CT45,CQ45,CU45,CV45,J45))) ->  | DJ45: =IF(CK45="","",IF(CL45=1,Teta1(DI45,CR45),"-")) ->  | DK45: =IF(CK45="","",IF(CL45=1,AreaCi(CR45,J45),AreaTr(CQ45,CU45,DI45))) ->  | DL45: =IF(CK45="","",IF(CL45=1,FrCi(DM45,9.806,DJ45,CR45),FrTr(DM45,9.806,CQ45,CU45,DI45))) ->  | DN45: =IF(CK45="","",IF(CL45=1,LOOKUP(CP45,'Vmáx(material) - Tab.4.3'!$L$2:$L$11,'Vmáx(material) - Tab.4.3'!$M$2:$M$11),LOOKUP(CP45,'Vmáx(material) - Tab.4.3'!$L$15,'Vmáx(material) - Tab.4.3'!$M$15))) ->  | DO45: =IF(CK45="","",VLOOKUP($CO45,'Vmáx(material) - Tab.4.3'!$R$35:$X$41,2)) ->  | DP45: =IF(CK45="","",VLOOKUP($CO45,'Vmáx(material) - Tab.4.3'!$R$35:$X$41,3)) ->  | DQ45: =IF(CK45="","",VLOOKUP($CO45,'Vmáx(material) - Tab.4.3'!$R$35:$X$41,4)) ->  | DR45: =IF(CK45="","",VLOOKUP($CO45,'Vmáx(material) - Tab.4.3'!$R$35:$X$41,5)) ->  | DS45: =IF(CK45="","",VLOOKUP($CO45,'Vmáx(material) - Tab.4.3'!$R$35:$X$41,6)) ->  | DT45: =IF(CK45="","",IF(CK45="","",VLOOKUP(CO45,'Vmáx(material) - Tab.4.3'!$R$35:$X$41,7))) ->  | DU45: =IF(CK45="","",IF(CL45=1,FCi(J45,CR45),FTr(J45,CQ45,CR45))) ->  | DW45: =IF(CK45="","",Hw(DO45,DP45,DQ45,DR45,DS45,DT45,Z,DU45,CV45,CR45)) ->  | EC45: =IF(CK45="","",IF(CL45=1,PeriCi(CR45,DI45),PeriTr(CQ45,CU45,DI45))) ->  | ED45: =IF(CK45="","",IF(CL45=1,AreaCi(CR45,DI45),AreaTr(CQ45,CU45,DI45))) ->  | EE45: =IF(CK45="","",RhCi(DK45,EC45)) ->  | EG45: =IF(CK45="","",hf(CS45,J45,CT45,DK45,EE45)) ->  | EH45: =IF(CK45="","",LOOKUP(CW45,Tab.4.5!$J$6:$J$27,Tab.4.5!$L$6:$L$27)) ->  | EI45: =IF(CK45="","",He(EH45,DM45)) ->  | EJ45: =IF(CK45="","",Hs(DM45)) ->  | EK45: =IF(CK45="","",Hm(EB45,EG45,EI45,EJ45,CS45,CV45)) ->  | ER45: K45+-45000 () | ES45: =IF(B45="Existe.",IF(AE45=1,CONCATENATE(#REF!,AK45," m."),CONCATENATE(#REF!,AJ45," m x ",AK45," m.")),IF(CL45=1,CONCATENATE(#REF!,CR45," m."),CONCATENATE(#REF!,CQ45," m x ",CR45," m."))) ->  | ET45: Concreto, L = m, S = 0 %. | EU45: Cota clave eje= 0 msnm. | FD45: =IF(EV45="","",VLOOKUP(EY45,'Estructura escalonada'!$D$3:$H$953,2)) -> 
L46: 0 | N46: 0 | U46: =IF(K46="No","",IF(O46="",YcCi(P46,N46),YcTr(N46,O46,S46))) ->  | V46: =IF(K46="No","",IF(O46="",Teta1(U46,P46),"-")) ->  | Y46: =IF(K46="No","",IF(O46="",Ynci(P46,N46,R46,T46),YnTr(1,R46,O46,S46,T46,N46))) ->  | Z46: =IF(K46="No","",IF(O46="",Teta1(Y46,P46),"-")) ->  | AA46: =IF(K46="No","",IF(O46="",AreaCi(P46,Y46),AreaTr(O46,S46,Y46))) ->  | AB46: =IF(K46="No","",IF(O46="",FrCi(AC46,9.806,Z46,P46),FrTr(AC46,9.806,O46,S46,Y46))) ->  | AS46: 0 | AT46: 0 | AX46: =IF(AD46="","",IF(AE46=1,YcCi(AK46,J46),YcTr(J46,AJ46,AN46))) ->  | AY46: =IF(AD46="","",IF(AE46=1,Teta1(AX46,AK46),"-")) ->  | AZ46: =IF(AD46="","",IF(AE46=1,AreaCi(AK46,AX46),AreaTr(AJ46,AN46,AX46))) ->  | BB46: =IF(AD46="","",IF(AE46=1,Ynci(AK46,J46,AM46,AO46),YnTr(1,AM46,AJ46,AN46,AO46,J46))) ->  | BC46: =IF(AD46="","",IF(AE46=1,Teta1(BB46,AK46),"-")) ->  | BD46: =IF(AD46="","",IF(AE46=1,AreaCi(AK46,BB46),AreaTr(AJ46,AN46,BB46))) ->  | BE46: =IF(AD46="","",IF(AE46=1,FrCi(BF46,9.806,BC46,AK46),FrTr(BF46,9.806,AJ46,AN46,BB46))) ->  | BG46: =IF(AD46="","",IF(AE46=1,LOOKUP(AI46,'Vmáx(material) - Tab.4.3'!$L$2:$L$11,'Vmáx(material) - Tab.4.3'!$M$2:$M$11),LOOKUP(AI46,'Vmáx(material) - Tab.4.3'!$L$15,'Vmáx(material) - Tab.4.3'!$M$15))) ->  | BH46: =IF(AD46="","",VLOOKUP($AH46,'Vmáx(material) - Tab.4.3'!$R$35:$X$41,2)) ->  | BI46: =IF(AD46="","",VLOOKUP($AH46,'Vmáx(material) - Tab.4.3'!$R$35:$X$41,3)) ->  | BJ46: =IF(AD46="","",VLOOKUP($AH46,'Vmáx(material) - Tab.4.3'!$R$35:$X$41,4)) ->  | BK46: =IF(AD46="","",VLOOKUP($AH46,'Vmáx(material) - Tab.4.3'!$R$35:$X$41,5)) ->  | BL46: =IF(AD46="","",VLOOKUP($AH46,'Vmáx(material) - Tab.4.3'!$R$35:$X$41,6)) ->  | BM46: =IF(AD46="","",IF(AD46="","",VLOOKUP($AH46,'Vmáx(material) - Tab.4.3'!$R$35:$X$41,7))) ->  | BN46: =IF(AD46="","",IF(AE46=1,FCi(J46,AK46),FTr(J46,AJ46,AK46))) ->  | BP46: =IF(AD46="","",Hw(BH46,BI46,BJ46,BK46,BL46,BM46,Z,BN46,AO46,AK46)) ->  | BU46: =IF(AD46="","",ho(BT46,AK46,AX46)) ->  | BV46: =IF(AD46="","",IF(AE46=1,PeriCi(AK46,BB46),PeriTr(AJ46,AN46,BB46))) ->  | BW46: =IF(AD46="","",IF(AE46=1,AreaCi(AK46,BB46),AreaTr(AJ46,AN46,BB46))) ->  | BX46: =IF(AD46="","",RhCi(BW46,BV46)) ->  | BZ46: =IF(AD46="","",hf(AL46,J46,AM46,BW46,BX46)) ->  | CA46: =IF(AD46="","",LOOKUP(AP46,Tab.4.5!$J$6:$J$27,Tab.4.5!$L$6:$L$27)) ->  | CB46: =IF(AD46="","",He(CA46,BY46)) ->  | CC46: =IF(AD46="","",Hs(BY46)) ->  | CD46: =IF(AD46="","",Hm(BU46,BZ46,CB46,CC46,AL46,AO46)) ->  | CZ46: 0 | DA46: 0 | DB46: 0 | DC46: 0 | DD46: 0 | DE46: =IF(CK46="","",IF(CL46=1,YcCi(CR46,J46),YcTr(J46,CQ46,CU46))) ->  | DF46: =IF(CK46="","",IF(CL46=1,Teta1(DE46,CR46),"-")) ->  | DI46: =IF(CK46="","",IF(CL46=1,Ynci(CR46,J46,CT46,CV46),YnTr(1,CT46,CQ46,CU46,CV46,J46))) ->  | DJ46: =IF(CK46="","",IF(CL46=1,Teta1(DI46,CR46),"-")) ->  | DK46: =IF(CK46="","",IF(CL46=1,AreaCi(CR46,J46),AreaTr(CQ46,CU46,DI46))) ->  | DL46: =IF(CK46="","",IF(CL46=1,FrCi(DM46,9.806,DJ46,CR46),FrTr(DM46,9.806,CQ46,CU46,DI46))) ->  | DN46: =IF(CK46="","",IF(CL46=1,LOOKUP(CP46,'Vmáx(material) - Tab.4.3'!$L$2:$L$11,'Vmáx(material) - Tab.4.3'!$M$2:$M$11),LOOKUP(CP46,'Vmáx(material) - Tab.4.3'!$L$15,'Vmáx(material) - Tab.4.3'!$M$15))) ->  | DO46: =IF(CK46="","",VLOOKUP($CO46,'Vmáx(material) - Tab.4.3'!$R$35:$X$41,2)) ->  | DP46: =IF(CK46="","",VLOOKUP($CO46,'Vmáx(material) - Tab.4.3'!$R$35:$X$41,3)) ->  | DQ46: =IF(CK46="","",VLOOKUP($CO46,'Vmáx(material) - Tab.4.3'!$R$35:$X$41,4)) ->  | DR46: =IF(CK46="","",VLOOKUP($CO46,'Vmáx(material) - Tab.4.3'!$R$35:$X$41,5)) ->  | DS46: =IF(CK46="","",VLOOKUP($CO46,'Vmáx(material) - Tab.4.3'!$R$35:$X$41,6)) ->  | DT46: =IF(CK46="","",IF(CK46="","",VLOOKUP(CO46,'Vmáx(material) - Tab.4.3'!$R$35:$X$41,7))) ->  | DU46: =IF(CK46="","",IF(CL46=1,FCi(J46,CR46),FTr(J46,CQ46,CR46))) ->  | DW46: =IF(CK46="","",Hw(DO46,DP46,DQ46,DR46,DS46,DT46,Z,DU46,CV46,CR46)) ->  | EC46: =IF(CK46="","",IF(CL46=1,PeriCi(CR46,DI46),PeriTr(CQ46,CU46,DI46))) ->  | ED46: =IF(CK46="","",IF(CL46=1,AreaCi(CR46,DI46),AreaTr(CQ46,CU46,DI46))) ->  | EE46: =IF(CK46="","",RhCi(DK46,EC46)) ->  | EG46: =IF(CK46="","",hf(CS46,J46,CT46,DK46,EE46)) ->  | EH46: =IF(CK46="","",LOOKUP(CW46,Tab.4.5!$J$6:$J$27,Tab.4.5!$L$6:$L$27)) ->  | EI46: =IF(CK46="","",He(EH46,DM46)) ->  | EJ46: =IF(CK46="","",Hs(DM46)) ->  | EK46: =IF(CK46="","",Hm(EB46,EG46,EI46,EJ46,CS46,CV46)) ->  | ER46: K45+-45000 () | ES46: =IF(B46="Existe.",IF(AE46=1,CONCATENATE(#REF!,AK46," m."),CONCATENATE(#REF!,AJ46," m x ",AK46," m.")),IF(CL46=1,CONCATENATE(#REF!,CR46," m."),CONCATENATE(#REF!,CQ46," m x ",CR46," m."))) ->  | ET46: Concreto, L = m, S = 0 %. | EU46: Cota clave eje= 0 msnm. | FD46: =IF(EV46="","",VLOOKUP(EY46,'Estructura escalonada'!$D$3:$H$953,2)) -> 
L47: 0 | N47: 0 | U47: =IF(K47="No","",IF(O47="",YcCi(P47,N47),YcTr(N47,O47,S47))) ->  | V47: =IF(K47="No","",IF(O47="",Teta1(U47,P47),"-")) ->  | Y47: =IF(K47="No","",IF(O47="",Ynci(P47,N47,R47,T47),YnTr(1,R47,O47,S47,T47,N47))) ->  | Z47: =IF(K47="No","",IF(O47="",Teta1(Y47,P47),"-")) ->  | AA47: =IF(K47="No","",IF(O47="",AreaCi(P47,Y47),AreaTr(O47,S47,Y47))) ->  | AB47: =IF(K47="No","",IF(O47="",FrCi(AC47,9.806,Z47,P47),FrTr(AC47,9.806,O47,S47,Y47))) ->  | AS47: 0 | AT47: 0 | AX47: =IF(AD47="","",IF(AE47=1,YcCi(AK47,J47),YcTr(J47,AJ47,AN47))) ->  | AY47: =IF(AD47="","",IF(AE47=1,Teta1(AX47,AK47),"-")) ->  | AZ47: =IF(AD47="","",IF(AE47=1,AreaCi(AK47,AX47),AreaTr(AJ47,AN47,AX47))) ->  | BB47: =IF(AD47="","",IF(AE47=1,Ynci(AK47,J47,AM47,AO47),YnTr(1,AM47,AJ47,AN47,AO47,J47))) ->  | BC47: =IF(AD47="","",IF(AE47=1,Teta1(BB47,AK47),"-")) ->  | BD47: =IF(AD47="","",IF(AE47=1,AreaCi(AK47,BB47),AreaTr(AJ47,AN47,BB47))) ->  | BE47: =IF(AD47="","",IF(AE47=1,FrCi(BF47,9.806,BC47,AK47),FrTr(BF47,9.806,AJ47,AN47,BB47))) ->  | BG47: =IF(AD47="","",IF(AE47=1,LOOKUP(AI47,'Vmáx(material) - Tab.4.3'!$L$2:$L$11,'Vmáx(material) - Tab.4.3'!$M$2:$M$11),LOOKUP(AI47,'Vmáx(material) - Tab.4.3'!$L$15,'Vmáx(material) - Tab.4.3'!$M$15))) ->  | BH47: =IF(AD47="","",VLOOKUP($AH47,'Vmáx(material) - Tab.4.3'!$R$35:$X$41,2)) ->  | BI47: =IF(AD47="","",VLOOKUP($AH47,'Vmáx(material) - Tab.4.3'!$R$35:$X$41,3)) ->  | BJ47: =IF(AD47="","",VLOOKUP($AH47,'Vmáx(material) - Tab.4.3'!$R$35:$X$41,4)) ->  | BK47: =IF(AD47="","",VLOOKUP($AH47,'Vmáx(material) - Tab.4.3'!$R$35:$X$41,5)) ->  | BL47: =IF(AD47="","",VLOOKUP($AH47,'Vmáx(material) - Tab.4.3'!$R$35:$X$41,6)) ->  | BM47: =IF(AD47="","",IF(AD47="","",VLOOKUP($AH47,'Vmáx(material) - Tab.4.3'!$R$35:$X$41,7))) ->  | BN47: =IF(AD47="","",IF(AE47=1,FCi(J47,AK47),FTr(J47,AJ47,AK47))) ->  | BP47: =IF(AD47="","",Hw(BH47,BI47,BJ47,BK47,BL47,BM47,Z,BN47,AO47,AK47)) ->  | BU47: =IF(AD47="","",ho(BT47,AK47,AX47)) ->  | BV47: =IF(AD47="","",IF(AE47=1,PeriCi(AK47,BB47),PeriTr(AJ47,AN47,BB47))) ->  | BW47: =IF(AD47="","",IF(AE47=1,AreaCi(AK47,BB47),AreaTr(AJ47,AN47,BB47))) ->  | BX47: =IF(AD47="","",RhCi(BW47,BV47)) ->  | BZ47: =IF(AD47="","",hf(AL47,J47,AM47,BW47,BX47)) ->  | CA47: =IF(AD47="","",LOOKUP(AP47,Tab.4.5!$J$6:$J$27,Tab.4.5!$L$6:$L$27)) ->  | CB47: =IF(AD47="","",He(CA47,BY47)) ->  | CC47: =IF(AD47="","",Hs(BY47)) ->  | CD47: =IF(AD47="","",Hm(BU47,BZ47,CB47,CC47,AL47,AO47)) ->  | CZ47: 0 | DA47: 0 | DB47: 0 | DC47: 0 | DD47: 0 | DE47: =IF(CK47="","",IF(CL47=1,YcCi(CR47,J47),YcTr(J47,CQ47,CU47))) ->  | DF47: =IF(CK47="","",IF(CL47=1,Teta1(DE47,CR47),"-")) ->  | DI47: =IF(CK47="","",IF(CL47=1,Ynci(CR47,J47,CT47,CV47),YnTr(1,CT47,CQ47,CU47,CV47,J47))) ->  | DJ47: =IF(CK47="","",IF(CL47=1,Teta1(DI47,CR47),"-")) ->  | DK47: =IF(CK47="","",IF(CL47=1,AreaCi(CR47,J47),AreaTr(CQ47,CU47,DI47))) ->  | DL47: =IF(CK47="","",IF(CL47=1,FrCi(DM47,9.806,DJ47,CR47),FrTr(DM47,9.806,CQ47,CU47,DI47))) ->  | DN47: =IF(CK47="","",IF(CL47=1,LOOKUP(CP47,'Vmáx(material) - Tab.4.3'!$L$2:$L$11,'Vmáx(material) - Tab.4.3'!$M$2:$M$11),LOOKUP(CP47,'Vmáx(material) - Tab.4.3'!$L$15,'Vmáx(material) - Tab.4.3'!$M$15))) ->  | DO47: =IF(CK47="","",VLOOKUP($CO47,'Vmáx(material) - Tab.4.3'!$R$35:$X$41,2)) ->  | DP47: =IF(CK47="","",VLOOKUP($CO47,'Vmáx(material) - Tab.4.3'!$R$35:$X$41,3)) ->  | DQ47: =IF(CK47="","",VLOOKUP($CO47,'Vmáx(material) - Tab.4.3'!$R$35:$X$41,4)) ->  | DR47: =IF(CK47="","",VLOOKUP($CO47,'Vmáx(material) - Tab.4.3'!$R$35:$X$41,5)) ->  | DS47: =IF(CK47="","",VLOOKUP($CO47,'Vmáx(material) - Tab.4.3'!$R$35:$X$41,6)) ->  | DT47: =IF(CK47="","",IF(CK47="","",VLOOKUP(CO47,'Vmáx(material) - Tab.4.3'!$R$35:$X$41,7))) ->  | DU47: =IF(CK47="","",IF(CL47=1,FCi(J47,CR47),FTr(J47,CQ47,CR47))) ->  | DW47: =IF(CK47="","",Hw(DO47,DP47,DQ47,DR47,DS47,DT47,Z,DU47,CV47,CR47)) ->  | EC47: =IF(CK47="","",IF(CL47=1,PeriCi(CR47,DI47),PeriTr(CQ47,CU47,DI47))) ->  | ED47: =IF(CK47="","",IF(CL47=1,AreaCi(CR47,DI47),AreaTr(CQ47,CU47,DI47))) ->  | EE47: =IF(CK47="","",RhCi(DK47,EC47)) ->  | EG47: =IF(CK47="","",hf(CS47,J47,CT47,DK47,EE47)) ->  | EH47: =IF(CK47="","",LOOKUP(CW47,Tab.4.5!$J$6:$J$27,Tab.4.5!$L$6:$L$27)) ->  | EI47: =IF(CK47="","",He(EH47,DM47)) ->  | EJ47: =IF(CK47="","",Hs(DM47)) ->  | EK47: =IF(CK47="","",Hm(EB47,EG47,EI47,EJ47,CS47,CV47)) ->  | ER47: K45+-45000 () | ES47: =IF(B47="Existe.",IF(AE47=1,CONCATENATE(#REF!,AK47," m."),CONCATENATE(#REF!,AJ47," m x ",AK47," m.")),IF(CL47=1,CONCATENATE(#REF!,CR47," m."),CONCATENATE(#REF!,CQ47," m x ",CR47," m."))) ->  | ET47: Concreto, L = m, S = 0 %. | EU47: Cota clave eje= 0 msnm. | FD47: =IF(EV47="","",VLOOKUP(EY47,'Estructura escalonada'!$D$3:$H$953,2)) -> 
L48: 0 | N48: 0 | U48: =IF(K48="No","",IF(O48="",YcCi(P48,N48),YcTr(N48,O48,S48))) ->  | V48: =IF(K48="No","",IF(O48="",Teta1(U48,P48),"-")) ->  | Y48: =IF(K48="No","",IF(O48="",Ynci(P48,N48,R48,T48),YnTr(1,R48,O48,S48,T48,N48))) ->  | Z48: =IF(K48="No","",IF(O48="",Teta1(Y48,P48),"-")) ->  | AA48: =IF(K48="No","",IF(O48="",AreaCi(P48,Y48),AreaTr(O48,S48,Y48))) ->  | AB48: =IF(K48="No","",IF(O48="",FrCi(AC48,9.806,Z48,P48),FrTr(AC48,9.806,O48,S48,Y48))) ->  | AS48: 0 | AT48: 0 | AX48: =IF(AD48="","",IF(AE48=1,YcCi(AK48,J48),YcTr(J48,AJ48,AN48))) ->  | AY48: =IF(AD48="","",IF(AE48=1,Teta1(AX48,AK48),"-")) ->  | AZ48: =IF(AD48="","",IF(AE48=1,AreaCi(AK48,AX48),AreaTr(AJ48,AN48,AX48))) ->  | BB48: =IF(AD48="","",IF(AE48=1,Ynci(AK48,J48,AM48,AO48),YnTr(1,AM48,AJ48,AN48,AO48,J48))) ->  | BC48: =IF(AD48="","",IF(AE48=1,Teta1(BB48,AK48),"-")) ->  | BD48: =IF(AD48="","",IF(AE48=1,AreaCi(AK48,BB48),AreaTr(AJ48,AN48,BB48))) ->  | BE48: =IF(AD48="","",IF(AE48=1,FrCi(BF48,9.806,BC48,AK48),FrTr(BF48,9.806,AJ48,AN48,BB48))) ->  | BG48: =IF(AD48="","",IF(AE48=1,LOOKUP(AI48,'Vmáx(material) - Tab.4.3'!$L$2:$L$11,'Vmáx(material) - Tab.4.3'!$M$2:$M$11),LOOKUP(AI48,'Vmáx(material) - Tab.4.3'!$L$15,'Vmáx(material) - Tab.4.3'!$M$15))) ->  | BH48: =IF(AD48="","",VLOOKUP($AH48,'Vmáx(material) - Tab.4.3'!$R$35:$X$41,2)) ->  | BI48: =IF(AD48="","",VLOOKUP($AH48,'Vmáx(material) - Tab.4.3'!$R$35:$X$41,3)) ->  | BJ48: =IF(AD48="","",VLOOKUP($AH48,'Vmáx(material) - Tab.4.3'!$R$35:$X$41,4)) ->  | BK48: =IF(AD48="","",VLOOKUP($AH48,'Vmáx(material) - Tab.4.3'!$R$35:$X$41,5)) ->  | BL48: =IF(AD48="","",VLOOKUP($AH48,'Vmáx(material) - Tab.4.3'!$R$35:$X$41,6)) ->  | BM48: =IF(AD48="","",IF(AD48="","",VLOOKUP($AH48,'Vmáx(material) - Tab.4.3'!$R$35:$X$41,7))) ->  | BN48: =IF(AD48="","",IF(AE48=1,FCi(J48,AK48),FTr(J48,AJ48,AK48))) ->  | BP48: =IF(AD48="","",Hw(BH48,BI48,BJ48,BK48,BL48,BM48,Z,BN48,AO48,AK48)) ->  | BU48: =IF(AD48="","",ho(BT48,AK48,AX48)) ->  | BV48: =IF(AD48="","",IF(AE48=1,PeriCi(AK48,BB48),PeriTr(AJ48,AN48,BB48))) ->  | BW48: =IF(AD48="","",IF(AE48=1,AreaCi(AK48,BB48),AreaTr(AJ48,AN48,BB48))) ->  | BX48: =IF(AD48="","",RhCi(BW48,BV48)) ->  | BZ48: =IF(AD48="","",hf(AL48,J48,AM48,BW48,BX48)) ->  | CA48: =IF(AD48="","",LOOKUP(AP48,Tab.4.5!$J$6:$J$27,Tab.4.5!$L$6:$L$27)) ->  | CB48: =IF(AD48="","",He(CA48,BY48)) ->  | CC48: =IF(AD48="","",Hs(BY48)) ->  | CD48: =IF(AD48="","",Hm(BU48,BZ48,CB48,CC48,AL48,AO48)) ->  | CZ48: 0 | DA48: 0 | DB48: 0 | DC48: 0 | DD48: 0 | DE48: =IF(CK48="","",IF(CL48=1,YcCi(CR48,J48),YcTr(J48,CQ48,CU48))) ->  | DF48: =IF(CK48="","",IF(CL48=1,Teta1(DE48,CR48),"-")) ->  | DI48: =IF(CK48="","",IF(CL48=1,Ynci(CR48,J48,CT48,CV48),YnTr(1,CT48,CQ48,CU48,CV48,J48))) ->  | DJ48: =IF(CK48="","",IF(CL48=1,Teta1(DI48,CR48),"-")) ->  | DK48: =IF(CK48="","",IF(CL48=1,AreaCi(CR48,J48),AreaTr(CQ48,CU48,DI48))) ->  | DL48: =IF(CK48="","",IF(CL48=1,FrCi(DM48,9.806,DJ48,CR48),FrTr(DM48,9.806,CQ48,CU48,DI48))) ->  | DN48: =IF(CK48="","",IF(CL48=1,LOOKUP(CP48,'Vmáx(material) - Tab.4.3'!$L$2:$L$11,'Vmáx(material) - Tab.4.3'!$M$2:$M$11),LOOKUP(CP48,'Vmáx(material) - Tab.4.3'!$L$15,'Vmáx(material) - Tab.4.3'!$M$15))) ->  | DO48: =IF(CK48="","",VLOOKUP($CO48,'Vmáx(material) - Tab.4.3'!$R$35:$X$41,2)) ->  | DP48: =IF(CK48="","",VLOOKUP($CO48,'Vmáx(material) - Tab.4.3'!$R$35:$X$41,3)) ->  | DQ48: =IF(CK48="","",VLOOKUP($CO48,'Vmáx(material) - Tab.4.3'!$R$35:$X$41,4)) ->  | DR48: =IF(CK48="","",VLOOKUP($CO48,'Vmáx(material) - Tab.4.3'!$R$35:$X$41,5)) ->  | DS48: =IF(CK48="","",VLOOKUP($CO48,'Vmáx(material) - Tab.4.3'!$R$35:$X$41,6)) ->  | DT48: =IF(CK48="","",IF(CK48="","",VLOOKUP(CO48,'Vmáx(material) - Tab.4.3'!$R$35:$X$41,7))) ->  | DU48: =IF(CK48="","",IF(CL48=1,FCi(J48,CR48),FTr(J48,CQ48,CR48))) ->  | DW48: =IF(CK48="","",Hw(DO48,DP48,DQ48,DR48,DS48,DT48,Z,DU48,CV48,CR48)) ->  | EC48: =IF(CK48="","",IF(CL48=1,PeriCi(CR48,DI48),PeriTr(CQ48,CU48,DI48))) ->  | ED48: =IF(CK48="","",IF(CL48=1,AreaCi(CR48,DI48),AreaTr(CQ48,CU48,DI48))) ->  | EE48: =IF(CK48="","",RhCi(DK48,EC48)) ->  | EG48: =IF(CK48="","",hf(CS48,J48,CT48,DK48,EE48)) ->  | EH48: =IF(CK48="","",LOOKUP(CW48,Tab.4.5!$J$6:$J$27,Tab.4.5!$L$6:$L$27)) ->  | EI48: =IF(CK48="","",He(EH48,DM48)) ->  | EJ48: =IF(CK48="","",Hs(DM48)) ->  | EK48: =IF(CK48="","",Hm(EB48,EG48,EI48,EJ48,CS48,CV48)) ->  | ER48: K45+-45000 () | ES48: =IF(B48="Existe.",IF(AE48=1,CONCATENATE(#REF!,AK48," m."),CONCATENATE(#REF!,AJ48," m x ",AK48," m.")),IF(CL48=1,CONCATENATE(#REF!,CR48," m."),CONCATENATE(#REF!,CQ48," m x ",CR48," m."))) ->  | ET48: Concreto, L = m, S = 0 %. | EU48: Cota clave eje= 0 msnm. | FD48: =IF(EV48="","",VLOOKUP(EY48,'Estructura escalonada'!$D$3:$H$953,2)) -> 
L49: 0 | N49: 0 | U49: =IF(K49="No","",IF(O49="",YcCi(P49,N49),YcTr(N49,O49,S49))) ->  | V49: =IF(K49="No","",IF(O49="",Teta1(U49,P49),"-")) ->  | Y49: =IF(K49="No","",IF(O49="",Ynci(P49,N49,R49,T49),YnTr(1,R49,O49,S49,T49,N49))) ->  | Z49: =IF(K49="No","",IF(O49="",Teta1(Y49,P49),"-")) ->  | AA49: =IF(K49="No","",IF(O49="",AreaCi(P49,Y49),AreaTr(O49,S49,Y49))) ->  | AB49: =IF(K49="No","",IF(O49="",FrCi(AC49,9.806,Z49,P49),FrTr(AC49,9.806,O49,S49,Y49))) ->  | AS49: 0 | AT49: 0 | AX49: =IF(AD49="","",IF(AE49=1,YcCi(AK49,J49),YcTr(J49,AJ49,AN49))) ->  | AY49: =IF(AD49="","",IF(AE49=1,Teta1(AX49,AK49),"-")) ->  | AZ49: =IF(AD49="","",IF(AE49=1,AreaCi(AK49,AX49),AreaTr(AJ49,AN49,AX49))) ->  | BB49: =IF(AD49="","",IF(AE49=1,Ynci(AK49,J49,AM49,AO49),YnTr(1,AM49,AJ49,AN49,AO49,J49))) ->  | BC49: =IF(AD49="","",IF(AE49=1,Teta1(BB49,AK49),"-")) ->  | BD49: =IF(AD49="","",IF(AE49=1,AreaCi(AK49,BB49),AreaTr(AJ49,AN49,BB49))) ->  | BE49: =IF(AD49="","",IF(AE49=1,FrCi(BF49,9.806,BC49,AK49),FrTr(BF49,9.806,AJ49,AN49,BB49))) ->  | BG49: =IF(AD49="","",IF(AE49=1,LOOKUP(AI49,'Vmáx(material) - Tab.4.3'!$L$2:$L$11,'Vmáx(material) - Tab.4.3'!$M$2:$M$11),LOOKUP(AI49,'Vmáx(material) - Tab.4.3'!$L$15,'Vmáx(material) - Tab.4.3'!$M$15))) ->  | BH49: =IF(AD49="","",VLOOKUP($AH49,'Vmáx(material) - Tab.4.3'!$R$35:$X$41,2)) ->  | BI49: =IF(AD49="","",VLOOKUP($AH49,'Vmáx(material) - Tab.4.3'!$R$35:$X$41,3)) ->  | BJ49: =IF(AD49="","",VLOOKUP($AH49,'Vmáx(material) - Tab.4.3'!$R$35:$X$41,4)) ->  | BK49: =IF(AD49="","",VLOOKUP($AH49,'Vmáx(material) - Tab.4.3'!$R$35:$X$41,5)) ->  | BL49: =IF(AD49="","",VLOOKUP($AH49,'Vmáx(material) - Tab.4.3'!$R$35:$X$41,6)) ->  | BM49: =IF(AD49="","",IF(AD49="","",VLOOKUP($AH49,'Vmáx(material) - Tab.4.3'!$R$35:$X$41,7))) ->  | BN49: =IF(AD49="","",IF(AE49=1,FCi(J49,AK49),FTr(J49,AJ49,AK49))) ->  | BP49: =IF(AD49="","",Hw(BH49,BI49,BJ49,BK49,BL49,BM49,Z,BN49,AO49,AK49)) ->  | BU49: =IF(AD49="","",ho(BT49,AK49,AX49)) ->  | BV49: =IF(AD49="","",IF(AE49=1,PeriCi(AK49,BB49),PeriTr(AJ49,AN49,BB49))) ->  | BW49: =IF(AD49="","",IF(AE49=1,AreaCi(AK49,BB49),AreaTr(AJ49,AN49,BB49))) ->  | BX49: =IF(AD49="","",RhCi(BW49,BV49)) ->  | BZ49: =IF(AD49="","",hf(AL49,J49,AM49,BW49,BX49)) ->  | CA49: =IF(AD49="","",LOOKUP(AP49,Tab.4.5!$J$6:$J$27,Tab.4.5!$L$6:$L$27)) ->  | CB49: =IF(AD49="","",He(CA49,BY49)) ->  | CC49: =IF(AD49="","",Hs(BY49)) ->  | CD49: =IF(AD49="","",Hm(BU49,BZ49,CB49,CC49,AL49,AO49)) ->  | CZ49: 0 | DA49: 0 | DB49: 0 | DC49: 0 | DD49: 0 | DE49: =IF(CK49="","",IF(CL49=1,YcCi(CR49,J49),YcTr(J49,CQ49,CU49))) ->  | DF49: =IF(CK49="","",IF(CL49=1,Teta1(DE49,CR49),"-")) ->  | DI49: =IF(CK49="","",IF(CL49=1,Ynci(CR49,J49,CT49,CV49),YnTr(1,CT49,CQ49,CU49,CV49,J49))) ->  | DJ49: =IF(CK49="","",IF(CL49=1,Teta1(DI49,CR49),"-")) ->  | DK49: =IF(CK49="","",IF(CL49=1,AreaCi(CR49,J49),AreaTr(CQ49,CU49,DI49))) ->  | DL49: =IF(CK49="","",IF(CL49=1,FrCi(DM49,9.806,DJ49,CR49),FrTr(DM49,9.806,CQ49,CU49,DI49))) ->  | DN49: =IF(CK49="","",IF(CL49=1,LOOKUP(CP49,'Vmáx(material) - Tab.4.3'!$L$2:$L$11,'Vmáx(material) - Tab.4.3'!$M$2:$M$11),LOOKUP(CP49,'Vmáx(material) - Tab.4.3'!$L$15,'Vmáx(material) - Tab.4.3'!$M$15))) ->  | DO49: =IF(CK49="","",VLOOKUP($CO49,'Vmáx(material) - Tab.4.3'!$R$35:$X$41,2)) ->  | DP49: =IF(CK49="","",VLOOKUP($CO49,'Vmáx(material) - Tab.4.3'!$R$35:$X$41,3)) ->  | DQ49: =IF(CK49="","",VLOOKUP($CO49,'Vmáx(material) - Tab.4.3'!$R$35:$X$41,4)) ->  | DR49: =IF(CK49="","",VLOOKUP($CO49,'Vmáx(material) - Tab.4.3'!$R$35:$X$41,5)) ->  | DS49: =IF(CK49="","",VLOOKUP($CO49,'Vmáx(material) - Tab.4.3'!$R$35:$X$41,6)) ->  | DT49: =IF(CK49="","",IF(CK49="","",VLOOKUP(CO49,'Vmáx(material) - Tab.4.3'!$R$35:$X$41,7))) ->  | DU49: =IF(CK49="","",IF(CL49=1,FCi(J49,CR49),FTr(J49,CQ49,CR49))) ->  | DW49: =IF(CK49="","",Hw(DO49,DP49,DQ49,DR49,DS49,DT49,Z,DU49,CV49,CR49)) ->  | EC49: =IF(CK49="","",IF(CL49=1,PeriCi(CR49,DI49),PeriTr(CQ49,CU49,DI49))) ->  | ED49: =IF(CK49="","",IF(CL49=1,AreaCi(CR49,DI49),AreaTr(CQ49,CU49,DI49))) ->  | EE49: =IF(CK49="","",RhCi(DK49,EC49)) ->  | EG49: =IF(CK49="","",hf(CS49,J49,CT49,DK49,EE49)) ->  | EH49: =IF(CK49="","",LOOKUP(CW49,Tab.4.5!$J$6:$J$27,Tab.4.5!$L$6:$L$27)) ->  | EI49: =IF(CK49="","",He(EH49,DM49)) ->  | EJ49: =IF(CK49="","",Hs(DM49)) ->  | EK49: =IF(CK49="","",Hm(EB49,EG49,EI49,EJ49,CS49,CV49)) ->  | ER49: K45+-45000 () | ES49: =IF(B49="Existe.",IF(AE49=1,CONCATENATE(#REF!,AK49," m."),CONCATENATE(#REF!,AJ49," m x ",AK49," m.")),IF(CL49=1,CONCATENATE(#REF!,CR49," m."),CONCATENATE(#REF!,CQ49," m x ",CR49," m."))) ->  | ET49: Concreto, L = m, S = 0 %. | EU49: Cota clave eje= 0 msnm. | FD49: =IF(EV49="","",VLOOKUP(EY49,'Estructura escalonada'!$D$3:$H$953,2)) -> 
L50: 0 | N50: 0 | U50: =IF(K50="No","",IF(O50="",YcCi(P50,N50),YcTr(N50,O50,S50))) ->  | V50: =IF(K50="No","",IF(O50="",Teta1(U50,P50),"-")) ->  | Y50: =IF(K50="No","",IF(O50="",Ynci(P50,N50,R50,T50),YnTr(1,R50,O50,S50,T50,N50))) ->  | Z50: =IF(K50="No","",IF(O50="",Teta1(Y50,P50),"-")) ->  | AA50: =IF(K50="No","",IF(O50="",AreaCi(P50,Y50),AreaTr(O50,S50,Y50))) ->  | AB50: =IF(K50="No","",IF(O50="",FrCi(AC50,9.806,Z50,P50),FrTr(AC50,9.806,O50,S50,Y50))) ->  | AS50: 0 | AT50: 0 | AX50: =IF(AD50="","",IF(AE50=1,YcCi(AK50,J50),YcTr(J50,AJ50,AN50))) ->  | AY50: =IF(AD50="","",IF(AE50=1,Teta1(AX50,AK50),"-")) ->  | AZ50: =IF(AD50="","",IF(AE50=1,AreaCi(AK50,AX50),AreaTr(AJ50,AN50,AX50))) ->  | BB50: =IF(AD50="","",IF(AE50=1,Ynci(AK50,J50,AM50,AO50),YnTr(1,AM50,AJ50,AN50,AO50,J50))) ->  | BC50: =IF(AD50="","",IF(AE50=1,Teta1(BB50,AK50),"-")) ->  | BD50: =IF(AD50="","",IF(AE50=1,AreaCi(AK50,BB50),AreaTr(AJ50,AN50,BB50))) ->  | BE50: =IF(AD50="","",IF(AE50=1,FrCi(BF50,9.806,BC50,AK50),FrTr(BF50,9.806,AJ50,AN50,BB50))) ->  | BG50: =IF(AD50="","",IF(AE50=1,LOOKUP(AI50,'Vmáx(material) - Tab.4.3'!$L$2:$L$11,'Vmáx(material) - Tab.4.3'!$M$2:$M$11),LOOKUP(AI50,'Vmáx(material) - Tab.4.3'!$L$15,'Vmáx(material) - Tab.4.3'!$M$15))) ->  | BH50: =IF(AD50="","",VLOOKUP($AH50,'Vmáx(material) - Tab.4.3'!$R$35:$X$41,2)) ->  | BI50: =IF(AD50="","",VLOOKUP($AH50,'Vmáx(material) - Tab.4.3'!$R$35:$X$41,3)) ->  | BJ50: =IF(AD50="","",VLOOKUP($AH50,'Vmáx(material) - Tab.4.3'!$R$35:$X$41,4)) ->  | BK50: =IF(AD50="","",VLOOKUP($AH50,'Vmáx(material) - Tab.4.3'!$R$35:$X$41,5)) ->  | BL50: =IF(AD50="","",VLOOKUP($AH50,'Vmáx(material) - Tab.4.3'!$R$35:$X$41,6)) ->  | BM50: =IF(AD50="","",IF(AD50="","",VLOOKUP($AH50,'Vmáx(material) - Tab.4.3'!$R$35:$X$41,7))) ->  | BN50: =IF(AD50="","",IF(AE50=1,FCi(J50,AK50),FTr(J50,AJ50,AK50))) ->  | BP50: =IF(AD50="","",Hw(BH50,BI50,BJ50,BK50,BL50,BM50,Z,BN50,AO50,AK50)) ->  | BU50: =IF(AD50="","",ho(BT50,AK50,AX50)) ->  | BV50: =IF(AD50="","",IF(AE50=1,PeriCi(AK50,BB50),PeriTr(AJ50,AN50,BB50))) ->  | BW50: =IF(AD50="","",IF(AE50=1,AreaCi(AK50,BB50),AreaTr(AJ50,AN50,BB50))) ->  | BX50: =IF(AD50="","",RhCi(BW50,BV50)) ->  | BZ50: =IF(AD50="","",hf(AL50,J50,AM50,BW50,BX50)) ->  | CA50: =IF(AD50="","",LOOKUP(AP50,Tab.4.5!$J$6:$J$27,Tab.4.5!$L$6:$L$27)) ->  | CB50: =IF(AD50="","",He(CA50,BY50)) ->  | CC50: =IF(AD50="","",Hs(BY50)) ->  | CD50: =IF(AD50="","",Hm(BU50,BZ50,CB50,CC50,AL50,AO50)) ->  | CZ50: 0 | DA50: 0 | DB50: 0 | DC50: 0 | DD50: 0 | DE50: =IF(CK50="","",IF(CL50=1,YcCi(CR50,J50),YcTr(J50,CQ50,CU50))) ->  | DF50: =IF(CK50="","",IF(CL50=1,Teta1(DE50,CR50),"-")) ->  | DI50: =IF(CK50="","",IF(CL50=1,Ynci(CR50,J50,CT50,CV50),YnTr(1,CT50,CQ50,CU50,CV50,J50))) ->  | DJ50: =IF(CK50="","",IF(CL50=1,Teta1(DI50,CR50),"-")) ->  | DK50: =IF(CK50="","",IF(CL50=1,AreaCi(CR50,J50),AreaTr(CQ50,CU50,DI50))) ->  | DL50: =IF(CK50="","",IF(CL50=1,FrCi(DM50,9.806,DJ50,CR50),FrTr(DM50,9.806,CQ50,CU50,DI50))) ->  | DN50: =IF(CK50="","",IF(CL50=1,LOOKUP(CP50,'Vmáx(material) - Tab.4.3'!$L$2:$L$11,'Vmáx(material) - Tab.4.3'!$M$2:$M$11),LOOKUP(CP50,'Vmáx(material) - Tab.4.3'!$L$15,'Vmáx(material) - Tab.4.3'!$M$15))) ->  | DO50: =IF(CK50="","",VLOOKUP($CO50,'Vmáx(material) - Tab.4.3'!$R$35:$X$41,2)) ->  | DP50: =IF(CK50="","",VLOOKUP($CO50,'Vmáx(material) - Tab.4.3'!$R$35:$X$41,3)) ->  | DQ50: =IF(CK50="","",VLOOKUP($CO50,'Vmáx(material) - Tab.4.3'!$R$35:$X$41,4)) ->  | DR50: =IF(CK50="","",VLOOKUP($CO50,'Vmáx(material) - Tab.4.3'!$R$35:$X$41,5)) ->  | DS50: =IF(CK50="","",VLOOKUP($CO50,'Vmáx(material) - Tab.4.3'!$R$35:$X$41,6)) ->  | DT50: =IF(CK50="","",IF(CK50="","",VLOOKUP(CO50,'Vmáx(material) - Tab.4.3'!$R$35:$X$41,7))) ->  | DU50: =IF(CK50="","",IF(CL50=1,FCi(J50,CR50),FTr(J50,CQ50,CR50))) ->  | DW50: =IF(CK50="","",Hw(DO50,DP50,DQ50,DR50,DS50,DT50,Z,DU50,CV50,CR50)) ->  | EC50: =IF(CK50="","",IF(CL50=1,PeriCi(CR50,DI50),PeriTr(CQ50,CU50,DI50))) ->  | ED50: =IF(CK50="","",IF(CL50=1,AreaCi(CR50,DI50),AreaTr(CQ50,CU50,DI50))) ->  | EE50: =IF(CK50="","",RhCi(DK50,EC50)) ->  | EG50: =IF(CK50="","",hf(CS50,J50,CT50,DK50,EE50)) ->  | EH50: =IF(CK50="","",LOOKUP(CW50,Tab.4.5!$J$6:$J$27,Tab.4.5!$L$6:$L$27)) ->  | EI50: =IF(CK50="","",He(EH50,DM50)) ->  | EJ50: =IF(CK50="","",Hs(DM50)) ->  | EK50: =IF(CK50="","",Hm(EB50,EG50,EI50,EJ50,CS50,CV50)) ->  | ER50: K45+-45000 () | ES50: =IF(B50="Existe.",IF(AE50=1,CONCATENATE(#REF!,AK50," m."),CONCATENATE(#REF!,AJ50," m x ",AK50," m.")),IF(CL50=1,CONCATENATE(#REF!,CR50," m."),CONCATENATE(#REF!,CQ50," m x ",CR50," m."))) ->  | ET50: Concreto, L = m, S = 0 %. | EU50: Cota clave eje= 0 msnm. | FD50: =IF(EV50="","",VLOOKUP(EY50,'Estructura escalonada'!$D$3:$H$953,2)) -> 
L51: 0 | N51: 0 | U51: =IF(K51="No","",IF(O51="",YcCi(P51,N51),YcTr(N51,O51,S51))) ->  | V51: =IF(K51="No","",IF(O51="",Teta1(U51,P51),"-")) ->  | Y51: =IF(K51="No","",IF(O51="",Ynci(P51,N51,R51,T51),YnTr(1,R51,O51,S51,T51,N51))) ->  | Z51: =IF(K51="No","",IF(O51="",Teta1(Y51,P51),"-")) ->  | AA51: =IF(K51="No","",IF(O51="",AreaCi(P51,Y51),AreaTr(O51,S51,Y51))) ->  | AB51: =IF(K51="No","",IF(O51="",FrCi(AC51,9.806,Z51,P51),FrTr(AC51,9.806,O51,S51,Y51))) ->  | AS51: 0 | AT51: 0 | AX51: =IF(AD51="","",IF(AE51=1,YcCi(AK51,J51),YcTr(J51,AJ51,AN51))) ->  | AY51: =IF(AD51="","",IF(AE51=1,Teta1(AX51,AK51),"-")) ->  | AZ51: =IF(AD51="","",IF(AE51=1,AreaCi(AK51,AX51),AreaTr(AJ51,AN51,AX51))) ->  | BB51: =IF(AD51="","",IF(AE51=1,Ynci(AK51,J51,AM51,AO51),YnTr(1,AM51,AJ51,AN51,AO51,J51))) ->  | BC51: =IF(AD51="","",IF(AE51=1,Teta1(BB51,AK51),"-")) ->  | BD51: =IF(AD51="","",IF(AE51=1,AreaCi(AK51,BB51),AreaTr(AJ51,AN51,BB51))) ->  | BE51: =IF(AD51="","",IF(AE51=1,FrCi(BF51,9.806,BC51,AK51),FrTr(BF51,9.806,AJ51,AN51,BB51))) ->  | BG51: =IF(AD51="","",IF(AE51=1,LOOKUP(AI51,'Vmáx(material) - Tab.4.3'!$L$2:$L$11,'Vmáx(material) - Tab.4.3'!$M$2:$M$11),LOOKUP(AI51,'Vmáx(material) - Tab.4.3'!$L$15,'Vmáx(material) - Tab.4.3'!$M$15))) ->  | BH51: =IF(AD51="","",VLOOKUP($AH51,'Vmáx(material) - Tab.4.3'!$R$35:$X$41,2)) ->  | BI51: =IF(AD51="","",VLOOKUP($AH51,'Vmáx(material) - Tab.4.3'!$R$35:$X$41,3)) ->  | BJ51: =IF(AD51="","",VLOOKUP($AH51,'Vmáx(material) - Tab.4.3'!$R$35:$X$41,4)) ->  | BK51: =IF(AD51="","",VLOOKUP($AH51,'Vmáx(material) - Tab.4.3'!$R$35:$X$41,5)) ->  | BL51: =IF(AD51="","",VLOOKUP($AH51,'Vmáx(material) - Tab.4.3'!$R$35:$X$41,6)) ->  | BM51: =IF(AD51="","",IF(AD51="","",VLOOKUP($AH51,'Vmáx(material) - Tab.4.3'!$R$35:$X$41,7))) ->  | BN51: =IF(AD51="","",IF(AE51=1,FCi(J51,AK51),FTr(J51,AJ51,AK51))) ->  | BP51: =IF(AD51="","",Hw(BH51,BI51,BJ51,BK51,BL51,BM51,Z,BN51,AO51,AK51)) ->  | BU51: =IF(AD51="","",ho(BT51,AK51,AX51)) ->  | BV51: =IF(AD51="","",IF(AE51=1,PeriCi(AK51,BB51),PeriTr(AJ51,AN51,BB51))) ->  | BW51: =IF(AD51="","",IF(AE51=1,AreaCi(AK51,BB51),AreaTr(AJ51,AN51,BB51))) ->  | BX51: =IF(AD51="","",RhCi(BW51,BV51)) ->  | BZ51: =IF(AD51="","",hf(AL51,J51,AM51,BW51,BX51)) ->  | CA51: =IF(AD51="","",LOOKUP(AP51,Tab.4.5!$J$6:$J$27,Tab.4.5!$L$6:$L$27)) ->  | CB51: =IF(AD51="","",He(CA51,BY51)) ->  | CC51: =IF(AD51="","",Hs(BY51)) ->  | CD51: =IF(AD51="","",Hm(BU51,BZ51,CB51,CC51,AL51,AO51)) ->  | CZ51: 0 | DA51: 0 | DB51: 0 | DC51: 0 | DD51: 0 | DE51: =IF(CK51="","",IF(CL51=1,YcCi(CR51,J51),YcTr(J51,CQ51,CU51))) ->  | DF51: =IF(CK51="","",IF(CL51=1,Teta1(DE51,CR51),"-")) ->  | DI51: =IF(CK51="","",IF(CL51=1,Ynci(CR51,J51,CT51,CV51),YnTr(1,CT51,CQ51,CU51,CV51,J51))) ->  | DJ51: =IF(CK51="","",IF(CL51=1,Teta1(DI51,CR51),"-")) ->  | DK51: =IF(CK51="","",IF(CL51=1,AreaCi(CR51,J51),AreaTr(CQ51,CU51,DI51))) ->  | DL51: =IF(CK51="","",IF(CL51=1,FrCi(DM51,9.806,DJ51,CR51),FrTr(DM51,9.806,CQ51,CU51,DI51))) ->  | DN51: =IF(CK51="","",IF(CL51=1,LOOKUP(CP51,'Vmáx(material) - Tab.4.3'!$L$2:$L$11,'Vmáx(material) - Tab.4.3'!$M$2:$M$11),LOOKUP(CP51,'Vmáx(material) - Tab.4.3'!$L$15,'Vmáx(material) - Tab.4.3'!$M$15))) ->  | DO51: =IF(CK51="","",VLOOKUP($CO51,'Vmáx(material) - Tab.4.3'!$R$35:$X$41,2)) ->  | DP51: =IF(CK51="","",VLOOKUP($CO51,'Vmáx(material) - Tab.4.3'!$R$35:$X$41,3)) ->  | DQ51: =IF(CK51="","",VLOOKUP($CO51,'Vmáx(material) - Tab.4.3'!$R$35:$X$41,4)) ->  | DR51: =IF(CK51="","",VLOOKUP($CO51,'Vmáx(material) - Tab.4.3'!$R$35:$X$41,5)) ->  | DS51: =IF(CK51="","",VLOOKUP($CO51,'Vmáx(material) - Tab.4.3'!$R$35:$X$41,6)) ->  | DT51: =IF(CK51="","",IF(CK51="","",VLOOKUP(CO51,'Vmáx(material) - Tab.4.3'!$R$35:$X$41,7))) ->  | DU51: =IF(CK51="","",IF(CL51=1,FCi(J51,CR51),FTr(J51,CQ51,CR51))) ->  | DW51: =IF(CK51="","",Hw(DO51,DP51,DQ51,DR51,DS51,DT51,Z,DU51,CV51,CR51)) ->  | EC51: =IF(CK51="","",IF(CL51=1,PeriCi(CR51,DI51),PeriTr(CQ51,CU51,DI51))) ->  | ED51: =IF(CK51="","",IF(CL51=1,AreaCi(CR51,DI51),AreaTr(CQ51,CU51,DI51))) ->  | EE51: =IF(CK51="","",RhCi(DK51,EC51)) ->  | EG51: =IF(CK51="","",hf(CS51,J51,CT51,DK51,EE51)) ->  | EH51: =IF(CK51="","",LOOKUP(CW51,Tab.4.5!$J$6:$J$27,Tab.4.5!$L$6:$L$27)) ->  | EI51: =IF(CK51="","",He(EH51,DM51)) ->  | EJ51: =IF(CK51="","",Hs(DM51)) ->  | EK51: =IF(CK51="","",Hm(EB51,EG51,EI51,EJ51,CS51,CV51)) ->  | ER51: K45+-45000 () | ES51: =IF(B51="Existe.",IF(AE51=1,CONCATENATE(#REF!,AK51," m."),CONCATENATE(#REF!,AJ51," m x ",AK51," m.")),IF(CL51=1,CONCATENATE(#REF!,CR51," m."),CONCATENATE(#REF!,CQ51," m x ",CR51," m."))) ->  | ET51: Concreto, L = m, S = 0 %. | EU51: Cota clave eje= 0 msnm. | FD51: =IF(EV51="","",VLOOKUP(EY51,'Estructura escalonada'!$D$3:$H$953,2)) -> 
L52: 0 | N52: 0 | U52: =IF(K52="No","",IF(O52="",YcCi(P52,N52),YcTr(N52,O52,S52))) ->  | V52: =IF(K52="No","",IF(O52="",Teta1(U52,P52),"-")) ->  | Y52: =IF(K52="No","",IF(O52="",Ynci(P52,N52,R52,T52),YnTr(1,R52,O52,S52,T52,N52))) ->  | Z52: =IF(K52="No","",IF(O52="",Teta1(Y52,P52),"-")) ->  | AA52: =IF(K52="No","",IF(O52="",AreaCi(P52,Y52),AreaTr(O52,S52,Y52))) ->  | AB52: =IF(K52="No","",IF(O52="",FrCi(AC52,9.806,Z52,P52),FrTr(AC52,9.806,O52,S52,Y52))) ->  | AS52: 0 | AT52: 0 | AX52: =IF(AD52="","",IF(AE52=1,YcCi(AK52,J52),YcTr(J52,AJ52,AN52))) ->  | AY52: =IF(AD52="","",IF(AE52=1,Teta1(AX52,AK52),"-")) ->  | AZ52: =IF(AD52="","",IF(AE52=1,AreaCi(AK52,AX52),AreaTr(AJ52,AN52,AX52))) ->  | BB52: =IF(AD52="","",IF(AE52=1,Ynci(AK52,J52,AM52,AO52),YnTr(1,AM52,AJ52,AN52,AO52,J52))) ->  | BC52: =IF(AD52="","",IF(AE52=1,Teta1(BB52,AK52),"-")) ->  | BD52: =IF(AD52="","",IF(AE52=1,AreaCi(AK52,BB52),AreaTr(AJ52,AN52,BB52))) ->  | BE52: =IF(AD52="","",IF(AE52=1,FrCi(BF52,9.806,BC52,AK52),FrTr(BF52,9.806,AJ52,AN52,BB52))) ->  | BG52: =IF(AD52="","",IF(AE52=1,LOOKUP(AI52,'Vmáx(material) - Tab.4.3'!$L$2:$L$11,'Vmáx(material) - Tab.4.3'!$M$2:$M$11),LOOKUP(AI52,'Vmáx(material) - Tab.4.3'!$L$15,'Vmáx(material) - Tab.4.3'!$M$15))) ->  | BH52: =IF(AD52="","",VLOOKUP($AH52,'Vmáx(material) - Tab.4.3'!$R$35:$X$41,2)) ->  | BI52: =IF(AD52="","",VLOOKUP($AH52,'Vmáx(material) - Tab.4.3'!$R$35:$X$41,3)) ->  | BJ52: =IF(AD52="","",VLOOKUP($AH52,'Vmáx(material) - Tab.4.3'!$R$35:$X$41,4)) ->  | BK52: =IF(AD52="","",VLOOKUP($AH52,'Vmáx(material) - Tab.4.3'!$R$35:$X$41,5)) ->  | BL52: =IF(AD52="","",VLOOKUP($AH52,'Vmáx(material) - Tab.4.3'!$R$35:$X$41,6)) ->  | BM52: =IF(AD52="","",IF(AD52="","",VLOOKUP($AH52,'Vmáx(material) - Tab.4.3'!$R$35:$X$41,7))) ->  | BN52: =IF(AD52="","",IF(AE52=1,FCi(J52,AK52),FTr(J52,AJ52,AK52))) ->  | BP52: =IF(AD52="","",Hw(BH52,BI52,BJ52,BK52,BL52,BM52,Z,BN52,AO52,AK52)) ->  | BU52: =IF(AD52="","",ho(BT52,AK52,AX52)) ->  | BV52: =IF(AD52="","",IF(AE52=1,PeriCi(AK52,BB52),PeriTr(AJ52,AN52,BB52))) ->  | BW52: =IF(AD52="","",IF(AE52=1,AreaCi(AK52,BB52),AreaTr(AJ52,AN52,BB52))) ->  | BX52: =IF(AD52="","",RhCi(BW52,BV52)) ->  | BZ52: =IF(AD52="","",hf(AL52,J52,AM52,BW52,BX52)) ->  | CA52: =IF(AD52="","",LOOKUP(AP52,Tab.4.5!$J$6:$J$27,Tab.4.5!$L$6:$L$27)) ->  | CB52: =IF(AD52="","",He(CA52,BY52)) ->  | CC52: =IF(AD52="","",Hs(BY52)) ->  | CD52: =IF(AD52="","",Hm(BU52,BZ52,CB52,CC52,AL52,AO52)) ->  | CZ52: 0 | DA52: 0 | DB52: 0 | DC52: 0 | DD52: 0 | DE52: =IF(CK52="","",IF(CL52=1,YcCi(CR52,J52),YcTr(J52,CQ52,CU52))) ->  | DF52: =IF(CK52="","",IF(CL52=1,Teta1(DE52,CR52),"-")) ->  | DI52: =IF(CK52="","",IF(CL52=1,Ynci(CR52,J52,CT52,CV52),YnTr(1,CT52,CQ52,CU52,CV52,J52))) ->  | DJ52: =IF(CK52="","",IF(CL52=1,Teta1(DI52,CR52),"-")) ->  | DK52: =IF(CK52="","",IF(CL52=1,AreaCi(CR52,J52),AreaTr(CQ52,CU52,DI52))) ->  | DL52: =IF(CK52="","",IF(CL52=1,FrCi(DM52,9.806,DJ52,CR52),FrTr(DM52,9.806,CQ52,CU52,DI52))) ->  | DN52: =IF(CK52="","",IF(CL52=1,LOOKUP(CP52,'Vmáx(material) - Tab.4.3'!$L$2:$L$11,'Vmáx(material) - Tab.4.3'!$M$2:$M$11),LOOKUP(CP52,'Vmáx(material) - Tab.4.3'!$L$15,'Vmáx(material) - Tab.4.3'!$M$15))) ->  | DO52: =IF(CK52="","",VLOOKUP($CO52,'Vmáx(material) - Tab.4.3'!$R$35:$X$41,2)) ->  | DP52: =IF(CK52="","",VLOOKUP($CO52,'Vmáx(material) - Tab.4.3'!$R$35:$X$41,3)) ->  | DQ52: =IF(CK52="","",VLOOKUP($CO52,'Vmáx(material) - Tab.4.3'!$R$35:$X$41,4)) ->  | DR52: =IF(CK52="","",VLOOKUP($CO52,'Vmáx(material) - Tab.4.3'!$R$35:$X$41,5)) ->  | DS52: =IF(CK52="","",VLOOKUP($CO52,'Vmáx(material) - Tab.4.3'!$R$35:$X$41,6)) ->  | DT52: =IF(CK52="","",IF(CK52="","",VLOOKUP(CO52,'Vmáx(material) - Tab.4.3'!$R$35:$X$41,7))) ->  | DU52: =IF(CK52="","",IF(CL52=1,FCi(J52,CR52),FTr(J52,CQ52,CR52))) ->  | DW52: =IF(CK52="","",Hw(DO52,DP52,DQ52,DR52,DS52,DT52,Z,DU52,CV52,CR52)) ->  | EC52: =IF(CK52="","",IF(CL52=1,PeriCi(CR52,DI52),PeriTr(CQ52,CU52,DI52))) ->  | ED52: =IF(CK52="","",IF(CL52=1,AreaCi(CR52,DI52),AreaTr(CQ52,CU52,DI52))) ->  | EE52: =IF(CK52="","",RhCi(DK52,EC52)) ->  | EG52: =IF(CK52="","",hf(CS52,J52,CT52,DK52,EE52)) ->  | EH52: =IF(CK52="","",LOOKUP(CW52,Tab.4.5!$J$6:$J$27,Tab.4.5!$L$6:$L$27)) ->  | EI52: =IF(CK52="","",He(EH52,DM52)) ->  | EJ52: =IF(CK52="","",Hs(DM52)) ->  | EK52: =IF(CK52="","",Hm(EB52,EG52,EI52,EJ52,CS52,CV52)) ->  | ER52: K45+-45000 () | ES52: =IF(B52="Existe.",IF(AE52=1,CONCATENATE(#REF!,AK52," m."),CONCATENATE(#REF!,AJ52," m x ",AK52," m.")),IF(CL52=1,CONCATENATE(#REF!,CR52," m."),CONCATENATE(#REF!,CQ52," m x ",CR52," m."))) ->  | ET52: Concreto, L = m, S = 0 %. | EU52: Cota clave eje= 0 msnm. | FD52: =IF(EV52="","",VLOOKUP(EY52,'Estructura escalonada'!$D$3:$H$953,2)) -> 
L53: 0 | N53: 0 | U53: =IF(K53="No","",IF(O53="",YcCi(P53,N53),YcTr(N53,O53,S53))) ->  | V53: =IF(K53="No","",IF(O53="",Teta1(U53,P53),"-")) ->  | Y53: =IF(K53="No","",IF(O53="",Ynci(P53,N53,R53,T53),YnTr(1,R53,O53,S53,T53,N53))) ->  | Z53: =IF(K53="No","",IF(O53="",Teta1(Y53,P53),"-")) ->  | AA53: =IF(K53="No","",IF(O53="",AreaCi(P53,Y53),AreaTr(O53,S53,Y53))) ->  | AB53: =IF(K53="No","",IF(O53="",FrCi(AC53,9.806,Z53,P53),FrTr(AC53,9.806,O53,S53,Y53))) ->  | AS53: 0 | AT53: 0 | AX53: =IF(AD53="","",IF(AE53=1,YcCi(AK53,J53),YcTr(J53,AJ53,AN53))) ->  | AY53: =IF(AD53="","",IF(AE53=1,Teta1(AX53,AK53),"-")) ->  | AZ53: =IF(AD53="","",IF(AE53=1,AreaCi(AK53,AX53),AreaTr(AJ53,AN53,AX53))) ->  | BB53: =IF(AD53="","",IF(AE53=1,Ynci(AK53,J53,AM53,AO53),YnTr(1,AM53,AJ53,AN53,AO53,J53))) ->  | BC53: =IF(AD53="","",IF(AE53=1,Teta1(BB53,AK53),"-")) ->  | BD53: =IF(AD53="","",IF(AE53=1,AreaCi(AK53,BB53),AreaTr(AJ53,AN53,BB53))) ->  | BE53: =IF(AD53="","",IF(AE53=1,FrCi(BF53,9.806,BC53,AK53),FrTr(BF53,9.806,AJ53,AN53,BB53))) ->  | BG53: =IF(AD53="","",IF(AE53=1,LOOKUP(AI53,'Vmáx(material) - Tab.4.3'!$L$2:$L$11,'Vmáx(material) - Tab.4.3'!$M$2:$M$11),LOOKUP(AI53,'Vmáx(material) - Tab.4.3'!$L$15,'Vmáx(material) - Tab.4.3'!$M$15))) ->  | BH53: =IF(AD53="","",VLOOKUP($AH53,'Vmáx(material) - Tab.4.3'!$R$35:$X$41,2)) ->  | BI53: =IF(AD53="","",VLOOKUP($AH53,'Vmáx(material) - Tab.4.3'!$R$35:$X$41,3)) ->  | BJ53: =IF(AD53="","",VLOOKUP($AH53,'Vmáx(material) - Tab.4.3'!$R$35:$X$41,4)) ->  | BK53: =IF(AD53="","",VLOOKUP($AH53,'Vmáx(material) - Tab.4.3'!$R$35:$X$41,5)) ->  | BL53: =IF(AD53="","",VLOOKUP($AH53,'Vmáx(material) - Tab.4.3'!$R$35:$X$41,6)) ->  | BM53: =IF(AD53="","",IF(AD53="","",VLOOKUP($AH53,'Vmáx(material) - Tab.4.3'!$R$35:$X$41,7))) ->  | BN53: =IF(AD53="","",IF(AE53=1,FCi(J53,AK53),FTr(J53,AJ53,AK53))) ->  | BP53: =IF(AD53="","",Hw(BH53,BI53,BJ53,BK53,BL53,BM53,Z,BN53,AO53,AK53)) ->  | BU53: =IF(AD53="","",ho(BT53,AK53,AX53)) ->  | BV53: =IF(AD53="","",IF(AE53=1,PeriCi(AK53,BB53),PeriTr(AJ53,AN53,BB53))) ->  | BW53: =IF(AD53="","",IF(AE53=1,AreaCi(AK53,BB53),AreaTr(AJ53,AN53,BB53))) ->  | BX53: =IF(AD53="","",RhCi(BW53,BV53)) ->  | BZ53: =IF(AD53="","",hf(AL53,J53,AM53,BW53,BX53)) ->  | CA53: =IF(AD53="","",LOOKUP(AP53,Tab.4.5!$J$6:$J$27,Tab.4.5!$L$6:$L$27)) ->  | CB53: =IF(AD53="","",He(CA53,BY53)) ->  | CC53: =IF(AD53="","",Hs(BY53)) ->  | CD53: =IF(AD53="","",Hm(BU53,BZ53,CB53,CC53,AL53,AO53)) ->  | CZ53: 0 | DA53: 0 | DB53: 0 | DC53: 0 | DD53: 0 | DE53: =IF(CK53="","",IF(CL53=1,YcCi(CR53,J53),YcTr(J53,CQ53,CU53))) ->  | DF53: =IF(CK53="","",IF(CL53=1,Teta1(DE53,CR53),"-")) ->  | DI53: =IF(CK53="","",IF(CL53=1,Ynci(CR53,J53,CT53,CV53),YnTr(1,CT53,CQ53,CU53,CV53,J53))) ->  | DJ53: =IF(CK53="","",IF(CL53=1,Teta1(DI53,CR53),"-")) ->  | DK53: =IF(CK53="","",IF(CL53=1,AreaCi(CR53,J53),AreaTr(CQ53,CU53,DI53))) ->  | DL53: =IF(CK53="","",IF(CL53=1,FrCi(DM53,9.806,DJ53,CR53),FrTr(DM53,9.806,CQ53,CU53,DI53))) ->  | DN53: =IF(CK53="","",IF(CL53=1,LOOKUP(CP53,'Vmáx(material) - Tab.4.3'!$L$2:$L$11,'Vmáx(material) - Tab.4.3'!$M$2:$M$11),LOOKUP(CP53,'Vmáx(material) - Tab.4.3'!$L$15,'Vmáx(material) - Tab.4.3'!$M$15))) ->  | DO53: =IF(CK53="","",VLOOKUP($CO53,'Vmáx(material) - Tab.4.3'!$R$35:$X$41,2)) ->  | DP53: =IF(CK53="","",VLOOKUP($CO53,'Vmáx(material) - Tab.4.3'!$R$35:$X$41,3)) ->  | DQ53: =IF(CK53="","",VLOOKUP($CO53,'Vmáx(material) - Tab.4.3'!$R$35:$X$41,4)) ->  | DR53: =IF(CK53="","",VLOOKUP($CO53,'Vmáx(material) - Tab.4.3'!$R$35:$X$41,5)) ->  | DS53: =IF(CK53="","",VLOOKUP($CO53,'Vmáx(material) - Tab.4.3'!$R$35:$X$41,6)) ->  | DT53: =IF(CK53="","",IF(CK53="","",VLOOKUP(CO53,'Vmáx(material) - Tab.4.3'!$R$35:$X$41,7))) ->  | DU53: =IF(CK53="","",IF(CL53=1,FCi(J53,CR53),FTr(J53,CQ53,CR53))) ->  | DW53: =IF(CK53="","",Hw(DO53,DP53,DQ53,DR53,DS53,DT53,Z,DU53,CV53,CR53)) ->  | EC53: =IF(CK53="","",IF(CL53=1,PeriCi(CR53,DI53),PeriTr(CQ53,CU53,DI53))) ->  | ED53: =IF(CK53="","",IF(CL53=1,AreaCi(CR53,DI53),AreaTr(CQ53,CU53,DI53))) ->  | EE53: =IF(CK53="","",RhCi(DK53,EC53)) ->  | EG53: =IF(CK53="","",hf(CS53,J53,CT53,DK53,EE53)) ->  | EH53: =IF(CK53="","",LOOKUP(CW53,Tab.4.5!$J$6:$J$27,Tab.4.5!$L$6:$L$27)) ->  | EI53: =IF(CK53="","",He(EH53,DM53)) ->  | EJ53: =IF(CK53="","",Hs(DM53)) ->  | EK53: =IF(CK53="","",Hm(EB53,EG53,EI53,EJ53,CS53,CV53)) ->  | ER53: K45+-45000 () | ES53: =IF(B53="Existe.",IF(AE53=1,CONCATENATE(#REF!,AK53," m."),CONCATENATE(#REF!,AJ53," m x ",AK53," m.")),IF(CL53=1,CONCATENATE(#REF!,CR53," m."),CONCATENATE(#REF!,CQ53," m x ",CR53," m."))) ->  | ET53: Concreto, L = m, S = 0 %. | EU53: Cota clave eje= 0 msnm. | FD53: =IF(EV53="","",VLOOKUP(EY53,'Estructura escalonada'!$D$3:$H$953,2)) -> 
L54: 0 | N54: 0 | U54: =IF(K54="No","",IF(O54="",YcCi(P54,N54),YcTr(N54,O54,S54))) ->  | V54: =IF(K54="No","",IF(O54="",Teta1(U54,P54),"-")) ->  | Y54: =IF(K54="No","",IF(O54="",Ynci(P54,N54,R54,T54),YnTr(1,R54,O54,S54,T54,N54))) ->  | Z54: =IF(K54="No","",IF(O54="",Teta1(Y54,P54),"-")) ->  | AA54: =IF(K54="No","",IF(O54="",AreaCi(P54,Y54),AreaTr(O54,S54,Y54))) ->  | AB54: =IF(K54="No","",IF(O54="",FrCi(AC54,9.806,Z54,P54),FrTr(AC54,9.806,O54,S54,Y54))) ->  | AS54: 0 | AT54: 0 | AX54: =IF(AD54="","",IF(AE54=1,YcCi(AK54,J54),YcTr(J54,AJ54,AN54))) ->  | AY54: =IF(AD54="","",IF(AE54=1,Teta1(AX54,AK54),"-")) ->  | AZ54: =IF(AD54="","",IF(AE54=1,AreaCi(AK54,AX54),AreaTr(AJ54,AN54,AX54))) ->  | BB54: =IF(AD54="","",IF(AE54=1,Ynci(AK54,J54,AM54,AO54),YnTr(1,AM54,AJ54,AN54,AO54,J54))) ->  | BC54: =IF(AD54="","",IF(AE54=1,Teta1(BB54,AK54),"-")) ->  | BD54: =IF(AD54="","",IF(AE54=1,AreaCi(AK54,BB54),AreaTr(AJ54,AN54,BB54))) ->  | BE54: =IF(AD54="","",IF(AE54=1,FrCi(BF54,9.806,BC54,AK54),FrTr(BF54,9.806,AJ54,AN54,BB54))) ->  | BG54: =IF(AD54="","",IF(AE54=1,LOOKUP(AI54,'Vmáx(material) - Tab.4.3'!$L$2:$L$11,'Vmáx(material) - Tab.4.3'!$M$2:$M$11),LOOKUP(AI54,'Vmáx(material) - Tab.4.3'!$L$15,'Vmáx(material) - Tab.4.3'!$M$15))) ->  | BH54: =IF(AD54="","",VLOOKUP($AH54,'Vmáx(material) - Tab.4.3'!$R$35:$X$41,2)) ->  | BI54: =IF(AD54="","",VLOOKUP($AH54,'Vmáx(material) - Tab.4.3'!$R$35:$X$41,3)) ->  | BJ54: =IF(AD54="","",VLOOKUP($AH54,'Vmáx(material) - Tab.4.3'!$R$35:$X$41,4)) ->  | BK54: =IF(AD54="","",VLOOKUP($AH54,'Vmáx(material) - Tab.4.3'!$R$35:$X$41,5)) ->  | BL54: =IF(AD54="","",VLOOKUP($AH54,'Vmáx(material) - Tab.4.3'!$R$35:$X$41,6)) ->  | BM54: =IF(AD54="","",IF(AD54="","",VLOOKUP($AH54,'Vmáx(material) - Tab.4.3'!$R$35:$X$41,7))) ->  | BN54: =IF(AD54="","",IF(AE54=1,FCi(J54,AK54),FTr(J54,AJ54,AK54))) ->  | BP54: =IF(AD54="","",Hw(BH54,BI54,BJ54,BK54,BL54,BM54,Z,BN54,AO54,AK54)) ->  | BU54: =IF(AD54="","",ho(BT54,AK54,AX54)) ->  | BV54: =IF(AD54="","",IF(AE54=1,PeriCi(AK54,BB54),PeriTr(AJ54,AN54,BB54))) ->  | BW54: =IF(AD54="","",IF(AE54=1,AreaCi(AK54,BB54),AreaTr(AJ54,AN54,BB54))) ->  | BX54: =IF(AD54="","",RhCi(BW54,BV54)) ->  | BZ54: =IF(AD54="","",hf(AL54,J54,AM54,BW54,BX54)) ->  | CA54: =IF(AD54="","",LOOKUP(AP54,Tab.4.5!$J$6:$J$27,Tab.4.5!$L$6:$L$27)) ->  | CB54: =IF(AD54="","",He(CA54,BY54)) ->  | CC54: =IF(AD54="","",Hs(BY54)) ->  | CD54: =IF(AD54="","",Hm(BU54,BZ54,CB54,CC54,AL54,AO54)) ->  | CZ54: 0 | DA54: 0 | DB54: 0 | DC54: 0 | DD54: 0 | DE54: =IF(CK54="","",IF(CL54=1,YcCi(CR54,J54),YcTr(J54,CQ54,CU54))) ->  | DF54: =IF(CK54="","",IF(CL54=1,Teta1(DE54,CR54),"-")) ->  | DI54: =IF(CK54="","",IF(CL54=1,Ynci(CR54,J54,CT54,CV54),YnTr(1,CT54,CQ54,CU54,CV54,J54))) ->  | DJ54: =IF(CK54="","",IF(CL54=1,Teta1(DI54,CR54),"-")) ->  | DK54: =IF(CK54="","",IF(CL54=1,AreaCi(CR54,J54),AreaTr(CQ54,CU54,DI54))) ->  | DL54: =IF(CK54="","",IF(CL54=1,FrCi(DM54,9.806,DJ54,CR54),FrTr(DM54,9.806,CQ54,CU54,DI54))) ->  | DN54: =IF(CK54="","",IF(CL54=1,LOOKUP(CP54,'Vmáx(material) - Tab.4.3'!$L$2:$L$11,'Vmáx(material) - Tab.4.3'!$M$2:$M$11),LOOKUP(CP54,'Vmáx(material) - Tab.4.3'!$L$15,'Vmáx(material) - Tab.4.3'!$M$15))) ->  | DO54: =IF(CK54="","",VLOOKUP($CO54,'Vmáx(material) - Tab.4.3'!$R$35:$X$41,2)) ->  | DP54: =IF(CK54="","",VLOOKUP($CO54,'Vmáx(material) - Tab.4.3'!$R$35:$X$41,3)) ->  | DQ54: =IF(CK54="","",VLOOKUP($CO54,'Vmáx(material) - Tab.4.3'!$R$35:$X$41,4)) ->  | DR54: =IF(CK54="","",VLOOKUP($CO54,'Vmáx(material) - Tab.4.3'!$R$35:$X$41,5)) ->  | DS54: =IF(CK54="","",VLOOKUP($CO54,'Vmáx(material) - Tab.4.3'!$R$35:$X$41,6)) ->  | DT54: =IF(CK54="","",IF(CK54="","",VLOOKUP(CO54,'Vmáx(material) - Tab.4.3'!$R$35:$X$41,7))) ->  | DU54: =IF(CK54="","",IF(CL54=1,FCi(J54,CR54),FTr(J54,CQ54,CR54))) ->  | DW54: =IF(CK54="","",Hw(DO54,DP54,DQ54,DR54,DS54,DT54,Z,DU54,CV54,CR54)) ->  | EC54: =IF(CK54="","",IF(CL54=1,PeriCi(CR54,DI54),PeriTr(CQ54,CU54,DI54))) ->  | ED54: =IF(CK54="","",IF(CL54=1,AreaCi(CR54,DI54),AreaTr(CQ54,CU54,DI54))) ->  | EE54: =IF(CK54="","",RhCi(DK54,EC54)) ->  | EG54: =IF(CK54="","",hf(CS54,J54,CT54,DK54,EE54)) ->  | EH54: =IF(CK54="","",LOOKUP(CW54,Tab.4.5!$J$6:$J$27,Tab.4.5!$L$6:$L$27)) ->  | EI54: =IF(CK54="","",He(EH54,DM54)) ->  | EJ54: =IF(CK54="","",Hs(DM54)) ->  | EK54: =IF(CK54="","",Hm(EB54,EG54,EI54,EJ54,CS54,CV54)) ->  | ER54: K45+-45000 () | ES54: =IF(B54="Existe.",IF(AE54=1,CONCATENATE(#REF!,AK54," m."),CONCATENATE(#REF!,AJ54," m x ",AK54," m.")),IF(CL54=1,CONCATENATE(#REF!,CR54," m."),CONCATENATE(#REF!,CQ54," m x ",CR54," m."))) ->  | ET54: Concreto, L = m, S = 0 %. | EU54: Cota clave eje= 0 msnm. | FD54: =IF(EV54="","",VLOOKUP(EY54,'Estructura escalonada'!$D$3:$H$953,2)) -> 
L55: 0 | N55: 0 | U55: =IF(K55="No","",IF(O55="",YcCi(P55,N55),YcTr(N55,O55,S55))) ->  | V55: =IF(K55="No","",IF(O55="",Teta1(U55,P55),"-")) ->  | Y55: =IF(K55="No","",IF(O55="",Ynci(P55,N55,R55,T55),YnTr(1,R55,O55,S55,T55,N55))) ->  | Z55: =IF(K55="No","",IF(O55="",Teta1(Y55,P55),"-")) ->  | AA55: =IF(K55="No","",IF(O55="",AreaCi(P55,Y55),AreaTr(O55,S55,Y55))) ->  | AB55: =IF(K55="No","",IF(O55="",FrCi(AC55,9.806,Z55,P55),FrTr(AC55,9.806,O55,S55,Y55))) ->  | AS55: 0 | AT55: 0 | AX55: =IF(AD55="","",IF(AE55=1,YcCi(AK55,J55),YcTr(J55,AJ55,AN55))) ->  | AY55: =IF(AD55="","",IF(AE55=1,Teta1(AX55,AK55),"-")) ->  | AZ55: =IF(AD55="","",IF(AE55=1,AreaCi(AK55,AX55),AreaTr(AJ55,AN55,AX55))) ->  | BB55: =IF(AD55="","",IF(AE55=1,Ynci(AK55,J55,AM55,AO55),YnTr(1,AM55,AJ55,AN55,AO55,J55))) ->  | BC55: =IF(AD55="","",IF(AE55=1,Teta1(BB55,AK55),"-")) ->  | BD55: =IF(AD55="","",IF(AE55=1,AreaCi(AK55,BB55),AreaTr(AJ55,AN55,BB55))) ->  | BE55: =IF(AD55="","",IF(AE55=1,FrCi(BF55,9.806,BC55,AK55),FrTr(BF55,9.806,AJ55,AN55,BB55))) ->  | BG55: =IF(AD55="","",IF(AE55=1,LOOKUP(AI55,'Vmáx(material) - Tab.4.3'!$L$2:$L$11,'Vmáx(material) - Tab.4.3'!$M$2:$M$11),LOOKUP(AI55,'Vmáx(material) - Tab.4.3'!$L$15,'Vmáx(material) - Tab.4.3'!$M$15))) ->  | BH55: =IF(AD55="","",VLOOKUP($AH55,'Vmáx(material) - Tab.4.3'!$R$35:$X$41,2)) ->  | BI55: =IF(AD55="","",VLOOKUP($AH55,'Vmáx(material) - Tab.4.3'!$R$35:$X$41,3)) ->  | BJ55: =IF(AD55="","",VLOOKUP($AH55,'Vmáx(material) - Tab.4.3'!$R$35:$X$41,4)) ->  | BK55: =IF(AD55="","",VLOOKUP($AH55,'Vmáx(material) - Tab.4.3'!$R$35:$X$41,5)) ->  | BL55: =IF(AD55="","",VLOOKUP($AH55,'Vmáx(material) - Tab.4.3'!$R$35:$X$41,6)) ->  | BM55: =IF(AD55="","",IF(AD55="","",VLOOKUP($AH55,'Vmáx(material) - Tab.4.3'!$R$35:$X$41,7))) ->  | BN55: =IF(AD55="","",IF(AE55=1,FCi(J55,AK55),FTr(J55,AJ55,AK55))) ->  | BP55: =IF(AD55="","",Hw(BH55,BI55,BJ55,BK55,BL55,BM55,Z,BN55,AO55,AK55)) ->  | BU55: =IF(AD55="","",ho(BT55,AK55,AX55)) ->  | BV55: =IF(AD55="","",IF(AE55=1,PeriCi(AK55,BB55),PeriTr(AJ55,AN55,BB55))) ->  | BW55: =IF(AD55="","",IF(AE55=1,AreaCi(AK55,BB55),AreaTr(AJ55,AN55,BB55))) ->  | BX55: =IF(AD55="","",RhCi(BW55,BV55)) ->  | BZ55: =IF(AD55="","",hf(AL55,J55,AM55,BW55,BX55)) ->  | CA55: =IF(AD55="","",LOOKUP(AP55,Tab.4.5!$J$6:$J$27,Tab.4.5!$L$6:$L$27)) ->  | CB55: =IF(AD55="","",He(CA55,BY55)) ->  | CC55: =IF(AD55="","",Hs(BY55)) ->  | CD55: =IF(AD55="","",Hm(BU55,BZ55,CB55,CC55,AL55,AO55)) ->  | CZ55: 0 | DA55: 0 | DB55: 0 | DC55: 0 | DD55: 0 | DE55: =IF(CK55="","",IF(CL55=1,YcCi(CR55,J55),YcTr(J55,CQ55,CU55))) ->  | DF55: =IF(CK55="","",IF(CL55=1,Teta1(DE55,CR55),"-")) ->  | DI55: =IF(CK55="","",IF(CL55=1,Ynci(CR55,J55,CT55,CV55),YnTr(1,CT55,CQ55,CU55,CV55,J55))) ->  | DJ55: =IF(CK55="","",IF(CL55=1,Teta1(DI55,CR55),"-")) ->  | DK55: =IF(CK55="","",IF(CL55=1,AreaCi(CR55,J55),AreaTr(CQ55,CU55,DI55))) ->  | DL55: =IF(CK55="","",IF(CL55=1,FrCi(DM55,9.806,DJ55,CR55),FrTr(DM55,9.806,CQ55,CU55,DI55))) ->  | DN55: =IF(CK55="","",IF(CL55=1,LOOKUP(CP55,'Vmáx(material) - Tab.4.3'!$L$2:$L$11,'Vmáx(material) - Tab.4.3'!$M$2:$M$11),LOOKUP(CP55,'Vmáx(material) - Tab.4.3'!$L$15,'Vmáx(material) - Tab.4.3'!$M$15))) ->  | DO55: =IF(CK55="","",VLOOKUP($CO55,'Vmáx(material) - Tab.4.3'!$R$35:$X$41,2)) ->  | DP55: =IF(CK55="","",VLOOKUP($CO55,'Vmáx(material) - Tab.4.3'!$R$35:$X$41,3)) ->  | DQ55: =IF(CK55="","",VLOOKUP($CO55,'Vmáx(material) - Tab.4.3'!$R$35:$X$41,4)) ->  | DR55: =IF(CK55="","",VLOOKUP($CO55,'Vmáx(material) - Tab.4.3'!$R$35:$X$41,5)) ->  | DS55: =IF(CK55="","",VLOOKUP($CO55,'Vmáx(material) - Tab.4.3'!$R$35:$X$41,6)) ->  | DT55: =IF(CK55="","",IF(CK55="","",VLOOKUP(CO55,'Vmáx(material) - Tab.4.3'!$R$35:$X$41,7))) ->  | DU55: =IF(CK55="","",IF(CL55=1,FCi(J55,CR55),FTr(J55,CQ55,CR55))) ->  | DW55: =IF(CK55="","",Hw(DO55,DP55,DQ55,DR55,DS55,DT55,Z,DU55,CV55,CR55)) ->  | EC55: =IF(CK55="","",IF(CL55=1,PeriCi(CR55,DI55),PeriTr(CQ55,CU55,DI55))) ->  | ED55: =IF(CK55="","",IF(CL55=1,AreaCi(CR55,DI55),AreaTr(CQ55,CU55,DI55))) ->  | EE55: =IF(CK55="","",RhCi(DK55,EC55)) ->  | EG55: =IF(CK55="","",hf(CS55,J55,CT55,DK55,EE55)) ->  | EH55: =IF(CK55="","",LOOKUP(CW55,Tab.4.5!$J$6:$J$27,Tab.4.5!$L$6:$L$27)) ->  | EI55: =IF(CK55="","",He(EH55,DM55)) ->  | EJ55: =IF(CK55="","",Hs(DM55)) ->  | EK55: =IF(CK55="","",Hm(EB55,EG55,EI55,EJ55,CS55,CV55)) ->  | ER55: K45+-45000 () | ES55: =IF(B55="Existe.",IF(AE55=1,CONCATENATE(#REF!,AK55," m."),CONCATENATE(#REF!,AJ55," m x ",AK55," m.")),IF(CL55=1,CONCATENATE(#REF!,CR55," m."),CONCATENATE(#REF!,CQ55," m x ",CR55," m."))) ->  | ET55: Concreto, L = m, S = 0 %. | EU55: Cota clave eje= 0 msnm. | FD55: =IF(EV55="","",VLOOKUP(EY55,'Estructura escalonada'!$D$3:$H$953,2)) -> 
L56: 0 | N56: 0 | U56: =IF(K56="No","",IF(O56="",YcCi(P56,N56),YcTr(N56,O56,S56))) ->  | V56: =IF(K56="No","",IF(O56="",Teta1(U56,P56),"-")) ->  | Y56: =IF(K56="No","",IF(O56="",Ynci(P56,N56,R56,T56),YnTr(1,R56,O56,S56,T56,N56))) ->  | Z56: =IF(K56="No","",IF(O56="",Teta1(Y56,P56),"-")) ->  | AA56: =IF(K56="No","",IF(O56="",AreaCi(P56,Y56),AreaTr(O56,S56,Y56))) ->  | AB56: =IF(K56="No","",IF(O56="",FrCi(AC56,9.806,Z56,P56),FrTr(AC56,9.806,O56,S56,Y56))) ->  | AS56: 0 | AT56: 0 | AX56: =IF(AD56="","",IF(AE56=1,YcCi(AK56,J56),YcTr(J56,AJ56,AN56))) ->  | AY56: =IF(AD56="","",IF(AE56=1,Teta1(AX56,AK56),"-")) ->  | AZ56: =IF(AD56="","",IF(AE56=1,AreaCi(AK56,AX56),AreaTr(AJ56,AN56,AX56))) ->  | BB56: =IF(AD56="","",IF(AE56=1,Ynci(AK56,J56,AM56,AO56),YnTr(1,AM56,AJ56,AN56,AO56,J56))) ->  | BC56: =IF(AD56="","",IF(AE56=1,Teta1(BB56,AK56),"-")) ->  | BD56: =IF(AD56="","",IF(AE56=1,AreaCi(AK56,BB56),AreaTr(AJ56,AN56,BB56))) ->  | BE56: =IF(AD56="","",IF(AE56=1,FrCi(BF56,9.806,BC56,AK56),FrTr(BF56,9.806,AJ56,AN56,BB56))) ->  | BG56: =IF(AD56="","",IF(AE56=1,LOOKUP(AI56,'Vmáx(material) - Tab.4.3'!$L$2:$L$11,'Vmáx(material) - Tab.4.3'!$M$2:$M$11),LOOKUP(AI56,'Vmáx(material) - Tab.4.3'!$L$15,'Vmáx(material) - Tab.4.3'!$M$15))) ->  | BH56: =IF(AD56="","",VLOOKUP($AH56,'Vmáx(material) - Tab.4.3'!$R$35:$X$41,2)) ->  | BI56: =IF(AD56="","",VLOOKUP($AH56,'Vmáx(material) - Tab.4.3'!$R$35:$X$41,3)) ->  | BJ56: =IF(AD56="","",VLOOKUP($AH56,'Vmáx(material) - Tab.4.3'!$R$35:$X$41,4)) ->  | BK56: =IF(AD56="","",VLOOKUP($AH56,'Vmáx(material) - Tab.4.3'!$R$35:$X$41,5)) ->  | BL56: =IF(AD56="","",VLOOKUP($AH56,'Vmáx(material) - Tab.4.3'!$R$35:$X$41,6)) ->  | BM56: =IF(AD56="","",IF(AD56="","",VLOOKUP($AH56,'Vmáx(material) - Tab.4.3'!$R$35:$X$41,7))) ->  | BN56: =IF(AD56="","",IF(AE56=1,FCi(J56,AK56),FTr(J56,AJ56,AK56))) ->  | BP56: =IF(AD56="","",Hw(BH56,BI56,BJ56,BK56,BL56,BM56,Z,BN56,AO56,AK56)) ->  | BU56: =IF(AD56="","",ho(BT56,AK56,AX56)) ->  | BV56: =IF(AD56="","",IF(AE56=1,PeriCi(AK56,BB56),PeriTr(AJ56,AN56,BB56))) ->  | BW56: =IF(AD56="","",IF(AE56=1,AreaCi(AK56,BB56),AreaTr(AJ56,AN56,BB56))) ->  | BX56: =IF(AD56="","",RhCi(BW56,BV56)) ->  | BZ56: =IF(AD56="","",hf(AL56,J56,AM56,BW56,BX56)) ->  | CA56: =IF(AD56="","",LOOKUP(AP56,Tab.4.5!$J$6:$J$27,Tab.4.5!$L$6:$L$27)) ->  | CB56: =IF(AD56="","",He(CA56,BY56)) ->  | CC56: =IF(AD56="","",Hs(BY56)) ->  | CD56: =IF(AD56="","",Hm(BU56,BZ56,CB56,CC56,AL56,AO56)) ->  | CZ56: 0 | DA56: 0 | DB56: 0 | DC56: 0 | DD56: 0 | DE56: =IF(CK56="","",IF(CL56=1,YcCi(CR56,J56),YcTr(J56,CQ56,CU56))) ->  | DF56: =IF(CK56="","",IF(CL56=1,Teta1(DE56,CR56),"-")) ->  | DI56: =IF(CK56="","",IF(CL56=1,Ynci(CR56,J56,CT56,CV56),YnTr(1,CT56,CQ56,CU56,CV56,J56))) ->  | DJ56: =IF(CK56="","",IF(CL56=1,Teta1(DI56,CR56),"-")) ->  | DK56: =IF(CK56="","",IF(CL56=1,AreaCi(CR56,J56),AreaTr(CQ56,CU56,DI56))) ->  | DL56: =IF(CK56="","",IF(CL56=1,FrCi(DM56,9.806,DJ56,CR56),FrTr(DM56,9.806,CQ56,CU56,DI56))) ->  | DN56: =IF(CK56="","",IF(CL56=1,LOOKUP(CP56,'Vmáx(material) - Tab.4.3'!$L$2:$L$11,'Vmáx(material) - Tab.4.3'!$M$2:$M$11),LOOKUP(CP56,'Vmáx(material) - Tab.4.3'!$L$15,'Vmáx(material) - Tab.4.3'!$M$15))) ->  | DO56: =IF(CK56="","",VLOOKUP($CO56,'Vmáx(material) - Tab.4.3'!$R$35:$X$41,2)) ->  | DP56: =IF(CK56="","",VLOOKUP($CO56,'Vmáx(material) - Tab.4.3'!$R$35:$X$41,3)) ->  | DQ56: =IF(CK56="","",VLOOKUP($CO56,'Vmáx(material) - Tab.4.3'!$R$35:$X$41,4)) ->  | DR56: =IF(CK56="","",VLOOKUP($CO56,'Vmáx(material) - Tab.4.3'!$R$35:$X$41,5)) ->  | DS56: =IF(CK56="","",VLOOKUP($CO56,'Vmáx(material) - Tab.4.3'!$R$35:$X$41,6)) ->  | DT56: =IF(CK56="","",IF(CK56="","",VLOOKUP(CO56,'Vmáx(material) - Tab.4.3'!$R$35:$X$41,7))) ->  | DU56: =IF(CK56="","",IF(CL56=1,FCi(J56,CR56),FTr(J56,CQ56,CR56))) ->  | DW56: =IF(CK56="","",Hw(DO56,DP56,DQ56,DR56,DS56,DT56,Z,DU56,CV56,CR56)) ->  | EC56: =IF(CK56="","",IF(CL56=1,PeriCi(CR56,DI56),PeriTr(CQ56,CU56,DI56))) ->  | ED56: =IF(CK56="","",IF(CL56=1,AreaCi(CR56,DI56),AreaTr(CQ56,CU56,DI56))) ->  | EE56: =IF(CK56="","",RhCi(DK56,EC56)) ->  | EG56: =IF(CK56="","",hf(CS56,J56,CT56,DK56,EE56)) ->  | EH56: =IF(CK56="","",LOOKUP(CW56,Tab.4.5!$J$6:$J$27,Tab.4.5!$L$6:$L$27)) ->  | EI56: =IF(CK56="","",He(EH56,DM56)) ->  | EJ56: =IF(CK56="","",Hs(DM56)) ->  | EK56: =IF(CK56="","",Hm(EB56,EG56,EI56,EJ56,CS56,CV56)) ->  | ER56: K45+-45000 () | ES56: =IF(B56="Existe.",IF(AE56=1,CONCATENATE(#REF!,AK56," m."),CONCATENATE(#REF!,AJ56," m x ",AK56," m.")),IF(CL56=1,CONCATENATE(#REF!,CR56," m."),CONCATENATE(#REF!,CQ56," m x ",CR56," m."))) ->  | ET56: Concreto, L = m, S = 0 %. | EU56: Cota clave eje= 0 msnm. | FD56: =IF(EV56="","",VLOOKUP(EY56,'Estructura escalonada'!$D$3:$H$953,2)) -> 
